Workbook

Sheet Options
A1: 6 | Y1: 55
C8: Description and details of Macro
P9: Exercise: | Q9: MTEC | Y9: 60
P10: Count across | Q10: =COUNTIF(Q11:AS11,">0") -> 17
C11: Purpose: | E11: Macro to correct ENE 2018 data workbook | P11: Count down | Q11: =COUNTA(Q13:Q307) -> 6 | R11: =COUNTA(R13:R305) -> 35 | S11: =COUNTA(S13:S293) -> 39 | T11: =COUNTA(T13:T292) -> 4 | U11: =COUNTA(U13:U291) -> 18 | V11: =COUNTA(V13:V292) -> 1 | W11: =COUNTA(W13:W306) -> 12 | X11: =COUNTA(X13:X306) -> 20 | Y11: =COUNTA(Y13:Y297) -> 15 | Z11: =COUNTA(Z13:Z306) -> 1 | AA11: =COUNTA(AA13:AA304) -> 2 | AB11: =COUNTA(AB13:AB306) -> 8 | AC11: =COUNTA(AC13:AC306) -> 8 | AD11: =COUNTA(AD13:AD306) -> 1 | AE11: =COUNTA(AE13:AE307) -> 4 | AF11: =COUNTA(AF13:AF306) -> 4 | AG11: 1 | AH11: 0 | AI11: 0 | AJ11: 0 | AK11: 0 | AL11: 0 | AM11: 0 | AN11: 0 | AO11: 0 | AP11: 0 | AQ11: 0 | AR11: 0 | AS11: 0
C12: Sheets: | P12: Sheet No./Name | Q12: Summary | R12: Prog | S12: Sprog | T12: Function shift | U12: Func Shifts - Desc | V12: Reprioritisation | W12: Personnel | X12: Receipts | Y12: InfraS | Z12: ODA Summary | AA12: 2013 ENE | AB12: Deviations | AC12: Expend trends | AD12: Dept specific info | AE12: Training | AF12: PPP Projects | AG12: Dept specific info - own | AH12: 19 | AI12: 20 | AJ12: 21 | AK12: 22 | AL12: 23 | AM12: 24 | AN12: 25 | AO12: 26 | AP12: 27 | AQ12: 28 | AR12: 29 | AS12: 30
C13: Applicable to: | P13: Area: | Q13: G8:J9 | R13: G9 | S13: G302:H302 | T13: G15:N16 | U13: G113 | V13: F14:Z113 | W13: G68:J84 | X13: H14:O14 | Y13: G12:T161 | Z13: F14:W267 | AA13: G43:J57 | AB13: K14 | AC13: G14:I28 | AD13: F14:M1013 | AE13: G15:M15 | AF13: H50:L50 | AG13: A1:CA10000 | AV13: 1 | AW13: AM185:AM274 | AY13: Vote | AZ13: Departement | BA13: Sheet | BB13: Cell | BC13: Total
C14: Date of macro: | E14: 09/11/2018 | Q14: F12:Q12 | R14: K9:M9 | S14: K302:M302 | T14: P15:R16 | U14: G115 | W14: L68:M84 | X14: F18:F22 | Y14: W12:X161 | AA14: G59:J59 | AB14: O15:Q17 | AC14: K14:K28 | AE14: G16:I16 | AF14: H58:L60 | AV14: 1 | AW14: AM276:AM289 | AY14: 3 | AZ14: Communications | BA14: 4 | BB14: AM192 | BC14: 5466
C15: Effective until: | Q15: F31:F45 | R15: F12:T12 | S15: F305:T305 | T15: F18:F47 | U15: G121:N123 | W15: O68:P84 | X15: H18:O22 | Y15: AB12:AC161 | AB15: K18 | AC15: G31:I35 | AE15: G18:J24 | AF15: H63:L67 | AV15: 1 | AW15: AM298:AM310 | AY15: 3 | AZ15: Communications | BA15: 4 | BB15: AM657 | BC15: 5466
C16: More Information: | E16: This macro should be implemented by all departments. The macro will effect the following adjustments to the workbook: - On the "PPP Projects" sheet, adjust data validation - On the "Summary", amend check formulas related to the "Infrastructure Summary" sheet ; | Q16: AW31:AW45 | R16: F16:W35 | S16: F310:G319 | U16: P121:R123 | W16: R68:S84 | X16: F24:F28 | Y16: AG12:AH161 | AB16: O19:Q25 | AC16: K31:K35 | AE16: K23:M23 | AF16: H72:L80 | AV16: 2 | AW16: AM356:AM365 | AY16: 4 | AZ16: Cooperative Governance and Traditional Affairs | BA16: 3 | BB16: AM276 | BC16: 2599820
Q17: AW48:AW52 | R17: F47:F71 | S17: I310:Y319 | U17: G125:N126 | W17: U68:V84 | X17: H24:O28 | Y17: AL12:AQ161 | AB17: K26 | AC17: G44:I46 | AV17: 2 | AW17: AM370:AM371 | AY17: 4 | AZ17: Cooperative Governance and Traditional Affairs | BA17: 3 | BB17: AM1256 | BC17: 2599820
R18: G47:G71 | S18: AD310:AH319 | U18: P125:R126 | W18: X68:X84 | X18: F30:F34 | Y18: G164:T313 | AB18: O27:Q34 | AC18: G48:I54 | AV18: 2 | AW18: AM373:AM410 | AY18: 4 | AZ18: Cooperative Governance and Traditional Affairs | BA18: 3 | BB18: AM185 | BC18: 1590
R19: I160:Q160 | S19: AM310:AN319 | U19: G129:N130 | W19: L85 | X19: H30:O34 | Y19: W164:X313 | AB19: K34 | AC19: G56:I62 | AV19: 2 | AW19: AM412:AM413 | AY19: 4 | AZ19: Cooperative Governance and Traditional Affairs | BA19: 3 | BB19: AM1706 | BC19: 1590
R20: S160 | S20: F326:G334 | U20: P129:R130 | W20: O85 | X20: F36:F40 | Y20: AB164:AC313 | AB20: O38:Q38 | AC20: G63:I63 | AV20: 2 | AW20: AM440:AM441 | AY20: 7 | AZ20: National Treasury | BA20: Direct_charges | BB20: AM276 | BC20: 9664001
R21: U160:W160 | S21: I326:Q335 | U21: G132:N135 | W21: R85 | X21: H36:O40 | Y21: AG164:AH313 | AV21: 2 | AW21: AM443:AM449 | AY21: 7 | AZ21: National Treasury | BA21: Direct_charges | BB21: AM356 | BC21: 1354991
R22: AD160:AF160 | S22: S326:S335 | U22: P132:R135 | W22: U85 | X22: H42:O47 | Y22: AL164:AQ313 | AY22: 7 | AZ22: National Treasury | BA22: Direct_charges | BB22: AM357 | BC22: 537816
R23: AM160:AO160 | S23: U326:W335 | U23: G137:N139 | W23: X85 | X23: H49:O51 | Y23: G316:T465 | AY23: 7 | AZ23: National Treasury | BA23: Direct_charges | BB23: AM358 | BC23: 1913832
R24: F177:G246 | S24: AD326:AF335 | U24: P137:R139 | X24: H53:O53 | Y24: W316:X465 | AY24: 7 | AZ24: National Treasury | BA24: Direct_charges | BB24: AM359 | BC24: 2040116
R25: I177:Q246 | S25: AM326:AO335 | U25: G141:N142 | X25: F55:F59 | Y25: AB316:AC465 | AY25: 7 | AZ25: National Treasury | BA25: Direct_charges | BB25: AM360 | BC25: 1133682
R26: S177:S246 | S26: I340:Q341 | U26: P141:R142 | X26: H55:O60 | Y26: AG316:AH465 | AY26: 7 | AZ26: National Treasury | BA26: Direct_charges | BB26: AM361 | BC26: 786984
R27: U177:W246 | S27: S340:S341 | U27: G145:N146 | X27: H62:O63 | Y27: AL316:AQ465 | AY27: 7 | AZ27: National Treasury | BA27: Direct_charges | BB27: AM362 | BC27: 256217
R28: AD177:AF246 | S28: U340:W341 | U28: P145:R146 | X28: H66:O68 | AY28: 7 | AZ28: National Treasury | BA28: Direct_charges | BB28: AM363 | BC28: 665595
R29: AM177:AO246 | S29: AD340:AF341 | U29: G148:N155 | X29: F72:F81 | AY29: 7 | AZ29: National Treasury | BA29: Direct_charges | BB29: AM364 | BC29: 974768
O30: AM356:AM452 | R30: AW177:BB246 | S30: AM340:AO341 | U30: P148:R155 | X30: H72:O81 | AY30: 7 | AZ30: National Treasury | BA30: Direct_charges | BB30: AM277 | BC30: 135911
P31: =COUNTA(P33:P62) -> 14 | R31: F248:G261 | S31: I343:Q380 | X31: F83:F92 | AY31: 7 | AZ31: National Treasury | BA31: Direct_charges | BB31: AM656 | BC31: 135911
N32: =COUNTA(O33:O62) -> 6 | O32: Ranges for Array | P32: Grey area | R32: I248:Q261 | S32: S343:S380 | X32: H83:O92 | AY32: 7 | AZ32: National Treasury | BA32: 8 | BB32: AM280 | BC32: 514425
N33: 1 | O33: AM366:AM369 | P33: R185:R274 | R33: S248:S261 | S33: U343:W380 | AY33: 7 | AZ33: National Treasury | BA33: 8 | BB33: AM508 | BC33: 514425
N34: 2 | O34: AM372 | P34: T185:T274 | R34: U248:W261 | S34: AD343:AF380 | AY34: 10 | AZ34: Public Service and Administration | BA34: 6 | BB34: AM185 | BC34: 4347
N35: 3 | O35: AM411 | P35: X185:X274 | R35: AD248:AF261 | S35: AM343:AO380 | AY35: 10 | AZ35: Public Service and Administration | BA35: 5 | BB35: AM186 | BC35: 1168
N36: 4 | O36: AM414:AM439 | P36: Y185:Y274 | R36: AM248:AO261 | S36: I382:Q383 | AY36: 10 | AZ36: Public Service and Administration | BA36: 5 | BB36: AM190 | BC36: 418
N37: 5 | O37: AM442 | P37: AB185:AB274 | R37: AX248:BB261 | S37: S382:S383 | AY37: 10 | AZ37: Public Service and Administration | BA37: 6 | BB37: AM1406 | BC37: 4347
N38: 6 | O38: AM452 | P38: AC185:AC274 | R38: F269:F281 | S38: U382:W383 | AY38: 10 | AZ38: Public Service and Administration | BA38: 5 | BB38: AM1406 | BC38: 1168
N39: 7 | P39: AG185:AG274 | R39: I269:Q281 | S39: AD382:AF383 | AY39: 10 | AZ39: Public Service and Administration | BA39: 5 | BB39: AM1256 | BC39: 418
N40: 8 | P40: AH185:AH274 | R40: S269:S281 | S40: AM382:AO383 | AY40: 14 | AZ40: Basic Education | BA40: 5 | BB40: AM276 | BC40: 114972
N41: 9 | P41: AK185:AK274 | R41: U269:W281 | S41: I410:Q411 | AY41: 14 | AZ41: Basic Education | BA41: 5 | BB41: AM659 | BC41: 114972
N42: 10 | P42: AL185:AL274 | R42: AD269:AF281 | S42: S410:S411 | AY42: 14 | AZ42: Basic Education | BA42: 4 | BB42: AM276 | BC42: 169695
N43: 11 | P43: AP185:AP274 | R43: AM269:AO281 | S43: U410:W411 | AY43: 14 | AZ43: Basic Education | BA43: 4 | BB43: AM658 | BC43: 169695
N44: 12 | P44: AQ185:AQ274 | R44: AW269:AZ281 | S44: AD410:AF411 | AY44: 14 | AZ44: Basic Education | BA44: 2 | BB44: AM277 | BC44: 9936
N45: 13 | P45: AT185:AT274 | R45: F287:G296 | S45: AM410:AO411 | AY45: 14 | AZ45: Basic Education | BA45: 2 | BB45: AM510 | BC45: 9936
N46: 14 | P46: AU185:AU274 | R46: J287:N296 | S46: I413:Q419 | AY46: 15 | AZ46: Higher Education and Training | BA46: Direct_charges | BB46: U185 | BC46: -831057
N47: 15 | S47: S413:S419 | AY47: 15 | AZ47: Higher Education and Training | BA47: Direct_charges | BB47: U356 | BC47: -831057
N48: 16 | S48: U413:W419 | AY48: 15 | AZ48: Higher Education and Training | BA48: Direct_charges | BB48: U186 | BC48: -207764
N49: 17 | S49: AD413:AF419 | AY49: 15 | AZ49: Higher Education and Training | BA49: Direct_charges | BB49: U506 | BC49: -207764
N50: 18 | S50: AM413:AO419 | AY50: 15 | AZ50: Higher Education and Training | BA50: Direct_charges | BB50: AD185 | BC50: -923721
N51: 19 | AY51: 15 | AZ51: Higher Education and Training | BA51: Direct_charges | BB51: AD356 | BC51: -923721
N52: 20 | AY52: 15 | AZ52: Higher Education and Training | BA52: Direct_charges | BB52: AD186 | BC52: -230930
N53: 21 | AY53: 15 | AZ53: Higher Education and Training | BA53: Direct_charges | BB53: AD506 | BC53: -230930
N54: 22 | AY54: 15 | AZ54: Higher Education and Training | BA54: Direct_charges | BB54: AM185 | BC54: -563716
N55: 23 | AY55: 15 | AZ55: Higher Education and Training | BA55: Direct_charges | BB55: AM356 | BC55: -563716
N56: 24 | AY56: 15 | AZ56: Higher Education and Training | BA56: Direct_charges | BB56: AM186 | BC56: -140929
N57: 25 | AY57: 15 | AZ57: Higher Education and Training | BA57: Direct_charges | BB57: AM506 | BC57: -140929
N58: 26 | AY58: 15 | AZ58: Higher Education and Training | BA58: 3 | BB58: AM185 | BC58: 1268444
N59: 27 | AY59: 15 | AZ59: Higher Education and Training | BA59: 3 | BB59: AM506 | BC59: 1268444
N60: 28 | AY60: 16 | AZ60: Health | BA60: 3 | BB60: AM278 | BC60: 1187330
N61: 29 | AY61: 16 | AZ61: Health | BA61: 3 | BB61: AM506 | BC61: 1187330
N62: 30 | AY62: 16 | AZ62: Health | BA62: 5 | BB62: AM277 | BC62: 158131
AY63: 16 | AZ63: Health | BA63: 5 | BB63: AM656 | BC63: 158131
AY64: 17 | AZ64: Social Development | BA64: 2 | BB64: AM356 | BC64: 1091520
AY65: 17 | AZ65: Social Development | BA65: 2 | BB65: AM185 | BC65: 1091520
O66: Infra checks areas on Summary sheet | AY66: 17 | AZ66: Social Development | BA66: 2 | BB66: AM506 | BC66: 25
O67: I156 | P67: I130-('InfraS Summary'!H13+'InfraS Summary'!H15+'InfraS Summary'!H16) | AY67: 17 | AZ67: Social Development | BA67: 2 | BB67: AM186 | BC67: 25
O68: J156 | P68: J130-('InfraS Summary'!I13+'InfraS Summary'!I15+'InfraS Summary'!I16) | AY68: 17 | AZ68: Social Development | BA68: 2 | BB68: AM656 | BC68: 332127
O69: K156 | P69: K130-('InfraS Summary'!J13+'InfraS Summary'!J15+'InfraS Summary'!J16) | AY69: 17 | AZ69: Social Development | BA69: 2 | BB69: AM187 | BC69: 332127
O70: L156 | P70: L130-('InfraS Summary'!K13+'InfraS Summary'!K15+'InfraS Summary'!K16) | AY70: 17 | AZ70: Social Development | BA70: 2 | BB70: AM806 | BC70: 79352
O71: R156 | P71: R130-('InfraS Summary'!L13+'InfraS Summary'!L15+'InfraS Summary'!L16) | AY71: 17 | AZ71: Social Development | BA71: 2 | BB71: AM188 | BC71: 79352
O72: T156 | P72: T130-('InfraS Summary'!N13+'InfraS Summary'!N15+'InfraS Summary'!N16) | AY72: 17 | AZ72: Social Development | BA72: 2 | BB72: AM956 | BC72: 48934
O73: U156 | P73: U130-('InfraS Summary'!O13+'InfraS Summary'!O15+'InfraS Summary'!O16) | AY73: 17 | AZ73: Social Development | BA73: 2 | BB73: AM189 | BC73: 48934
O74: Y156 | P74: Y130-('InfraS Summary'!Q13+'InfraS Summary'!Q15+'InfraS Summary'!Q16) | AY74: 17 | AZ74: Social Development | BA74: 2 | BB74: AM1106 | BC74: 920764
O75: AB156 | P75: AB130-('InfraS Summary'!S13+'InfraS Summary'!S15+'InfraS Summary'!S16) | AY75: 17 | AZ75: Social Development | BA75: 2 | BB75: AM190 | BC75: 920764
O76: AD156 | P76: AD130-('InfraS Summary'!T13+'InfraS Summary'!T15+'InfraS Summary'!T16) | AY76: 17 | AZ76: Social Development | BA76: 2 | BB76: AM1256 | BC76: 16276
O77: AH156 | P77: AH130-('InfraS Summary'!V13+'InfraS Summary'!V15+'InfraS Summary'!V16) | AY77: 17 | AZ77: Social Development | BA77: 2 | BB77: AM191 | BC77: 16276
O78: AK156 | P78: AK130-('InfraS Summary'!X13+'InfraS Summary'!X15+'InfraS Summary'!X16) | AY78: 17 | AZ78: Social Development | BA78: 2 | BB78: AM1406 | BC78: 7108
O79: AM156 | P79: AM130-('InfraS Summary'!Y13+'InfraS Summary'!Y15+'InfraS Summary'!Y16) | AY79: 17 | AZ79: Social Development | BA79: 2 | BB79: AM192 | BC79: 7108
D80: Path: | E80: NT Indi | O80: AQ156 | P80: AQ130-('InfraS Summary'!AA13+'InfraS Summary'!AA15+'InfraS Summary'!AA16) | AY80: 17 | AZ80: Social Development | BA80: 4 | BB80: AM277 | BC80: 6218
D81: File prefix: | E81: 1 | O81: AT156 | P81: AT130-('InfraS Summary'!AC13+'InfraS Summary'!AC15+'InfraS Summary'!AC16) | AY81: 17 | AZ81: Social Development | BA81: 4 | BB81: AM963 | BC81: 6218
C82: Vote start no | E82: 15 | AY82: 17 | AZ82: Social Development | BA82: 4 | BB82: AM278 | BC82: 2552
C83: Vote end no | E83: 21 | AY83: 17 | AZ83: Social Development | BA83: 4 | BB83: AM1706 | BC83: 2552
E84: P:\1. Budget\2018\ENE\A. Database | AY84: 19 | AZ84: Defence | BA84: 1 | BB84: AM200 | BC84: 2631
E85: Budget2018-Vote | AY85: 19 | AZ85: Defence | BA85: 1 | BB85: AM2456 | BC85: 2631
AY86: 23 | AZ86: Police | BA86: 1 | BB86: AM194 | BC86: 2097
AY87: 23 | AZ87: Police | BA87: 1 | BB87: AM815 | BC87: 2097 | BF87: 23834840
AY88: 24 | AZ88: Agriculture, Forestry and Fisheries | BA88: 3 | BB88: AM276 | BC88: 22513
AY89: 24 | AZ89: Agriculture, Forestry and Fisheries | BA89: 3 | BB89: AM506 | BC89: 22513
AY90: 24 | AZ90: Agriculture, Forestry and Fisheries | BA90: 1 | BB90: AM1256 | BC90: -53805
AY91: 24 | AZ91: Agriculture, Forestry and Fisheries | BA91: 1 | BB91: AM1287 | BC91: -53805
AY92: 24 | AZ92: Agriculture, Forestry and Fisheries | BA92: 3 | BB92: AM189 | BC92: -158250
AY93: 24 | AZ93: Agriculture, Forestry and Fisheries | BA93: 3 | BB93: AM506 | BC93: -158250
AY94: 35 | AZ94: Transport | BA94: 7 | BB94: AM276 | BC94: 75909
AY95: 35 | AZ95: Transport | BA95: 7 | BB95: AM806 | BC95: 75909
AY96: 38 | AZ96: Human Settlements | BA96: 4 | BB96: AM276 | BC96: 268058
AY97: 38 | AZ97: Human Settlements | BA97: 4 | BB97: AM656 | BC97: 268058
N121: 0
E124: Checks
E125: Over / (under) Programme total less Economic classification total | H125: 0 | I125: 0 | K125: 0.3334899545 | M125: 0
E126: Over / (under) Column H row 115 not equal to Adjusted Appropriation reflected in ENE 2015. | H126: 0
N143: 0 | O143: 0 | P143: 0 | Q143: 0 | R143: 0 | S143: 0 | T143: 0 | W143: 0
K147: 0 | L147: 0 | M147: 0

Sheet Contacts (hidden)
A2: Dept Index No. | B2: Vote No. | C2: Department | D2: Category | E2: ID1 | F2: Contact Person | G2: Tel | H2: email | I2: Contact Person | J2: Tel | K2: email | L2: ID2 | M2: Contact Person | N2: Tel | O2: email | P2: 2018/19 | Q2: 2019/20 | R2: 2020/21 | T2: Vote No. | U2: Dept | V2: 2018/19 | W2: 2019/20 | X2: 2020/21
A3: 1 | B3: 24 | C3: Agriculture, Forestry and Fisheries | F3: Bothwell Deka | G3: (012) 395 6784 | H3: Bothwell.Deka@treasury.gov.za | I3: Humbelani Ramuedzisi | J3: (012) 315 5585 | K3: Humbelani.Ramuedzisi@treasury.gov.za | O3: datafileNAT@treasury.gov.za | P3: 7139438 | Q3: 7576758 | R3: 7850805 | T3: 24 | U3: Agriculture, Forestry and Fisheries | V3: 7199438 | W3: 7636758 | X3: 7850805
A4: 2 | B4: 37 | C4: Arts and Culture | F4: Judy Naidoo | G4: (012) 315 5269 | H4: Judy.Naidoo@treasury.gov.za | I4: Siphamandla Khumalo | J4: (012) 315 5759 | K4: Siphamandla.Khumalo@treasury.gov.za | O4: datafileNAT@treasury.gov.za | P4: 4491651 | Q4: 4752325 | R4: 5019159 | T4: 37 | U4: Arts and Culture | V4: 4491651 | W4: 4752325 | X4: 5019159
A5: 3 | B5: 14 | C5: Basic Education | F5: Spencer Janari | G5: (012) 315 5436 | H5: Spencer.Janari@treasury.gov.za | I5: Pindi Masiso | J5: (012) 315 5722 | K5: Pindi.Masiso@treasury.gov.za | O5: datafileNAT@treasury.gov.za | P5: 24795329 | Q5: 26195958 | R5: 27942107 | T5: 14 | U5: Basic Education | V5: 24795329 | W5: 26195958 | X5: 27942107
A6: 4 | B6: 47 | C6: Centre for Public Service Innovation | F6: George Tembo | G6: (012) 315 5514 | H6: George.Tembo@treasury.gov.za | I6: Mokgatla Tema | J6: (012) 315 5948 | K6: Mokgatla.Tema@treasury.gov.za | O6: datafileNAT@treasury.gov.za | P6: 36030 | Q6: 38437 | R6: 40969 | T6: 47 | U6: Centre for Public Service Innovation | V6: 36030 | W6: 38437 | X6: 40969
A7: 5 | B7: 41 | C7: Civilian Secretariat | F7: Nompumelelo Radebe | G7: (012) 315 5957 | H7: Nompumelelo.Radebe@treasury.gov.za | I7: Velisubuhle Buti | J7: (012) 395 6709 | K7: velisubuhle.buti@treasury.gov.za | O7: datafileNAT@treasury.gov.za | P7: 134584 | Q7: 144071 | R7: 154092 | T7: 41 | U7: Civilian Secretariat | V7: 134584 | W7: 144071 | X7: 154092
A8: 6 | B8: 3 | C8: Communications | F8: Japie Jacobs | G8: (012) 315 5546 | H8: Japie.Jacobs@treasury.gov.za | I8: Rhoda Marais | J8: (012) 315 5906 | K8: Thapelo.Mokwana@treasury.gov.za | O8: datafileNAT@treasury.gov.za | P8: 1520650 | Q8: 1612340 | R8: 1708236 | T8: 3 | U8: Communications | V8: 1544988 | W8: 1637895 | X8: 1735069
A9: 7 | B9: 4 | C9: Cooperative Governance and Traditional Affairs | F9: Misaveni Ngobeni | G9: (012) 315 5305 | H9: misaveni.ngobeni@treasury.gov.za | I9: Millicent Mulaudzi | J9: (012) 395 6576 | K9: Millicent.Mulaudzi@treasury.gov.za | O9: datafileNAT@treasury.gov.za | P9: 85113770 | Q9: 91060369 | R9: 98677406 | T9: 4 | U9: Cooperative Governance And Traditional Affairs | V9: 85173770 | W9: 92625869 | X9: 100647406
A10: 8 | B10: 18 | C10: Correctional Services | F10: Elvis Ramafamba | G10: (012) 315 5204 | H10: elvis.ramafamba@treasury.gov.za | I10: Keabetswe Matlwa | J10: (012) 315 6678 | K10: Keabetswe.Matlwa@treasury.gov.za | O10: datafileNAT@treasury.gov.za | P10: 24453616 | Q10: 26155812 | R10: 27961056 | T10: 18 | U10: Correctional Services | V10: 24436700 | W10: 26135000 | X10: 27935038
A11: 9 | B11: 19 | C11: Defence and Military Veterans | F11: Mashudu Bidzha | G11: (012) 315 5344 | H11: mashudu.bidzha@treasury.gov.za | I11: Lesiba Ledwaba | J11: (012) 315 6660 | K11: Lesiba.Ledwaba@treasury.gov.za | O11: datafileNAT@treasury.gov.za | P11: 50610314 | Q11: 53966436 | R11: 57520767 | T11: 19 | U11: Defence And Military Veterans | V11: 50610314 | W11: 54034153 | X11: 57520767
A12: 10 | B12: 25 | C12: Economic Development | F12: Isaac Kurasha | G12: (012) 315 5213 | H12: isaac.kurasha@treasury.gov.za | I12: Rudzani Sikhwari | J12: (012) 315 5823 | K12: Rudzani.Sikhwari@treasury.gov.za | O12: datafileNAT@treasury.gov.za | P12: 844726 | Q12: 904273 | R12: 955965 | T12: 25 | U12: Economic Development | V12: 844726 | W12: 904273 | X12: 955965
A13: 11 | B13: 26 | C13: Energy | F13: Rezah Atcha | G13: (012) 315 5287 | H13: Rezah.Atcha@treasury.gov.za | I13: Nomagugu Madikane | J13: (012) 315 5312 | K13: Nomagugu.Madikane@treasury.gov.za | O13: datafileNAT@treasury.gov.za | P13: 8469943 | Q13: 9950774 | R13: 10505211 | T13: 26 | U13: Energy | V13: 8469943 | W13: 9950774 | X13: 10505211
A14: 12 | B14: 27 | C14: Environmental Affairs | F14: Ashley Ramasimu | G14: (012) 315 5166 | H14: Ashley.Ramasimu@treasury.gov.za | I14: Thabiso Molewa | J14: (012) 395 6780 | K14: Thabiso.Molewa@treasury.gov.za | O14: datafileNAT@treasury.gov.za | P14: 7061226 | Q14: 7378025 | R14: 7807036 | T14: 27 | U14: Environmental Affairs | V14: 7061226 | W14: 7489025 | X14: 7924141
A15: 13 | B15: 46 | C15: Government Communication and Information System | F15: Japie Jacobs | G15: (012) 315 5546 | H15: Japie.Jacobs@treasury.gov.za | I15: Rhoda Marais | J15: (012) 315-5906 | K15: Rhoda.Marais@treasury.gov.za | O15: datafileNAT@treasury.gov.za | P15: 431267 | Q15: 460456 | R15: 491247 | T15: 46 | U15: Government Communication and Information System | V15: 431267 | W15: 460456 | X15: 491247
A16: 14 | B16: 16 | C16: Health | F16: Aparna Kollipara | G16: (012) 315 5386 | H16: Aparna.Kollipara@treasury.gov.za | I16: Refiloe Thokoa | J16: (012) 395 6559 | K16: Refiloe.Thokoa@treasury.gov.za | O16: datafileNAT@treasury.gov.za | P16: 46666972 | Q16: 50384947 | R16: 54519473 | T16: 16 | U16: Health | V16: 46666972 | W16: 50384947 | X16: 54519473
A17: 15 | B17: 15 | C17: Higher Education and Training | F17: Nokwazi Makanya | G17: (012) 406 9057 | H17: Nokwazi.Makanya@treasury.gov.za | I17: Walter Munyai | J17: (012) 315 5636 | K17: Walter.Munyai@treasury.gov.za | O17: datafileNAT@treasury.gov.za | P17: 77601133 | Q17: 82620326 | R17: 89139155 | T17: 15 | U17: Higher Education and Training | V17: 77601133 | W17: 87620326 | X17: 94414155
A18: 16 | B18: 5 | C18: Home Affairs | F18: Timothy Murwa | G18: (012) 315 5002 | H18: Timothy.Murwa@treasury.gov.za | I18: Isaac Mabena | J18: (012) 315 5582 | K18: Isaac.Mabena@treasury.gov.za | O18: datafileNAT@treasury.gov.za | P18: 7816025 | Q18: 7647117 | R18: 8138883 | T18: 5 | U18: Home Affairs | V18: 7996025 | W18: 8394117 | X18: 8840883
A19: 17 | B19: 38 | C19: Human Settlements | F19: James Archer | G19: (012) 395 6736 | H19: James.Archer@treasury.gov.za | I19: Lindiwe Ngcongwane | J19: (012) 315 5357 | K19: Lindiwe.Ngcongwane@treasury.gov.za | O19: datafileNAT@treasury.gov.za | P19: 35414719 | Q19: 37447502 | R19: 39783289 | T19: 38 | U19: Human Settlements | V19: 35414719 | W19: 37447502 | X19: 39783289
A20: 18 | B20: 20 | C20: Independent Police Investigative Directorate | F20: Nompumelelo Radebe | G20: (012) 315 5957 | H20: Nompumelelo.Radebe@treasury.gov.za | I20: Velisubuhle Buti | J20: (012) 395 6709 | K20: velisubuhle.buti@treasury.gov.za | O20: datafileNAT@treasury.gov.za | P20: 266958 | Q20: 285824 | R20: 305758 | T20: 20 | U20: Independent Police Investigative Directorate | V20: 316958 | W20: 338624 | X20: 361462
A21: 19 | B21: 6 | C21: International Relations and Cooperation | F21: Timothy Murwa | G21: (012) 315 5002 | H21: Timothy.Murwa@treasury.gov.za | I21: Thulasizwe Motha | J21: (012) 406 9019 | K21: Thulasizwe.Motha@treasury.gov.za | O21: datafileNAT@treasury.gov.za | P21: 6765659 | Q21: 6505525 | R21: 6920817 | T21: 6 | U21: International Relations and Cooperation | V21: 6765659 | W21: 6505525 | X21: 6920817
A22: 20 | B22: 21 | C22: Justice and Constitutional Development | F22: Werner Krause | G22: (012) 315 5211 | H22: werner.krause@treasury.gov.za | I22: Maggy Mokoka | J22: (012) 315 5468 | K22: Maggy.Mokoka@treasury.gov.za | O22: datafileNAT@treasury.gov.za | P22: 19908353 | Q22: 21233941 | R22: 22639981 | T22: 21 | U22: Justice and Constitutional Development | V22: 19872221 | W22: 21196164 | X22: 22598537
A23: 21 | B23: 28 | C23: Labour | F23: Judy Naidoo | G23: (012) 315 5269 | H23: Judy.Naidoo@treasury.gov.za | I23: Kismore Mangondo | J23: (012) 315-5773 | K23: Kismore.Mangondo@treasury.gov.za | O23: datafileNAT@treasury.gov.za | P23: 3266459 | Q23: 3451500 | R23: 3669537 | T23: 28 | U23: Labour | V23: 3316459 | W23: 3455500 | X23: 3672537
A24: 22 | B24: 42 | C24: Military Veterans | F24: Mashudu Bidzha | G24: (012) 315 5344 | H24: mashudu.bidzha@treasury.gov.za | I24: Lesiba Ledwaba | J24: (012) 315 6660 | K24: Lesiba.Ledwaba@treasury.gov.za | O24: datafileNAT@treasury.gov.za | P24: 660092 | Q24: 699502 | R24: 740606 | T24: 42 | U24: Military Veterans | V24: 660092 | W24: 699502 | X24: 740606
A25: 23 | B25: 29 | C25: Mineral Resources | F25: Bothwell Deka | G25: (012) 395 6784 | H25: Bothwell.Deka@treasury.gov.za | I25: Nico Likhethe | J25: (012) 315 5558 | K25: Nico.Likhethe@treasury.gov.za | O25: datafileNAT@treasury.gov.za | P25: 1906669 | Q25: 1850012 | R25: 1964630 | T25: 29 | U25: Mineral Resources | V25: 1906669 | W25: 2038012 | X25: 2162970
A26: 24 | B26: 44 | C26: National School of Government | F26: George Tembo | G26: (012) 315 5514 | H26: George.Tembo@treasury.gov.za | I26: Mokgatla Tema | J26: (012) 315 5948 | K26: Mokgatla.Tema@treasury.gov.za | O26: datafileNAT@treasury.gov.za | P26: 173291 | Q26: 183890 | R26: 195172 | T26: 44 | U26: National School of Government | V26: 173291 | W26: 183890 | X26: 195172
A27: 25 | B27: 7 | C27: National Treasury | F27: Japie Jacobs | G27: (012) 315 5546 | H27: Japie.Jacobs@treasury.gov.za | I27: Rhoda Marais | J27: (012) 315 5906 | K27: Thapelo.Mokwana@treasury.gov.za | O27: datafileNAT@treasury.gov.za | P27: 697037606 | Q27: 750604180 | R27: 802219134 | T27: 7 | U27: National Treasury | V27: 699362726 | W27: 756837915 | X27: 817735566
A28: 26 | B28: 22 | C28: Office of the Chief Justice and Judicial Administration | F28: Elvis Ramafamba | G28: (012) 315 5204 | H28: elvis.ramafamba@treasury.gov.za | I28: Keabetswe Matlwa | J28: (012) 315 6657 | K28: Keabetswe.Matlwa@treasury.gov.za | O28: datafileNAT@treasury.gov.za | P28: 2093064 | Q28: 2242458 | R28: 2400418 | T28: 22 | U28: Office of the Chief Justice and Judicial Administration | V28: 2146112 | W28: 2301047 | X28: 2467880
A29: 27 | B29: 2 | C29: Parliament | F29: Timothy Murwa | G29: (012) 315 5002 | H29: Timothy.Murwa@treasury.gov.za | I29: Isaac Mabena | J29: (012) 315 5582 | K29: Isaac.Mabena@treasury.gov.za | O29: datafileNAT@treasury.gov.za | P29: 2371139 | Q29: 2531189 | R29: 2700347 | T29: 2 | U29: Parliament | V29: 2371139 | W29: 2531189 | X29: 2700347
A30: 28 | B30: 8 | C30: Planning, Monitoring and Evaluation | F30: Timothy Murwa | G30: (012) 315 5002 | H30: Timothy.Murwa@treasury.gov.za | I30: Thulasizwe Motha | J30: (012) 406 9019 | K30: Thulasizwe.Motha@treasury.gov.za | O30: datafileNAT@treasury.gov.za | P30: 942489 | Q30: 995870 | R30: 1057273 | T30: 8 | U30: Planning, Monitoring and Evaluation | V30: 942489 | W30: 995870 | X30: 1057273
A31: 29 | B31: 23 | C31: Police | F31: Nompumelelo Radebe | G31: (012) 315 5957 | H31: Nompumelelo.Radebe@treasury.gov.za | I31: Velisubuhle Buti | J31: (012) 395 6709 | K31: velisubuhle.buti@treasury.gov.za | O31: datafileNAT@treasury.gov.za | P31: 92741002 | Q31: 98945875 | R31: 105910498 | T31: 23 | U31: Police | V31: 92691002 | W31: 99073075 | X31: 105854794
A32: 30 | B32: 9 | C32: Public Enterprises | F32: Isaac Kurasha | G32: (012) 315 5213 | H32: isaac.kurasha@treasury.gov.za | I32: Nokuthula Ngomane | J32: (012) 315 5223 | K32: Nokuthula.Ngomane@treasury.gov.za | O32: datafileNAT@treasury.gov.za | P32: 277153 | Q32: 296515 | R32: 316512 | T32: 9 | U32: Public Enterprises | V32: 277153 | W32: 296515 | X32: 316512
A33: 31 | B33: 10 | C33: Public Service and Administration | F33: George Tembo | G33: (012) 315 5514 | H33: George.Tembo@treasury.gov.za | I33: Mokgatla Tema | J33: (012) 315 5948 | K33: Mokgatla.Tema@treasury.gov.za | O33: datafileNAT@treasury.gov.za | P33: 944648 | Q33: 1008521 | R33: 1076126 | T33: 10 | U33: Public Service and Administration | V33: 973319 | W33: 1024774 | X33: 1095024
A34: 32 | B34: 45 | C34: Public Service Commission | F34: George Tembo | G34: (012) 315 5514 | H34: George.Tembo@treasury.gov.za | I34: Viwe Sobudula | J34: (0)12 315 5015 | K34: Viwe.Sobudula@treasury.gov.za | O34: datafileNAT@treasury.gov.za | P34: 262800 | Q34: 281662 | R34: 301500 | T34: 45 | U34: Public Service Commission | V34: 267300 | W34: 281662 | X34: 301500
A35: 33 | B35: 11 | C35: Public Works | F35: George Tembo | G35: (012) 315 5514 | H35: George.Tembo@treasury.gov.za | I35: Mercy Mhlophe | J35: (012) 315 5598 | K35: mercy.mhlope@treasury.gov.za | O35: datafileNAT@treasury.gov.za | P35: 7494254 | Q35: 7937780 | R35: 8385515 | T35: 11 | U35: Public Works | V35: 7554254 | W35: 8003280 | X35: 8456515
A36: 34 | B36: 39 | C36: Rural Development and Land Reform | F36: Bothwell Deka | G36: (012) 395 6784 | H36: Bothwell.Deka@treasury.gov.za | I36: Nico Likhethe | J36: (012) 315 5558 | K36: Nico.Likhethe@treasury.gov.za | O36: datafileNAT@treasury.gov.za | P36: 10653429 | Q36: 11290730 | R36: 11961777 | T36: 39 | U36: Rural Development and Land Reform | V36: 10653429 | W36: 11290730 | X36: 11961777
A37: 35 | B37: 30 | C37: Science and Technology | F37: Ashley Ramasimu | G37: (012) 315 5166 | H37: Ashley.Ramasimu@treasury.gov.za | I37: Thabiso Molewa | J37: (012) 395 6780 | K37: Thabiso.Molewa@treasury.gov.za | O37: datafileNAT@treasury.gov.za | P37: 7916025 | Q37: 8191351 | R37: 8648928 | T37: 30 | U37: Science and Technology | V37: 7916025 | W37: 8385351 | X37: 8853598
A38: 36 | B38: 31 | C38: Small Business Development | F38: Isaac Kurasha | G38: (012) 315 5213 | H38: isaac.kurasha@treasury.gov.za | I38: Rudzani Sikhwari | J38: (012) 315 5823 | K38: rudzani.sikhwari@treasury.gov.za | O38: datafileNAT@treasury.gov.za | P38: 1529874 | Q38: 1618267 | R38: 1710317 | T38: 31 | U38: Small Business Development | V38: 1529874 | W38: 2618267 | X38: 2765317
A39: 37 | B39: 17 | C39: Social Development | F39: Lindi Mzankomo | G39: (012) 315 5256 | H39: Lindi.Mzankomo@treasury.gov.za | I39: Yusuf Mayet | J39: (012) 315 5189 | K39: yusuf.mayet@treasury.gov.za | O39: datafileNAT@treasury.gov.za | P39: 173186694 | Q39: 186109718 | R39: 198861175 | T39: 17 | U39: Social Development | V39: 172686694 | W39: 186109718 | X39: 198861175
A40: 38 | B40: 40 | C40: Sport and Recreation South Africa | F40: Spencer Janari | G40: (012) 315 5436 | H40: Spencer.Janari@treasury.gov.za | I40: Mabele Mdhluli | J40: (012) 395 6775 | K40: Mabele.Mdhluli@treasury.gov.za | O40: datafileNAT@treasury.gov.za | P40: 1125570 | Q40: 1190865 | R40: 1258767 | T40: 40 | U40: Sport and Recreation South Africa | V40: 1125570 | W40: 1190865 | X40: 1258767
A41: 39 | B41: 12 | C41: Statistics South Africa | F41: Japie Jacobs | G41: (012) 315 5546 | H41: Japie.Jacobs@treasury.gov.za | I41: Thapelo Mokwana | J41: (012) 315-5796 | K41: thapelo.mokwana@treasury.gov.za | O41: datafileNAT@treasury.gov.za | P41: 2248769 | Q41: 2309125 | R41: 2465022 | T41: 12 | U41: Statistics South Africa | V41: 2248769 | W41: 2309125 | X41: 2465022
A42: 40 | B42: 32 | C42: Telecommunications and Postal Services | F42: Rezah Atcha | G42: (012) 315 5287 | H42: Rezah.Atcha@treasury.gov.za | I42: Keitumetse Motshegwe | J42: (012) 395 6750 | K42: keitumetse.motshegwe@treasury.gov.za | O42: datafileNAT@treasury.gov.za | P42: 1727533 | Q42: 1828804 | R42: 1934218 | T42: 32 | U42: Telecommunications and Postal Services | V42: 1727533 | W42: 1828804 | X42: 1934218
A43: 41 | B43: 1 | C43: The Presidency | F43: Timothy Murwa | G43: (012) 315 5002 | H43: Timothy.Murwa@treasury.gov.za | I43: Thulasizwe Motha | J43: (012) 406 9019 | K43: Thulasizwe.Motha@treasury.gov.za | O43: datafileNAT@treasury.gov.za | P43: 521626 | Q43: 557178 | R43: 594903 | T43: 1 | U43: The Presidency | V43: 521626 | W43: 557178 | X43: 594903
A44: 42 | B44: 33 | C44: Tourism | F44: Ashley Ramasimu | G44: (012) 315 5166 | H44: Ashley.Ramasimu@treasury.gov.za | I44: Thabiso Molewa | J44: (012) 395 6780 | K44: Thabiso.Molewa@treasury.gov.za | O44: datafileNAT@treasury.gov.za | P44: 2288067 | Q44: 2397065 | R44: 2534990 | T44: 33 | U44: Tourism | V44: 2288067 | W44: 2432065 | X44: 2571915
A45: 43 | B45: 34 | C45: Trade and Industry | F45: Isaac Kurasha | G45: (012) 315 5213 | H45: isaac.kurasha@treasury.gov.za | I45: Nokuthula Ngomane | J45: (012) 315 5223 | K45: Nokuthula.Ngomane@treasury.gov.za | O45: datafileNAT@treasury.gov.za | P45: 9965857 | Q45: 9116002 | R45: 9637351 | T45: 34 | U45: Trade and Industry | V45: 9965857 | W45: 10700002 | X45: 11308471
A46: 44 | B46: 43 | C46: Traditional Affairs | F46: Misaveni Ngobeni | G46: (012) 315 5305 | H46: misaveni.ngobeni@treasury.gov.za | I46: Millicent Mulaudzi | J46: (012) 395 6576 | K46: Millicent.Mulaudzi@treasury.gov.za | O46: datafileNAT@treasury.gov.za | P46: 154216 | Q46: 164313 | R46: 174940 | T46: 43 | U46: Traditional Affairs | V46: 154216 | W46: 164313 | X46: 174940
A47: 45 | B47: 35 | C47: Transport | F47: James Archer | G47: (012) 395 6736 | H47: James.Archer@treasury.gov.za | I47: Luyolo Ntlangula | J47: (012) 315-5571 | K47: luyolo.ntangula@treasury.gov.za | O47: datafileNAT@treasury.gov.za | P47: 64960407 | Q47: 68556311 | R47: 72412936 | T47: 35 | U47: Transport | V47: 64960407 | W47: 69556311 | X47: 73467936
A48: 46 | B48: 36 | C48: Water and Sanitation | F48: Misaveni Ngobeni | G48: (012) 315 5305 | H48: misaveni.ngobeni@treasury.gov.za | I48: Iqbal Mahomed Alli | J48: (012) 315 5809 | K48: Iqbal.Mahomed-Alli@treasury.gov.za | O48: datafileNAT@treasury.gov.za | P48: 16560799 | Q48: 17514811 | R48: 18515154 | T48: 36 | U48: Water and Sanitation | V48: 16560799 | W48: 17514811 | X48: 18515154
A49: 47 | B49: 13 | C49: Women | F49: George Tembo | G49: (012) 315 5514 | H49: George.Tembo@treasury.gov.za | I49: Viwe Sobudula | J49: (0)12 315 5015 | K49: Viwe.Sobudula@treasury.gov.za | O49: datafileNAT@treasury.gov.za | P49: 234003 | Q49: 248508 | R49: 264003 | T49: 13 | U49: Women | V49: 234003 | W49: 248508 | X49: 264003
P50: 1512785898 | Q50: 1618443218 | R50: 1729993161 | T50: Grand Total | V50: 1515078527 | W50: 1636520478 | X50: 1757914484
A82: 15 | B82: 15 | P82: 8956964 | Q82: 9637693 | R82: 10360520 | T82: Personnel Revised Baseline | V82: 8956964 | W82: 9637693 | X82: 10360520
A83: Dept Index No. | B83: Vote No. | C83: Department | D83: Category | E83: ID1 | F83: Contact Person | G83: Tel | H83: email | I83: Contact Person | J83: Tel | K83: email | L83: ID2 | M83: Contact Person | N83: Tel | O83: email | P83: 2018/19 | Q83: 2019/20 | R83: 2020/21 | T83: Vote No. | U83: Dept | V83: 2018/19 | W83: 2019/20 | X83: 2020/21
A84: 1 | B84: 24 | C84: Agriculture, Forestry and Fisheries | F84: Bothwell Deka | G84: (012) 395 6784 | H84: Bothwell.Deka@treasury.gov.za | I84: Humbelani Ramuedzisi | J84: (012) 315 5585 | K84: Humbelani.Ramuedzisi@treasury.gov.za | O84: datafileNAT@treasury.gov.za | P84: 2177251 | Q84: 2343230 | R84: 2518972 | T84: 24 | U84: Agriculture, Forestry and Fisheries | V84: 2182251 | W84: 2348230 | X84: 2518972
A85: 2 | B85: 37 | C85: Arts and Culture | F85: Judy Naidoo | G85: (012) 315 5269 | H85: Judy.Naidoo@treasury.gov.za | I85: Siphamandla Khumalo | J85: (012) 315 5759 | K85: Siphamandla.Khumalo@treasury.gov.za | O85: datafileNAT@treasury.gov.za | P85: 253530 | Q85: 272858 | R85: 293322 | T85: 37 | U85: Arts and Culture | V85: 253530 | W85: 272858 | X85: 293322
A86: 3 | B86: 14 | C86: Basic Education | F86: Spencer Janari | G86: (012) 315 5436 | H86: Spencer.Janari@treasury.gov.za | I86: Pindi Masiso | J86: (012) 315 5722 | K86: Pindi.Masiso@treasury.gov.za | O86: datafileNAT@treasury.gov.za | P86: 500283 | Q86: 538421 | R86: 578803 | T86: 14 | U86: Basic Education | V86: 501865 | W86: 540108 | X86: 580616
A87: 4 | B87: 47 | C87: Centre for Public Service Innovation | F87: George Tembo | G87: (012) 315 5514 | H87: George.Tembo@treasury.gov.za | I87: Mokgatla Tema | J87: (012) 315 5948 | K87: Mokgatla.Tema@treasury.gov.za | O87: datafileNAT@treasury.gov.za | P87: 19425 | Q87: 20902 | R87: 22470 | T87: 47 | U87: Centre for Public Service Innovation | V87: 19425 | W87: 20902 | X87: 22470
A88: 5 | B88: 41 | C88: Civilian Secretariat | F88: Nompumelelo Radebe | G88: (012) 315 5957 | H88: Nompumelelo.Radebe@treasury.gov.za | I88: Velisubuhle Buti | J88: (012) 395 6709 | K88: velisubuhle.buti@treasury.gov.za | O88: datafileNAT@treasury.gov.za | P88: 97452 | Q88: 104859 | R88: 112723 | T88: 41 | U88: Civilian Secretariat | V88: 97452 | W88: 104859 | X88: 112723
A89: 6 | B89: 3 | C89: Communications | F89: Japie Jacobs | G89: (012) 315 5546 | H89: Japie.Jacobs@treasury.gov.za | I89: Rhoda Marais | J89: (012) 315 5906 | K89: Thapelo.Mokwana@treasury.gov.za | O89: datafileNAT@treasury.gov.za | P89: 81256 | Q89: 87682 | R89: 94256 | T89: 3 | U89: Communications | V89: 81256 | W89: 87682 | X89: 94256
A90: 7 | B90: 4 | C90: Cooperative Governance And Traditional Affairs | F90: Misaveni Ngobeni | G90: (012) 315 5305 | H90: misaveni.ngobeni@treasury.gov.za | I90: Millicent Mulaudzi | J90: (012) 395 6576 | K90: Millicent.Mulaudzi@treasury.gov.za | O90: datafileNAT@treasury.gov.za | P90: 339475 | Q90: 365354 | R90: 392754 | T90: 4 | U90: Cooperative Governance And Traditional Affairs | V90: 339475 | W90: 365354 | X90: 392754
A91: 8 | B91: 18 | C91: Correctional Services | F91: Elvis Ramafamba | G91: (012) 315 5204 | H91: elvis.ramafamba@treasury.gov.za | I91: Keabetswe Matlwa | J91: (012) 315 6678 | K91: Keabetswe.Matlwa@treasury.gov.za | O91: datafileNAT@treasury.gov.za | P91: 17034941 | Q91: 18333576 | R91: 19708594 | T91: 18 | U91: Correctional Services | V91: 17018025 | W91: 18312764 | X91: 19682576
A92: 9 | B92: 19 | C92: Defence And Military Veterans | F92: Mashudu Bidzha | G92: (012) 315 5344 | H92: mashudu.bidzha@treasury.gov.za | I92: Lesiba Ledwaba | J92: (012) 315 6660 | K92: Lesiba.Ledwaba@treasury.gov.za | O92: datafileNAT@treasury.gov.za | P92: 27116696 | Q92: 29177565 | R92: 31365881 | T92: 19 | U92: Defence And Military Veterans | V92: 27116696 | W92: 29193710 | X92: 31365881
A93: 10 | B93: 25 | C93: Economic Development | F93: Isaac Kurasha | G93: (012) 315 5213 | H93: isaac.kurasha@treasury.gov.za | I93: Rudzani Sikhwari | J93: (012) 315 5823 | K93: Rudzani.Sikhwari@treasury.gov.za | O93: datafileNAT@treasury.gov.za | P93: 90773 | Q93: 97693 | R93: 105020 | T93: 25 | U93: Economic Development | V93: 90773 | W93: 97693 | X93: 105020
A94: 11 | B94: 26 | C94: Energy | F94: Rezah Atcha | G94: (012) 315 5287 | H94: Rezah.Atcha@treasury.gov.za | I94: Nomagugu Madikane | J94: (012) 315 5312 | K94: Nomagugu.Madikane@treasury.gov.za | O94: datafileNAT@treasury.gov.za | P94: 331900 | Q94: 357041 | R94: 383822 | T94: 26 | U94: Energy | V94: 360517 | W94: 384278 | X94: 409249
A95: 12 | B95: 27 | C95: Environmental Affairs | F95: Ashley Ramasimu | G95: (012) 315 5166 | H95: Ashley.Ramasimu@treasury.gov.za | I95: Thabiso Molewa | J95: (012) 395 6780 | K95: Thabiso.Molewa@treasury.gov.za | O95: datafileNAT@treasury.gov.za | P95: 1078615 | Q95: 1160842 | R95: 1247905 | T95: 27 | U95: Environmental Affairs | V95: 1078615 | W95: 1160842 | X95: 1247905
A96: 13 | B96: 46 | C96: Government Communication and Information System | F96: Japie Jacobs | G96: (012) 315 5546 | H96: Japie.Jacobs@treasury.gov.za | I96: Rhoda Marais | J96: (012) 315-5906 | K96: Rhoda.Marais@treasury.gov.za | O96: datafileNAT@treasury.gov.za | P96: 253983 | Q96: 273302 | R96: 293800 | T96: 46 | U96: Government Communication and Information System | V96: 253983 | W96: 273302 | X96: 293800
A97: 14 | B97: 16 | C97: Health | F97: Aparna Kollipara | G97: (012) 315 5386 | H97: Aparna.Kollipara@treasury.gov.za | I97: Refiloe Thokoa | J97: (012) 395 6559 | K97: Refiloe.Thokoa@treasury.gov.za | O97: datafileNAT@treasury.gov.za | P97: 828814 | Q97: 894346 | R97: 961422 | T97: 16 | U97: Health | V97: 828814 | W97: 894346 | X97: 961422
A98: 15 | B98: 15 | C98: Higher Education and Training | F98: Nokwazi Makanya | G98: (012) 406 9057 | H98: Nokwazi.Makanya@treasury.gov.za | I98: Walter Munyai | J98: (012) 315 5636 | K98: Walter.Munyai@treasury.gov.za | O98: datafileNAT@treasury.gov.za | P98: 8956964 | Q98: 9637693 | R98: 10360520 | T98: 15 | U98: Higher Education and Training | V98: 8956964 | W98: 9637693 | X98: 10360520
A99: 16 | B99: 5 | C99: Home Affairs | F99: Timothy Murwa | G99: (012) 315 5002 | H99: Timothy.Murwa@treasury.gov.za | I99: Isaac Mabena | J99: (012) 315 5582 | K99: Isaac.Mabena@treasury.gov.za | O99: datafileNAT@treasury.gov.za | P99: 3308079 | Q99: 3558970 | R99: 3825890 | T99: 5 | U99: Home Affairs | V99: 3308079 | W99: 3558970 | X99: 3825890
A100: 17 | B100: 38 | C100: Human Settlements | F100: James Archer | G100: (012) 395 6736 | H100: James.Archer@treasury.gov.za | I100: Lindiwe Ngcongwane | J100: (012) 315 5357 | K100: Lindiwe.Ngcongwane@treasury.gov.za | O100: datafileNAT@treasury.gov.za | P100: 376945 | Q100: 405680 | R100: 436107 | T100: 38 | U100: Human Settlements | V100: 376945 | W100: 405680 | X100: 436107
A101: 18 | B101: 20 | C101: Independent Police Investigative Directorate | F101: Nompumelelo Radebe | G101: (012) 315 5957 | H101: Nompumelelo.Radebe@treasury.gov.za | I101: Velisubuhle Buti | J101: (012) 395 6709 | K101: velisubuhle.buti@treasury.gov.za | O101: datafileNAT@treasury.gov.za | P101: 195797 | Q101: 210678 | R101: 226479 | T101: 20 | U101: Independent Police Investigative Directorate | V101: 213328 | W101: 229433 | X101: 246547
A102: 19 | B102: 6 | C102: International Relations and Cooperation | F102: Timothy Murwa | G102: (012) 315 5002 | H102: Timothy.Murwa@treasury.gov.za | I102: Thulasizwe Motha | J102: (012) 406 9019 | K102: Thulasizwe.Motha@treasury.gov.za | O102: datafileNAT@treasury.gov.za | P102: 2964489 | Q102: 2874494 | R102: 3090080 | T102: 6 | U102: International Relations and Cooperation | V102: 2964489 | W102: 2874494 | X102: 3090080
A103: 20 | B103: 21 | C103: Justice and Constitutional Development | F103: Werner Krause | G103: (012) 315 5211 | H103: werner.krause@treasury.gov.za | I103: Maggy Mokoka | J103: (012) 315 5468 | K103: Maggy.Mokoka@treasury.gov.za | O103: datafileNAT@treasury.gov.za | P103: 11067609 | Q103: 11908747 | R103: 12801904 | T103: 21 | U103: Justice and Constitutional Development | V103: 11029384.84 | W103: 11868731.39 | X103: 12758065
A104: 21 | B104: 28 | C104: Labour | F104: Judy Naidoo | G104: (012) 315 5269 | H104: Judy.Naidoo@treasury.gov.za | I104: Kismore Mangondo | J104: (012) 315-5773 | K104: Kismore.Mangondo@treasury.gov.za | O104: datafileNAT@treasury.gov.za | P104: 1317790 | Q104: 1410207 | R104: 1515973 | T104: 28 | U104: Labour | V104: 1317790 | W104: 1410207 | X104: 1515973
A105: 22 | B105: 42 | C105: Military Veterans | F105: Mashudu Bidzha | G105: (012) 315 5344 | H105: mashudu.bidzha@treasury.gov.za | I105: Lesiba Ledwaba | J105: (012) 315 6660 | K105: Lesiba.Ledwaba@treasury.gov.za | O105: datafileNAT@treasury.gov.za | P105: 122257 | Q105: 131549 | R105: 141415 | T105: 42 | U105: Military Veterans | V105: 122257 | W105: 131549 | X105: 141415
A106: 23 | B106: 29 | C106: Mineral Resources | F106: Bothwell Deka | G106: (012) 395 6784 | H106: Bothwell.Deka@treasury.gov.za | I106: Nico Likhethe | J106: (012) 315 5558 | K106: Nico.Likhethe@treasury.gov.za | O106: datafileNAT@treasury.gov.za | P106: 598008 | Q106: 643596 | R106: 691864 | T106: 29 | U106: Mineral Resources | V106: 598008 | W106: 643596 | X106: 691864
A107: 24 | B107: 44 | C107: National School of Government | F107: George Tembo | G107: (012) 315 5514 | H107: George.Tembo@treasury.gov.za | I107: Mokgatla Tema | J107: (012) 315 5948 | K107: Mokgatla.Tema@treasury.gov.za | O107: datafileNAT@treasury.gov.za | P107: 54945 | Q107: 58416 | R107: 62797 | T107: 44 | U107: National School of Government | V107: 54945 | W107: 58416 | X107: 62797
A108: 25 | B108: 7 | C108: National Treasury | F108: Japie Jacobs | G108: (012) 315 5546 | H108: Japie.Jacobs@treasury.gov.za | I108: Rhoda Marais | J108: (012) 315 5906 | K108: Thapelo.Mokwana@treasury.gov.za | O108: datafileNAT@treasury.gov.za | P108: 807760 | Q108: 869339 | R108: 934540 | T108: 7 | U108: National Treasury | V108: 807760 | W108: 869339 | X108: 934540
A109: 26 | B109: 22 | C109: Office of the Chief Justice and Judicial Administration | F109: Elvis Ramafamba | G109: (012) 315 5204 | H109: elvis.ramafamba@treasury.gov.za | I109: Keabetswe Matlwa | J109: (012) 315 6657 | K109: Keabetswe.Matlwa@treasury.gov.za | O109: datafileNAT@treasury.gov.za | P109: 1609065 | Q109: 1731354 | R109: 1861205 | T109: 22 | U109: Office of the Chief Justice and Judicial Administration | V109: 1648837 | W109: 1777213 | X109: 1914266
A110: 27 | B110: 2 | C110: Parliament | F110: Timothy Murwa | G110: (012) 315 5002 | H110: Timothy.Murwa@treasury.gov.za | I110: Isaac Mabena | J110: (012) 315 5582 | K110: Isaac.Mabena@treasury.gov.za | O110: datafileNAT@treasury.gov.za | P110: 1391159 | Q110: 1497214 | R110: 1609504 | T110: 2 | U110: Parliament | V110: 1391159 | W110: 1497214 | X110: 1609504
A111: 28 | B111: 8 | C111: Planning, Monitoring and Evaluation | F111: Timothy Murwa | G111: (012) 315 5002 | H111: Timothy.Murwa@treasury.gov.za | I111: Thulasizwe Motha | J111: (012) 406 9019 | K111: Thulasizwe.Motha@treasury.gov.za | O111: datafileNAT@treasury.gov.za | P111: 312788 | Q111: 331556 | R111: 356423 | T111: 8 | U111: Planning, Monitoring and Evaluation | V111: 312788 | W111: 331556 | X111: 356423
A112: 29 | B112: 23 | C112: Police | F112: Nompumelelo Radebe | G112: (012) 315 5957 | H112: Nompumelelo.Radebe@treasury.gov.za | I112: Velisubuhle Buti | J112: (012) 395 6709 | K112: velisubuhle.buti@treasury.gov.za | O112: datafileNAT@treasury.gov.za | P112: 70655395 | Q112: 76025205 | R112: 81727093 | T112: 23 | U112: Police | V112: 70655395 | W112: 76205205 | X112: 81727093
A113: 30 | B113: 9 | C113: Public Enterprises | F113: Isaac Kurasha | G113: (012) 315 5213 | H113: isaac.kurasha@treasury.gov.za | I113: Nokuthula Ngomane | J113: (012) 315 5223 | K113: Nokuthula.Ngomane@treasury.gov.za | O113: datafileNAT@treasury.gov.za | P113: 171478 | Q113: 184546 | R113: 198384 | T113: 9 | U113: Public Enterprises | V113: 171478 | W113: 184546 | X113: 198384
A114: 31 | B114: 10 | C114: Public Service and Administration | F114: George Tembo | G114: (012) 315 5514 | H114: George.Tembo@treasury.gov.za | I114: Mokgatla Tema | J114: (012) 315 5948 | K114: Mokgatla.Tema@treasury.gov.za | O114: datafileNAT@treasury.gov.za | P114: 288455 | Q114: 310454 | R114: 333741 | T114: 10 | U114: Public Service and Administration | V114: 288455 | W114: 310454 | X114: 333741
A115: 32 | B115: 45 | C115: Public Service Commission | F115: George Tembo | G115: (012) 315 5514 | H115: George.Tembo@treasury.gov.za | I115: Viwe Sobudula | J115: (0)12 315 5015 | K115: Viwe.Sobudula@treasury.gov.za | O115: datafileNAT@treasury.gov.za | P115: 202745 | Q115: 217343 | R115: 233644 | T115: 45 | U115: Public Service Commission | V115: 202745 | W115: 217343 | X115: 233644
A116: 33 | B116: 11 | C116: Public Works | F116: George Tembo | G116: (012) 315 5514 | H116: George.Tembo@treasury.gov.za | I116: Mercy Mhlophe | J116: (012) 315 5598 | K116: mercy.mhlope@treasury.gov.za | O116: datafileNAT@treasury.gov.za | P116: 518347 | Q116: 557826 | R116: 599662 | T116: 11 | U116: Public Works | V116: 518347 | W116: 557826 | X116: 599662
A117: 34 | B117: 39 | C117: Rural Development and Land Reform | F117: Bothwell Deka | G117: (012) 395 6784 | H117: Bothwell.Deka@treasury.gov.za | I117: Nico Likhethe | J117: (012) 315 5558 | K117: Nico.Likhethe@treasury.gov.za | O117: datafileNAT@treasury.gov.za | P117: 2325590 | Q117: 2502879 | R117: 2690594 | T117: 39 | U117: Rural Development and Land Reform | V117: 2325590 | W117: 2502879 | X117: 2690594
A118: 35 | B118: 30 | C118: Science and Technology | F118: Ashley Ramasimu | G118: (012) 315 5166 | H118: Ashley.Ramasimu@treasury.gov.za | I118: Thabiso Molewa | J118: (012) 395 6780 | K118: Thabiso.Molewa@treasury.gov.za | O118: datafileNAT@treasury.gov.za | P118: 327690 | Q118: 352671 | R118: 379120 | T118: 30 | U118: Science and Technology | V118: 327690 | W118: 352671 | X118: 379120
A119: 36 | B119: 31 | C119: Small Business Development | F119: Isaac Kurasha | G119: (012) 315 5213 | H119: isaac.kurasha@treasury.gov.za | I119: Rudzani Sikhwari | J119: (012) 315 5823 | K119: rudzani.sikhwari@treasury.gov.za | O119: datafileNAT@treasury.gov.za | P119: 141356 | Q119: 152226 | R119: 163643 | T119: 31 | U119: Small Business Development | V119: 141356 | W119: 152226 | X119: 163643
A120: 37 | B120: 17 | C120: Social Development | F120: Lindi Mzankomo | G120: (012) 315 5256 | H120: Lindi.Mzankomo@treasury.gov.za | I120: Yusuf Mayet | J120: (012) 315 5189 | K120: yusuf.mayet@treasury.gov.za | O120: datafileNAT@treasury.gov.za | P120: 490351 | Q120: 527441 | R120: 567001 | T120: 17 | U120: Social Development | V120: 490351 | W120: 527441 | X120: 567001
A121: 38 | B121: 40 | C121: Sport and Recreation South Africa | F121: Spencer Janari | G121: (012) 315 5436 | H121: Spencer.Janari@treasury.gov.za | I121: Mabele Mdhluli | J121: (012) 395 6775 | K121: Mabele.Mdhluli@treasury.gov.za | O121: datafileNAT@treasury.gov.za | P121: 111545 | Q121: 120058 | R121: 129064 | T121: 40 | U121: Sport and Recreation South Africa | V121: 111545 | W121: 120058 | X121: 129064
A122: 39 | B122: 12 | C122: Statistics South Africa | F122: Japie Jacobs | G122: (012) 315 5546 | H122: Japie.Jacobs@treasury.gov.za | I122: Thapelo Mokwana | J122: (012) 315-5796 | K122: thapelo.mokwana@treasury.gov.za | O122: datafileNAT@treasury.gov.za | P122: 1428465 | Q122: 1444929 | R122: 1553296 | T122: 12 | U122: Statistics South Africa | V122: 1428465 | W122: 1444929 | X122: 1553296
A123: 40 | B123: 32 | C123: Telecommunications and Postal Services | F123: Rezah Atcha | G123: (012) 315 5287 | H123: Rezah.Atcha@treasury.gov.za | I123: Keitumetse Motshegwe | J123: (012) 395 6750 | K123: keitumetse.motshegwe@treasury.gov.za | O123: datafileNAT@treasury.gov.za | P123: 224300 | Q123: 241399 | R123: 259506 | T123: 32 | U123: Telecommunications and Postal Services | V123: 224300 | W123: 241399 | X123: 259506
A124: 41 | B124: 1 | C124: The Presidency | F124: Timothy Murwa | G124: (012) 315 5002 | H124: Timothy.Murwa@treasury.gov.za | I124: Thulasizwe Motha | J124: (012) 406 9019 | K124: Thulasizwe.Motha@treasury.gov.za | O124: datafileNAT@treasury.gov.za | P124: 328935 | Q124: 354004 | R124: 380555 | T124: 1 | U124: The Presidency | V124: 328935 | W124: 354004 | X124: 380555
A125: 42 | B125: 33 | C125: Tourism | F125: Ashley Ramasimu | G125: (012) 315 5166 | H125: Ashley.Ramasimu@treasury.gov.za | I125: Thabiso Molewa | J125: (012) 395 6780 | K125: Thabiso.Molewa@treasury.gov.za | O125: datafileNAT@treasury.gov.za | P125: 282563 | Q125: 304111 | R125: 326921 | T125: 33 | U125: Tourism | V125: 282563 | W125: 304111 | X125: 326921
A126: 43 | B126: 34 | C126: Trade and Industry | F126: Isaac Kurasha | G126: (012) 315 5213 | H126: isaac.kurasha@treasury.gov.za | I126: Nokuthula Ngomane | J126: (012) 315 5223 | K126: Nokuthula.Ngomane@treasury.gov.za | O126: datafileNAT@treasury.gov.za | P126: 927845 | Q126: 998578 | R126: 1073471 | T126: 34 | U126: Trade and Industry | V126: 927845 | W126: 998578 | X126: 1073471
A127: 44 | B127: 43 | C127: Traditional Affairs | F127: Misaveni Ngobeni | G127: (012) 315 5305 | H127: misaveni.ngobeni@treasury.gov.za | I127: Millicent Mulaudzi | J127: (012) 395 6576 | K127: Millicent.Mulaudzi@treasury.gov.za | O127: datafileNAT@treasury.gov.za | P127: 73853 | Q127: 79466 | R127: 85426 | T127: 43 | U127: Traditional Affairs | V127: 73853 | W127: 79466 | X127: 85426
A128: 45 | B128: 35 | C128: Transport | F128: James Archer | G128: (012) 395 6736 | H128: James.Archer@treasury.gov.za | I128: Luyolo Ntlangula | J128: (012) 315-5571 | K128: luyolo.ntangula@treasury.gov.za | O128: datafileNAT@treasury.gov.za | P128: 469961 | Q128: 505888 | R128: 543828 | T128: 35 | U128: Transport | V128: 496711.1045 | W128: 534708.1125 | X128: 574849
A129: 46 | B129: 36 | C129: Water and Sanitation | F129: Misaveni Ngobeni | G129: (012) 315 5305 | H129: misaveni.ngobeni@treasury.gov.za | I129: Iqbal Mahomed Alli | J129: (012) 315 5809 | K129: Iqbal.Mahomed-Alli@treasury.gov.za | O129: datafileNAT@treasury.gov.za | P129: 1720205 | Q129: 1851343 | R129: 1990193 | T129: 36 | U129: Water and Sanitation | V129: 1720205 | W129: 1851343 | X129: 1990193
A130: 47 | B130: 13 | C130: Women | F130: George Tembo | G130: (012) 315 5514 | H130: George.Tembo@treasury.gov.za | I130: Viwe Sobudula | J130: (0)12 315 5015 | K130: Viwe.Sobudula@treasury.gov.za | O130: datafileNAT@treasury.gov.za | P130: 85451 | Q130: 91435 | R130: 98292 | T130: 13 | U130: Women | V130: 85451 | W130: 91435 | X130: 98292
P131: 164062579 | Q131: 176118966 | R131: 189327879 | T131: Grand Total | V131: 164126690.9 | W131: 176381641.5 | X131: 189389412

Sheet Sheet1 (hidden)
X1: Revised Baseline
B2: Dept Index No. | C2: Vote No. | D2: Department | E2: Dept Index No. | F2: Vote No. | G2: Department | H2: Category | I2: ID1 | J2: Contact Person | K2: Tel | L2: email | M2: Contact Person | N2: Tel | O2: email | P2: ID2 | Q2: Contact Person | R2: Tel | S2: email | T2: 2017/18 | U2: 2018/19 | V2: 2019/20 | X2: Vote No. | Y2: Dept | Z2: 2017/18 | AA2: 2018/19 | AB2: 2019/20
A3: =+D3=G3 -> FALSE | B3: 37 | C3: 1 | D3: The Presidency | E3: 1 | F3: 24 | G3: Agriculture, Forestry and Fisheries | J3: Bothwell Deka | K3: (012) 395 6784 | L3: Bothwell.Deka@treasury.gov.za | M3: Humbelani Ramuedzisi | N3: (012) 315 5585 | O3: Humbelani.Ramuedzisi@treasury.gov.za | S3: datafileNAT@treasury.gov.za | T3: 6706260 | U3: 6999026 | V3: 7435010 | X3: 24 | Y3: Agriculture, Forestry and Fisheries | Z3: 6877034 | AA3: 7212438 | AB3: 7653758
B4: 25 | C4: 2 | D4: Parliament | E4: 2 | F4: 37 | G4: Arts and Culture | J4: Judy Naidoo | K4: (012) 315 5269 | L4: Judy.Naidoo@treasury.gov.za | M4: Letsepa Pakkies | N4: (012) 395 6656 | O4: Letsepa.Pakkies@treasury.gov.za | S4: datafileNAT@treasury.gov.za | T4: 4492689 | U4: 4542875 | V4: 4802404 | X4: 37 | Y4: Arts and Culture | Z4: 4449845 | AA4: 4491651 | AB4: 4752325
B5: 6 | C5: 3 | D5: Cooperative Governance | E5: 3 | F5: 14 | G5: Basic Education | J5: Spencer Janari | K5: (012) 315 5436 | L5: Spencer.Janari@treasury.gov.za | M5: Pindi Masiso | N5: (012) 315 5722 | O5: Pindi.Masiso@treasury.gov.za | S5: datafileNAT@treasury.gov.za | T5: 23471039 | U5: 24829596 | V5: 26230172 | X5: 14 | Y5: Basic Education | Z5: 23408620 | AA5: 24795329 | AB5: 26195958
B6: 15 | C6: 4 | D6: Home Affairs | E6: 4 | F6: 47 | G6: Centre for Public Service Innovation | J6: George Tembo | K6: (012) 315 5514 | L6: George.Tembo@treasury.gov.za | M6: Mokgatla Tema | N6: (012) 315 5948 | O6: Mokgatla.Tema@treasury.gov.za | S6: datafileNAT@treasury.gov.za | T6: 34434 | U6: 36431 | V6: 38864 | X6: 47 | Y6: Centre for Public Service Innovation | Z6: 34055 | AA6: 36030 | AB6: 38437
B7: 18 | C7: 5 | D7: International Relations and Cooperation | E7: 5 | F7: 41 | G7: Civilian Secretariat | J7: Nompumelelo Radebe | K7: (012) 315 5957 | L7: Nompumelelo.Radebe@treasury.gov.za | M7: Sithabiso Buthelezi | N7: (012) 406 9025 | O7: Sithabiso.Buthelezi@treasury.gov.za | S7: datafileNAT@treasury.gov.za | T7: 126057 | U7: 136079 | V7: 145670 | X7: 41 | Y7: Civilian Secretariat | Z7: 124673 | AA7: 134584 | AB7: 144071
B8: 26 | C8: 6 | D8: Performance Monitoring and Evaluation | E8: 6 | F8: 3 | G8: Communications | J8: Japie Jacobs | K8: (012) 315 5546 | L8: Japie.Jacobs@treasury.gov.za | M8: Rhoda Marais | N8: (012) 315 5906 | O8: Rhoda.Marais@treasury.gov.za | S8: datafileNAT@treasury.gov.za | T8: 1430984 | U8: 1526898 | V8: 1618996 | X8: 3 | Y8: Communications | Z8: 1425095 | AA8: 1520650 | AB8: 1612340
B9: 31 | C9: 7 | D9: Public Works | E9: 7 | F9: 4 | G9: Cooperative Governance And Traditional Affairs | J9: Misaveni Ngobeni | K9: (012) 315 5305 | L9: misaveni.ngobeni@treasury.gov.za | M9: Millicent Mulaudzi | N9: (012) 395 6576 | O9: Millicent.Mulaudzi@treasury.gov.za | S9: datafileNAT@treasury.gov.za | T9: 78557210 | U9: 84258462 | V9: 90164054 | X9: 4 | Y9: Cooperative Governance And Traditional Affairs | Z9: 78414485 | AA9: 85113770 | AB9: 91060369
B10: 43 | C10: 8 | D10: Women, Children and People with Disabilities | E10: 8 | F10: 18 | G10: Correctional Services | J10: Werner Krause | K10: (012) 315 5211 | L10: Werner.Krause@treasury.gov.za | M10: Keabetswe Matlwa | N10: (012) 395 6678 | O10: Keabetswe.Matlwa@treasury.gov.za | S10: datafileNAT@treasury.gov.za | T10: 23048928 | U10: 24700701 | V10: 26428500 | X10: 18 | Y10: Correctional Services | Z10: 22814124 | AA10: 24453616 | AB10: 26155812
B11: 12 | C11: 9 | D11: Government Communication and Information System | E11: 9 | F11: 19 | G11: Defence And Military Veterans | J11: Mashudu Bidzha | K11: (012) 315 5344 | L11: Mashudu.Bidzha@treasury.gov.za | M11: Lesiba Ledwaba | N11: (012) 395 6660 | O11: Lesiba.Ledwaba@treasury.gov.za | S11: datafileNAT@treasury.gov.za | T11: 48744615 | U11: 50725685 | V11: 54111102 | X11: 19 | Y11: Defence And Military Veterans | Z11: 48618790 | AA11: 50610314 | AB11: 53966436
B12: 24 | C12: 10 | D12: National Treasury | E12: 10 | F12: 25 | G12: Economic Development | J12: Rudzani Sikhwari | K12: (012) 315 5823 | L12: Rudzani.Sikhwari@treasury.gov.za | S12: datafileNAT@treasury.gov.za | T12: 714285 | U12: 751005 | V12: 794897 | X12: 25 | Y12: Economic Development | Z12: 797237 | AA12: 844726 | AB12: 904273
B13: 28 | C13: 11 | D13: Public Enterprises | E13: 11 | F13: 26 | G13: Energy | J13: Rezah Atcha | K13: (012) 315 5287 | L13: Rezah.Atcha@treasury.gov.za | M13: Nomagugu Madikane | N13: (012) 315 5312 | O13: Nomagugu.Madikane@treasury.gov.za | S13: datafileNAT@treasury.gov.za | T13: 8128980 | U13: 8486400 | V13: 8968189 | X13: 26 | Y13: Energy | Z13: 8113450 | AA13: 8469943 | AB13: 9950774
B14: 29 | C14: 12 | D14: Public Service and Administration | E14: 12 | F14: 27 | G14: Environmental Affairs | J14: Ricardo Andrews | K14: (012) 315 5766 | L14: Ricardo.Andrews@treasury.gov.za | M14: Ashley Ramasimu | N14: (012) 315 5166 | O14: Mukundi.Maphangwa@treasury.gov.za | S14: datafileNAT@treasury.gov.za | T14: 6660557 | U14: 6756800 | V14: 7156998 | X14: 27 | Y14: Environmental Affairs | Z14: 6848214 | AA14: 7061226 | AB14: 7378025
B15: 36 | C15: 13 | D15: Statistics South Africa | E15: 13 | F15: 46 | G15: Government Communication and Information System | J15: Japie Jacobs | K15: (012) 315 5546 | L15: Japie.Jacobs@treasury.gov.za | M15: Thapelo Mokwana | N15: (012) 315 5796 | O15: Thapelo.Mokwana@treasury.gov.za | S15: datafileNAT@treasury.gov.za | T15: 405817 | U15: 432413 | V15: 461725 | X15: 46 | Y15: Government Communication and Information System | Z15: 404750 | AA15: 431267 | AB15: 460456
B16: 2 | C16: 14 | D16: Arts and Culture | E16: 14 | F16: 16 | G16: Health | J16: Aparna Kollipara | K16: (012) 315 5386 | L16: Aparna.Kollipara@treasury.gov.za | M16: Refiloe Thokoa | N16: (012) 395 6559 | O16: Refiloe.Thokoa@treasury.gov.za | S16: datafileNAT@treasury.gov.za | T16: 42778134 | U16: 46734183 | V16: 49370384 | X16: 16 | Y16: Health | Z16: 42625723 | AA16: 46666972 | AB16: 50384947
B17: 3 | C17: 15 | D17: Basic Education | E17: 15 | F17: 15 | G17: Higher Education and Training | J17: Nokwazi Makanya | K17: (012) 315 9057 | L17: Nokwazi.Makanya@treasury.gov.za | M17: Barileng Sape | N17: (012) 406 9069 | O17: Barileng.Sape@treasury.gov.za | S17: datafileNAT@treasury.gov.za | T17: 72003215 | U17: 77392319 | V17: 81905524 | X17: 15 | Y17: Higher Education and Training | Z17: 68949095 | AA17: 78639954 | AB17: 83774977
B18: 13 | C18: 16 | D18: Health | E18: 16 | F18: 5 | G18: Home Affairs | J18: Isaac Mabena | K18: (012) 315 5582 | L18: Isaac.Mabena@treasury.gov.za | S18: datafileNAT@treasury.gov.za | T18: 7060438 | U18: 7173675 | V18: 7641968 | X18: 5 | Y18: Home Affairs | Z18: 7055539 | AA18: 7816025 | AB18: 7647117
B19: 14 | C19: 17 | D19: Higher Education and Training | E19: 17 | F19: 38 | G19: Human Settlements | J19: James Archer | K19: (012) 395 6736 | L19: James.Archer@treasury.gov.za | M19: Lindiwe Ngcongwane | N19: (012) 315 5357 | O19: Lindiwe.Ngcongwane@treasury.gov.za | S19: datafileNAT@treasury.gov.za | T19: 34566326 | U19: 36620027 | V19: 38678373 | X19: 38 | Y19: Human Settlements | Z19: 33464300 | AA19: 35414719 | AB19: 37447502
B20: 20 | C20: 18 | D20: Labour | E20: 18 | F20: 20 | G20: Independent Police Investigative Directorate | J20: Nompumelelo Radebe | K20: (012) 315 5957 | L20: Nompumelelo.Radebe@treasury.gov.za | M20: Velisubuhle Buti | N20: (012) 395 6709 | O20: Sithabiso.Buthelezi@treasury.gov.za | S20: datafileNAT@treasury.gov.za | T20: 255482 | U20: 266958 | V20: 285824 | X20: 20 | Y20: Independent Police Investigative Directorate | Z20: 255482 | AA20: 266958 | AB20: 285824
B21: 34 | C21: 19 | D21: Social Development | E21: 19 | F21: 6 | G21: International Relations and Cooperation | J21: Gcobisa Matshaya | K21: (012) 315 5320 | L21: Gcobisa.Matshaya@treasury.gov.za | M21: Thulasizwe Motha | N21: (012) 406 9019 | O21: Thulasizwe.Motha@treasury.gov.za | S21: datafileNAT@treasury.gov.za | T21: 5913005 | U21: 6182570 | V21: 6581910 | X21: 6 | Y21: International Relations and Cooperation | Z21: 6574879 | AA21: 6765659 | AB21: 6505525
B22: 35 | C22: 20 | D22: Sport and Recreation South Africa | E22: 20 | F22: 21 | G22: Justice and Constitutional Development | J22: Maggy Mokoka | K22: (012) 315 5468 | L22: Maggy.Mokoka@treasury.gov.za | M22: Rendani Randela | N22: (012) 315 5345 | O22: rendani.randela@treasury.gov.za | S22: datafileNAT@treasury.gov.za | T22: 19123673 | U22: 20109884 | V22: 21457390 | X22: 21 | Y22: Justice and Constitutional Development | Z22: 18927308 | AA22: 19908353 | AB22: 21233941
B23: 7 | C23: 21 | D23: Correctional Services | E23: 21 | F23: 28 | G23: Labour | J23: Judy Naidoo | K23: (012) 315 5269 | L23: Judy.Naidoo@treasury.gov.za | M23: Nico Likhethe | N23: (012) 315 5773 | O23: Velisubuhle.Buti@treasury.gov.za | S23: datafileNAT@treasury.gov.za | T23: 3032004 | U23: 3224218 | V23: 3430933 | X23: 28 | Y23: Labour | Z23: 3065821 | AA23: 3266459 | AB23: 3451500
B24: 8 | C24: 22 | D24: Defence And Military Veterans | E24: 22 | F24: 42 | G24: Military Veterans | J24: Mashudu Bidzha | K24: (012) 315 5344 | L24: Mashudu.Bidzha@treasury.gov.za | M24: Lesiba Ledwaba | N24: (012) 395 6660 | O24: Lesiba.Ledwaba@treasury.gov.za | S24: datafileNAT@treasury.gov.za | T24: 634720 | U24: 673360 | V24: 713513 | X24: 42 | Y24: Military Veterans | Z24: 622111 | AA24: 660092 | AB24: 699502
B25: 17 | C25: 23 | D25: Independent Police Investigative Directorate | E25: 23 | F25: 29 | G25: Mineral Resources | J25: Bothwell Deka | K25: (012) 395 6784 | L25: Bothwell.Deka@treasury.gov.za | M25: Tumelo Mokgoshi | N25: (012) 395 6777 | O25: Tumelo.Mokgoshi@treasury.gov.za | S25: datafileNAT@treasury.gov.za | T25: 1847244 | U25: 1824594 | V25: 1938867 | X25: 29 | Y25: Mineral Resources | Z25: 1779449 | AA25: 1906669 | AB25: 1850012
B26: 19 | C26: 24 | D26: Justice and Constitutional Development | E26: 24 | F26: 44 | G26: National School of Government | J26: George Tembo | K26: (012) 315 5514 | L26: George.Tembo@treasury.gov.za | M26: Mokgatla Tema | N26: (012) 315 5948 | O26: Mokgatla.Tema@treasury.gov.za | S26: datafileNAT@treasury.gov.za | T26: 156562 | U26: 169451 | V26: 180127 | X26: 44 | Y26: National School of Government | Z26: 155506 | AA26: 168291 | AB26: 178890
E27: 25 | F27: 7 | G27: National Treasury | J27: Japie Jacobs | K27: (012) 315 5546 | L27: Japie.Jacobs@treasury.gov.za | M27: Rhoda Marais | N27: (012) 315 5906 | O27: Rhoda.Marais@treasury.gov.za | S27: datafileNAT@treasury.gov.za | T27: 646670159 | U27: 692386151 | V27: 738270058 | X27: 7 | Y27: National Treasury | Z27: 647558547 | AA27: 697191197 | AB27: 750460227
B28: 27 | C28: 25 | D28: Police | E28: 26 | F28: 22 | G28: Office of the Chief Justice and Judicial Administration | J28: Werner Krause | K28: (012) 315 5211 | L28: Werner.Krause@treasury.gov.za | M28: Keabetswe Matlwa | N28: (012) 395 6678 | O28: Keabetswe.Matlwa@treasury.gov.za | S28: datafileNAT@treasury.gov.za | T28: 1975067 | U28: 2082942 | V28: 2231769 | X28: 22 | Y28: Office of the Chief Justice and Judicial Administration | Z28: 1984625 | AA28: 2093064 | AB28: 2242458
B29: 1 | C29: 26 | D29: Agriculture, Forestry and Fisheries | E29: 27 | F29: 2 | G29: Parliament | J29: Isaac Mabena | K29: (012) 315 5582 | L29: Isaac.Mabena@treasury.gov.za | S29: datafileNAT@treasury.gov.za | T29: 2287483 | U29: 2390828 | V29: 2552853 | X29: 2 | Y29: Parliament | Z29: 2268235 | AA29: 2371139 | AB29: 2531189
B30: 9 | C30: 28 | D30: Economic Development | E30: 28 | F30: 8 | G30: Planning, Monitoring and Evaluation | J30: Gcobisa Matshaya | K30: (012) 315 5320 | L30: Gcobisa.Matshaya@treasury.gov.za | M30: Thulasizwe Motha | N30: (012) 406 9019 | O30: Thulasizwe.Motha@treasury.gov.za | S30: datafileNAT@treasury.gov.za | T30: 907761 | U30: 994255 | V30: 1014042 | X30: 8 | Y30: Planning, Monitoring and Evaluation | Z30: 923496 | AA30: 942489 | AB30: 995870
B31: 10 | C31: 29 | D31: Energy | E31: 29 | F31: 23 | G31: Police | J31: Nompumelelo Radebe | K31: (012) 315 5957 | L31: Nompumelelo.Radebe@treasury.gov.za | M31: Sithabiso Buthelezi | N31: (012) 406 9025 | O31: Sithabiso.Buthelezi@treasury.gov.za | S31: datafileNAT@treasury.gov.za | T31: 87252156 | U31: 92954320 | V31: 99199094 | X31: 23 | Y31: Police | Z31: 87025128 | AA31: 92741002 | AB31: 98945875
B32: 11 | C32: 30 | D32: Environmental Affairs | E32: 30 | F32: 9 | G32: Public Enterprises | J32: Thabiso Molewa | K32: (012) 315 6780 | L32: Thabiso.Molewa@treasury.gov.za | S32: datafileNAT@treasury.gov.za | T32: 279483 | U32: 289938 | V32: 309644 | X32: 9 | Y32: Public Enterprises | Z32: 266696 | AA32: 277153 | AB32: 296515
B33: 16 | C33: 31 | D33: Human Settlements | E33: 31 | F33: 10 | G33: Public Service and Administration | J33: George Tembo | K33: (012) 315 5514 | L33: George.Tembo@treasury.gov.za | M33: Mokgatla Tema | N33: (012) 315 5948 | O33: Mokgatla.Tema@treasury.gov.za | S33: datafileNAT@treasury.gov.za | T33: 900892 | U33: 948720 | V33: 1013458 | X33: 10 | Y33: Public Service and Administration | Z33: 897144 | AA33: 944648 | AB33: 1008521
B34: 22 | C34: 32 | D34: Mineral Resources | E34: 32 | F34: 45 | G34: Public Service Commission | J34: George Tembo | K34: (012) 315 5514 | L34: George.Tembo@treasury.gov.za | M34: Viwe Sobudula | N34: (012) 315 5015 | O34: Viwe.Sobudula@treasury.gov.za | S34: datafileNAT@treasury.gov.za | T34: 248397 | U34: 265722 | V34: 284794 | X34: 45 | Y34: Public Service Commission | Z34: 245664 | AA34: 262800 | AB34: 281662
B35: 32 | C35: 33 | D35: Rural Development and Land Reform | E35: 33 | F35: 11 | G35: Public Works | J35: George Tembo | K35: (012) 315 5514 | L35: George.Tembo@treasury.gov.za | M35: Mercy Mhlophe | N35: (012) 315 5598 | O35: Mercy.Mhlophe@treasury.gov.za | S35: datafileNAT@treasury.gov.za | T35: 7221159 | U35: 7661805 | V35: 8101277 | X35: 11 | Y35: Public Works | Z35: 7038130 | AA35: 7494254 | AB35: 7937780
B36: 33 | C36: 34 | D36: Science and Technology | E36: 34 | F36: 39 | G36: Rural Development and Land Reform | J36: Bothwell Deka | K36: (012) 395 6784 | L36: Bothwell.Deka@treasury.gov.za | M36: Kismore Mangondo | N36: (012) 315 5558 | O36: Kismore.Mangondo@treasury.gov.za | S36: datafileNAT@treasury.gov.za | T36: 10549450 | U36: 11078750 | V36: 11746199 | X36: 39 | Y36: Rural Development and Land Reform | Z36: 10114240 | AA36: 10580429 | AB36: 11213730
E37: 35 | F37: 30 | G37: Science and Technology | J37: Ricardo Andrews | K37: (012) 315 5766 | L37: Ricardo.Andrews@treasury.gov.za | S37: datafileNAT@treasury.gov.za | T37: 7562521 | U37: 7756351 | V37: 8197335 | X37: 30 | Y37: Science and Technology | Z37: 7557229 | AA37: 7916025 | AB37: 8191351
B38: 38 | C38: 35 | D38: Tourism | E38: 36 | F38: 31 | G38: Small Business Development | J38: Rudzani Sikhwari | K38: (012) 315 5823 | L38: Rudzani.Sikhwari@treasury.gov.za | S38: datafileNAT@treasury.gov.za | T38: 1459453 | U38: 1539979 | V38: 1629080 | X38: 31 | Y38: Small Business Development | Z38: 1449796 | AA38: 1529874 | AB38: 1618267
B39: 39 | C39: 36 | D39: Trade and Industry | E39: 37 | F39: 17 | G39: Social Development | J39: Lindi Mzankomo | K39: (012) 315 5256 | L39: Lindi.Mzankomo@treasury.gov.za | M39: Yusuf Mayet | N39: (012) 315 5189 | O39: Yusuf.Mayet@treasury.gov.za | S39: datafileNAT@treasury.gov.za | T39: 161520096 | U39: 174808504 | V39: 186810162 | X39: 17 | Y39: Social Development | Z39: 160707768 | AA39: 173186694 | AB39: 186109718
E40: 38 | F40: 40 | G40: Sport and Recreation South Africa | J40: Spencer Janari | K40: (012) 315 5436 | L40: Spencer.Janari@treasury.gov.za | M40: Letsepa Pakkies | N40: (012) 395 6656 | O40: Letsepa.Pakkies@treasury.gov.za | S40: datafileNAT@treasury.gov.za | T40: 1074986 | U40: 1135004 | V40: 1200831 | X40: 40 | Y40: Sport and Recreation South Africa | Z40: 1066564 | AA40: 1125570 | AB40: 1190865
B41: 41 | C41: 37 | D41: Transport | E41: 39 | F41: 12 | G41: Statistics South Africa | J41: Japie Jacobs | K41: (012) 315 5546 | L41: Japie.Jacobs@treasury.gov.za | M41: Thapelo Mokwana | N41: (012) 315 5796 | O41: Thapelo.Mokwana@treasury.gov.za | S41: datafileNAT@treasury.gov.za | T41: 2168280 | U41: 2200423 | V41: 2333120 | X41: 12 | Y41: Statistics South Africa | Z41: 2146313 | AA41: 2248769 | AB41: 2309125
B42: 42 | C42: 38 | D42: Water Affairs | E42: 40 | F42: 32 | G42: Telecommunications and Postal Services | J42: Rezah Atcha | K42: (012) 315 5287 | L42: Rezah.Atcha@treasury.gov.za | M42: Keitumetse Motshegwe | N42: (012) 395 6750 | O42: keitumetse.motshegwe@treasury.gov.za | S42: datafileNAT@treasury.gov.za | T42: 1636306 | U42: 1751126 | V42: 1853726 | X42: 32 | Y42: Telecommunications and Postal Services | Z42: 1614206 | AA42: 1727533 | AB42: 1828804
B43: 4 | C43: 39 | D43: Civilian Secretariat | E43: 41 | F43: 1 | G43: The Presidency | J43: Gcobisa Matshaya | K43: (012) 315 532 | L43: Gcobisa.Matshaya@treasury.gov.za | M43: Thulasizwe Motha | N43: (012) 406 9019 | O43: Thulasizwe.Motha@treasury.gov.za | S43: datafileNAT@treasury.gov.za | T43: 506646 | U43: 526770 | V43: 562922 | X43: 1 | Y43: The Presidency | Z43: 501542 | AA43: 521626 | AB43: 557178
B44: 21 | C44: 40 | D44: Military Veterans | E44: 42 | F44: 33 | G44: Tourism | J44: Ricardo Andrews | K44: (012) 315 5766 | L44: Ricardo.Andrews@treasury.gov.za | M44: Thamsanqa Nhlapo | N44: (012) 315 5024 | O44: Thamsanqa.Nhlapo@treasury.gov.za | S44: datafileNAT@treasury.gov.za | T44: 2067301 | U44: 2172618 | V44: 2300001 | X44: 33 | Y44: Tourism | Z44: 2140156 | AA44: 2288067 | AB44: 2397065
B45: 40 | C45: 41 | D45: Traditional Affairs | E45: 43 | F45: 34 | G45: Trade and Industry | J45: Nokuthula Ngomane | K45: (012) 315 5223 | L45: Nokuthula.Ngomane@treasury.gov.za | M45: Millicent Movare | N45: (012) 315 5279 | O45: Millicent.Movare@treasury.gov.za | S45: datafileNAT@treasury.gov.za | T45: 9290480 | U45: 8631385 | V45: 9133510 | X45: 34 | Y45: Trade and Industry | Z45: 9274795 | AA45: 9965857 | AB45: 9116002
B46: 23 | C46: 42 | D46: National School of Government | E46: 44 | F46: 43 | G46: Traditional Affairs | J46: Misaveni Ngobeni | K46: (012) 315 5305 | L46: misaveni.ngobeni@treasury.gov.za | M46: Millicent Mulaudzi | N46: (012) 395 6576 | O46: Millicent.Mulaudzi@treasury.gov.za | S46: datafileNAT@treasury.gov.za | T46: 141709 | U46: 150733 | V46: 160651 | X46: 43 | Y46: Traditional Affairs | Z46: 140596 | AA46: 149546 | AB46: 159381
B47: 30 | C47: 43 | D47: Public Service Commission | E47: 45 | F47: 35 | G47: Transport | J47: Ulrike Rwida | K47: (012) 315 5578 | L47: Ulrike.Rwida@treasury.gov.za | M47: Luyolo Ntlangula | N47: (012) 315 5571 | O47: Luyolo.Ntlangula@treasury.gov.za | S47: datafileNAT@treasury.gov.za | T47: 61100711 | U47: 65453336 | V47: 69127880 | X47: 35 | Y47: Transport | Z47: 59795180 | AA47: 64950207 | AB47: 68545887
E48: 46 | F48: 36 | G48: Water and Sanitation | J48: Misaveni Ngobeni | K48: (012) 315 5305 | L48: misaveni.ngobeni@treasury.gov.za | M48: Iqbal Mahomed Alli | N48: (012) 315 5809 | O48: Iqbal.Mahomed-Alli@treasury.gov.za | S48: datafileNAT@treasury.gov.za | T48: 16038266 | U48: 17159677 | V48: 18155413 | X48: 36 | Y48: Water and Sanitation | Z48: 15107449 | AA48: 16560799 | AB48: 17514811
E49: 47 | F49: 13 | G49: Women | J49: George Tembo | K49: (012) 315 5514 | L49: George.Tembo@treasury.gov.za | M49: Viwe Sobudula | N49: (012) 315 5015 | O49: Viwe.Sobudula@treasury.gov.za | S49: datafileNAT@treasury.gov.za | T49: 207440 | U49: 216876 | V49: 230517 | X49: 13 | Y49: Women | Z49: 206163 | AA49: 234003 | AB49: 248508
T50: =SUM(T3:T49) -> 1412958860 | U50: 1509109823 | V50: 1606959730 | X50: Grand Total | Z50: =SUM(Z3:Z49) -> 1405835247 | AA50: 1513958440 | AB50: 1619433560
Z52: =1404107892+1727355 -> 1405835247 | AA52: =1512115830+1842610 -> 1513958440 | AB52: =1617471161+1962399 -> 1619433560
Z53: =Z52-Z50 -> 0 | AA53: 0 | AB53: 0
E82: 25 | F82: 7 | T82: COE | X82: Personnel Revised Baseline
E83: Dept Index No. | F83: Vote No. | G83: Department | H83: Category | I83: ID1 | J83: Contact Person | K83: Tel | L83: email | M83: Contact Person | N83: Tel | O83: email | P83: ID2 | Q83: Contact Person | R83: Tel | S83: email | T83: 2017/18 | U83: 2018/19 | V83: 2019/20 | X83: Vote No. | Y83: Dept | Z83: 2017/18 | AA83: 2018/19 | AB83: 2019/20
E84: 1 | F84: 24 | G84: Agriculture, Forestry and Fisheries | J84: Bothwell Deka | K84: (012) 395 6784 | L84: Bothwell.Deka@treasury.gov.za | M84: Humbelani Ramuedzisi | N84: (012) 315 5585 | O84: Humbelani.Ramuedzisi@treasury.gov.za | S84: datafileNAT@treasury.gov.za | T84: 2129171 | U84: 2201926 | V84: =ROUND(2369272.36815277,0) -> 2369272 | X84: 24 | Y84: Agriculture, Forestry and Fisheries | Z84: 2105751 | AA84: 2177251 | AB84: 2343230
E85: 2 | F85: 37 | G85: Arts and Culture | J85: Judy Naidoo | K85: (012) 315 5269 | L85: Judy.Naidoo@treasury.gov.za | M85: Letsepa Pakkies | N85: (012) 395 6656 | O85: Letsepa.Pakkies@treasury.gov.za | S85: datafileNAT@treasury.gov.za | T85: 235049 | U85: 256403 | V85: =ROUND(275889.627086231,0) -> 275890 | X85: 37 | Y85: Arts and Culture | Z85: 232464 | AA85: 253530 | AB85: 272858
E86: 3 | F86: 14 | G86: Basic Education | J86: Spencer Janari | K86: (012) 315 5436 | L86: Spencer.Janari@treasury.gov.za | M86: Pindi Masiso | N86: (012) 315 5722 | O86: Pindi.Masiso@treasury.gov.za | S86: datafileNAT@treasury.gov.za | T86: 481996 | U86: 505953 | V86: =ROUND(544405.426196884,0) -> 544405 | X86: 14 | Y86: Basic Education | Z86: 479289 | AA86: 500283 | AB86: 538421
E87: 4 | F87: 47 | G87: Centre for Public Service Innovation | J87: George Tembo | K87: (012) 315 5514 | L87: George.Tembo@treasury.gov.za | M87: Mokgatla Tema | N87: (012) 315 5948 | O87: Mokgatla.Tema@treasury.gov.za | S87: datafileNAT@treasury.gov.za | T87: 18564 | U87: 19641 | V87: =ROUND(21133.7159300034,0) -> 21134 | X87: 47 | Y87: Centre for Public Service Innovation | Z87: 18360 | AA87: 19425 | AB87: 20902
E88: 5 | F88: 41 | G88: Civilian Secretariat | J88: Nompumelelo Radebe | K88: (012) 315 5957 | L88: Nompumelelo.Radebe@treasury.gov.za | M88: Sithabiso Buthelezi | N88: (012) 406 9025 | O88: Sithabiso.Buthelezi@treasury.gov.za | S88: datafileNAT@treasury.gov.za | T88: 89803 | U88: 98536 | V88: =ROUND(106024.735648837,0) -> 106025 | X88: 41 | Y88: Civilian Secretariat | Z88: 88815 | AA88: 97452 | AB88: 104859
E89: 6 | F89: 3 | G89: Communications | J89: Japie Jacobs | K89: (012) 315 5546 | L89: Japie.Jacobs@treasury.gov.za | M89: Rhoda Marais | N89: (012) 315 5906 | O89: Rhoda.Marais@treasury.gov.za | S89: datafileNAT@treasury.gov.za | T89: 70857 | U89: 74787 | V89: =ROUND(80470.811733474,0) -> 80471 | X89: 3 | Y89: Communications | Z89: 76697 | AA89: 81256 | AB89: 87682
E90: 7 | F90: 4 | G90: Cooperative Governance And Traditional Affairs | J90: Misaveni Ngobeni | K90: (012) 315 5305 | L90: misaveni.ngobeni@treasury.gov.za | M90: Millicent Mulaudzi | N90: (012) 395 6576 | O90: Millicent.Mulaudzi@treasury.gov.za | S90: datafileNAT@treasury.gov.za | T90: 342691 | U90: 343322 | V90: =ROUND(369414.470776469,0) -> 369414 | X90: 4 | Y90: Cooperative Governance And Traditional Affairs | Z90: 338922 | AA90: 339475 | AB90: 365354
E91: 8 | F91: 18 | G91: Correctional Services | J91: Werner Krause | K91: (012) 315 5211 | L91: Werner.Krause@treasury.gov.za | M91: Keabetswe Matlwa | N91: (012) 395 6678 | O91: Keabetswe.Matlwa@treasury.gov.za | S91: datafileNAT@treasury.gov.za | T91: 15952152 | U91: 17228003 | V91: =ROUND(18537331.1666028,0) -> 18537331 | X91: 18 | Y91: Correctional Services | Z91: 15776687 | AA91: 17034941 | AB91: 18333576
E92: 9 | F92: 19 | G92: Defence And Military Veterans | J92: Mashudu Bidzha | K92: (012) 315 5344 | L92: Mashudu.Bidzha@treasury.gov.za | M92: Lesiba Ledwaba | N92: (012) 395 6660 | O92: Lesiba.Ledwaba@treasury.gov.za | S92: datafileNAT@treasury.gov.za | T92: 26447971 | U92: 27116696 | V92: =ROUND(29177564.7993615,0) -> 29177565 | X92: 19 | Y92: Defence And Military Veterans | Z92: =26446983+988 -> 26447971 | AA92: =27115612+1084 -> 27116696 | AB92: =29176399+1166 -> 29177565
E93: 10 | F93: 25 | G93: Economic Development | J93: Rudzani Sikhwari | K93: (012) 315 5823 | L93: Rudzani.Sikhwari@treasury.gov.za | S93: datafileNAT@treasury.gov.za | T93: 91074 | U93: 91802 | V93: =ROUND(98778.951672836,0) -> 98779 | X93: 25 | Y93: Economic Development | Z93: 90072 | AA93: 90773 | AB93: 97693
E94: 11 | F94: 26 | G94: Energy | J94: Rezah Atcha | K94: (012) 315 5287 | L94: Rezah.Atcha@treasury.gov.za | M94: Nomagugu Madikane | N94: (012) 315 5312 | O94: Nomagugu.Madikane@treasury.gov.za | S94: datafileNAT@treasury.gov.za | T94: 314102 | U94: 327522 | V94: =ROUND(352413.670832777,0) -> 352414 | X94: 26 | Y94: Energy | Z94: 318247 | AA94: 331900 | AB94: 357039
E95: 12 | F95: 27 | G95: Environmental Affairs | J95: Ricardo Andrews | K95: (012) 315 5766 | L95: Ricardo.Andrews@treasury.gov.za | M95: Ashley Ramasimu | N95: (012) 315 5166 | O95: Mukundi.Maphangwa@treasury.gov.za | S95: datafileNAT@treasury.gov.za | T95: 1046585 | U95: 1090839 | V95: =ROUND(1173742.76011247,0) -> 1173743 | X95: 27 | Y95: Environmental Affairs | Z95: 1035073 | AA95: 1078615 | AB95: 1160842
E96: 13 | F96: 46 | G96: Government Communication and Information System | J96: Japie Jacobs | K96: (012) 315 5546 | L96: Japie.Jacobs@treasury.gov.za | M96: Thapelo Mokwana | N96: (012) 315 5796 | O96: Thapelo.Mokwana@treasury.gov.za | S96: datafileNAT@treasury.gov.za | T96: 237604 | U96: 254821 | V96: =ROUND(274187.395091869,0) -> 274187 | X96: 46 | Y96: Government Communication and Information System | Z96: 236825 | AA96: 253983 | AB96: 273302
E97: 14 | F97: 16 | G97: Health | J97: Aparna Kollipara | K97: (012) 315 5386 | L97: Aparna.Kollipara@treasury.gov.za | M97: Refiloe Thokoa | N97: (012) 395 6559 | O97: Refiloe.Thokoa@treasury.gov.za | S97: datafileNAT@treasury.gov.za | T97: 878298 | U97: 954316 | V97: =ROUND(1026844.01259901,0) -> 1026844 | X97: 16 | Y97: Health | Z97: 760037 | AA97: 828822 | AB97: 894357
E98: 15 | F98: 15 | G98: Higher Education and Training | J98: Nokwazi Makanya | K98: (012) 315 9057 | L98: Nokwazi.Makanya@treasury.gov.za | M98: Barileng Sape | N98: (012) 406 9069 | O98: Barileng.Sape@treasury.gov.za | S98: datafileNAT@treasury.gov.za | T98: 8429841 | U98: 8961753 | V98: =ROUND(9642846.1960621,0) -> 9642846 | X98: 15 | Y98: Higher Education and Training | Z98: 8425378 | AA98: 8956964 | AB98: 9637693
E99: 16 | F99: 5 | G99: Home Affairs | J99: Isaac Mabena | K99: (012) 315 5582 | L99: Isaac.Mabena@treasury.gov.za | S99: datafileNAT@treasury.gov.za | T99: 3233745 | U99: 3328378 | V99: =ROUND(3581334.71613832,0) -> 3581335 | X99: 5 | Y99: Home Affairs | Z99: 3198176 | AA99: 3308079 | AB99: 3558970
E100: 17 | F100: 38 | G100: Human Settlements | J100: James Archer | K100: (012) 395 6736 | L100: James.Archer@treasury.gov.za | M100: Lindiwe Ngcongwane | N100: (012) 315 5357 | O100: Lindiwe.Ngcongwane@treasury.gov.za | S100: datafileNAT@treasury.gov.za | T100: 387519 | U100: 381217 | V100: =ROUND(410189.490641418,0) -> 410189 | X100: 38 | Y100: Human Settlements | Z100: 383257 | AA100: 376945 | AB100: 405680
E101: 18 | F101: 20 | G101: Independent Police Investigative Directorate | J101: Nompumelelo Radebe | K101: (012) 315 5957 | L101: Nompumelelo.Radebe@treasury.gov.za | M101: Velisubuhle Buti | N101: (012) 395 6709 | O101: Sithabiso.Buthelezi@treasury.gov.za | S101: datafileNAT@treasury.gov.za | T101: 186157 | U101: 195797 | V101: =ROUND(210677.571302218,0) -> 210678 | X101: 20 | Y101: Independent Police Investigative Directorate | Z101: 186157 | AA101: 195797 | AB101: 210678
E102: 19 | F102: 6 | G102: International Relations and Cooperation | J102: Gcobisa Matshaya | K102: (012) 315 5320 | L102: Gcobisa.Matshaya@treasury.gov.za | M102: Thulasizwe Motha | N102: (012) 406 9019 | O102: Thulasizwe.Motha@treasury.gov.za | S102: datafileNAT@treasury.gov.za | T102: 2563514 | U102: 2655820 | V102: =ROUND(2857662.31053519,0) -> 2857662 | X102: 6 | Y102: International Relations and Cooperation | Z102: 2914027 | AA102: 2964490 | AB102: 2874494
E103: 20 | F103: 21 | G103: Justice and Constitutional Development | J103: Maggy Mokoka | K103: (012) 315 5468 | L103: Maggy.Mokoka@treasury.gov.za | M103: Rendani Randela | N103: (012) 315 5345 | O103: rendani.randela@treasury.gov.za | S103: datafileNAT@treasury.gov.za | T103: 10578040 | U103: 11067609 | V103: =ROUND(11908747.2445572,0) -> 11908747 | X103: 21 | Y103: Justice and Constitutional Development | Z103: 10578040 | AA103: 11067609 | AB103: 11908747
E104: 21 | F104: 28 | G104: Labour | J104: Judy Naidoo | K104: (012) 315 5269 | L104: Judy.Naidoo@treasury.gov.za | M104: Nico Likhethe | N104: (012) 315 5773 | O104: Velisubuhle.Buti@treasury.gov.za | S104: datafileNAT@treasury.gov.za | T104: 1221487 | U104: 1307915 | V104: =ROUND(1407316.53533885,0) -> 1407317 | X104: 28 | Y104: Labour | Z104: 1224502 | AA104: 1317790 | AB104: 1410207
E105: 22 | F105: 42 | G105: Military Veterans | J105: Mashudu Bidzha | K105: (012) 315 5344 | L105: Mashudu.Bidzha@treasury.gov.za | M105: Lesiba Ledwaba | N105: (012) 395 6660 | O105: Lesiba.Ledwaba@treasury.gov.za | S105: datafileNAT@treasury.gov.za | T105: 113829 | U105: 122257 | V105: =ROUND(131548.5315643,0) -> 131549 | X105: 42 | Y105: Military Veterans | Z105: 113829 | AA105: 122257 | AB105: 131549
E106: 23 | F106: 29 | G106: Mineral Resources | J106: Bothwell Deka | K106: (012) 395 6784 | L106: Bothwell.Deka@treasury.gov.za | M106: Tumelo Mokgoshi | N106: (012) 395 6777 | O106: Tumelo.Mokgoshi@treasury.gov.za | S106: datafileNAT@treasury.gov.za | T106: 579130 | U106: 604785 | V106: =ROUND(650748.657844667,0) -> 650749 | X106: 29 | Y106: Mineral Resources | Z106: 572760 | AA106: 598008 | AB106: 643596
E107: 24 | F107: 44 | G107: National School of Government | J107: George Tembo | K107: (012) 315 5514 | L107: George.Tembo@treasury.gov.za | M107: Mokgatla Tema | N107: (012) 315 5948 | O107: Mokgatla.Tema@treasury.gov.za | S107: datafileNAT@treasury.gov.za | T107: 52488 | U107: 59340 | V107: =ROUND(63849.8397885241,0) -> 63850 | X107: 44 | Y107: National School of Government | Z107: 51911 | AA107: 58687 | AB107: 63148
E108: 25 | F108: 7 | G108: National Treasury | J108: Japie Jacobs | K108: (012) 315 5546 | L108: Japie.Jacobs@treasury.gov.za | M108: Rhoda Marais | N108: (012) 315 5906 | O108: Rhoda.Marais@treasury.gov.za | S108: datafileNAT@treasury.gov.za | T108: 808165 | U108: 816915 | V108: =ROUND(879000.537088678,0) -> 879001 | X108: 7 | Y108: National Treasury | Z108: 799276 | AA108: 807760 | AB108: 869339
E109: 26 | F109: 22 | G109: Office of the Chief Justice and Judicial Administration | J109: Werner Krause | K109: (012) 315 5211 | L109: Werner.Krause@treasury.gov.za | M109: Keabetswe Matlwa | N109: (012) 395 6678 | O109: Keabetswe.Matlwa@treasury.gov.za | S109: datafileNAT@treasury.gov.za | T109: 1524040 | U109: 1609065 | V109: =ROUND(1731353.93426561,0) -> 1731354 | X109: 22 | Y109: Office of the Chief Justice and Judicial Administration | Z109: 1533598 | AA109: 1619187 | AB109: 1742043
E110: 27 | F110: 2 | G110: Parliament | J110: Isaac Mabena | K110: (012) 315 5582 | L110: Isaac.Mabena@treasury.gov.za | S110: datafileNAT@treasury.gov.za | T110: 1356714 | U110: 1406925 | V110: =ROUND(1513851.294986,0) -> 1513851 | X110: 2 | Y110: Parliament | Z110: 1341791 | AA110: 1391159 | AB110: 1497211
E111: 28 | F111: 8 | G111: Planning, Monitoring and Evaluation | J111: Gcobisa Matshaya | K111: (012) 315 5320 | L111: Gcobisa.Matshaya@treasury.gov.za | M111: Thulasizwe Motha | N111: (012) 406 9019 | O111: Thulasizwe.Motha@treasury.gov.za | S111: datafileNAT@treasury.gov.za | T111: 279163 | U111: 318997 | V111: =ROUND(343240.770863158,0) -> 343241 | X111: 8 | Y111: Planning, Monitoring and Evaluation | Z111: 276092 | AA111: 312788 | AB111: 331556
E112: 29 | F112: 23 | G112: Police | J112: Nompumelelo Radebe | K112: (012) 315 5957 | L112: Nompumelelo.Radebe@treasury.gov.za | M112: Sithabiso Buthelezi | N112: (012) 406 9025 | O112: Sithabiso.Buthelezi@treasury.gov.za | S112: datafileNAT@treasury.gov.za | T112: 66196773 | U112: 70655395 | V112: =ROUND(76025204.7681982,0) -> 76025205 | X112: 23 | Y112: Police | Z112: 66196773 | AA112: 70655395 | AB112: 76025205
E113: 30 | F113: 9 | G113: Public Enterprises | J113: Thabiso Molewa | K113: (012) 315 6780 | L113: Thabiso.Molewa@treasury.gov.za | S113: datafileNAT@treasury.gov.za | T113: 168797 | U113: 173464 | V113: =ROUND(186647.263381809,0) -> 186647 | X113: 9 | Y113: Public Enterprises | Z113: 166940 | AA113: 171520 | AB113: 184595
E114: 31 | F114: 10 | G114: Public Service and Administration | J114: George Tembo | K114: (012) 315 5514 | L114: George.Tembo@treasury.gov.za | M114: Mokgatla Tema | N114: (012) 315 5948 | O114: Mokgatla.Tema@treasury.gov.za | S114: datafileNAT@treasury.gov.za | T114: 278777 | U114: 291921 | V114: =ROUND(314106.994959652,0) -> 314107 | X114: 10 | Y114: Public Service and Administration | Z114: 275711 | AA114: 288650 | AB114: 310654
E115: 32 | F115: 45 | G115: Public Service Commission | J115: George Tembo | K115: (012) 315 5514 | L115: George.Tembo@treasury.gov.za | M115: Viwe Sobudula | N115: (012) 315 5015 | O115: Viwe.Sobudula@treasury.gov.za | S115: datafileNAT@treasury.gov.za | T115: 195322 | U115: 209569 | V115: =ROUND(225496.243253138,0) -> 225496 | X115: 45 | Y115: Public Service Commission | Z115: 193173 | AA115: 207264 | AB115: 223016
E116: 33 | F116: 11 | G116: Public Works | J116: George Tembo | K116: (012) 315 5514 | L116: George.Tembo@treasury.gov.za | M116: Mercy Mhlophe | N116: (012) 315 5598 | O116: Mercy.Mhlophe@treasury.gov.za | S116: datafileNAT@treasury.gov.za | T116: 488401 | U116: 520564 | V116: =ROUND(560126.862144814,0) -> 560127 | X116: 11 | Y116: Public Works | Z116: 486413 | AA116: 518347 | AB116: 557826
E117: 34 | F117: 39 | G117: Rural Development and Land Reform | J117: Bothwell Deka | K117: (012) 395 6784 | L117: Bothwell.Deka@treasury.gov.za | M117: Kismore Mangondo | N117: (012) 315 5558 | O117: Kismore.Mangondo@treasury.gov.za | S117: datafileNAT@treasury.gov.za | T117: 2218992 | U117: 2351947 | V117: =ROUND(2530694.96361813,0) -> 2530695 | X117: 39 | Y117: Rural Development and Land Reform | Z117: 2194584 | AA117: 2325590 | AB117: 2502879
E118: 35 | F118: 30 | G118: Science and Technology | J118: Ricardo Andrews | K118: (012) 315 5766 | L118: Ricardo.Andrews@treasury.gov.za | S118: datafileNAT@treasury.gov.za | T118: 319036 | U118: 331404 | V118: =ROUND(356590.702818942,0) -> 356591 | X118: 30 | Y118: Science and Technology | Z118: 315527 | AA118: 327690 | AB118: 352671
E119: 36 | F119: 31 | G119: Small Business Development | J119: Rudzani Sikhwari | K119: (012) 315 5823 | L119: Rudzani.Sikhwari@treasury.gov.za | S119: datafileNAT@treasury.gov.za | T119: 139060 | U119: 143100 | V119: =ROUND(153975.59949002,0) -> 153976 | X119: 31 | Y119: Small Business Development | Z119: 137530 | AA119: 141496 | AB119: 152284
E120: 37 | F120: 17 | G120: Social Development | J120: Lindi Mzankomo | K120: (012) 315 5256 | L120: Lindi.Mzankomo@treasury.gov.za | M120: Yusuf Mayet | N120: (012) 315 5189 | O120: Yusuf.Mayet@treasury.gov.za | S120: datafileNAT@treasury.gov.za | T120: 465532 | U120: 478373 | V120: =ROUND(514729.346295174,0) -> 514729 | X120: 17 | Y120: Social Development | Z120: 476811 | AA120: 490351 | AB120: 527441
E121: 38 | F121: 40 | G121: Sport and Recreation South Africa | J121: Spencer Janari | K121: (012) 315 5436 | L121: Spencer.Janari@treasury.gov.za | M121: Letsepa Pakkies | N121: (012) 395 6656 | O121: Letsepa.Pakkies@treasury.gov.za | S121: datafileNAT@treasury.gov.za | T121: 107284 | U121: 113334 | V121: =ROUND(121947.3835961,0) -> 121947 | X121: 40 | Y121: Sport and Recreation South Africa | Z121: 106104 | AA121: 111545 | AB121: 120058
E122: 39 | F122: 12 | G122: Statistics South Africa | J122: Japie Jacobs | K122: (012) 315 5546 | L122: Japie.Jacobs@treasury.gov.za | M122: Thapelo Mokwana | N122: (012) 315 5796 | O122: Thapelo.Mokwana@treasury.gov.za | S122: datafileNAT@treasury.gov.za | T122: 1367257 | U122: 1373861 | V122: =ROUND(1460988.43110383,0) -> 1460988 | X122: 12 | Y122: Statistics South Africa | Z122: 1352218 | AA122: 1428465 | AB122: 1444929
E123: 40 | F123: 32 | G123: Telecommunications and Postal Services | J123: Rezah Atcha | K123: (012) 315 5287 | L123: Rezah.Atcha@treasury.gov.za | M123: Keitumetse Motshegwe | N123: (012) 395 6750 | O123: keitumetse.motshegwe@treasury.gov.za | S123: datafileNAT@treasury.gov.za | T123: 217094 | U123: 226842 | V123: =ROUND(244081.99119158,0) -> 244082 | X123: 32 | Y123: Telecommunications and Postal Services | Z123: 214706 | AA123: 224300 | AB123: 241399
E124: 41 | F124: 1 | G124: The Presidency | J124: Gcobisa Matshaya | K124: (012) 315 532 | L124: Gcobisa.Matshaya@treasury.gov.za | M124: Thulasizwe Motha | N124: (012) 406 9019 | O124: Thulasizwe.Motha@treasury.gov.za | S124: datafileNAT@treasury.gov.za | T124: 321925 | U124: 332663 | V124: =ROUND(357945.386814455,0) -> 357945 | X124: 1 | Y124: The Presidency | Z124: 318384 | AA124: 328935 | AB124: 354011
E125: 42 | F125: 33 | G125: Tourism | J125: Ricardo Andrews | K125: (012) 315 5766 | L125: Ricardo.Andrews@treasury.gov.za | M125: Thamsanqa Nhlapo | N125: (012) 315 5024 | O125: Thamsanqa.Nhlapo@treasury.gov.za | S125: datafileNAT@treasury.gov.za | T125: 274896 | U125: 285801 | V125: =ROUND(307521.874981462,0) -> 307522 | X125: 33 | Y125: Tourism | Z125: 271872 | AA125: 282598 | AB125: 304142
E126: 43 | F126: 34 | G126: Trade and Industry | J126: Nokuthula Ngomane | K126: (012) 315 5223 | L126: Nokuthula.Ngomane@treasury.gov.za | M126: Millicent Movare | N126: (012) 315 5279 | O126: Millicent.Movare@treasury.gov.za | S126: datafileNAT@treasury.gov.za | T126: 912451 | U126: 938361 | V126: =ROUND(1009676.43265587,0) -> 1009676 | X126: 34 | Y126: Trade and Industry | Z126: 902415 | AA126: 927845 | AB126: 998578
E127: 44 | F127: 43 | G127: Traditional Affairs | J127: Misaveni Ngobeni | K127: (012) 315 5305 | L127: misaveni.ngobeni@treasury.gov.za | M127: Millicent Mulaudzi | N127: (012) 395 6576 | O127: Millicent.Mulaudzi@treasury.gov.za | S127: datafileNAT@treasury.gov.za | T127: 69043 | U127: 73853 | V127: =ROUND(79465.8277368026,0) -> 79466 | X127: 43 | Y127: Traditional Affairs | Z127: 69043 | AA127: 73853 | AB127: 79466
E128: 45 | F128: 35 | G128: Transport | J128: Ulrike Rwida | K128: (012) 315 5578 | L128: Ulrike.Rwida@treasury.gov.za | M128: Luyolo Ntlangula | N128: (012) 315 5571 | O128: Luyolo.Ntlangula@treasury.gov.za | S128: datafileNAT@treasury.gov.za | T128: 439021 | U128: 457837 | V128: =ROUND(492632.61036836,0) -> 492633 | X128: 35 | Y128: Transport | Z128: 450021 | AA128: 469961 | AB128: 505888
E129: 46 | F129: 36 | G129: Water and Sanitation | J129: Misaveni Ngobeni | K129: (012) 315 5305 | L129: misaveni.ngobeni@treasury.gov.za | M129: Iqbal Mahomed Alli | N129: (012) 315 5809 | O129: Iqbal.Mahomed-Alli@treasury.gov.za | S129: datafileNAT@treasury.gov.za | T129: 1670228 | U129: 1739701 | V129: =ROUND(1871918.26980005,0) -> 1871918 | X129: 36 | Y129: Water and Sanitation | Z129: 1651856 | AA129: 1720205 | AB129: 1851343
E130: 47 | F130: 13 | G130: Women | J130: George Tembo | K130: (012) 315 5514 | L130: George.Tembo@treasury.gov.za | M130: Viwe Sobudula | N130: (012) 315 5015 | O130: Viwe.Sobudula@treasury.gov.za | S130: datafileNAT@treasury.gov.za | T130: 72839 | U130: 74776 | V130: =ROUND(80458.9757335132,0) -> 80459 | X130: 13 | Y130: Women | Z130: 72038 | AA130: 85578 | AB130: 91867
T131: =SUM(T84:T130) -> 155572477 | U131: 164174106 | V131: 176634052 | X131: Grand Total | Z131: =SUM(Z84:Z130) -> 155456123 | AA131: 164081510 | AB131: 176140843

Sheet Source
A1: Row of SP1 | B1: 330
A2: SPInterval | B2: 150
A3: SP's created | B3: =MAX(B330:B4062) -> 
A4: SP's listed | B4: =COUNTA(F47:F71) -> 2
A5: SP'Var | B5: =B4-B3 ->  | F5: =IF(G5="","",IF(B5>0,"No. of subprogramme units to create","No. of subprogramme units to delete")) ->  | G5: =IF(B4-B3=0,"",IF(B4-B3<0,B3-B4,B4-B3)) -> 
A6: Check | B6: =B4-MAX(B47:B71) -> 0 | F6: Vote no. | G6: =MyVoteNo -> 1
A7: SPFormula | B7: OFFSET(H$1,(B2*$E31)+$B$2+33,0) | F7: Department name | G7: =MyDeptName -> The Presidency
A8: Prog No. | B8: 16 | F8: Programme name | G8: =OFFSET([4]Summary!F30,B8+1,0) -> 
F9: Programme manager | G9: 0 | J9: Post: | K9: 0
F11: Programme purpose
F12: 0
F14: Performance information
A15: 1 | F15: Performance indicators | G15: Outcome to which it contributes | I15: =MyYearM3 -> 2014/15 | J15: =MyYearM2 -> 2015/16 | K15: =MyYearM1& " AENE Target" -> 2016/17 AENE Target | L15: =MyYearM1& " Audited outcome" -> 2016/17 Audited outcome | M15: =MyYear0 &" Target" -> 2017/18 Target | N15: =MyYear0 &" Quarter 1 Audited" -> 2017/18 Quarter 1 Audited | O15: =MyYearP1 -> 2018/19 | P15: =MyYearP2 -> 2019/20 | Q15: =MyYearP3 -> 2020/21 | R15: Related Programme | V15: Add to 'Performance Indicators' Sheet | W15: Comments
A16: 1 | F16: 0 | G16: 0 | I16: 0 | J16: 0 | K16: 0 | L16: 0 | M16: 0 | O16: 0 | P16: 0 | R16: 0 | V16: 0 | W16: 0
A17: =IF(COUNTA(F17:Y17)>0,1,0) -> 1 | F17: 0 | G17: 0 | I17: 0 | J17: 0 | K17: 0 | L17: 0 | M17: 0 | O17: 0 | P17: 0 | R17: 0 | V17: 0 | W17: 0
A18: 1 | F18: 0 | G18: 0 | I18: 0 | J18: 0 | K18: 0 | L18: 0 | M18: 0 | O18: 0 | P18: 0 | R18: 0 | V18: 0 | W18: 0
A19: 1 | F19: 0 | G19: 0 | I19: 0 | J19: 0 | K19: 0 | L19: 0 | M19: 0 | O19: 0 | P19: 0 | R19: 0 | V19: 0 | W19: 0
A20: 1 | F20: 0 | G20: 0 | I20: 0 | J20: 0 | K20: 0 | L20: 0 | M20: 0 | O20: 0 | P20: 0 | R20: 0 | V20: 0 | W20: 0
A21: 1 | F21: 0 | G21: 0 | I21: 0 | J21: 0 | K21: 0 | L21: 0 | M21: 0 | O21: 0 | P21: 0 | R21: 0 | V21: 0 | W21: 0
A22: 1 | F22: 0 | G22: 0 | I22: 0 | J22: 0 | K22: 0 | L22: 0 | M22: 0 | O22: 0 | P22: 0 | R22: 0 | V22: 0 | W22: 0
A23: 1 | F23: 0 | G23: 0 | I23: 0 | J23: 0 | K23: 0 | L23: 0 | M23: 0 | O23: 0 | P23: 0 | R23: 0 | V23: 0 | W23: 0
A24: 1 | F24: 0 | G24: 0 | I24: 0 | J24: 0 | K24: 0 | L24: 0 | M24: 0 | O24: 0 | P24: 0 | R24: 0 | V24: 0 | W24: 0
A25: 1 | F25: 0 | G25: 0 | I25: 0 | J25: 0 | K25: 0 | L25: 0 | M25: 0 | O25: 0 | P25: 0 | R25: 0 | V25: 0 | W25: 0
A26: 1 | F26: 0 | G26: 0 | I26: 0 | J26: 0 | K26: 0 | L26: 0 | M26: 0 | O26: 0 | P26: 0 | R26: 0 | V26: 0 | W26: 0
A27: 1 | F27: 0 | G27: 0 | I27: 0 | J27: 0 | K27: 0 | L27: 0 | M27: 0 | O27: 0 | P27: 0 | R27: 0 | V27: 0 | W27: 0
A28: 1 | F28: 0 | G28: 0 | I28: 0 | J28: 0 | K28: 0 | L28: 0 | M28: 0 | O28: 0 | P28: 0 | R28: 0 | V28: 0 | W28: 0
A29: 1 | F29: 0 | G29: 0 | I29: 0 | J29: 0 | K29: 0 | L29: 0 | M29: 0 | O29: 0 | P29: 0 | R29: 0 | V29: 0 | W29: 0
A30: 1 | F30: 0 | G30: 0 | I30: 0 | J30: 0 | K30: 0 | L30: 0 | M30: 0 | O30: 0 | P30: 0 | R30: 0 | V30: 0 | W30: 0
A31: 1 | F31: 0 | G31: 0 | I31: 0 | J31: 0 | K31: 0 | L31: 0 | M31: 0 | O31: 0 | P31: 0 | R31: 0 | V31: 0 | W31: 0
A32: 1 | F32: 0 | G32: 0 | I32: 0 | J32: 0 | K32: 0 | L32: 0 | M32: 0 | O32: 0 | P32: 0 | R32: 0 | V32: 0 | W32: 0
A33: 1 | F33: 0 | G33: 0 | I33: 0 | J33: 0 | K33: 0 | L33: 0 | M33: 0 | O33: 0 | P33: 0 | R33: 0 | V33: 0 | W33: 0
A34: 1 | F34: 0 | G34: 0 | I34: 0 | J34: 0 | K34: 0 | L34: 0 | M34: 0 | O34: 0 | P34: 0 | R34: 0 | V34: 0 | W34: 0
A35: 1 | F35: 0 | G35: 0 | I35: 0 | J35: 0 | K35: 0 | L35: 0 | M35: 0 | O35: 0 | P35: 0 | R35: 0 | V35: 0 | W35: 0
A36: 1 | F36: Notes:
A37: 1 | F37: Performance indicators are an explanation of programme and subprogramme performance.
A38: 1 | F38: 1. They are specific measurements that track progress towards achieving the goals and objectives of an institution.
A39: 1 | F39: 2. Institutions should use performance indicators in the 2017 /18 Annual Performance Plans and those in the 2015 ENE.
A40: 1 | F40: 3. Institutions should also indicate instances where targets are not affected by budget baseline reallocation.
A41: 1
A42: 1 | I42: =MyYearM3 -> 2014/15 | J42: =MyYearM2 -> 2015/16 | K42: =MyYearM1 -> 2016/17 | M42: =MyYear0 -> 2017/18 | U42: =MyYearP1 -> 2018/19 | AD42: =MyYearP2 -> 2019/20 | AM42: =MyYearP3 -> 2020/21
A43: 1 | I43: Audited outcome | J43: Audited outcome | K43: Adjusted Appropriation | L43: =IF([4]Settings!A3=2,"Audited outcome","Audited outcome") -> Audited outcome | M43: Voted (Main appropriation) | N43: Adjustments | R43: Adjusted Appropriation | S43: Estimated under / (over) spending | T43: Revised Estimate | U43: Indicative baseline | V43: Indicative baseline reallocation | Y43: Reallocated indicative baseline | Z43: Budget reduction | AA43: Budget increase | AB43: Revised Baseline | AC43: Total change from indicative baseline | AD43: Indicative baseline | AE43: Indicative baseline reallocation | AH43: Reallocated indicative baseline | AI43: Budget reduction | AJ43: Budget increase | AK43: Revised Baseline | AL43: Total change from indicative baseline | AM43: Planning baseline | AN43: Planning baseline reallocation | AQ43: Reallocated planning baseline | AR43: Budget reduction | AS43: Budget increase | AT43: Revised Baseline | AU43: Total change from planning baseline
A44: 1 | V44: Reallocation | X44: Total Indicative baseline reallocation | AE44: Reallocation | AG44: Total indicative baseline Reallocation | AN44: Reallocation | AP44: Total planning baseline Reallocation
A45: 1 | F45: Rand thousand | N45: Roll-overs | O45: Unforeseeable/ unavoidable | P45: Virement | Q45: Other adjustments | V45: From | W45: To | AE45: From | AF45: To | AN45: From | AO45: To
A46: 1 | C46: Name | F46: Subprogrammes
A47: 1 | B47: =IF(LEN(F47)>2,E47,0) -> 1 | C47: =IF(LEN(F47)>2,1,0) -> 1 | E47: 1 | F47: Salary of the President | I47: =IF(AND(B6>=0,B47<>0),OFFSET(I1,(B2*E47)+(B2+65),0),0) -> 2622 | J47: =IF(AND(B6>=0,B47<>0),OFFSET(J1,(B2*E47)+B2+65,0),0) -> 2885 | K47: =IF(AND(B6>=0,B47<>0),OFFSET(K1,(B2*E47)+B2+65,0),0) -> 3274 | L47: =IF(AND(B6>=0,B47<>0),OFFSET(L1,(B2*E47)+B2+65,0),0) -> 3274 | M47: =IF(AND(B6>=0,B47<>0),OFFSET(M1,(B2*E47)+B2+65,0),0) -> 3438 | N47: =IF(AND(B6>=0,B47<>0),OFFSET(N1,(B2*E47)+B2+65,0),0) -> 0 | O47: =IF(AND(B6>=0,B47<>0),OFFSET(O1,(B2*E47)+B2+65,0),0) -> 0 | P47: =IF(AND(B6>=0,B47<>0),OFFSET(P1,(B2*E47)+B2+65,0),0) -> 0 | Q47: =IF(AND(B6>=0,B47<>0),OFFSET(Q1,(B2*E47)+B2+65,0),0) -> 0 | R47: =IF(AND(B6>=0,B47<>0),OFFSET(R1,(B2*E47)+B2+65,0),0) -> 3438 | S47: =IF(AND(B6>=0,B47<>0),OFFSET(S1,(B2*E47)+B2+65,0),0) -> 0 | T47: =IF(AND(B6>=0,B47<>0),OFFSET(T1,(B2*E47)+B2+65,0),0) -> 3438 | U47: =IF(AND(B6>=0,B47<>0),OFFSET(U1,(B2*E47)+B2+65,0),0) -> 3637 | V47: =IF(AND([4]Settings!A3=1,[4]Settings!A5="TRUE"),0,(IF(AND(B6>=0,B47<>0),OFFSET(V1,(B2*E47)+B2+65,0),0))) -> 0 | W47: =IF(AND([4]Settings!A3=1,[4]Settings!A5="TRUE"),0,(IF(AND(B6>=0,B47<>0),OFFSET(W1,(B2*E47)+B2+65,0),0))) -> 0 | X47: =SUM(V47:W47) -> 0 | Y47: =IF(ISERROR(U47+X47),0,U47+X47) -> 3637 | Z47: =IF(AND(B6>=0,B47<>0),OFFSET(Z1,(B2*E47)+B2+65,0),0) -> 0 | AA47: =IF(AND(B6>=0,B47<>0),OFFSET(AA1,(B2*E47)+B2+65,0),0) -> 0 | AB47: =IF(AND(B6>=0,B47<>0),OFFSET(AB1,(B2*E47)+B2+65,0),0) -> 3637 | AC47: =IF(ISERROR(AB47-U47),0,AB47-U47) -> 0 | AD47: =IF(AND(B6>=0,B47<>0),OFFSET(AD1,(B2*E47)+B2+65,0),0) -> 3913 | AE47: =IF(AND([4]Settings!A3=1,[4]Settings!A5="TRUE"),0,(IF(AND(B6>=0,B47<>0),OFFSET(AE1,(B2*E47)+B2+65,0),0))) -> 0 | AF47: =IF(AND([4]Settings!A3=1,[4]Settings!A5="TRUE"),0,(IF(AND(B6>=0,B47<>0),OFFSET(AF1,(B2*E47)+B2+65,0),0))) -> 0 | AG47: =SUM(AE47:AF47) -> 0 | AH47: =IF(ISERROR(AD47+AG47),0,AD47+AG47) -> 3913 | AI47: =IF(AND(B6>=0,B47<>0),OFFSET(AI1,(B2*E47)+B2+65,0),0) -> 0 | AJ47: =IF(AND(B6>=0,B47<>0),OFFSET(AJ1,(B2*E47)+B2+65,0),0) -> 0 | AK47: =IF(AND(B6>=0,B47<>0),OFFSET(AK1,(B2*E47)+B2+65,0),0) -> 3913 | AL47: =IF(ISERROR(AK47-AD47),0,AK47-AD47) -> 0 | AM47: =IF(AND(B6>=0,B47<>0),OFFSET(AM1,(B2*E47)+B2+65,0),0) -> 4206 | AN47: =IF(AND([4]Settings!A3=1,[4]Settings!A5="TRUE"),0,(IF(AND(B6>=0,B47<>0),OFFSET(AN1,(B2*E47)+B2+65,0),0))) -> 0 | AO47: =IF(AND([4]Settings!A3=1,[4]Settings!A5="TRUE"),0,(IF(AND(B6>=0,B47<>0),OFFSET(AO1,(B2*E47)+B2+65,0),0))) -> 0 | AP47: =SUM(AN47:AO47) -> 0 | AQ47: =IF(ISERROR(AM47+AP47),0,AM47+AP47) -> 4206 | AR47: =IF(AND(B6>=0,B47<>0),OFFSET(AR1,(B2*E47)+B2+65,0),0) -> 0 | AS47: =IF(AND(B6>=0,B47<>0),OFFSET(AS1,(B2*E47)+B2+65,0),0) -> 0 | AT47: =IF(AND(B6>=0,B47<>0),OFFSET(AT1,(B2*E47)+B2+65,0),0) -> 4206 | AU47: =IF(ISERROR(AT47-AM47),0,AT47-AM47) -> 0
A48: =IF(B48=0,0,1) -> 1 | B48: 2 | C48: 1 | E48: 2 | F48: Salary of the Deputy President | I48: =IF(AND(B6>=0,B48<>0),OFFSET(I1,(B2*E48)+B2+65,0),0) -> 2208 | J48: =IF(AND(B6>=0,B48<>0),OFFSET(J1,(B2*E48)+B2+65,0),0) -> 2735 | K48: =IF(AND(B6>=0,B48<>0),OFFSET(K1,(B2*E48)+B2+65,0),0) -> 2761 | L48: =IF(AND(B6>=0,B48<>0),OFFSET(L1,(B2*E48)+B2+65,0),0) -> 2761 | M48: =IF(AND(B6>=0,B48<>0),OFFSET(M1,(B2*E48)+B2+65,0),0) -> 2935 | N48: =IF(AND(B6>=0,B48<>0),OFFSET(N1,(B2*E48)+B2+65,0),0) -> 0 | O48: =IF(AND(B6>=0,B48<>0),OFFSET(O1,(B2*E48)+B2+65,0),0) -> 0 | P48: =IF(AND(B6>=0,B48<>0),OFFSET(P1,(B2*E48)+B2+65,0),0) -> 0 | Q48: =IF(AND(B6>=0,B48<>0),OFFSET(Q1,(B2*E48)+B2+65,0),0) -> 0 | R48: =IF(AND(B6>=0,B48<>0),OFFSET(R1,(B2*E48)+B2+65,0),0) -> 2935 | S48: =IF(AND(B6>=0,B48<>0),OFFSET(S1,(B2*E48)+B2+65,0),0) -> 0 | T48: =IF(AND(B6>=0,B48<>0),OFFSET(T1,(B2*E48)+B2+65,0),0) -> 2935 | U48: =IF(AND(B6>=0,B48<>0),OFFSET(U1,(B2*E48)+B2+65,0),0) -> 3105 | V48: =IF(AND([4]Settings!A3=1,[4]Settings!A5="TRUE"),0,(IF(AND(B6>=0,B48<>0),OFFSET(V1,(B2*E48)+B2+65,0),0))) -> 0 | W48: =IF(AND([4]Settings!A3=1,[4]Settings!A5="TRUE"),0,(IF(AND(B6>=0,B48<>0),OFFSET(W1,(B2*E48)+B2+65,0),0))) -> 0 | X48: 0 | Y48: 3105 | Z48: =IF(AND(B6>=0,B48<>0),OFFSET(Z1,(B2*E48)+B2+65,0),0) -> 0 | AA48: =IF(AND(B6>=0,B48<>0),OFFSET(AA1,(B2*E48)+B2+65,0),0) -> 0 | AB48: =IF(AND(B6>=0,B48<>0),OFFSET(AB1,(B2*E48)+B2+65,0),0) -> 3105 | AC48: 0 | AD48: =IF(AND(B6>=0,B48<>0),OFFSET(AD1,(B2*E48)+B2+65,0),0) -> 3341 | AE48: =IF(AND([4]Settings!A3=1,[4]Settings!A5="TRUE"),0,(IF(AND(B6>=0,B48<>0),OFFSET(AE1,(B2*E48)+B2+65,0),0))) -> 0 | AF48: =IF(AND([4]Settings!A3=1,[4]Settings!A5="TRUE"),0,(IF(AND(B6>=0,B48<>0),OFFSET(AF1,(B2*E48)+B2+65,0),0))) -> 0 | AG48: 0 | AH48: 3341 | AI48: =IF(AND(B6>=0,B48<>0),OFFSET(AI1,(B2*E48)+B2+65,0),0) -> 0 | AJ48: =IF(AND(B6>=0,B48<>0),OFFSET(AJ1,(B2*E48)+B2+65,0),0) -> 0 | AK48: =IF(AND(B6>=0,B48<>0),OFFSET(AK1,(B2*E48)+B2+65,0),0) -> 3341 | AL48: 0 | AM48: =IF(AND(B6>=0,B48<>0),OFFSET(AM1,(B2*E48)+B2+65,0),0) -> 0 | AN48: =IF(AND([4]Settings!A3=1,[4]Settings!A5="TRUE"),0,(IF(AND(B6>=0,B48<>0),OFFSET(AN1,(B2*E48)+B2+65,0),0))) -> 0 | AO48: =IF(AND([4]Settings!A3=1,[4]Settings!A5="TRUE"),0,(IF(AND(B6>=0,B48<>0),OFFSET(AO1,(B2*E48)+B2+65,0),0))) -> 0 | AP48: 0 | AQ48: 0 | AR48: =IF(AND(B6>=0,B48<>0),OFFSET(AR1,(B2*E48)+B2+65,0),0) -> 0 | AS48: =IF(AND(B6>=0,B48<>0),OFFSET(AS1,(B2*E48)+B2+65,0),0) -> 0 | AT48: =IF(AND(B6>=0,B48<>0),OFFSET(AT1,(B2*E48)+B2+65,0),0) -> 0 | AU48: 0
A49: 0 | B49: 0 | C49: 0 | E49: 3 | I49: =IF(AND(B6>=0,B49<>0),OFFSET(I1,(B2*E49)+B2+65,0),0) -> 0 | J49: =IF(AND(B6>=0,B49<>0),OFFSET(J1,(B2*E49)+B2+65,0),0) -> 0 | K49: =IF(AND(B6>=0,B49<>0),OFFSET(K1,(B2*E49)+B2+65,0),0) -> 0 | L49: =IF(AND(B6>=0,B49<>0),OFFSET(L1,(B2*E49)+B2+65,0),0) -> 0 | M49: =IF(AND(B6>=0,B49<>0),OFFSET(M1,(B2*E49)+B2+65,0),0) -> 0 | N49: =IF(AND(B6>=0,B49<>0),OFFSET(N1,(B2*E49)+B2+65,0),0) -> 0 | O49: =IF(AND(B6>=0,B49<>0),OFFSET(O1,(B2*E49)+B2+65,0),0) -> 0 | P49: =IF(AND(B6>=0,B49<>0),OFFSET(P1,(B2*E49)+B2+65,0),0) -> 0 | Q49: =IF(AND(B6>=0,B49<>0),OFFSET(Q1,(B2*E49)+B2+65,0),0) -> 0 | R49: =IF(AND(B6>=0,B49<>0),OFFSET(R1,(B2*E49)+B2+65,0),0) -> 0 | S49: =IF(AND(B6>=0,B49<>0),OFFSET(S1,(B2*E49)+B2+65,0),0) -> 0 | T49: =IF(AND(B6>=0,B49<>0),OFFSET(T1,(B2*E49)+B2+65,0),0) -> 0 | U49: =IF(AND(B6>=0,B49<>0),OFFSET(U1,(B2*E49)+B2+65,0),0) -> 0 | V49: =IF(AND([4]Settings!A3=1,[4]Settings!A5="TRUE"),0,(IF(AND(B6>=0,B49<>0),OFFSET(V1,(B2*E49)+B2+65,0),0))) -> 0 | W49: =IF(AND([4]Settings!A3=1,[4]Settings!A5="TRUE"),0,(IF(AND(B6>=0,B49<>0),OFFSET(W1,(B2*E49)+B2+65,0),0))) -> 0 | X49: 0 | Y49: 0 | Z49: =IF(AND(B6>=0,B49<>0),OFFSET(Z1,(B2*E49)+B2+65,0),0) -> 0 | AA49: =IF(AND(B6>=0,B49<>0),OFFSET(AA1,(B2*E49)+B2+65,0),0) -> 0 | AB49: =IF(AND(B6>=0,B49<>0),OFFSET(AB1,(B2*E49)+B2+65,0),0) -> 0 | AC49: 0 | AD49: =IF(AND(B6>=0,B49<>0),OFFSET(AD1,(B2*E49)+B2+65,0),0) -> 0 | AE49: =IF(AND([4]Settings!A3=1,[4]Settings!A5="TRUE"),0,(IF(AND(B6>=0,B49<>0),OFFSET(AE1,(B2*E49)+B2+65,0),0))) -> 0 | AF49: =IF(AND([4]Settings!A3=1,[4]Settings!A5="TRUE"),0,(IF(AND(B6>=0,B49<>0),OFFSET(AF1,(B2*E49)+B2+65,0),0))) -> 0 | AG49: 0 | AH49: 0 | AI49: =IF(AND(B6>=0,B49<>0),OFFSET(AI1,(B2*E49)+B2+65,0),0) -> 0 | AJ49: =IF(AND(B6>=0,B49<>0),OFFSET(AJ1,(B2*E49)+B2+65,0),0) -> 0 | AK49: =IF(AND(B6>=0,B49<>0),OFFSET(AK1,(B2*E49)+B2+65,0),0) -> 0 | AL49: 0 | AM49: =IF(AND(B6>=0,B49<>0),OFFSET(AM1,(B2*E49)+B2+65,0),0) -> 0 | AN49: =IF(AND([4]Settings!A3=1,[4]Settings!A5="TRUE"),0,(IF(AND(B6>=0,B49<>0),OFFSET(AN1,(B2*E49)+B2+65,0),0))) -> 0 | AO49: =IF(AND([4]Settings!A3=1,[4]Settings!A5="TRUE"),0,(IF(AND(B6>=0,B49<>0),OFFSET(AO1,(B2*E49)+B2+65,0),0))) -> 0 | AP49: 0 | AQ49: 0 | AR49: =IF(AND(B6>=0,B49<>0),OFFSET(AR1,(B2*E49)+B2+65,0),0) -> 0 | AS49: =IF(AND(B6>=0,B49<>0),OFFSET(AS1,(B2*E49)+B2+65,0),0) -> 0 | AT49: =IF(AND(B6>=0,B49<>0),OFFSET(AT1,(B2*E49)+B2+65,0),0) -> 0 | AU49: 0
A50: 0 | B50: 0 | C50: 0 | E50: 4 | I50: =IF(AND(B6>=0,B50<>0),OFFSET(I1,(B2*E50)+B2+65,0),0) -> 0 | J50: =IF(AND(B6>=0,B50<>0),OFFSET(J1,(B2*E50)+B2+65,0),0) -> 0 | K50: =IF(AND(B6>=0,B50<>0),OFFSET(K1,(B2*E50)+B2+65,0),0) -> 0 | L50: =IF(AND(B6>=0,B50<>0),OFFSET(L1,(B2*E50)+B2+65,0),0) -> 0 | M50: =IF(AND(B6>=0,B50<>0),OFFSET(M1,(B2*E50)+B2+65,0),0) -> 0 | N50: =IF(AND(B6>=0,B50<>0),OFFSET(N1,(B2*E50)+B2+65,0),0) -> 0 | O50: =IF(AND(B6>=0,B50<>0),OFFSET(O1,(B2*E50)+B2+65,0),0) -> 0 | P50: =IF(AND(B6>=0,B50<>0),OFFSET(P1,(B2*E50)+B2+65,0),0) -> 0 | Q50: =IF(AND(B6>=0,B50<>0),OFFSET(Q1,(B2*E50)+B2+65,0),0) -> 0 | R50: =IF(AND(B6>=0,B50<>0),OFFSET(R1,(B2*E50)+B2+65,0),0) -> 0 | S50: =IF(AND(B6>=0,B50<>0),OFFSET(S1,(B2*E50)+B2+65,0),0) -> 0 | T50: =IF(AND(B6>=0,B50<>0),OFFSET(T1,(B2*E50)+B2+65,0),0) -> 0 | U50: =IF(AND(B6>=0,B50<>0),OFFSET(U1,(B2*E50)+B2+65,0),0) -> 0 | V50: =IF(AND([4]Settings!A3=1,[4]Settings!A5="TRUE"),0,(IF(AND(B6>=0,B50<>0),OFFSET(V1,(B2*E50)+B2+65,0),0))) -> 0 | W50: =IF(AND([4]Settings!A3=1,[4]Settings!A5="TRUE"),0,(IF(AND(B6>=0,B50<>0),OFFSET(W1,(B2*E50)+B2+65,0),0))) -> 0 | X50: 0 | Y50: 0 | Z50: =IF(AND(B6>=0,B50<>0),OFFSET(Z1,(B2*E50)+B2+65,0),0) -> 0 | AA50: =IF(AND(B6>=0,B50<>0),OFFSET(AA1,(B2*E50)+B2+65,0),0) -> 0 | AB50: =IF(AND(B6>=0,B50<>0),OFFSET(AB1,(B2*E50)+B2+65,0),0) -> 0 | AC50: 0 | AD50: =IF(AND(B6>=0,B50<>0),OFFSET(AD1,(B2*E50)+B2+65,0),0) -> 0 | AE50: =IF(AND([4]Settings!A3=1,[4]Settings!A5="TRUE"),0,(IF(AND(B6>=0,B50<>0),OFFSET(AE1,(B2*E50)+B2+65,0),0))) -> 0 | AF50: =IF(AND([4]Settings!A3=1,[4]Settings!A5="TRUE"),0,(IF(AND(B6>=0,B50<>0),OFFSET(AF1,(B2*E50)+B2+65,0),0))) -> 0 | AG50: 0 | AH50: 0 | AI50: =IF(AND(B6>=0,B50<>0),OFFSET(AI1,(B2*E50)+B2+65,0),0) -> 0 | AJ50: =IF(AND(B6>=0,B50<>0),OFFSET(AJ1,(B2*E50)+B2+65,0),0) -> 0 | AK50: =IF(AND(B6>=0,B50<>0),OFFSET(AK1,(B2*E50)+B2+65,0),0) -> 0 | AL50: 0 | AM50: =IF(AND(B6>=0,B50<>0),OFFSET(AM1,(B2*E50)+B2+65,0),0) -> 0 | AN50: =IF(AND([4]Settings!A3=1,[4]Settings!A5="TRUE"),0,(IF(AND(B6>=0,B50<>0),OFFSET(AN1,(B2*E50)+B2+65,0),0))) -> 0 | AO50: =IF(AND([4]Settings!A3=1,[4]Settings!A5="TRUE"),0,(IF(AND(B6>=0,B50<>0),OFFSET(AO1,(B2*E50)+B2+65,0),0))) -> 0 | AP50: 0 | AQ50: 0 | AR50: =IF(AND(B6>=0,B50<>0),OFFSET(AR1,(B2*E50)+B2+65,0),0) -> 0 | AS50: =IF(AND(B6>=0,B50<>0),OFFSET(AS1,(B2*E50)+B2+65,0),0) -> 0 | AT50: =IF(AND(B6>=0,B50<>0),OFFSET(AT1,(B2*E50)+B2+65,0),0) -> 0 | AU50: 0
A51: 0 | B51: 0 | C51: 0 | E51: 5 | I51: =IF(AND(B6>=0,B51<>0),OFFSET(I1,(B2*E51)+B2+65,0),0) -> 0 | J51: =IF(AND(B6>=0,B51<>0),OFFSET(J1,(B2*E51)+B2+65,0),0) -> 0 | K51: =IF(AND(B6>=0,B51<>0),OFFSET(K1,(B2*E51)+B2+65,0),0) -> 0 | L51: =IF(AND(B6>=0,B51<>0),OFFSET(L1,(B2*E51)+B2+65,0),0) -> 0 | M51: =IF(AND(B6>=0,B51<>0),OFFSET(M1,(B2*E51)+B2+65,0),0) -> 0 | N51: =IF(AND(B6>=0,B51<>0),OFFSET(N1,(B2*E51)+B2+65,0),0) -> 0 | O51: =IF(AND(B6>=0,B51<>0),OFFSET(O1,(B2*E51)+B2+65,0),0) -> 0 | P51: =IF(AND(B6>=0,B51<>0),OFFSET(P1,(B2*E51)+B2+65,0),0) -> 0 | Q51: =IF(AND(B6>=0,B51<>0),OFFSET(Q1,(B2*E51)+B2+65,0),0) -> 0 | R51: =IF(AND(B6>=0,B51<>0),OFFSET(R1,(B2*E51)+B2+65,0),0) -> 0 | S51: =IF(AND(B6>=0,B51<>0),OFFSET(S1,(B2*E51)+B2+65,0),0) -> 0 | T51: =IF(AND(B6>=0,B51<>0),OFFSET(T1,(B2*E51)+B2+65,0),0) -> 0 | U51: =IF(AND(B6>=0,B51<>0),OFFSET(U1,(B2*E51)+B2+65,0),0) -> 0 | V51: =IF(AND([4]Settings!A3=1,[4]Settings!A5="TRUE"),0,(IF(AND(B6>=0,B51<>0),OFFSET(V1,(B2*E51)+B2+65,0),0))) -> 0 | W51: =IF(AND([4]Settings!A3=1,[4]Settings!A5="TRUE"),0,(IF(AND(B6>=0,B51<>0),OFFSET(W1,(B2*E51)+B2+65,0),0))) -> 0 | X51: 0 | Y51: 0 | Z51: =IF(AND(B6>=0,B51<>0),OFFSET(Z1,(B2*E51)+B2+65,0),0) -> 0 | AA51: =IF(AND(B6>=0,B51<>0),OFFSET(AA1,(B2*E51)+B2+65,0),0) -> 0 | AB51: =IF(AND(B6>=0,B51<>0),OFFSET(AB1,(B2*E51)+B2+65,0),0) -> 0 | AC51: 0 | AD51: =IF(AND(B6>=0,B51<>0),OFFSET(AD1,(B2*E51)+B2+65,0),0) -> 0 | AE51: =IF(AND([4]Settings!A3=1,[4]Settings!A5="TRUE"),0,(IF(AND(B6>=0,B51<>0),OFFSET(AE1,(B2*E51)+B2+65,0),0))) -> 0 | AF51: =IF(AND([4]Settings!A3=1,[4]Settings!A5="TRUE"),0,(IF(AND(B6>=0,B51<>0),OFFSET(AF1,(B2*E51)+B2+65,0),0))) -> 0 | AG51: 0 | AH51: 0 | AI51: =IF(AND(B6>=0,B51<>0),OFFSET(AI1,(B2*E51)+B2+65,0),0) -> 0 | AJ51: =IF(AND(B6>=0,B51<>0),OFFSET(AJ1,(B2*E51)+B2+65,0),0) -> 0 | AK51: =IF(AND(B6>=0,B51<>0),OFFSET(AK1,(B2*E51)+B2+65,0),0) -> 0 | AL51: 0 | AM51: =IF(AND(B6>=0,B51<>0),OFFSET(AM1,(B2*E51)+B2+65,0),0) -> 0 | AN51: =IF(AND([4]Settings!A3=1,[4]Settings!A5="TRUE"),0,(IF(AND(B6>=0,B51<>0),OFFSET(AN1,(B2*E51)+B2+65,0),0))) -> 0 | AO51: =IF(AND([4]Settings!A3=1,[4]Settings!A5="TRUE"),0,(IF(AND(B6>=0,B51<>0),OFFSET(AO1,(B2*E51)+B2+65,0),0))) -> 0 | AP51: 0 | AQ51: 0 | AR51: =IF(AND(B6>=0,B51<>0),OFFSET(AR1,(B2*E51)+B2+65,0),0) -> 0 | AS51: =IF(AND(B6>=0,B51<>0),OFFSET(AS1,(B2*E51)+B2+65,0),0) -> 0 | AT51: =IF(AND(B6>=0,B51<>0),OFFSET(AT1,(B2*E51)+B2+65,0),0) -> 0 | AU51: 0
A52: 0 | B52: 0 | C52: 0 | E52: 6 | I52: =IF(AND(B6>=0,B52<>0),OFFSET(I1,(B2*E52)+B2+65,0),0) -> 0 | J52: =IF(AND(B6>=0,B52<>0),OFFSET(J1,(B2*E52)+B2+65,0),0) -> 0 | K52: =IF(AND(B6>=0,B52<>0),OFFSET(K1,(B2*E52)+B2+65,0),0) -> 0 | L52: =IF(AND(B6>=0,B52<>0),OFFSET(L1,(B2*E52)+B2+65,0),0) -> 0 | M52: =IF(AND(B6>=0,B52<>0),OFFSET(M1,(B2*E52)+B2+65,0),0) -> 0 | N52: =IF(AND(B6>=0,B52<>0),OFFSET(N1,(B2*E52)+B2+65,0),0) -> 0 | O52: =IF(AND(B6>=0,B52<>0),OFFSET(O1,(B2*E52)+B2+65,0),0) -> 0 | P52: =IF(AND(B6>=0,B52<>0),OFFSET(P1,(B2*E52)+B2+65,0),0) -> 0 | Q52: =IF(AND(B6>=0,B52<>0),OFFSET(Q1,(B2*E52)+B2+65,0),0) -> 0 | R52: =IF(AND(B6>=0,B52<>0),OFFSET(R1,(B2*E52)+B2+65,0),0) -> 0 | S52: =IF(AND(B6>=0,B52<>0),OFFSET(S1,(B2*E52)+B2+65,0),0) -> 0 | T52: =IF(AND(B6>=0,B52<>0),OFFSET(T1,(B2*E52)+B2+65,0),0) -> 0 | U52: =IF(AND(B6>=0,B52<>0),OFFSET(U1,(B2*E52)+B2+65,0),0) -> 0 | V52: =IF(AND([4]Settings!A3=1,[4]Settings!A5="TRUE"),0,(IF(AND(B6>=0,B52<>0),OFFSET(V1,(B2*E52)+B2+65,0),0))) -> 0 | W52: =IF(AND([4]Settings!A3=1,[4]Settings!A5="TRUE"),0,(IF(AND(B6>=0,B52<>0),OFFSET(W1,(B2*E52)+B2+65,0),0))) -> 0 | X52: 0 | Y52: 0 | Z52: =IF(AND(B6>=0,B52<>0),OFFSET(Z1,(B2*E52)+B2+65,0),0) -> 0 | AA52: =IF(AND(B6>=0,B52<>0),OFFSET(AA1,(B2*E52)+B2+65,0),0) -> 0 | AB52: =IF(AND(B6>=0,B52<>0),OFFSET(AB1,(B2*E52)+B2+65,0),0) -> 0 | AC52: 0 | AD52: =IF(AND(B6>=0,B52<>0),OFFSET(AD1,(B2*E52)+B2+65,0),0) -> 0 | AE52: =IF(AND([4]Settings!A3=1,[4]Settings!A5="TRUE"),0,(IF(AND(B6>=0,B52<>0),OFFSET(AE1,(B2*E52)+B2+65,0),0))) -> 0 | AF52: =IF(AND([4]Settings!A3=1,[4]Settings!A5="TRUE"),0,(IF(AND(B6>=0,B52<>0),OFFSET(AF1,(B2*E52)+B2+65,0),0))) -> 0 | AG52: 0 | AH52: 0 | AI52: =IF(AND(B6>=0,B52<>0),OFFSET(AI1,(B2*E52)+B2+65,0),0) -> 0 | AJ52: =IF(AND(B6>=0,B52<>0),OFFSET(AJ1,(B2*E52)+B2+65,0),0) -> 0 | AK52: =IF(AND(B6>=0,B52<>0),OFFSET(AK1,(B2*E52)+B2+65,0),0) -> 0 | AL52: 0 | AM52: =IF(AND(B6>=0,B52<>0),OFFSET(AM1,(B2*E52)+B2+65,0),0) -> 0 | AN52: =IF(AND([4]Settings!A3=1,[4]Settings!A5="TRUE"),0,(IF(AND(B6>=0,B52<>0),OFFSET(AN1,(B2*E52)+B2+65,0),0))) -> 0 | AO52: =IF(AND([4]Settings!A3=1,[4]Settings!A5="TRUE"),0,(IF(AND(B6>=0,B52<>0),OFFSET(AO1,(B2*E52)+B2+65,0),0))) -> 0 | AP52: 0 | AQ52: 0 | AR52: =IF(AND(B6>=0,B52<>0),OFFSET(AR1,(B2*E52)+B2+65,0),0) -> 0 | AS52: =IF(AND(B6>=0,B52<>0),OFFSET(AS1,(B2*E52)+B2+65,0),0) -> 0 | AT52: =IF(AND(B6>=0,B52<>0),OFFSET(AT1,(B2*E52)+B2+65,0),0) -> 0 | AU52: 0
A53: 0 | B53: 0 | C53: 0 | E53: 7 | I53: =IF(AND(B6>=0,B53<>0),OFFSET(I1,(B2*E53)+B2+65,0),0) -> 0 | J53: =IF(AND(B6>=0,B53<>0),OFFSET(J1,(B2*E53)+B2+65,0),0) -> 0 | K53: =IF(AND(B6>=0,B53<>0),OFFSET(K1,(B2*E53)+B2+65,0),0) -> 0 | L53: =IF(AND(B6>=0,B53<>0),OFFSET(L1,(B2*E53)+B2+65,0),0) -> 0 | M53: =IF(AND(B6>=0,B53<>0),OFFSET(M1,(B2*E53)+B2+65,0),0) -> 0 | N53: =IF(AND(B6>=0,B53<>0),OFFSET(N1,(B2*E53)+B2+65,0),0) -> 0 | O53: =IF(AND(B6>=0,B53<>0),OFFSET(O1,(B2*E53)+B2+65,0),0) -> 0 | P53: =IF(AND(B6>=0,B53<>0),OFFSET(P1,(B2*E53)+B2+65,0),0) -> 0 | Q53: =IF(AND(B6>=0,B53<>0),OFFSET(Q1,(B2*E53)+B2+65,0),0) -> 0 | R53: =IF(AND(B6>=0,B53<>0),OFFSET(R1,(B2*E53)+B2+65,0),0) -> 0 | S53: =IF(AND(B6>=0,B53<>0),OFFSET(S1,(B2*E53)+B2+65,0),0) -> 0 | T53: =IF(AND(B6>=0,B53<>0),OFFSET(T1,(B2*E53)+B2+65,0),0) -> 0 | U53: =IF(AND(B6>=0,B53<>0),OFFSET(U1,(B2*E53)+B2+65,0),0) -> 0 | V53: =IF(AND([4]Settings!A3=1,[4]Settings!A5="TRUE"),0,(IF(AND(B6>=0,B53<>0),OFFSET(V1,(B2*E53)+B2+65,0),0))) -> 0 | W53: =IF(AND([4]Settings!A3=1,[4]Settings!A5="TRUE"),0,(IF(AND(B6>=0,B53<>0),OFFSET(W1,(B2*E53)+B2+65,0),0))) -> 0 | X53: 0 | Y53: 0 | Z53: =IF(AND(B6>=0,B53<>0),OFFSET(Z1,(B2*E53)+B2+65,0),0) -> 0 | AA53: =IF(AND(B6>=0,B53<>0),OFFSET(AA1,(B2*E53)+B2+65,0),0) -> 0 | AB53: =IF(AND(B6>=0,B53<>0),OFFSET(AB1,(B2*E53)+B2+65,0),0) -> 0 | AC53: 0 | AD53: =IF(AND(B6>=0,B53<>0),OFFSET(AD1,(B2*E53)+B2+65,0),0) -> 0 | AE53: =IF(AND([4]Settings!A3=1,[4]Settings!A5="TRUE"),0,(IF(AND(B6>=0,B53<>0),OFFSET(AE1,(B2*E53)+B2+65,0),0))) -> 0 | AF53: =IF(AND([4]Settings!A3=1,[4]Settings!A5="TRUE"),0,(IF(AND(B6>=0,B53<>0),OFFSET(AF1,(B2*E53)+B2+65,0),0))) -> 0 | AG53: 0 | AH53: 0 | AI53: =IF(AND(B6>=0,B53<>0),OFFSET(AI1,(B2*E53)+B2+65,0),0) -> 0 | AJ53: =IF(AND(B6>=0,B53<>0),OFFSET(AJ1,(B2*E53)+B2+65,0),0) -> 0 | AK53: =IF(AND(B6>=0,B53<>0),OFFSET(AK1,(B2*E53)+B2+65,0),0) -> 0 | AL53: 0 | AM53: =IF(AND(B6>=0,B53<>0),OFFSET(AM1,(B2*E53)+B2+65,0),0) -> 0 | AN53: =IF(AND([4]Settings!A3=1,[4]Settings!A5="TRUE"),0,(IF(AND(B6>=0,B53<>0),OFFSET(AN1,(B2*E53)+B2+65,0),0))) -> 0 | AO53: =IF(AND([4]Settings!A3=1,[4]Settings!A5="TRUE"),0,(IF(AND(B6>=0,B53<>0),OFFSET(AO1,(B2*E53)+B2+65,0),0))) -> 0 | AP53: 0 | AQ53: 0 | AR53: =IF(AND(B6>=0,B53<>0),OFFSET(AR1,(B2*E53)+B2+65,0),0) -> 0 | AS53: =IF(AND(B6>=0,B53<>0),OFFSET(AS1,(B2*E53)+B2+65,0),0) -> 0 | AT53: =IF(AND(B6>=0,B53<>0),OFFSET(AT1,(B2*E53)+B2+65,0),0) -> 0 | AU53: 0
A54: 0 | B54: 0 | C54: 0 | E54: 8 | I54: =IF(AND(B6>=0,B54<>0),OFFSET(I1,(B2*E54)+B2+65,0),0) -> 0 | J54: =IF(AND(B6>=0,B54<>0),OFFSET(J1,(B2*E54)+B2+65,0),0) -> 0 | K54: =IF(AND(B6>=0,B54<>0),OFFSET(K1,(B2*E54)+B2+65,0),0) -> 0 | L54: =IF(AND(B6>=0,B54<>0),OFFSET(L1,(B2*E54)+B2+65,0),0) -> 0 | M54: =IF(AND(B6>=0,B54<>0),OFFSET(M1,(B2*E54)+B2+65,0),0) -> 0 | N54: =IF(AND(B6>=0,B54<>0),OFFSET(N1,(B2*E54)+B2+65,0),0) -> 0 | O54: =IF(AND(B6>=0,B54<>0),OFFSET(O1,(B2*E54)+B2+65,0),0) -> 0 | P54: =IF(AND(B6>=0,B54<>0),OFFSET(P1,(B2*E54)+B2+65,0),0) -> 0 | Q54: =IF(AND(B6>=0,B54<>0),OFFSET(Q1,(B2*E54)+B2+65,0),0) -> 0 | R54: =IF(AND(B6>=0,B54<>0),OFFSET(R1,(B2*E54)+B2+65,0),0) -> 0 | S54: =IF(AND(B6>=0,B54<>0),OFFSET(S1,(B2*E54)+B2+65,0),0) -> 0 | T54: =IF(AND(B6>=0,B54<>0),OFFSET(T1,(B2*E54)+B2+65,0),0) -> 0 | U54: =IF(AND(B6>=0,B54<>0),OFFSET(U1,(B2*E54)+B2+65,0),0) -> 0 | V54: =IF(AND([4]Settings!A3=1,[4]Settings!A5="TRUE"),0,(IF(AND(B6>=0,B54<>0),OFFSET(V1,(B2*E54)+B2+65,0),0))) -> 0 | W54: =IF(AND([4]Settings!A3=1,[4]Settings!A5="TRUE"),0,(IF(AND(B6>=0,B54<>0),OFFSET(W1,(B2*E54)+B2+65,0),0))) -> 0 | X54: 0 | Y54: 0 | Z54: =IF(AND(B6>=0,B54<>0),OFFSET(Z1,(B2*E54)+B2+65,0),0) -> 0 | AA54: =IF(AND(B6>=0,B54<>0),OFFSET(AA1,(B2*E54)+B2+65,0),0) -> 0 | AB54: =IF(AND(B6>=0,B54<>0),OFFSET(AB1,(B2*E54)+B2+65,0),0) -> 0 | AC54: 0 | AD54: =IF(AND(B6>=0,B54<>0),OFFSET(AD1,(B2*E54)+B2+65,0),0) -> 0 | AE54: =IF(AND([4]Settings!A3=1,[4]Settings!A5="TRUE"),0,(IF(AND(B6>=0,B54<>0),OFFSET(AE1,(B2*E54)+B2+65,0),0))) -> 0 | AF54: =IF(AND([4]Settings!A3=1,[4]Settings!A5="TRUE"),0,(IF(AND(B6>=0,B54<>0),OFFSET(AF1,(B2*E54)+B2+65,0),0))) -> 0 | AG54: 0 | AH54: 0 | AI54: =IF(AND(B6>=0,B54<>0),OFFSET(AI1,(B2*E54)+B2+65,0),0) -> 0 | AJ54: =IF(AND(B6>=0,B54<>0),OFFSET(AJ1,(B2*E54)+B2+65,0),0) -> 0 | AK54: =IF(AND(B6>=0,B54<>0),OFFSET(AK1,(B2*E54)+B2+65,0),0) -> 0 | AL54: 0 | AM54: =IF(AND(B6>=0,B54<>0),OFFSET(AM1,(B2*E54)+B2+65,0),0) -> 0 | AN54: =IF(AND([4]Settings!A3=1,[4]Settings!A5="TRUE"),0,(IF(AND(B6>=0,B54<>0),OFFSET(AN1,(B2*E54)+B2+65,0),0))) -> 0 | AO54: =IF(AND([4]Settings!A3=1,[4]Settings!A5="TRUE"),0,(IF(AND(B6>=0,B54<>0),OFFSET(AO1,(B2*E54)+B2+65,0),0))) -> 0 | AP54: 0 | AQ54: 0 | AR54: =IF(AND(B6>=0,B54<>0),OFFSET(AR1,(B2*E54)+B2+65,0),0) -> 0 | AS54: =IF(AND(B6>=0,B54<>0),OFFSET(AS1,(B2*E54)+B2+65,0),0) -> 0 | AT54: =IF(AND(B6>=0,B54<>0),OFFSET(AT1,(B2*E54)+B2+65,0),0) -> 0 | AU54: 0
A55: 0 | B55: 0 | C55: 0 | E55: 9 | I55: =IF(AND(B6>=0,B55<>0),OFFSET(I1,(B2*E55)+B2+65,0),0) -> 0 | J55: =IF(AND(B6>=0,B55<>0),OFFSET(J1,(B2*E55)+B2+65,0),0) -> 0 | K55: =IF(AND(B6>=0,B55<>0),OFFSET(K1,(B2*E55)+B2+65,0),0) -> 0 | L55: =IF(AND(B6>=0,B55<>0),OFFSET(L1,(B2*E55)+B2+65,0),0) -> 0 | M55: =IF(AND(B6>=0,B55<>0),OFFSET(M1,(B2*E55)+B2+65,0),0) -> 0 | N55: =IF(AND(B6>=0,B55<>0),OFFSET(N1,(B2*E55)+B2+65,0),0) -> 0 | O55: =IF(AND(B6>=0,B55<>0),OFFSET(O1,(B2*E55)+B2+65,0),0) -> 0 | P55: =IF(AND(B6>=0,B55<>0),OFFSET(P1,(B2*E55)+B2+65,0),0) -> 0 | Q55: =IF(AND(B6>=0,B55<>0),OFFSET(Q1,(B2*E55)+B2+65,0),0) -> 0 | R55: =IF(AND(B6>=0,B55<>0),OFFSET(R1,(B2*E55)+B2+65,0),0) -> 0 | S55: =IF(AND(B6>=0,B55<>0),OFFSET(S1,(B2*E55)+B2+65,0),0) -> 0 | T55: =IF(AND(B6>=0,B55<>0),OFFSET(T1,(B2*E55)+B2+65,0),0) -> 0 | U55: =IF(AND(B6>=0,B55<>0),OFFSET(U1,(B2*E55)+B2+65,0),0) -> 0 | V55: =IF(AND([4]Settings!A3=1,[4]Settings!A5="TRUE"),0,(IF(AND(B6>=0,B55<>0),OFFSET(V1,(B2*E55)+B2+65,0),0))) -> 0 | W55: =IF(AND([4]Settings!A3=1,[4]Settings!A5="TRUE"),0,(IF(AND(B6>=0,B55<>0),OFFSET(W1,(B2*E55)+B2+65,0),0))) -> 0 | X55: 0 | Y55: 0 | Z55: =IF(AND(B6>=0,B55<>0),OFFSET(Z1,(B2*E55)+B2+65,0),0) -> 0 | AA55: =IF(AND(B6>=0,B55<>0),OFFSET(AA1,(B2*E55)+B2+65,0),0) -> 0 | AB55: =IF(AND(B6>=0,B55<>0),OFFSET(AB1,(B2*E55)+B2+65,0),0) -> 0 | AC55: 0 | AD55: =IF(AND(B6>=0,B55<>0),OFFSET(AD1,(B2*E55)+B2+65,0),0) -> 0 | AE55: =IF(AND([4]Settings!A3=1,[4]Settings!A5="TRUE"),0,(IF(AND(B6>=0,B55<>0),OFFSET(AE1,(B2*E55)+B2+65,0),0))) -> 0 | AF55: =IF(AND([4]Settings!A3=1,[4]Settings!A5="TRUE"),0,(IF(AND(B6>=0,B55<>0),OFFSET(AF1,(B2*E55)+B2+65,0),0))) -> 0 | AG55: 0 | AH55: 0 | AI55: =IF(AND(B6>=0,B55<>0),OFFSET(AI1,(B2*E55)+B2+65,0),0) -> 0 | AJ55: =IF(AND(B6>=0,B55<>0),OFFSET(AJ1,(B2*E55)+B2+65,0),0) -> 0 | AK55: =IF(AND(B6>=0,B55<>0),OFFSET(AK1,(B2*E55)+B2+65,0),0) -> 0 | AL55: 0 | AM55: =IF(AND(B6>=0,B55<>0),OFFSET(AM1,(B2*E55)+B2+65,0),0) -> 0 | AN55: =IF(AND([4]Settings!A3=1,[4]Settings!A5="TRUE"),0,(IF(AND(B6>=0,B55<>0),OFFSET(AN1,(B2*E55)+B2+65,0),0))) -> 0 | AO55: =IF(AND([4]Settings!A3=1,[4]Settings!A5="TRUE"),0,(IF(AND(B6>=0,B55<>0),OFFSET(AO1,(B2*E55)+B2+65,0),0))) -> 0 | AP55: 0 | AQ55: 0 | AR55: =IF(AND(B6>=0,B55<>0),OFFSET(AR1,(B2*E55)+B2+65,0),0) -> 0 | AS55: =IF(AND(B6>=0,B55<>0),OFFSET(AS1,(B2*E55)+B2+65,0),0) -> 0 | AT55: =IF(AND(B6>=0,B55<>0),OFFSET(AT1,(B2*E55)+B2+65,0),0) -> 0 | AU55: 0
A56: 0 | B56: 0 | C56: 0 | E56: 10 | I56: =IF(AND(B6>=0,B56<>0),OFFSET(I1,(B2*E56)+B2+65,0),0) -> 0 | J56: =IF(AND(B6>=0,B56<>0),OFFSET(J1,(B2*E56)+B2+65,0),0) -> 0 | K56: =IF(AND(B6>=0,B56<>0),OFFSET(K1,(B2*E56)+B2+65,0),0) -> 0 | L56: =IF(AND(B6>=0,B56<>0),OFFSET(L1,(B2*E56)+B2+65,0),0) -> 0 | M56: =IF(AND(B6>=0,B56<>0),OFFSET(M1,(B2*E56)+B2+65,0),0) -> 0 | N56: =IF(AND(B6>=0,B56<>0),OFFSET(N1,(B2*E56)+B2+65,0),0) -> 0 | O56: =IF(AND(B6>=0,B56<>0),OFFSET(O1,(B2*E56)+B2+65,0),0) -> 0 | P56: =IF(AND(B6>=0,B56<>0),OFFSET(P1,(B2*E56)+B2+65,0),0) -> 0 | Q56: =IF(AND(B6>=0,B56<>0),OFFSET(Q1,(B2*E56)+B2+65,0),0) -> 0 | R56: =IF(AND(B6>=0,B56<>0),OFFSET(R1,(B2*E56)+B2+65,0),0) -> 0 | S56: =IF(AND(B6>=0,B56<>0),OFFSET(S1,(B2*E56)+B2+65,0),0) -> 0 | T56: =IF(AND(B6>=0,B56<>0),OFFSET(T1,(B2*E56)+B2+65,0),0) -> 0 | U56: =IF(AND(B6>=0,B56<>0),OFFSET(U1,(B2*E56)+B2+65,0),0) -> 0 | V56: =IF(AND([4]Settings!A3=1,[4]Settings!A5="TRUE"),0,(IF(AND(B6>=0,B56<>0),OFFSET(V1,(B2*E56)+B2+65,0),0))) -> 0 | W56: =IF(AND([4]Settings!A3=1,[4]Settings!A5="TRUE"),0,(IF(AND(B6>=0,B56<>0),OFFSET(W1,(B2*E56)+B2+65,0),0))) -> 0 | X56: 0 | Y56: 0 | Z56: =IF(AND(B6>=0,B56<>0),OFFSET(Z1,(B2*E56)+B2+65,0),0) -> 0 | AA56: =IF(AND(B6>=0,B56<>0),OFFSET(AA1,(B2*E56)+B2+65,0),0) -> 0 | AB56: =IF(AND(B6>=0,B56<>0),OFFSET(AB1,(B2*E56)+B2+65,0),0) -> 0 | AC56: 0 | AD56: =IF(AND(B6>=0,B56<>0),OFFSET(AD1,(B2*E56)+B2+65,0),0) -> 0 | AE56: =IF(AND([4]Settings!A3=1,[4]Settings!A5="TRUE"),0,(IF(AND(B6>=0,B56<>0),OFFSET(AE1,(B2*E56)+B2+65,0),0))) -> 0 | AF56: =IF(AND([4]Settings!A3=1,[4]Settings!A5="TRUE"),0,(IF(AND(B6>=0,B56<>0),OFFSET(AF1,(B2*E56)+B2+65,0),0))) -> 0 | AG56: 0 | AH56: 0 | AI56: =IF(AND(B6>=0,B56<>0),OFFSET(AI1,(B2*E56)+B2+65,0),0) -> 0 | AJ56: =IF(AND(B6>=0,B56<>0),OFFSET(AJ1,(B2*E56)+B2+65,0),0) -> 0 | AK56: =IF(AND(B6>=0,B56<>0),OFFSET(AK1,(B2*E56)+B2+65,0),0) -> 0 | AL56: 0 | AM56: =IF(AND(B6>=0,B56<>0),OFFSET(AM1,(B2*E56)+B2+65,0),0) -> 0 | AN56: =IF(AND([4]Settings!A3=1,[4]Settings!A5="TRUE"),0,(IF(AND(B6>=0,B56<>0),OFFSET(AN1,(B2*E56)+B2+65,0),0))) -> 0 | AO56: =IF(AND([4]Settings!A3=1,[4]Settings!A5="TRUE"),0,(IF(AND(B6>=0,B56<>0),OFFSET(AO1,(B2*E56)+B2+65,0),0))) -> 0 | AP56: 0 | AQ56: 0 | AR56: =IF(AND(B6>=0,B56<>0),OFFSET(AR1,(B2*E56)+B2+65,0),0) -> 0 | AS56: =IF(AND(B6>=0,B56<>0),OFFSET(AS1,(B2*E56)+B2+65,0),0) -> 0 | AT56: =IF(AND(B6>=0,B56<>0),OFFSET(AT1,(B2*E56)+B2+65,0),0) -> 0 | AU56: 0
A57: 0 | B57: 0 | C57: 0 | E57: 11 | I57: =IF(AND(B6>=0,B57<>0),OFFSET(I1,(B2*E57)+B2+65,0),0) -> 0 | J57: =IF(AND(B6>=0,B57<>0),OFFSET(J1,(B2*E57)+B2+65,0),0) -> 0 | K57: =IF(AND(B6>=0,B57<>0),OFFSET(K1,(B2*E57)+B2+65,0),0) -> 0 | L57: =IF(AND(B6>=0,B57<>0),OFFSET(L1,(B2*E57)+B2+65,0),0) -> 0 | M57: =IF(AND(B6>=0,B57<>0),OFFSET(M1,(B2*E57)+B2+65,0),0) -> 0 | N57: =IF(AND(B6>=0,B57<>0),OFFSET(N1,(B2*E57)+B2+65,0),0) -> 0 | O57: =IF(AND(B6>=0,B57<>0),OFFSET(O1,(B2*E57)+B2+65,0),0) -> 0 | P57: =IF(AND(B6>=0,B57<>0),OFFSET(P1,(B2*E57)+B2+65,0),0) -> 0 | Q57: =IF(AND(B6>=0,B57<>0),OFFSET(Q1,(B2*E57)+B2+65,0),0) -> 0 | R57: =IF(AND(B6>=0,B57<>0),OFFSET(R1,(B2*E57)+B2+65,0),0) -> 0 | S57: =IF(AND(B6>=0,B57<>0),OFFSET(S1,(B2*E57)+B2+65,0),0) -> 0 | T57: =IF(AND(B6>=0,B57<>0),OFFSET(T1,(B2*E57)+B2+65,0),0) -> 0 | U57: =IF(AND(B6>=0,B57<>0),OFFSET(U1,(B2*E57)+B2+65,0),0) -> 0 | V57: =IF(AND([4]Settings!A3=1,[4]Settings!A5="TRUE"),0,(IF(AND(B6>=0,B57<>0),OFFSET(V1,(B2*E57)+B2+65,0),0))) -> 0 | W57: =IF(AND([4]Settings!A3=1,[4]Settings!A5="TRUE"),0,(IF(AND(B6>=0,B57<>0),OFFSET(W1,(B2*E57)+B2+65,0),0))) -> 0 | X57: 0 | Y57: 0 | Z57: =IF(AND(B6>=0,B57<>0),OFFSET(Z1,(B2*E57)+B2+65,0),0) -> 0 | AA57: =IF(AND(B6>=0,B57<>0),OFFSET(AA1,(B2*E57)+B2+65,0),0) -> 0 | AB57: =IF(AND(B6>=0,B57<>0),OFFSET(AB1,(B2*E57)+B2+65,0),0) -> 0 | AC57: 0 | AD57: =IF(AND(B6>=0,B57<>0),OFFSET(AD1,(B2*E57)+B2+65,0),0) -> 0 | AE57: =IF(AND([4]Settings!A3=1,[4]Settings!A5="TRUE"),0,(IF(AND(B6>=0,B57<>0),OFFSET(AE1,(B2*E57)+B2+65,0),0))) -> 0 | AF57: =IF(AND([4]Settings!A3=1,[4]Settings!A5="TRUE"),0,(IF(AND(B6>=0,B57<>0),OFFSET(AF1,(B2*E57)+B2+65,0),0))) -> 0 | AG57: 0 | AH57: 0 | AI57: =IF(AND(B6>=0,B57<>0),OFFSET(AI1,(B2*E57)+B2+65,0),0) -> 0 | AJ57: =IF(AND(B6>=0,B57<>0),OFFSET(AJ1,(B2*E57)+B2+65,0),0) -> 0 | AK57: =IF(AND(B6>=0,B57<>0),OFFSET(AK1,(B2*E57)+B2+65,0),0) -> 0 | AL57: 0 | AM57: =IF(AND(B6>=0,B57<>0),OFFSET(AM1,(B2*E57)+B2+65,0),0) -> 0 | AN57: =IF(AND([4]Settings!A3=1,[4]Settings!A5="TRUE"),0,(IF(AND(B6>=0,B57<>0),OFFSET(AN1,(B2*E57)+B2+65,0),0))) -> 0 | AO57: =IF(AND([4]Settings!A3=1,[4]Settings!A5="TRUE"),0,(IF(AND(B6>=0,B57<>0),OFFSET(AO1,(B2*E57)+B2+65,0),0))) -> 0 | AP57: 0 | AQ57: 0 | AR57: =IF(AND(B6>=0,B57<>0),OFFSET(AR1,(B2*E57)+B2+65,0),0) -> 0 | AS57: =IF(AND(B6>=0,B57<>0),OFFSET(AS1,(B2*E57)+B2+65,0),0) -> 0 | AT57: =IF(AND(B6>=0,B57<>0),OFFSET(AT1,(B2*E57)+B2+65,0),0) -> 0 | AU57: 0
A58: 0 | B58: 0 | C58: 0 | E58: 12 | I58: =IF(AND(B6>=0,B58<>0),OFFSET(I1,(B2*E58)+B2+65,0),0) -> 0 | J58: =IF(AND(B6>=0,B58<>0),OFFSET(J1,(B2*E58)+B2+65,0),0) -> 0 | K58: =IF(AND(B6>=0,B58<>0),OFFSET(K1,(B2*E58)+B2+65,0),0) -> 0 | L58: =IF(AND(B6>=0,B58<>0),OFFSET(L1,(B2*E58)+B2+65,0),0) -> 0 | M58: =IF(AND(B6>=0,B58<>0),OFFSET(M1,(B2*E58)+B2+65,0),0) -> 0 | N58: =IF(AND(B6>=0,B58<>0),OFFSET(N1,(B2*E58)+B2+65,0),0) -> 0 | O58: =IF(AND(B6>=0,B58<>0),OFFSET(O1,(B2*E58)+B2+65,0),0) -> 0 | P58: =IF(AND(B6>=0,B58<>0),OFFSET(P1,(B2*E58)+B2+65,0),0) -> 0 | Q58: =IF(AND(B6>=0,B58<>0),OFFSET(Q1,(B2*E58)+B2+65,0),0) -> 0 | R58: =IF(AND(B6>=0,B58<>0),OFFSET(R1,(B2*E58)+B2+65,0),0) -> 0 | S58: =IF(AND(B6>=0,B58<>0),OFFSET(S1,(B2*E58)+B2+65,0),0) -> 0 | T58: =IF(AND(B6>=0,B58<>0),OFFSET(T1,(B2*E58)+B2+65,0),0) -> 0 | U58: =IF(AND(B6>=0,B58<>0),OFFSET(U1,(B2*E58)+B2+65,0),0) -> 0 | V58: =IF(AND([4]Settings!A3=1,[4]Settings!A5="TRUE"),0,(IF(AND(B6>=0,B58<>0),OFFSET(V1,(B2*E58)+B2+65,0),0))) -> 0 | W58: =IF(AND([4]Settings!A3=1,[4]Settings!A5="TRUE"),0,(IF(AND(B6>=0,B58<>0),OFFSET(W1,(B2*E58)+B2+65,0),0))) -> 0 | X58: 0 | Y58: 0 | Z58: =IF(AND(B6>=0,B58<>0),OFFSET(Z1,(B2*E58)+B2+65,0),0) -> 0 | AA58: =IF(AND(B6>=0,B58<>0),OFFSET(AA1,(B2*E58)+B2+65,0),0) -> 0 | AB58: =IF(AND(B6>=0,B58<>0),OFFSET(AB1,(B2*E58)+B2+65,0),0) -> 0 | AC58: 0 | AD58: =IF(AND(B6>=0,B58<>0),OFFSET(AD1,(B2*E58)+B2+65,0),0) -> 0 | AE58: =IF(AND([4]Settings!A3=1,[4]Settings!A5="TRUE"),0,(IF(AND(B6>=0,B58<>0),OFFSET(AE1,(B2*E58)+B2+65,0),0))) -> 0 | AF58: =IF(AND([4]Settings!A3=1,[4]Settings!A5="TRUE"),0,(IF(AND(B6>=0,B58<>0),OFFSET(AF1,(B2*E58)+B2+65,0),0))) -> 0 | AG58: 0 | AH58: 0 | AI58: =IF(AND(B6>=0,B58<>0),OFFSET(AI1,(B2*E58)+B2+65,0),0) -> 0 | AJ58: =IF(AND(B6>=0,B58<>0),OFFSET(AJ1,(B2*E58)+B2+65,0),0) -> 0 | AK58: =IF(AND(B6>=0,B58<>0),OFFSET(AK1,(B2*E58)+B2+65,0),0) -> 0 | AL58: 0 | AM58: =IF(AND(B6>=0,B58<>0),OFFSET(AM1,(B2*E58)+B2+65,0),0) -> 0 | AN58: =IF(AND([4]Settings!A3=1,[4]Settings!A5="TRUE"),0,(IF(AND(B6>=0,B58<>0),OFFSET(AN1,(B2*E58)+B2+65,0),0))) -> 0 | AO58: =IF(AND([4]Settings!A3=1,[4]Settings!A5="TRUE"),0,(IF(AND(B6>=0,B58<>0),OFFSET(AO1,(B2*E58)+B2+65,0),0))) -> 0 | AP58: 0 | AQ58: 0 | AR58: =IF(AND(B6>=0,B58<>0),OFFSET(AR1,(B2*E58)+B2+65,0),0) -> 0 | AS58: =IF(AND(B6>=0,B58<>0),OFFSET(AS1,(B2*E58)+B2+65,0),0) -> 0 | AT58: =IF(AND(B6>=0,B58<>0),OFFSET(AT1,(B2*E58)+B2+65,0),0) -> 0 | AU58: 0
A59: 0 | B59: 0 | C59: 0 | E59: 13 | I59: =IF(AND(B6>=0,B59<>0),OFFSET(I1,(B2*E59)+B2+65,0),0) -> 0 | J59: =IF(AND(B6>=0,B59<>0),OFFSET(J1,(B2*E59)+B2+65,0),0) -> 0 | K59: =IF(AND(B6>=0,B59<>0),OFFSET(K1,(B2*E59)+B2+65,0),0) -> 0 | L59: =IF(AND(B6>=0,B59<>0),OFFSET(L1,(B2*E59)+B2+65,0),0) -> 0 | M59: =IF(AND(B6>=0,B59<>0),OFFSET(M1,(B2*E59)+B2+65,0),0) -> 0 | N59: =IF(AND(B6>=0,B59<>0),OFFSET(N1,(B2*E59)+B2+65,0),0) -> 0 | O59: =IF(AND(B6>=0,B59<>0),OFFSET(O1,(B2*E59)+B2+65,0),0) -> 0 | P59: =IF(AND(B6>=0,B59<>0),OFFSET(P1,(B2*E59)+B2+65,0),0) -> 0 | Q59: =IF(AND(B6>=0,B59<>0),OFFSET(Q1,(B2*E59)+B2+65,0),0) -> 0 | R59: =IF(AND(B6>=0,B59<>0),OFFSET(R1,(B2*E59)+B2+65,0),0) -> 0 | S59: =IF(AND(B6>=0,B59<>0),OFFSET(S1,(B2*E59)+B2+65,0),0) -> 0 | T59: =IF(AND(B6>=0,B59<>0),OFFSET(T1,(B2*E59)+B2+65,0),0) -> 0 | U59: =IF(AND(B6>=0,B59<>0),OFFSET(U1,(B2*E59)+B2+65,0),0) -> 0 | V59: =IF(AND([4]Settings!A3=1,[4]Settings!A5="TRUE"),0,(IF(AND(B6>=0,B59<>0),OFFSET(V1,(B2*E59)+B2+65,0),0))) -> 0 | W59: =IF(AND([4]Settings!A3=1,[4]Settings!A5="TRUE"),0,(IF(AND(B6>=0,B59<>0),OFFSET(W1,(B2*E59)+B2+65,0),0))) -> 0 | X59: 0 | Y59: 0 | Z59: =IF(AND(B6>=0,B59<>0),OFFSET(Z1,(B2*E59)+B2+65,0),0) -> 0 | AA59: =IF(AND(B6>=0,B59<>0),OFFSET(AA1,(B2*E59)+B2+65,0),0) -> 0 | AB59: =IF(AND(B6>=0,B59<>0),OFFSET(AB1,(B2*E59)+B2+65,0),0) -> 0 | AC59: 0 | AD59: =IF(AND(B6>=0,B59<>0),OFFSET(AD1,(B2*E59)+B2+65,0),0) -> 0 | AE59: =IF(AND([4]Settings!A3=1,[4]Settings!A5="TRUE"),0,(IF(AND(B6>=0,B59<>0),OFFSET(AE1,(B2*E59)+B2+65,0),0))) -> 0 | AF59: =IF(AND([4]Settings!A3=1,[4]Settings!A5="TRUE"),0,(IF(AND(B6>=0,B59<>0),OFFSET(AF1,(B2*E59)+B2+65,0),0))) -> 0 | AG59: 0 | AH59: 0 | AI59: =IF(AND(B6>=0,B59<>0),OFFSET(AI1,(B2*E59)+B2+65,0),0) -> 0 | AJ59: =IF(AND(B6>=0,B59<>0),OFFSET(AJ1,(B2*E59)+B2+65,0),0) -> 0 | AK59: =IF(AND(B6>=0,B59<>0),OFFSET(AK1,(B2*E59)+B2+65,0),0) -> 0 | AL59: 0 | AM59: =IF(AND(B6>=0,B59<>0),OFFSET(AM1,(B2*E59)+B2+65,0),0) -> 0 | AN59: =IF(AND([4]Settings!A3=1,[4]Settings!A5="TRUE"),0,(IF(AND(B6>=0,B59<>0),OFFSET(AN1,(B2*E59)+B2+65,0),0))) -> 0 | AO59: =IF(AND([4]Settings!A3=1,[4]Settings!A5="TRUE"),0,(IF(AND(B6>=0,B59<>0),OFFSET(AO1,(B2*E59)+B2+65,0),0))) -> 0 | AP59: 0 | AQ59: 0 | AR59: =IF(AND(B6>=0,B59<>0),OFFSET(AR1,(B2*E59)+B2+65,0),0) -> 0 | AS59: =IF(AND(B6>=0,B59<>0),OFFSET(AS1,(B2*E59)+B2+65,0),0) -> 0 | AT59: =IF(AND(B6>=0,B59<>0),OFFSET(AT1,(B2*E59)+B2+65,0),0) -> 0 | AU59: 0
A60: 0 | B60: 0 | C60: 0 | E60: 14 | I60: =IF(AND(B6>=0,B60<>0),OFFSET(I1,(B2*E60)+B2+65,0),0) -> 0 | J60: =IF(AND(B6>=0,B60<>0),OFFSET(J1,(B2*E60)+B2+65,0),0) -> 0 | K60: =IF(AND(B6>=0,B60<>0),OFFSET(K1,(B2*E60)+B2+65,0),0) -> 0 | L60: =IF(AND(B6>=0,B60<>0),OFFSET(L1,(B2*E60)+B2+65,0),0) -> 0 | M60: =IF(AND(B6>=0,B60<>0),OFFSET(M1,(B2*E60)+B2+65,0),0) -> 0 | N60: =IF(AND(B6>=0,B60<>0),OFFSET(N1,(B2*E60)+B2+65,0),0) -> 0 | O60: =IF(AND(B6>=0,B60<>0),OFFSET(O1,(B2*E60)+B2+65,0),0) -> 0 | P60: =IF(AND(B6>=0,B60<>0),OFFSET(P1,(B2*E60)+B2+65,0),0) -> 0 | Q60: =IF(AND(B6>=0,B60<>0),OFFSET(Q1,(B2*E60)+B2+65,0),0) -> 0 | R60: =IF(AND(B6>=0,B60<>0),OFFSET(R1,(B2*E60)+B2+65,0),0) -> 0 | S60: =IF(AND(B6>=0,B60<>0),OFFSET(S1,(B2*E60)+B2+65,0),0) -> 0 | T60: =IF(AND(B6>=0,B60<>0),OFFSET(T1,(B2*E60)+B2+65,0),0) -> 0 | U60: =IF(AND(B6>=0,B60<>0),OFFSET(U1,(B2*E60)+B2+65,0),0) -> 0 | V60: =IF(AND([4]Settings!A3=1,[4]Settings!A5="TRUE"),0,(IF(AND(B6>=0,B60<>0),OFFSET(V1,(B2*E60)+B2+65,0),0))) -> 0 | W60: =IF(AND([4]Settings!A3=1,[4]Settings!A5="TRUE"),0,(IF(AND(B6>=0,B60<>0),OFFSET(W1,(B2*E60)+B2+65,0),0))) -> 0 | X60: 0 | Y60: 0 | Z60: =IF(AND(B6>=0,B60<>0),OFFSET(Z1,(B2*E60)+B2+65,0),0) -> 0 | AA60: =IF(AND(B6>=0,B60<>0),OFFSET(AA1,(B2*E60)+B2+65,0),0) -> 0 | AB60: =IF(AND(B6>=0,B60<>0),OFFSET(AB1,(B2*E60)+B2+65,0),0) -> 0 | AC60: 0 | AD60: =IF(AND(B6>=0,B60<>0),OFFSET(AD1,(B2*E60)+B2+65,0),0) -> 0 | AE60: =IF(AND([4]Settings!A3=1,[4]Settings!A5="TRUE"),0,(IF(AND(B6>=0,B60<>0),OFFSET(AE1,(B2*E60)+B2+65,0),0))) -> 0 | AF60: =IF(AND([4]Settings!A3=1,[4]Settings!A5="TRUE"),0,(IF(AND(B6>=0,B60<>0),OFFSET(AF1,(B2*E60)+B2+65,0),0))) -> 0 | AG60: 0 | AH60: 0 | AI60: =IF(AND(B6>=0,B60<>0),OFFSET(AI1,(B2*E60)+B2+65,0),0) -> 0 | AJ60: =IF(AND(B6>=0,B60<>0),OFFSET(AJ1,(B2*E60)+B2+65,0),0) -> 0 | AK60: =IF(AND(B6>=0,B60<>0),OFFSET(AK1,(B2*E60)+B2+65,0),0) -> 0 | AL60: 0 | AM60: =IF(AND(B6>=0,B60<>0),OFFSET(AM1,(B2*E60)+B2+65,0),0) -> 0 | AN60: =IF(AND([4]Settings!A3=1,[4]Settings!A5="TRUE"),0,(IF(AND(B6>=0,B60<>0),OFFSET(AN1,(B2*E60)+B2+65,0),0))) -> 0 | AO60: =IF(AND([4]Settings!A3=1,[4]Settings!A5="TRUE"),0,(IF(AND(B6>=0,B60<>0),OFFSET(AO1,(B2*E60)+B2+65,0),0))) -> 0 | AP60: 0 | AQ60: 0 | AR60: =IF(AND(B6>=0,B60<>0),OFFSET(AR1,(B2*E60)+B2+65,0),0) -> 0 | AS60: =IF(AND(B6>=0,B60<>0),OFFSET(AS1,(B2*E60)+B2+65,0),0) -> 0 | AT60: =IF(AND(B6>=0,B60<>0),OFFSET(AT1,(B2*E60)+B2+65,0),0) -> 0 | AU60: 0
A61: 0 | B61: 0 | C61: 0 | E61: 15 | I61: =IF(AND(B6>=0,B61<>0),OFFSET(I1,(B2*E61)+B2+65,0),0) -> 0 | J61: =IF(AND(B6>=0,B61<>0),OFFSET(J1,(B2*E61)+B2+65,0),0) -> 0 | K61: =IF(AND(B6>=0,B61<>0),OFFSET(K1,(B2*E61)+B2+65,0),0) -> 0 | L61: =IF(AND(B6>=0,B61<>0),OFFSET(L1,(B2*E61)+B2+65,0),0) -> 0 | M61: =IF(AND(B6>=0,B61<>0),OFFSET(M1,(B2*E61)+B2+65,0),0) -> 0 | N61: =IF(AND(B6>=0,B61<>0),OFFSET(N1,(B2*E61)+B2+65,0),0) -> 0 | O61: =IF(AND(B6>=0,B61<>0),OFFSET(O1,(B2*E61)+B2+65,0),0) -> 0 | P61: =IF(AND(B6>=0,B61<>0),OFFSET(P1,(B2*E61)+B2+65,0),0) -> 0 | Q61: =IF(AND(B6>=0,B61<>0),OFFSET(Q1,(B2*E61)+B2+65,0),0) -> 0 | R61: =IF(AND(B6>=0,B61<>0),OFFSET(R1,(B2*E61)+B2+65,0),0) -> 0 | S61: =IF(AND(B6>=0,B61<>0),OFFSET(S1,(B2*E61)+B2+65,0),0) -> 0 | T61: =IF(AND(B6>=0,B61<>0),OFFSET(T1,(B2*E61)+B2+65,0),0) -> 0 | U61: =IF(AND(B6>=0,B61<>0),OFFSET(U1,(B2*E61)+B2+65,0),0) -> 0 | V61: =IF(AND([4]Settings!A3=1,[4]Settings!A5="TRUE"),0,(IF(AND(B6>=0,B61<>0),OFFSET(V1,(B2*E61)+B2+65,0),0))) -> 0 | W61: =IF(AND([4]Settings!A3=1,[4]Settings!A5="TRUE"),0,(IF(AND(B6>=0,B61<>0),OFFSET(W1,(B2*E61)+B2+65,0),0))) -> 0 | X61: 0 | Y61: 0 | Z61: =IF(AND(B6>=0,B61<>0),OFFSET(Z1,(B2*E61)+B2+65,0),0) -> 0 | AA61: =IF(AND(B6>=0,B61<>0),OFFSET(AA1,(B2*E61)+B2+65,0),0) -> 0 | AB61: =IF(AND(B6>=0,B61<>0),OFFSET(AB1,(B2*E61)+B2+65,0),0) -> 0 | AC61: 0 | AD61: =IF(AND(B6>=0,B61<>0),OFFSET(AD1,(B2*E61)+B2+65,0),0) -> 0 | AE61: =IF(AND([4]Settings!A3=1,[4]Settings!A5="TRUE"),0,(IF(AND(B6>=0,B61<>0),OFFSET(AE1,(B2*E61)+B2+65,0),0))) -> 0 | AF61: =IF(AND([4]Settings!A3=1,[4]Settings!A5="TRUE"),0,(IF(AND(B6>=0,B61<>0),OFFSET(AF1,(B2*E61)+B2+65,0),0))) -> 0 | AG61: 0 | AH61: 0 | AI61: =IF(AND(B6>=0,B61<>0),OFFSET(AI1,(B2*E61)+B2+65,0),0) -> 0 | AJ61: =IF(AND(B6>=0,B61<>0),OFFSET(AJ1,(B2*E61)+B2+65,0),0) -> 0 | AK61: =IF(AND(B6>=0,B61<>0),OFFSET(AK1,(B2*E61)+B2+65,0),0) -> 0 | AL61: 0 | AM61: =IF(AND(B6>=0,B61<>0),OFFSET(AM1,(B2*E61)+B2+65,0),0) -> 0 | AN61: =IF(AND([4]Settings!A3=1,[4]Settings!A5="TRUE"),0,(IF(AND(B6>=0,B61<>0),OFFSET(AN1,(B2*E61)+B2+65,0),0))) -> 0 | AO61: =IF(AND([4]Settings!A3=1,[4]Settings!A5="TRUE"),0,(IF(AND(B6>=0,B61<>0),OFFSET(AO1,(B2*E61)+B2+65,0),0))) -> 0 | AP61: 0 | AQ61: 0 | AR61: =IF(AND(B6>=0,B61<>0),OFFSET(AR1,(B2*E61)+B2+65,0),0) -> 0 | AS61: =IF(AND(B6>=0,B61<>0),OFFSET(AS1,(B2*E61)+B2+65,0),0) -> 0 | AT61: =IF(AND(B6>=0,B61<>0),OFFSET(AT1,(B2*E61)+B2+65,0),0) -> 0 | AU61: 0
A62: 0 | B62: 0 | C62: 0 | E62: 16 | I62: =IF(AND(B6>=0,B62<>0),OFFSET(I1,(B2*E62)+B2+65,0),0) -> 0 | J62: =IF(AND(B6>=0,B62<>0),OFFSET(J1,(B2*E62)+B2+65,0),0) -> 0 | K62: =IF(AND(B6>=0,B62<>0),OFFSET(K1,(B2*E62)+B2+65,0),0) -> 0 | L62: =IF(AND(B6>=0,B62<>0),OFFSET(L1,(B2*E62)+B2+65,0),0) -> 0 | M62: =IF(AND(B6>=0,B62<>0),OFFSET(M1,(B2*E62)+B2+65,0),0) -> 0 | N62: =IF(AND(B6>=0,B62<>0),OFFSET(N1,(B2*E62)+B2+65,0),0) -> 0 | O62: =IF(AND(B6>=0,B62<>0),OFFSET(O1,(B2*E62)+B2+65,0),0) -> 0 | P62: =IF(AND(B6>=0,B62<>0),OFFSET(P1,(B2*E62)+B2+65,0),0) -> 0 | Q62: =IF(AND(B6>=0,B62<>0),OFFSET(Q1,(B2*E62)+B2+65,0),0) -> 0 | R62: =IF(AND(B6>=0,B62<>0),OFFSET(R1,(B2*E62)+B2+65,0),0) -> 0 | S62: =IF(AND(B6>=0,B62<>0),OFFSET(S1,(B2*E62)+B2+65,0),0) -> 0 | T62: =IF(AND(B6>=0,B62<>0),OFFSET(T1,(B2*E62)+B2+65,0),0) -> 0 | U62: =IF(AND(B6>=0,B62<>0),OFFSET(U1,(B2*E62)+B2+65,0),0) -> 0 | V62: =IF(AND([4]Settings!A3=1,[4]Settings!A5="TRUE"),0,(IF(AND(B6>=0,B62<>0),OFFSET(V1,(B2*E62)+B2+65,0),0))) -> 0 | W62: =IF(AND([4]Settings!A3=1,[4]Settings!A5="TRUE"),0,(IF(AND(B6>=0,B62<>0),OFFSET(W1,(B2*E62)+B2+65,0),0))) -> 0 | X62: 0 | Y62: 0 | Z62: =IF(AND(B6>=0,B62<>0),OFFSET(Z1,(B2*E62)+B2+65,0),0) -> 0 | AA62: =IF(AND(B6>=0,B62<>0),OFFSET(AA1,(B2*E62)+B2+65,0),0) -> 0 | AB62: =IF(AND(B6>=0,B62<>0),OFFSET(AB1,(B2*E62)+B2+65,0),0) -> 0 | AC62: 0 | AD62: =IF(AND(B6>=0,B62<>0),OFFSET(AD1,(B2*E62)+B2+65,0),0) -> 0 | AE62: =IF(AND([4]Settings!A3=1,[4]Settings!A5="TRUE"),0,(IF(AND(B6>=0,B62<>0),OFFSET(AE1,(B2*E62)+B2+65,0),0))) -> 0 | AF62: =IF(AND([4]Settings!A3=1,[4]Settings!A5="TRUE"),0,(IF(AND(B6>=0,B62<>0),OFFSET(AF1,(B2*E62)+B2+65,0),0))) -> 0 | AG62: 0 | AH62: 0 | AI62: =IF(AND(B6>=0,B62<>0),OFFSET(AI1,(B2*E62)+B2+65,0),0) -> 0 | AJ62: =IF(AND(B6>=0,B62<>0),OFFSET(AJ1,(B2*E62)+B2+65,0),0) -> 0 | AK62: =IF(AND(B6>=0,B62<>0),OFFSET(AK1,(B2*E62)+B2+65,0),0) -> 0 | AL62: 0 | AM62: =IF(AND(B6>=0,B62<>0),OFFSET(AM1,(B2*E62)+B2+65,0),0) -> 0 | AN62: =IF(AND([4]Settings!A3=1,[4]Settings!A5="TRUE"),0,(IF(AND(B6>=0,B62<>0),OFFSET(AN1,(B2*E62)+B2+65,0),0))) -> 0 | AO62: =IF(AND([4]Settings!A3=1,[4]Settings!A5="TRUE"),0,(IF(AND(B6>=0,B62<>0),OFFSET(AO1,(B2*E62)+B2+65,0),0))) -> 0 | AP62: 0 | AQ62: 0 | AR62: =IF(AND(B6>=0,B62<>0),OFFSET(AR1,(B2*E62)+B2+65,0),0) -> 0 | AS62: =IF(AND(B6>=0,B62<>0),OFFSET(AS1,(B2*E62)+B2+65,0),0) -> 0 | AT62: =IF(AND(B6>=0,B62<>0),OFFSET(AT1,(B2*E62)+B2+65,0),0) -> 0 | AU62: 0
A63: 0 | B63: 0 | C63: 0 | E63: 17 | I63: =IF(AND(B6>=0,B63<>0),OFFSET(I1,(B2*E63)+B2+65,0),0) -> 0 | J63: =IF(AND(B6>=0,B63<>0),OFFSET(J1,(B2*E63)+B2+65,0),0) -> 0 | K63: =IF(AND(B6>=0,B63<>0),OFFSET(K1,(B2*E63)+B2+65,0),0) -> 0 | L63: =IF(AND(B6>=0,B63<>0),OFFSET(L1,(B2*E63)+B2+65,0),0) -> 0 | M63: =IF(AND(B6>=0,B63<>0),OFFSET(M1,(B2*E63)+B2+65,0),0) -> 0 | N63: =IF(AND(B6>=0,B63<>0),OFFSET(N1,(B2*E63)+B2+65,0),0) -> 0 | O63: =IF(AND(B6>=0,B63<>0),OFFSET(O1,(B2*E63)+B2+65,0),0) -> 0 | P63: =IF(AND(B6>=0,B63<>0),OFFSET(P1,(B2*E63)+B2+65,0),0) -> 0 | Q63: =IF(AND(B6>=0,B63<>0),OFFSET(Q1,(B2*E63)+B2+65,0),0) -> 0 | R63: =IF(AND(B6>=0,B63<>0),OFFSET(R1,(B2*E63)+B2+65,0),0) -> 0 | S63: =IF(AND(B6>=0,B63<>0),OFFSET(S1,(B2*E63)+B2+65,0),0) -> 0 | T63: =IF(AND(B6>=0,B63<>0),OFFSET(T1,(B2*E63)+B2+65,0),0) -> 0 | U63: =IF(AND(B6>=0,B63<>0),OFFSET(U1,(B2*E63)+B2+65,0),0) -> 0 | V63: =IF(AND([4]Settings!A3=1,[4]Settings!A5="TRUE"),0,(IF(AND(B6>=0,B63<>0),OFFSET(V1,(B2*E63)+B2+65,0),0))) -> 0 | W63: =IF(AND([4]Settings!A3=1,[4]Settings!A5="TRUE"),0,(IF(AND(B6>=0,B63<>0),OFFSET(W1,(B2*E63)+B2+65,0),0))) -> 0 | X63: 0 | Y63: 0 | Z63: =IF(AND(B6>=0,B63<>0),OFFSET(Z1,(B2*E63)+B2+65,0),0) -> 0 | AA63: =IF(AND(B6>=0,B63<>0),OFFSET(AA1,(B2*E63)+B2+65,0),0) -> 0 | AB63: =IF(AND(B6>=0,B63<>0),OFFSET(AB1,(B2*E63)+B2+65,0),0) -> 0 | AC63: 0 | AD63: =IF(AND(B6>=0,B63<>0),OFFSET(AD1,(B2*E63)+B2+65,0),0) -> 0 | AE63: =IF(AND([4]Settings!A3=1,[4]Settings!A5="TRUE"),0,(IF(AND(B6>=0,B63<>0),OFFSET(AE1,(B2*E63)+B2+65,0),0))) -> 0 | AF63: =IF(AND([4]Settings!A3=1,[4]Settings!A5="TRUE"),0,(IF(AND(B6>=0,B63<>0),OFFSET(AF1,(B2*E63)+B2+65,0),0))) -> 0 | AG63: 0 | AH63: 0 | AI63: =IF(AND(B6>=0,B63<>0),OFFSET(AI1,(B2*E63)+B2+65,0),0) -> 0 | AJ63: =IF(AND(B6>=0,B63<>0),OFFSET(AJ1,(B2*E63)+B2+65,0),0) -> 0 | AK63: =IF(AND(B6>=0,B63<>0),OFFSET(AK1,(B2*E63)+B2+65,0),0) -> 0 | AL63: 0 | AM63: =IF(AND(B6>=0,B63<>0),OFFSET(AM1,(B2*E63)+B2+65,0),0) -> 0 | AN63: =IF(AND([4]Settings!A3=1,[4]Settings!A5="TRUE"),0,(IF(AND(B6>=0,B63<>0),OFFSET(AN1,(B2*E63)+B2+65,0),0))) -> 0 | AO63: =IF(AND([4]Settings!A3=1,[4]Settings!A5="TRUE"),0,(IF(AND(B6>=0,B63<>0),OFFSET(AO1,(B2*E63)+B2+65,0),0))) -> 0 | AP63: 0 | AQ63: 0 | AR63: =IF(AND(B6>=0,B63<>0),OFFSET(AR1,(B2*E63)+B2+65,0),0) -> 0 | AS63: =IF(AND(B6>=0,B63<>0),OFFSET(AS1,(B2*E63)+B2+65,0),0) -> 0 | AT63: =IF(AND(B6>=0,B63<>0),OFFSET(AT1,(B2*E63)+B2+65,0),0) -> 0 | AU63: 0
A64: 0 | B64: 0 | C64: 0 | E64: 18 | I64: =IF(AND(B6>=0,B64<>0),OFFSET(I1,(B2*E64)+B2+65,0),0) -> 0 | J64: =IF(AND(B6>=0,B64<>0),OFFSET(J1,(B2*E64)+B2+65,0),0) -> 0 | K64: =IF(AND(B6>=0,B64<>0),OFFSET(K1,(B2*E64)+B2+65,0),0) -> 0 | L64: =IF(AND(B6>=0,B64<>0),OFFSET(L1,(B2*E64)+B2+65,0),0) -> 0 | M64: =IF(AND(B6>=0,B64<>0),OFFSET(M1,(B2*E64)+B2+65,0),0) -> 0 | N64: =IF(AND(B6>=0,B64<>0),OFFSET(N1,(B2*E64)+B2+65,0),0) -> 0 | O64: =IF(AND(B6>=0,B64<>0),OFFSET(O1,(B2*E64)+B2+65,0),0) -> 0 | P64: =IF(AND(B6>=0,B64<>0),OFFSET(P1,(B2*E64)+B2+65,0),0) -> 0 | Q64: =IF(AND(B6>=0,B64<>0),OFFSET(Q1,(B2*E64)+B2+65,0),0) -> 0 | R64: =IF(AND(B6>=0,B64<>0),OFFSET(R1,(B2*E64)+B2+65,0),0) -> 0 | S64: =IF(AND(B6>=0,B64<>0),OFFSET(S1,(B2*E64)+B2+65,0),0) -> 0 | T64: =IF(AND(B6>=0,B64<>0),OFFSET(T1,(B2*E64)+B2+65,0),0) -> 0 | U64: =IF(AND(B6>=0,B64<>0),OFFSET(U1,(B2*E64)+B2+65,0),0) -> 0 | V64: =IF(AND([4]Settings!A3=1,[4]Settings!A5="TRUE"),0,(IF(AND(B6>=0,B64<>0),OFFSET(V1,(B2*E64)+B2+65,0),0))) -> 0 | W64: =IF(AND([4]Settings!A3=1,[4]Settings!A5="TRUE"),0,(IF(AND(B6>=0,B64<>0),OFFSET(W1,(B2*E64)+B2+65,0),0))) -> 0 | X64: 0 | Y64: 0 | Z64: =IF(AND(B6>=0,B64<>0),OFFSET(Z1,(B2*E64)+B2+65,0),0) -> 0 | AA64: =IF(AND(B6>=0,B64<>0),OFFSET(AA1,(B2*E64)+B2+65,0),0) -> 0 | AB64: =IF(AND(B6>=0,B64<>0),OFFSET(AB1,(B2*E64)+B2+65,0),0) -> 0 | AC64: 0 | AD64: =IF(AND(B6>=0,B64<>0),OFFSET(AD1,(B2*E64)+B2+65,0),0) -> 0 | AE64: =IF(AND([4]Settings!A3=1,[4]Settings!A5="TRUE"),0,(IF(AND(B6>=0,B64<>0),OFFSET(AE1,(B2*E64)+B2+65,0),0))) -> 0 | AF64: =IF(AND([4]Settings!A3=1,[4]Settings!A5="TRUE"),0,(IF(AND(B6>=0,B64<>0),OFFSET(AF1,(B2*E64)+B2+65,0),0))) -> 0 | AG64: 0 | AH64: 0 | AI64: =IF(AND(B6>=0,B64<>0),OFFSET(AI1,(B2*E64)+B2+65,0),0) -> 0 | AJ64: =IF(AND(B6>=0,B64<>0),OFFSET(AJ1,(B2*E64)+B2+65,0),0) -> 0 | AK64: =IF(AND(B6>=0,B64<>0),OFFSET(AK1,(B2*E64)+B2+65,0),0) -> 0 | AL64: 0 | AM64: =IF(AND(B6>=0,B64<>0),OFFSET(AM1,(B2*E64)+B2+65,0),0) -> 0 | AN64: =IF(AND([4]Settings!A3=1,[4]Settings!A5="TRUE"),0,(IF(AND(B6>=0,B64<>0),OFFSET(AN1,(B2*E64)+B2+65,0),0))) -> 0 | AO64: =IF(AND([4]Settings!A3=1,[4]Settings!A5="TRUE"),0,(IF(AND(B6>=0,B64<>0),OFFSET(AO1,(B2*E64)+B2+65,0),0))) -> 0 | AP64: 0 | AQ64: 0 | AR64: =IF(AND(B6>=0,B64<>0),OFFSET(AR1,(B2*E64)+B2+65,0),0) -> 0 | AS64: =IF(AND(B6>=0,B64<>0),OFFSET(AS1,(B2*E64)+B2+65,0),0) -> 0 | AT64: =IF(AND(B6>=0,B64<>0),OFFSET(AT1,(B2*E64)+B2+65,0),0) -> 0 | AU64: 0
A65: 0 | B65: 0 | C65: 0 | E65: 19 | I65: =IF(AND(B6>=0,B65<>0),OFFSET(I1,(B2*E65)+B2+65,0),0) -> 0 | J65: =IF(AND(B6>=0,B65<>0),OFFSET(J1,(B2*E65)+B2+65,0),0) -> 0 | K65: =IF(AND(B6>=0,B65<>0),OFFSET(K1,(B2*E65)+B2+65,0),0) -> 0 | L65: =IF(AND(B6>=0,B65<>0),OFFSET(L1,(B2*E65)+B2+65,0),0) -> 0 | M65: =IF(AND(B6>=0,B65<>0),OFFSET(M1,(B2*E65)+B2+65,0),0) -> 0 | N65: =IF(AND(B6>=0,B65<>0),OFFSET(N1,(B2*E65)+B2+65,0),0) -> 0 | O65: =IF(AND(B6>=0,B65<>0),OFFSET(O1,(B2*E65)+B2+65,0),0) -> 0 | P65: =IF(AND(B6>=0,B65<>0),OFFSET(P1,(B2*E65)+B2+65,0),0) -> 0 | Q65: =IF(AND(B6>=0,B65<>0),OFFSET(Q1,(B2*E65)+B2+65,0),0) -> 0 | R65: =IF(AND(B6>=0,B65<>0),OFFSET(R1,(B2*E65)+B2+65,0),0) -> 0 | S65: =IF(AND(B6>=0,B65<>0),OFFSET(S1,(B2*E65)+B2+65,0),0) -> 0 | T65: =IF(AND(B6>=0,B65<>0),OFFSET(T1,(B2*E65)+B2+65,0),0) -> 0 | U65: =IF(AND(B6>=0,B65<>0),OFFSET(U1,(B2*E65)+B2+65,0),0) -> 0 | V65: =IF(AND([4]Settings!A3=1,[4]Settings!A5="TRUE"),0,(IF(AND(B6>=0,B65<>0),OFFSET(V1,(B2*E65)+B2+65,0),0))) -> 0 | W65: =IF(AND([4]Settings!A3=1,[4]Settings!A5="TRUE"),0,(IF(AND(B6>=0,B65<>0),OFFSET(W1,(B2*E65)+B2+65,0),0))) -> 0 | X65: 0 | Y65: 0 | Z65: =IF(AND(B6>=0,B65<>0),OFFSET(Z1,(B2*E65)+B2+65,0),0) -> 0 | AA65: =IF(AND(B6>=0,B65<>0),OFFSET(AA1,(B2*E65)+B2+65,0),0) -> 0 | AB65: =IF(AND(B6>=0,B65<>0),OFFSET(AB1,(B2*E65)+B2+65,0),0) -> 0 | AC65: 0 | AD65: =IF(AND(B6>=0,B65<>0),OFFSET(AD1,(B2*E65)+B2+65,0),0) -> 0 | AE65: =IF(AND([4]Settings!A3=1,[4]Settings!A5="TRUE"),0,(IF(AND(B6>=0,B65<>0),OFFSET(AE1,(B2*E65)+B2+65,0),0))) -> 0 | AF65: =IF(AND([4]Settings!A3=1,[4]Settings!A5="TRUE"),0,(IF(AND(B6>=0,B65<>0),OFFSET(AF1,(B2*E65)+B2+65,0),0))) -> 0 | AG65: 0 | AH65: 0 | AI65: =IF(AND(B6>=0,B65<>0),OFFSET(AI1,(B2*E65)+B2+65,0),0) -> 0 | AJ65: =IF(AND(B6>=0,B65<>0),OFFSET(AJ1,(B2*E65)+B2+65,0),0) -> 0 | AK65: =IF(AND(B6>=0,B65<>0),OFFSET(AK1,(B2*E65)+B2+65,0),0) -> 0 | AL65: 0 | AM65: =IF(AND(B6>=0,B65<>0),OFFSET(AM1,(B2*E65)+B2+65,0),0) -> 0 | AN65: =IF(AND([4]Settings!A3=1,[4]Settings!A5="TRUE"),0,(IF(AND(B6>=0,B65<>0),OFFSET(AN1,(B2*E65)+B2+65,0),0))) -> 0 | AO65: =IF(AND([4]Settings!A3=1,[4]Settings!A5="TRUE"),0,(IF(AND(B6>=0,B65<>0),OFFSET(AO1,(B2*E65)+B2+65,0),0))) -> 0 | AP65: 0 | AQ65: 0 | AR65: =IF(AND(B6>=0,B65<>0),OFFSET(AR1,(B2*E65)+B2+65,0),0) -> 0 | AS65: =IF(AND(B6>=0,B65<>0),OFFSET(AS1,(B2*E65)+B2+65,0),0) -> 0 | AT65: =IF(AND(B6>=0,B65<>0),OFFSET(AT1,(B2*E65)+B2+65,0),0) -> 0 | AU65: 0
A66: 0 | B66: 0 | C66: 0 | E66: 20 | I66: =IF(AND(B6>=0,B66<>0),OFFSET(I1,(B2*E66)+B2+65,0),0) -> 0 | J66: =IF(AND(B6>=0,B66<>0),OFFSET(J1,(B2*E66)+B2+65,0),0) -> 0 | K66: =IF(AND(B6>=0,B66<>0),OFFSET(K1,(B2*E66)+B2+65,0),0) -> 0 | L66: =IF(AND(B6>=0,B66<>0),OFFSET(L1,(B2*E66)+B2+65,0),0) -> 0 | M66: =IF(AND(B6>=0,B66<>0),OFFSET(M1,(B2*E66)+B2+65,0),0) -> 0 | N66: =IF(AND(B6>=0,B66<>0),OFFSET(N1,(B2*E66)+B2+65,0),0) -> 0 | O66: =IF(AND(B6>=0,B66<>0),OFFSET(O1,(B2*E66)+B2+65,0),0) -> 0 | P66: =IF(AND(B6>=0,B66<>0),OFFSET(P1,(B2*E66)+B2+65,0),0) -> 0 | Q66: =IF(AND(B6>=0,B66<>0),OFFSET(Q1,(B2*E66)+B2+65,0),0) -> 0 | R66: =IF(AND(B6>=0,B66<>0),OFFSET(R1,(B2*E66)+B2+65,0),0) -> 0 | S66: =IF(AND(B6>=0,B66<>0),OFFSET(S1,(B2*E66)+B2+65,0),0) -> 0 | T66: =IF(AND(B6>=0,B66<>0),OFFSET(T1,(B2*E66)+B2+65,0),0) -> 0 | U66: =IF(AND(B6>=0,B66<>0),OFFSET(U1,(B2*E66)+B2+65,0),0) -> 0 | V66: =IF(AND([4]Settings!A3=1,[4]Settings!A5="TRUE"),0,(IF(AND(B6>=0,B66<>0),OFFSET(V1,(B2*E66)+B2+65,0),0))) -> 0 | W66: =IF(AND([4]Settings!A3=1,[4]Settings!A5="TRUE"),0,(IF(AND(B6>=0,B66<>0),OFFSET(W1,(B2*E66)+B2+65,0),0))) -> 0 | X66: 0 | Y66: 0 | Z66: =IF(AND(B6>=0,B66<>0),OFFSET(Z1,(B2*E66)+B2+65,0),0) -> 0 | AA66: =IF(AND(B6>=0,B66<>0),OFFSET(AA1,(B2*E66)+B2+65,0),0) -> 0 | AB66: =IF(AND(B6>=0,B66<>0),OFFSET(AB1,(B2*E66)+B2+65,0),0) -> 0 | AC66: 0 | AD66: =IF(AND(B6>=0,B66<>0),OFFSET(AD1,(B2*E66)+B2+65,0),0) -> 0 | AE66: =IF(AND([4]Settings!A3=1,[4]Settings!A5="TRUE"),0,(IF(AND(B6>=0,B66<>0),OFFSET(AE1,(B2*E66)+B2+65,0),0))) -> 0 | AF66: =IF(AND([4]Settings!A3=1,[4]Settings!A5="TRUE"),0,(IF(AND(B6>=0,B66<>0),OFFSET(AF1,(B2*E66)+B2+65,0),0))) -> 0 | AG66: 0 | AH66: 0 | AI66: =IF(AND(B6>=0,B66<>0),OFFSET(AI1,(B2*E66)+B2+65,0),0) -> 0 | AJ66: =IF(AND(B6>=0,B66<>0),OFFSET(AJ1,(B2*E66)+B2+65,0),0) -> 0 | AK66: =IF(AND(B6>=0,B66<>0),OFFSET(AK1,(B2*E66)+B2+65,0),0) -> 0 | AL66: 0 | AM66: =IF(AND(B6>=0,B66<>0),OFFSET(AM1,(B2*E66)+B2+65,0),0) -> 0 | AN66: =IF(AND([4]Settings!A3=1,[4]Settings!A5="TRUE"),0,(IF(AND(B6>=0,B66<>0),OFFSET(AN1,(B2*E66)+B2+65,0),0))) -> 0 | AO66: =IF(AND([4]Settings!A3=1,[4]Settings!A5="TRUE"),0,(IF(AND(B6>=0,B66<>0),OFFSET(AO1,(B2*E66)+B2+65,0),0))) -> 0 | AP66: 0 | AQ66: 0 | AR66: =IF(AND(B6>=0,B66<>0),OFFSET(AR1,(B2*E66)+B2+65,0),0) -> 0 | AS66: =IF(AND(B6>=0,B66<>0),OFFSET(AS1,(B2*E66)+B2+65,0),0) -> 0 | AT66: =IF(AND(B6>=0,B66<>0),OFFSET(AT1,(B2*E66)+B2+65,0),0) -> 0 | AU66: 0
A67: 0 | B67: 0 | C67: 0 | E67: 21 | I67: =IF(AND(B6>=0,B67<>0),OFFSET(I1,(B2*E67)+B2+65,0),0) -> 0 | J67: =IF(AND(B6>=0,B67<>0),OFFSET(J1,(B2*E67)+B2+65,0),0) -> 0 | K67: =IF(AND(B6>=0,B67<>0),OFFSET(K1,(B2*E67)+B2+65,0),0) -> 0 | L67: =IF(AND(B6>=0,B67<>0),OFFSET(L1,(B2*E67)+B2+65,0),0) -> 0 | M67: =IF(AND(B6>=0,B67<>0),OFFSET(M1,(B2*E67)+B2+65,0),0) -> 0 | N67: =IF(AND(B6>=0,B67<>0),OFFSET(N1,(B2*E67)+B2+65,0),0) -> 0 | O67: =IF(AND(B6>=0,B67<>0),OFFSET(O1,(B2*E67)+B2+65,0),0) -> 0 | P67: =IF(AND(B6>=0,B67<>0),OFFSET(P1,(B2*E67)+B2+65,0),0) -> 0 | Q67: =IF(AND(B6>=0,B67<>0),OFFSET(Q1,(B2*E67)+B2+65,0),0) -> 0 | R67: =IF(AND(B6>=0,B67<>0),OFFSET(R1,(B2*E67)+B2+65,0),0) -> 0 | S67: =IF(AND(B6>=0,B67<>0),OFFSET(S1,(B2*E67)+B2+65,0),0) -> 0 | T67: =IF(AND(B6>=0,B67<>0),OFFSET(T1,(B2*E67)+B2+65,0),0) -> 0 | U67: =IF(AND(B6>=0,B67<>0),OFFSET(U1,(B2*E67)+B2+65,0),0) -> 0 | V67: =IF(AND([4]Settings!A3=1,[4]Settings!A5="TRUE"),0,(IF(AND(B6>=0,B67<>0),OFFSET(V1,(B2*E67)+B2+65,0),0))) -> 0 | W67: =IF(AND([4]Settings!A3=1,[4]Settings!A5="TRUE"),0,(IF(AND(B6>=0,B67<>0),OFFSET(W1,(B2*E67)+B2+65,0),0))) -> 0 | X67: 0 | Y67: 0 | Z67: =IF(AND(B6>=0,B67<>0),OFFSET(Z1,(B2*E67)+B2+65,0),0) -> 0 | AA67: =IF(AND(B6>=0,B67<>0),OFFSET(AA1,(B2*E67)+B2+65,0),0) -> 0 | AB67: =IF(AND(B6>=0,B67<>0),OFFSET(AB1,(B2*E67)+B2+65,0),0) -> 0 | AC67: 0 | AD67: =IF(AND(B6>=0,B67<>0),OFFSET(AD1,(B2*E67)+B2+65,0),0) -> 0 | AE67: =IF(AND([4]Settings!A3=1,[4]Settings!A5="TRUE"),0,(IF(AND(B6>=0,B67<>0),OFFSET(AE1,(B2*E67)+B2+65,0),0))) -> 0 | AF67: =IF(AND([4]Settings!A3=1,[4]Settings!A5="TRUE"),0,(IF(AND(B6>=0,B67<>0),OFFSET(AF1,(B2*E67)+B2+65,0),0))) -> 0 | AG67: 0 | AH67: 0 | AI67: =IF(AND(B6>=0,B67<>0),OFFSET(AI1,(B2*E67)+B2+65,0),0) -> 0 | AJ67: =IF(AND(B6>=0,B67<>0),OFFSET(AJ1,(B2*E67)+B2+65,0),0) -> 0 | AK67: =IF(AND(B6>=0,B67<>0),OFFSET(AK1,(B2*E67)+B2+65,0),0) -> 0 | AL67: 0 | AM67: =IF(AND(B6>=0,B67<>0),OFFSET(AM1,(B2*E67)+B2+65,0),0) -> 0 | AN67: =IF(AND([4]Settings!A3=1,[4]Settings!A5="TRUE"),0,(IF(AND(B6>=0,B67<>0),OFFSET(AN1,(B2*E67)+B2+65,0),0))) -> 0 | AO67: =IF(AND([4]Settings!A3=1,[4]Settings!A5="TRUE"),0,(IF(AND(B6>=0,B67<>0),OFFSET(AO1,(B2*E67)+B2+65,0),0))) -> 0 | AP67: 0 | AQ67: 0 | AR67: =IF(AND(B6>=0,B67<>0),OFFSET(AR1,(B2*E67)+B2+65,0),0) -> 0 | AS67: =IF(AND(B6>=0,B67<>0),OFFSET(AS1,(B2*E67)+B2+65,0),0) -> 0 | AT67: =IF(AND(B6>=0,B67<>0),OFFSET(AT1,(B2*E67)+B2+65,0),0) -> 0 | AU67: 0
A68: 0 | B68: 0 | C68: 0 | E68: 22 | I68: =IF(AND(B6>=0,B68<>0),OFFSET(I1,(B2*E68)+B2+65,0),0) -> 0 | J68: =IF(AND(B6>=0,B68<>0),OFFSET(J1,(B2*E68)+B2+65,0),0) -> 0 | K68: =IF(AND(B6>=0,B68<>0),OFFSET(K1,(B2*E68)+B2+65,0),0) -> 0 | L68: =IF(AND(B6>=0,B68<>0),OFFSET(L1,(B2*E68)+B2+65,0),0) -> 0 | M68: =IF(AND(B6>=0,B68<>0),OFFSET(M1,(B2*E68)+B2+65,0),0) -> 0 | N68: =IF(AND(B6>=0,B68<>0),OFFSET(N1,(B2*E68)+B2+65,0),0) -> 0 | O68: =IF(AND(B6>=0,B68<>0),OFFSET(O1,(B2*E68)+B2+65,0),0) -> 0 | P68: =IF(AND(B6>=0,B68<>0),OFFSET(P1,(B2*E68)+B2+65,0),0) -> 0 | Q68: =IF(AND(B6>=0,B68<>0),OFFSET(Q1,(B2*E68)+B2+65,0),0) -> 0 | R68: =IF(AND(B6>=0,B68<>0),OFFSET(R1,(B2*E68)+B2+65,0),0) -> 0 | S68: =IF(AND(B6>=0,B68<>0),OFFSET(S1,(B2*E68)+B2+65,0),0) -> 0 | T68: =IF(AND(B6>=0,B68<>0),OFFSET(T1,(B2*E68)+B2+65,0),0) -> 0 | U68: =IF(AND(B6>=0,B68<>0),OFFSET(U1,(B2*E68)+B2+65,0),0) -> 0 | V68: =IF(AND([4]Settings!A3=1,[4]Settings!A5="TRUE"),0,(IF(AND(B6>=0,B68<>0),OFFSET(V1,(B2*E68)+B2+65,0),0))) -> 0 | W68: =IF(AND([4]Settings!A3=1,[4]Settings!A5="TRUE"),0,(IF(AND(B6>=0,B68<>0),OFFSET(W1,(B2*E68)+B2+65,0),0))) -> 0 | X68: 0 | Y68: 0 | Z68: =IF(AND(B6>=0,B68<>0),OFFSET(Z1,(B2*E68)+B2+65,0),0) -> 0 | AA68: =IF(AND(B6>=0,B68<>0),OFFSET(AA1,(B2*E68)+B2+65,0),0) -> 0 | AB68: =IF(AND(B6>=0,B68<>0),OFFSET(AB1,(B2*E68)+B2+65,0),0) -> 0 | AC68: 0 | AD68: =IF(AND(B6>=0,B68<>0),OFFSET(AD1,(B2*E68)+B2+65,0),0) -> 0 | AE68: =IF(AND([4]Settings!A3=1,[4]Settings!A5="TRUE"),0,(IF(AND(B6>=0,B68<>0),OFFSET(AE1,(B2*E68)+B2+65,0),0))) -> 0 | AF68: =IF(AND([4]Settings!A3=1,[4]Settings!A5="TRUE"),0,(IF(AND(B6>=0,B68<>0),OFFSET(AF1,(B2*E68)+B2+65,0),0))) -> 0 | AG68: 0 | AH68: 0 | AI68: =IF(AND(B6>=0,B68<>0),OFFSET(AI1,(B2*E68)+B2+65,0),0) -> 0 | AJ68: =IF(AND(B6>=0,B68<>0),OFFSET(AJ1,(B2*E68)+B2+65,0),0) -> 0 | AK68: =IF(AND(B6>=0,B68<>0),OFFSET(AK1,(B2*E68)+B2+65,0),0) -> 0 | AL68: 0 | AM68: =IF(AND(B6>=0,B68<>0),OFFSET(AM1,(B2*E68)+B2+65,0),0) -> 0 | AN68: =IF(AND([4]Settings!A3=1,[4]Settings!A5="TRUE"),0,(IF(AND(B6>=0,B68<>0),OFFSET(AN1,(B2*E68)+B2+65,0),0))) -> 0 | AO68: =IF(AND([4]Settings!A3=1,[4]Settings!A5="TRUE"),0,(IF(AND(B6>=0,B68<>0),OFFSET(AO1,(B2*E68)+B2+65,0),0))) -> 0 | AP68: 0 | AQ68: 0 | AR68: =IF(AND(B6>=0,B68<>0),OFFSET(AR1,(B2*E68)+B2+65,0),0) -> 0 | AS68: =IF(AND(B6>=0,B68<>0),OFFSET(AS1,(B2*E68)+B2+65,0),0) -> 0 | AT68: =IF(AND(B6>=0,B68<>0),OFFSET(AT1,(B2*E68)+B2+65,0),0) -> 0 | AU68: 0
A69: 0 | B69: 0 | C69: 0 | E69: 23 | I69: =IF(AND(B6>=0,B69<>0),OFFSET(I1,(B2*E69)+B2+65,0),0) -> 0 | J69: =IF(AND(B6>=0,B69<>0),OFFSET(J1,(B2*E69)+B2+65,0),0) -> 0 | K69: =IF(AND(B6>=0,B69<>0),OFFSET(K1,(B2*E69)+B2+65,0),0) -> 0 | L69: =IF(AND(B6>=0,B69<>0),OFFSET(L1,(B2*E69)+B2+65,0),0) -> 0 | M69: =IF(AND(B6>=0,B69<>0),OFFSET(M1,(B2*E69)+B2+65,0),0) -> 0 | N69: =IF(AND(B6>=0,B69<>0),OFFSET(N1,(B2*E69)+B2+65,0),0) -> 0 | O69: =IF(AND(B6>=0,B69<>0),OFFSET(O1,(B2*E69)+B2+65,0),0) -> 0 | P69: =IF(AND(B6>=0,B69<>0),OFFSET(P1,(B2*E69)+B2+65,0),0) -> 0 | Q69: =IF(AND(B6>=0,B69<>0),OFFSET(Q1,(B2*E69)+B2+65,0),0) -> 0 | R69: =IF(AND(B6>=0,B69<>0),OFFSET(R1,(B2*E69)+B2+65,0),0) -> 0 | S69: =IF(AND(B6>=0,B69<>0),OFFSET(S1,(B2*E69)+B2+65,0),0) -> 0 | T69: =IF(AND(B6>=0,B69<>0),OFFSET(T1,(B2*E69)+B2+65,0),0) -> 0 | U69: =IF(AND(B6>=0,B69<>0),OFFSET(U1,(B2*E69)+B2+65,0),0) -> 0 | V69: =IF(AND([4]Settings!A3=1,[4]Settings!A5="TRUE"),0,(IF(AND(B6>=0,B69<>0),OFFSET(V1,(B2*E69)+B2+65,0),0))) -> 0 | W69: =IF(AND([4]Settings!A3=1,[4]Settings!A5="TRUE"),0,(IF(AND(B6>=0,B69<>0),OFFSET(W1,(B2*E69)+B2+65,0),0))) -> 0 | X69: 0 | Y69: 0 | Z69: =IF(AND(B6>=0,B69<>0),OFFSET(Z1,(B2*E69)+B2+65,0),0) -> 0 | AA69: =IF(AND(B6>=0,B69<>0),OFFSET(AA1,(B2*E69)+B2+65,0),0) -> 0 | AB69: =IF(AND(B6>=0,B69<>0),OFFSET(AB1,(B2*E69)+B2+65,0),0) -> 0 | AC69: 0 | AD69: =IF(AND(B6>=0,B69<>0),OFFSET(AD1,(B2*E69)+B2+65,0),0) -> 0 | AE69: =IF(AND([4]Settings!A3=1,[4]Settings!A5="TRUE"),0,(IF(AND(B6>=0,B69<>0),OFFSET(AE1,(B2*E69)+B2+65,0),0))) -> 0 | AF69: =IF(AND([4]Settings!A3=1,[4]Settings!A5="TRUE"),0,(IF(AND(B6>=0,B69<>0),OFFSET(AF1,(B2*E69)+B2+65,0),0))) -> 0 | AG69: 0 | AH69: 0 | AI69: =IF(AND(B6>=0,B69<>0),OFFSET(AI1,(B2*E69)+B2+65,0),0) -> 0 | AJ69: =IF(AND(B6>=0,B69<>0),OFFSET(AJ1,(B2*E69)+B2+65,0),0) -> 0 | AK69: =IF(AND(B6>=0,B69<>0),OFFSET(AK1,(B2*E69)+B2+65,0),0) -> 0 | AL69: 0 | AM69: =IF(AND(B6>=0,B69<>0),OFFSET(AM1,(B2*E69)+B2+65,0),0) -> 0 | AN69: =IF(AND([4]Settings!A3=1,[4]Settings!A5="TRUE"),0,(IF(AND(B6>=0,B69<>0),OFFSET(AN1,(B2*E69)+B2+65,0),0))) -> 0 | AO69: =IF(AND([4]Settings!A3=1,[4]Settings!A5="TRUE"),0,(IF(AND(B6>=0,B69<>0),OFFSET(AO1,(B2*E69)+B2+65,0),0))) -> 0 | AP69: 0 | AQ69: 0 | AR69: =IF(AND(B6>=0,B69<>0),OFFSET(AR1,(B2*E69)+B2+65,0),0) -> 0 | AS69: =IF(AND(B6>=0,B69<>0),OFFSET(AS1,(B2*E69)+B2+65,0),0) -> 0 | AT69: =IF(AND(B6>=0,B69<>0),OFFSET(AT1,(B2*E69)+B2+65,0),0) -> 0 | AU69: 0
A70: 0 | B70: 0 | C70: 0 | E70: 24 | I70: =IF(AND(B6>=0,B70<>0),OFFSET(I1,(B2*E70)+B2+65,0),0) -> 0 | J70: =IF(AND(B6>=0,B70<>0),OFFSET(J1,(B2*E70)+B2+65,0),0) -> 0 | K70: =IF(AND(B6>=0,B70<>0),OFFSET(K1,(B2*E70)+B2+65,0),0) -> 0 | L70: =IF(AND(B6>=0,B70<>0),OFFSET(L1,(B2*E70)+B2+65,0),0) -> 0 | M70: =IF(AND(B6>=0,B70<>0),OFFSET(M1,(B2*E70)+B2+65,0),0) -> 0 | N70: =IF(AND(B6>=0,B70<>0),OFFSET(N1,(B2*E70)+B2+65,0),0) -> 0 | O70: =IF(AND(B6>=0,B70<>0),OFFSET(O1,(B2*E70)+B2+65,0),0) -> 0 | P70: =IF(AND(B6>=0,B70<>0),OFFSET(P1,(B2*E70)+B2+65,0),0) -> 0 | Q70: =IF(AND(B6>=0,B70<>0),OFFSET(Q1,(B2*E70)+B2+65,0),0) -> 0 | R70: =IF(AND(B6>=0,B70<>0),OFFSET(R1,(B2*E70)+B2+65,0),0) -> 0 | S70: =IF(AND(B6>=0,B70<>0),OFFSET(S1,(B2*E70)+B2+65,0),0) -> 0 | T70: =IF(AND(B6>=0,B70<>0),OFFSET(T1,(B2*E70)+B2+65,0),0) -> 0 | U70: =IF(AND(B6>=0,B70<>0),OFFSET(U1,(B2*E70)+B2+65,0),0) -> 0 | V70: =IF(AND([4]Settings!A3=1,[4]Settings!A5="TRUE"),0,(IF(AND(B6>=0,B70<>0),OFFSET(V1,(B2*E70)+B2+65,0),0))) -> 0 | W70: =IF(AND([4]Settings!A3=1,[4]Settings!A5="TRUE"),0,(IF(AND(B6>=0,B70<>0),OFFSET(W1,(B2*E70)+B2+65,0),0))) -> 0 | X70: 0 | Y70: 0 | Z70: =IF(AND(B6>=0,B70<>0),OFFSET(Z1,(B2*E70)+B2+65,0),0) -> 0 | AA70: =IF(AND(B6>=0,B70<>0),OFFSET(AA1,(B2*E70)+B2+65,0),0) -> 0 | AB70: =IF(AND(B6>=0,B70<>0),OFFSET(AB1,(B2*E70)+B2+65,0),0) -> 0 | AC70: 0 | AD70: =IF(AND(B6>=0,B70<>0),OFFSET(AD1,(B2*E70)+B2+65,0),0) -> 0 | AE70: =IF(AND([4]Settings!A3=1,[4]Settings!A5="TRUE"),0,(IF(AND(B6>=0,B70<>0),OFFSET(AE1,(B2*E70)+B2+65,0),0))) -> 0 | AF70: =IF(AND([4]Settings!A3=1,[4]Settings!A5="TRUE"),0,(IF(AND(B6>=0,B70<>0),OFFSET(AF1,(B2*E70)+B2+65,0),0))) -> 0 | AG70: 0 | AH70: 0 | AI70: =IF(AND(B6>=0,B70<>0),OFFSET(AI1,(B2*E70)+B2+65,0),0) -> 0 | AJ70: =IF(AND(B6>=0,B70<>0),OFFSET(AJ1,(B2*E70)+B2+65,0),0) -> 0 | AK70: =IF(AND(B6>=0,B70<>0),OFFSET(AK1,(B2*E70)+B2+65,0),0) -> 0 | AL70: 0 | AM70: =IF(AND(B6>=0,B70<>0),OFFSET(AM1,(B2*E70)+B2+65,0),0) -> 0 | AN70: =IF(AND([4]Settings!A3=1,[4]Settings!A5="TRUE"),0,(IF(AND(B6>=0,B70<>0),OFFSET(AN1,(B2*E70)+B2+65,0),0))) -> 0 | AO70: =IF(AND([4]Settings!A3=1,[4]Settings!A5="TRUE"),0,(IF(AND(B6>=0,B70<>0),OFFSET(AO1,(B2*E70)+B2+65,0),0))) -> 0 | AP70: 0 | AQ70: 0 | AR70: =IF(AND(B6>=0,B70<>0),OFFSET(AR1,(B2*E70)+B2+65,0),0) -> 0 | AS70: =IF(AND(B6>=0,B70<>0),OFFSET(AS1,(B2*E70)+B2+65,0),0) -> 0 | AT70: =IF(AND(B6>=0,B70<>0),OFFSET(AT1,(B2*E70)+B2+65,0),0) -> 0 | AU70: 0
A71: 0 | B71: 0 | C71: 0 | E71: 25 | I71: =IF(AND(B6>=0,B71<>0),OFFSET(I1,(B2*E71)+B2+65,0),0) -> 0 | J71: =IF(AND(B6>=0,B71<>0),OFFSET(J1,(B2*E71)+B2+65,0),0) -> 0 | K71: =IF(AND(B6>=0,B71<>0),OFFSET(K1,(B2*E71)+B2+65,0),0) -> 0 | L71: =IF(AND(B6>=0,B71<>0),OFFSET(L1,(B2*E71)+B2+65,0),0) -> 0 | M71: =IF(AND(B6>=0,B71<>0),OFFSET(M1,(B2*E71)+B2+65,0),0) -> 0 | N71: =IF(AND(B6>=0,B71<>0),OFFSET(N1,(B2*E71)+B2+65,0),0) -> 0 | O71: =IF(AND(B6>=0,B71<>0),OFFSET(O1,(B2*E71)+B2+65,0),0) -> 0 | P71: =IF(AND(B6>=0,B71<>0),OFFSET(P1,(B2*E71)+B2+65,0),0) -> 0 | Q71: =IF(AND(B6>=0,B71<>0),OFFSET(Q1,(B2*E71)+B2+65,0),0) -> 0 | R71: =IF(AND(B6>=0,B71<>0),OFFSET(R1,(B2*E71)+B2+65,0),0) -> 0 | S71: =IF(AND(B6>=0,B71<>0),OFFSET(S1,(B2*E71)+B2+65,0),0) -> 0 | T71: =IF(AND(B6>=0,B71<>0),OFFSET(T1,(B2*E71)+B2+65,0),0) -> 0 | U71: =IF(AND(B6>=0,B71<>0),OFFSET(U1,(B2*E71)+B2+65,0),0) -> 0 | V71: =IF(AND([4]Settings!A3=1,[4]Settings!A5="TRUE"),0,(IF(AND(B6>=0,B71<>0),OFFSET(V1,(B2*E71)+B2+65,0),0))) -> 0 | W71: =IF(AND([4]Settings!A3=1,[4]Settings!A5="TRUE"),0,(IF(AND(B6>=0,B71<>0),OFFSET(W1,(B2*E71)+B2+65,0),0))) -> 0 | X71: 0 | Y71: 0 | Z71: =IF(AND(B6>=0,B71<>0),OFFSET(Z1,(B2*E71)+B2+65,0),0) -> 0 | AA71: =IF(AND(B6>=0,B71<>0),OFFSET(AA1,(B2*E71)+B2+65,0),0) -> 0 | AB71: =IF(AND(B6>=0,B71<>0),OFFSET(AB1,(B2*E71)+B2+65,0),0) -> 0 | AC71: 0 | AD71: =IF(AND(B6>=0,B71<>0),OFFSET(AD1,(B2*E71)+B2+65,0),0) -> 0 | AE71: =IF(AND([4]Settings!A3=1,[4]Settings!A5="TRUE"),0,(IF(AND(B6>=0,B71<>0),OFFSET(AE1,(B2*E71)+B2+65,0),0))) -> 0 | AF71: =IF(AND([4]Settings!A3=1,[4]Settings!A5="TRUE"),0,(IF(AND(B6>=0,B71<>0),OFFSET(AF1,(B2*E71)+B2+65,0),0))) -> 0 | AG71: 0 | AH71: 0 | AI71: =IF(AND(B6>=0,B71<>0),OFFSET(AI1,(B2*E71)+B2+65,0),0) -> 0 | AJ71: =IF(AND(B6>=0,B71<>0),OFFSET(AJ1,(B2*E71)+B2+65,0),0) -> 0 | AK71: =IF(AND(B6>=0,B71<>0),OFFSET(AK1,(B2*E71)+B2+65,0),0) -> 0 | AL71: 0 | AM71: =IF(AND(B6>=0,B71<>0),OFFSET(AM1,(B2*E71)+B2+65,0),0) -> 0 | AN71: =IF(AND([4]Settings!A3=1,[4]Settings!A5="TRUE"),0,(IF(AND(B6>=0,B71<>0),OFFSET(AN1,(B2*E71)+B2+65,0),0))) -> 0 | AO71: =IF(AND([4]Settings!A3=1,[4]Settings!A5="TRUE"),0,(IF(AND(B6>=0,B71<>0),OFFSET(AO1,(B2*E71)+B2+65,0),0))) -> 0 | AP71: 0 | AQ71: 0 | AR71: =IF(AND(B6>=0,B71<>0),OFFSET(AR1,(B2*E71)+B2+65,0),0) -> 0 | AS71: =IF(AND(B6>=0,B71<>0),OFFSET(AS1,(B2*E71)+B2+65,0),0) -> 0 | AT71: =IF(AND(B6>=0,B71<>0),OFFSET(AT1,(B2*E71)+B2+65,0),0) -> 0 | AU71: 0
A72: 1 | F72: Total | I72: =SUM(I47:I71) -> 4830 | J72: 5620 | K72: 6035 | L72: 6035 | M72: 6373 | N72: 0 | O72: 0 | P72: 0 | Q72: 0 | R72: 6373 | S72: 0 | T72: 6373 | U72: 6742 | Y72: 0 | Z72: =SUM(Z47:Z71) -> 0 | AA72: =SUM(AA47:AA71) -> 0 | AB72: =SUM(AB47:AB71) -> 6742 | AC72: =SUM(AC47:AC71) -> 0 | AD72: =SUM(AD47:AD71) -> 7254 | AH72: 0 | AI72: =SUM(AI47:AI71) -> 0 | AJ72: =SUM(AJ47:AJ71) -> 0 | AK72: =SUM(AK47:AK71) -> 7254 | AL72: =SUM(AL47:AL71) -> 0 | AM72: =SUM(AM47:AM71) -> 4206 | AQ72: 0 | AR72: =SUM(AR47:AR71) -> 0 | AS72: =SUM(AS47:AS71) -> 0 | AT72: =SUM(AT47:AT71) -> 4206 | AU72: =SUM(AU47:AU71) -> 0
A73: 1 | F73: Economic classification
A74: 1 | F74: Current payments | I74: =SUMIF(F335:F4080,F74,I335:I4080) -> 4830 | J74: =SUMIF(F335:F4080,F74,J335:J4080) -> 5620 | K74: =SUMIF(F335:F4080,F74,K335:K4080) -> 6035 | L74: =SUMIF(F335:F4080,F74,L335:L4080) -> 6035 | M74: =SUMIF(F335:F4080,F74,M335:M4080) -> 6373 | N74: =SUMIF(F335:F4080,F74,N335:N4080) -> 0 | O74: =SUMIF(F335:F4080,F74,O335:O4080) -> 0 | P74: =SUMIF(F335:F4080,F74,P335:P4080) -> 0 | Q74: =SUMIF(F335:F4080,F74,Q335:Q4080) -> 0 | R74: =SUMIF(F335:F4080,F74,R335:R4080) -> 6373 | S74: =SUMIF(F335:F4080,F74,S335:S4080) -> 0 | T74: =SUMIF(F335:F4080,F74,T335:T4080) -> 6373 | U74: =SUMIF(F335:F4080,F74,U335:U4080) -> 6742 | V74: =+V75+V78+V117 ->  | W74: =+W75+W78+W117 ->  | X74: =SUM(V74:W74) ->  | Y74: =IF(ISERROR(U74+X74),0,U74+X74) -> 0 | Z74: =SUMIF(F335:F4080,F74,Z335:Z4080) -> 0 | AA74: =SUMIF(F335:F4080,F74,AA335:AA4080) -> 0 | AB74: =SUMIF(F335:F4080,F74,AB335:AB4080) -> 6742 | AC74: =SUMIF(F335:F4080,F74,AC335:AC4080) -> 0 | AD74: =SUMIF(F335:F4080,F74,AD335:AD4080) -> 7254 | AE74: =+AE75+AE78+AE117 ->  | AF74: =+AF75+AF78+AF117 ->  | AG74: =SUM(AE74:AF74) ->  | AH74: =IF(ISERROR(AD74+AG74),0,AD74+AG74) -> 0 | AI74: =SUMIF(F335:F4080,F74,AI335:AI4080) -> 0 | AJ74: =SUMIF(F335:F4080,F74,AJ335:AJ4080) -> 0 | AK74: =SUMIF(F335:F4080,F74,AK335:AK4080) -> 7254 | AL74: =SUMIF(F335:F4080,F74,AL335:AL4080) -> 0 | AM74: =SUMIF(F335:F4080,F74,AM335:AM4080) -> 4206 | AN74: =+AN75+AN78+AN117 ->  | AO74: =+AO75+AO78+AO117 ->  | AP74: =SUM(AN74:AO74) ->  | AQ74: =IF(ISERROR(AM74+AP74),0,AM74+AP74) -> 0 | AR74: =SUMIF(F335:F4080,F74,AR335:AR4080) -> 0 | AS74: =SUMIF(F335:F4080,F74,AS335:AS4080) -> 0 | AT74: =SUMIF(F335:F4080,F74,AT335:AT4080) -> 4206 | AU74: =SUMIF(F335:F4080,F74,AU335:AU4080) -> 0
A75: =IF(INDEX(OFFSET(MyEconSettings,0,-1),MATCH(F75,MyEconSettings,0),1)=UPPER("n"),"x",IF(SUM(COUNTIF(I75:AU75,"<>0")-COUNTBLANK(I75:AU75))<>0,1,0)) ->  | D75: =G8&F75 ->  | F75: Compensation of employees | I75: =SUMIF(F335:F4080,F75,I335:I4080) -> 4830 | J75: =SUMIF(F335:F4080,F75,J335:J4080) -> 5620 | K75: =SUMIF(F335:F4080,F75,K335:K4080) -> 6035 | L75: =SUMIF(F335:F4080,F75,L335:L4080) -> 6035 | M75: =SUMIF(F335:F4080,F75,M335:M4080) -> 6373 | N75: =SUMIF(F335:F4080,F75,N335:N4080) -> 0 | O75: =SUMIF(F335:F4080,F75,O335:O4080) -> 0 | P75: =SUMIF(F335:F4080,F75,P335:P4080) -> 0 | Q75: =SUMIF(F335:F4080,F75,Q335:Q4080) -> 0 | R75: =SUMIF(F335:F4080,F75,R335:R4080) -> 6373 | S75: =SUMIF(F335:F4080,F75,S335:S4080) -> 0 | T75: =SUMIF(F335:F4080,F75,T335:T4080) -> 6373 | U75: =SUMIF(F335:F4080,F75,U335:U4080) -> 6742 | Y75: 0 | Z75: =SUMIF(F335:F4080,F75,Z335:Z4080) -> 0 | AA75: =SUMIF(F335:F4080,F75,AA335:AA4080) -> 0 | AB75: =SUMIF(F335:F4080,F75,AB335:AB4080) -> 6742 | AC75: =SUMIF(F335:F4080,F75,AC335:AC4080) -> 0 | AD75: =SUMIF(F335:F4080,F75,AD335:AD4080) -> 7254 | AH75: 0 | AI75: =SUMIF(F335:F4080,F75,AI335:AI4080) -> 0 | AJ75: =SUMIF(F335:F4080,F75,AJ335:AJ4080) -> 0 | AK75: =SUMIF(F335:F4080,F75,AK335:AK4080) -> 7254 | AL75: =SUMIF(F335:F4080,F75,AL335:AL4080) -> 0 | AM75: =SUMIF(F335:F4080,F75,AM335:AM4080) -> 4206 | AQ75: 0 | AR75: =SUMIF(F335:F4080,F75,AR335:AR4080) -> 0 | AS75: =SUMIF(F335:F4080,F75,AS335:AS4080) -> 0 | AT75: =SUMIF(F335:F4080,F75,AT335:AT4080) -> 4206 | AU75: =SUMIF(F335:F4080,F75,AU335:AU4080) -> 0
F76: Salaries and wages | I76: =SUMIF(F335:F4080,F76,I335:I4080) -> 4830 | J76: =SUMIF(F335:F4080,F76,J335:J4080) -> 5620 | K76: =SUMIF(F335:F4080,F76,K335:K4080) -> 6035 | L76: =SUMIF(F335:F4080,F76,L335:L4080) -> 6035 | M76: =SUMIF(F335:F4080,F76,M335:M4080) -> 6373 | N76: =SUMIF(F335:F4080,F76,N335:N4080) -> 0 | O76: =SUMIF(F335:F4080,F76,O335:O4080) -> 0 | P76: =SUMIF(F335:F4080,F76,P335:P4080) -> 0 | Q76: =SUMIF(F335:F4080,F76,Q335:Q4080) -> 0 | R76: =SUMIF(F335:F4080,F76,R335:R4080) -> 6373 | S76: =SUMIF(F335:F4080,F76,S335:S4080) -> 0 | T76: =SUMIF(F335:F4080,F76,T335:T4080) -> 6373 | U76: =SUMIF(F335:F4080,F76,U335:U4080) -> 6742 | V76: =IF(AND([4]Settings!A3=1,[4]Settings!A5="TRUE"),0,SUMIF(F335:F4080,F76,V335:V4080)) -> 0 | W76: =IF(AND([4]Settings!A3=1,[4]Settings!A5="TRUE"),0,SUMIF(F335:F4080,F76,W335:W4080)) -> 0 | X76: 0 | Y76: 6742 | Z76: =SUMIF(F335:F4080,F76,Z335:Z4080) -> 0 | AA76: =SUMIF(F335:F4080,F76,AA335:AA4080) -> 0 | AB76: =SUMIF(F335:F4080,F76,AB335:AB4080) -> 6742 | AC76: =SUMIF(F335:F4080,F76,AC335:AC4080) -> 0 | AD76: =SUMIF(F335:F4080,F76,AD335:AD4080) -> 7254 | AE76: =IF(AND([4]Settings!A3=1,[4]Settings!A5="TRUE"),0,SUMIF(F335:F4080,F76,AE335:AE4080)) -> 0 | AF76: =IF(AND([4]Settings!A3=1,[4]Settings!A5="TRUE"),0,SUMIF(F335:F4080,F76,AF335:AF4080)) -> 0 | AG76: 0 | AH76: 7254 | AI76: =SUMIF(F335:F4080,F76,AI335:AI4080) -> 0 | AJ76: =SUMIF(F335:F4080,F76,AJ335:AJ4080) -> 0 | AK76: =SUMIF(F335:F4080,F76,AK335:AK4080) -> 7254 | AL76: =SUMIF(F335:F4080,F76,AL335:AL4080) -> 0 | AM76: =SUMIF(F335:F4080,F76,AM335:AM4080) -> 4206 | AN76: =IF(AND([4]Settings!A3=1,[4]Settings!A5="TRUE"),0,SUMIF(F335:F4080,F76,AN335:AN4080)) -> 0 | AO76: =IF(AND([4]Settings!A3=1,[4]Settings!A5="TRUE"),0,SUMIF(F335:F4080,F76,AO335:AO4080)) -> 0 | AP76: 0 | AQ76: 4206 | AR76: =SUMIF(F335:F4080,F76,AR335:AR4080) -> 0 | AS76: =SUMIF(F335:F4080,F76,AS335:AS4080) -> 0 | AT76: =SUMIF(F335:F4080,F76,AT335:AT4080) -> 4206 | AU76: =SUMIF(F335:F4080,F76,AU335:AU4080) -> 0
F77: Social contributions | I77: =SUMIF(F335:F4080,F77,I335:I4080) -> 0 | J77: =SUMIF(F335:F4080,F77,J335:J4080) -> 0 | K77: =SUMIF(F335:F4080,F77,K335:K4080) -> 0 | L77: =SUMIF(F335:F4080,F77,L335:L4080) -> 0 | M77: =SUMIF(F335:F4080,F77,M335:M4080) -> 0 | N77: =SUMIF(F335:F4080,F77,N335:N4080) -> 0 | O77: =SUMIF(F335:F4080,F77,O335:O4080) -> 0 | P77: =SUMIF(F335:F4080,F77,P335:P4080) -> 0 | Q77: =SUMIF(F335:F4080,F77,Q335:Q4080) -> 0 | R77: =SUMIF(F335:F4080,F77,R335:R4080) -> 0 | S77: =SUMIF(F335:F4080,F77,S335:S4080) -> 0 | T77: =SUMIF(F335:F4080,F77,T335:T4080) -> 0 | U77: =SUMIF(F335:F4080,F77,U335:U4080) -> 0 | V77: =IF(AND([4]Settings!A3=1,[4]Settings!A5="TRUE"),0,SUMIF(F335:F4080,F77,V335:V4080)) -> 0 | W77: =IF(AND([4]Settings!A3=1,[4]Settings!A5="TRUE"),0,SUMIF(F335:F4080,F77,W335:W4080)) -> 0 | X77: 0 | Y77: 0 | Z77: =SUMIF(F335:F4080,F77,Z335:Z4080) -> 0 | AA77: =SUMIF(F335:F4080,F77,AA335:AA4080) -> 0 | AB77: =SUMIF(F335:F4080,F77,AB335:AB4080) -> 0 | AC77: =SUMIF(F335:F4080,F77,AC335:AC4080) -> 0 | AD77: =SUMIF(F335:F4080,F77,AD335:AD4080) -> 0 | AE77: =IF(AND([4]Settings!A3=1,[4]Settings!A5="TRUE"),0,SUMIF(F335:F4080,F77,AE335:AE4080)) -> 0 | AF77: =IF(AND([4]Settings!A3=1,[4]Settings!A5="TRUE"),0,SUMIF(F335:F4080,F77,AF335:AF4080)) -> 0 | AG77: 0 | AH77: 0 | AI77: =SUMIF(F335:F4080,F77,AI335:AI4080) -> 0 | AJ77: =SUMIF(F335:F4080,F77,AJ335:AJ4080) -> 0 | AK77: =SUMIF(F335:F4080,F77,AK335:AK4080) -> 0 | AL77: =SUMIF(F335:F4080,F77,AL335:AL4080) -> 0 | AM77: =SUMIF(F335:F4080,F77,AM335:AM4080) -> 0 | AN77: =IF(AND([4]Settings!A3=1,[4]Settings!A5="TRUE"),0,SUMIF(F335:F4080,F77,AN335:AN4080)) -> 0 | AO77: =IF(AND([4]Settings!A3=1,[4]Settings!A5="TRUE"),0,SUMIF(F335:F4080,F77,AO335:AO4080)) -> 0 | AP77: 0 | AQ77: 0 | AR77: =SUMIF(F335:F4080,F77,AR335:AR4080) -> 0 | AS77: =SUMIF(F335:F4080,F77,AS335:AS4080) -> 0 | AT77: =SUMIF(F335:F4080,F77,AT335:AT4080) -> 0 | AU77: =SUMIF(F335:F4080,F77,AU335:AU4080) -> 0
D78: =G8&F78 ->  | F78: Goods and services | I78: =SUMIF(F335:F4080,F78,I335:I4080) -> 0 | J78: =SUMIF(F335:F4080,F78,J335:J4080) -> 0 | K78: =SUMIF(F335:F4080,F78,K335:K4080) -> 0 | L78: =SUMIF(F335:F4080,F78,L335:L4080) -> 0 | M78: =SUMIF(F335:F4080,F78,M335:M4080) -> 0 | N78: =SUMIF(F335:F4080,F78,N335:N4080) -> 0 | O78: =SUMIF(F335:F4080,F78,O335:O4080) -> 0 | P78: =SUMIF(F335:F4080,F78,P335:P4080) -> 0 | Q78: =SUMIF(F335:F4080,F78,Q335:Q4080) -> 0 | R78: =SUMIF(F335:F4080,F78,R335:R4080) -> 0 | S78: =SUMIF(F335:F4080,F78,S335:S4080) -> 0 | T78: =SUMIF(F335:F4080,F78,T335:T4080) -> 0 | U78: =SUMIF(F335:F4080,F78,U335:U4080) -> 0 | Y78: 0 | Z78: =SUMIF(F335:F4080,F78,Z335:Z4080) -> 0 | AA78: =SUMIF(F335:F4080,F78,AA335:AA4080) -> 0 | AB78: =SUMIF(F335:F4080,F78,AB335:AB4080) -> 0 | AC78: =SUMIF(F335:F4080,F78,AC335:AC4080) -> 0 | AD78: =SUMIF(F335:F4080,F78,AD335:AD4080) -> 0 | AH78: 0 | AI78: =SUMIF(F335:F4080,F78,AI335:AI4080) -> 0 | AJ78: =SUMIF(F335:F4080,F78,AJ335:AJ4080) -> 0 | AK78: =SUMIF(F335:F4080,F78,AK335:AK4080) -> 0 | AL78: =SUMIF(F335:F4080,F78,AL335:AL4080) -> 0 | AM78: =SUMIF(F335:F4080,F78,AM335:AM4080) -> 0 | AQ78: 0 | AR78: =SUMIF(F335:F4080,F78,AR335:AR4080) -> 0 | AS78: =SUMIF(F335:F4080,F78,AS335:AS4080) -> 0 | AT78: =SUMIF(F335:F4080,F78,AT335:AT4080) -> 0 | AU78: =SUMIF(F335:F4080,F78,AU335:AU4080) -> 0
F79: Administrative fees | I79: =SUMIF(F335:F4080,F79,I335:I4080) -> 0 | J79: =SUMIF(F335:F4080,F79,J335:J4080) -> 0 | K79: =SUMIF(F335:F4080,F79,K335:K4080) -> 0 | L79: =SUMIF(F335:F4080,F79,L335:L4080) -> 0 | M79: =SUMIF(F335:F4080,F79,M335:M4080) -> 0 | N79: =SUMIF(F335:F4080,F79,N335:N4080) -> 0 | O79: =SUMIF(F335:F4080,F79,O335:O4080) -> 0 | P79: =SUMIF(F335:F4080,F79,P335:P4080) -> 0 | Q79: =SUMIF(F335:F4080,F79,Q335:Q4080) -> 0 | R79: =SUMIF(F335:F4080,F79,R335:R4080) -> 0 | S79: =SUMIF(F335:F4080,F79,S335:S4080) -> 0 | T79: =SUMIF(F335:F4080,F79,T335:T4080) -> 0 | U79: =SUMIF(F335:F4080,F79,U335:U4080) -> 0 | V79: =IF(AND([4]Settings!A3=1,[4]Settings!A5="TRUE"),0,SUMIF(F335:F4080,F79,V335:V4080)) -> 0 | W79: =IF(AND([4]Settings!A3=1,[4]Settings!A5="TRUE"),0,SUMIF(F335:F4080,F79,W335:W4080)) -> 0 | X79: 0 | Y79: 0 | Z79: =SUMIF(F335:F4080,F79,Z335:Z4080) -> 0 | AA79: =SUMIF(F335:F4080,F79,AA335:AA4080) -> 0 | AB79: =SUMIF(F335:F4080,F79,AB335:AB4080) -> 0 | AC79: =SUMIF(F335:F4080,F79,AC335:AC4080) -> 0 | AD79: =SUMIF(F335:F4080,F79,AD335:AD4080) -> 0 | AE79: =IF(AND([4]Settings!A3=1,[4]Settings!A5="TRUE"),0,SUMIF(F335:F4080,F79,AE335:AE4080)) -> 0 | AF79: =IF(AND([4]Settings!A3=1,[4]Settings!A5="TRUE"),0,SUMIF(F335:F4080,F79,AF335:AF4080)) -> 0 | AG79: 0 | AH79: 0 | AI79: =SUMIF(F335:F4080,F79,AI335:AI4080) -> 0 | AJ79: =SUMIF(F335:F4080,F79,AJ335:AJ4080) -> 0 | AK79: =SUMIF(F335:F4080,F79,AK335:AK4080) -> 0 | AL79: =SUMIF(F335:F4080,F79,AL335:AL4080) -> 0 | AM79: =SUMIF(F335:F4080,F79,AM335:AM4080) -> 0 | AN79: =IF(AND([4]Settings!A3=1,[4]Settings!A5="TRUE"),0,SUMIF(F335:F4080,F79,AN335:AN4080)) -> 0 | AO79: =IF(AND([4]Settings!A3=1,[4]Settings!A5="TRUE"),0,SUMIF(F335:F4080,F79,AO335:AO4080)) -> 0 | AP79: 0 | AQ79: 0 | AR79: =SUMIF(F335:F4080,F79,AR335:AR4080) -> 0 | AS79: =SUMIF(F335:F4080,F79,AS335:AS4080) -> 0 | AT79: =SUMIF(F335:F4080,F79,AT335:AT4080) -> 0 | AU79: =SUMIF(F335:F4080,F79,AU335:AU4080) -> 0
F80: Advertising | I80: =SUMIF(F335:F4080,F80,I335:I4080) -> 0 | J80: =SUMIF(F335:F4080,F80,J335:J4080) -> 0 | K80: =SUMIF(F335:F4080,F80,K335:K4080) -> 0 | L80: =SUMIF(F335:F4080,F80,L335:L4080) -> 0 | M80: =SUMIF(F335:F4080,F80,M335:M4080) -> 0 | N80: =SUMIF(F335:F4080,F80,N335:N4080) -> 0 | O80: =SUMIF(F335:F4080,F80,O335:O4080) -> 0 | P80: =SUMIF(F335:F4080,F80,P335:P4080) -> 0 | Q80: =SUMIF(F335:F4080,F80,Q335:Q4080) -> 0 | R80: =SUMIF(F335:F4080,F80,R335:R4080) -> 0 | S80: =SUMIF(F335:F4080,F80,S335:S4080) -> 0 | T80: =SUMIF(F335:F4080,F80,T335:T4080) -> 0 | U80: =SUMIF(F335:F4080,F80,U335:U4080) -> 0 | V80: =IF(AND([4]Settings!A3=1,[4]Settings!A5="TRUE"),0,SUMIF(F335:F4080,F80,V335:V4080)) -> 0 | W80: =IF(AND([4]Settings!A3=1,[4]Settings!A5="TRUE"),0,SUMIF(F335:F4080,F80,W335:W4080)) -> 0 | X80: 0 | Y80: 0 | Z80: =SUMIF(F335:F4080,F80,Z335:Z4080) -> 0 | AA80: =SUMIF(F335:F4080,F80,AA335:AA4080) -> 0 | AB80: =SUMIF(F335:F4080,F80,AB335:AB4080) -> 0 | AC80: =SUMIF(F335:F4080,F80,AC335:AC4080) -> 0 | AD80: =SUMIF(F335:F4080,F80,AD335:AD4080) -> 0 | AE80: =IF(AND([4]Settings!A3=1,[4]Settings!A5="TRUE"),0,SUMIF(F335:F4080,F80,AE335:AE4080)) -> 0 | AF80: =IF(AND([4]Settings!A3=1,[4]Settings!A5="TRUE"),0,SUMIF(F335:F4080,F80,AF335:AF4080)) -> 0 | AG80: 0 | AH80: 0 | AI80: =SUMIF(F335:F4080,F80,AI335:AI4080) -> 0 | AJ80: =SUMIF(F335:F4080,F80,AJ335:AJ4080) -> 0 | AK80: =SUMIF(F335:F4080,F80,AK335:AK4080) -> 0 | AL80: =SUMIF(F335:F4080,F80,AL335:AL4080) -> 0 | AM80: =SUMIF(F335:F4080,F80,AM335:AM4080) -> 0 | AN80: =IF(AND([4]Settings!A3=1,[4]Settings!A5="TRUE"),0,SUMIF(F335:F4080,F80,AN335:AN4080)) -> 0 | AO80: =IF(AND([4]Settings!A3=1,[4]Settings!A5="TRUE"),0,SUMIF(F335:F4080,F80,AO335:AO4080)) -> 0 | AP80: 0 | AQ80: 0 | AR80: =SUMIF(F335:F4080,F80,AR335:AR4080) -> 0 | AS80: =SUMIF(F335:F4080,F80,AS335:AS4080) -> 0 | AT80: =SUMIF(F335:F4080,F80,AT335:AT4080) -> 0 | AU80: =SUMIF(F335:F4080,F80,AU335:AU4080) -> 0
F81: Minor assets | I81: =SUMIF(F335:F4080,F81,I335:I4080) -> 0 | J81: =SUMIF(F335:F4080,F81,J335:J4080) -> 0 | K81: =SUMIF(F335:F4080,F81,K335:K4080) -> 0 | L81: =SUMIF(F335:F4080,F81,L335:L4080) -> 0 | M81: =SUMIF(F335:F4080,F81,M335:M4080) -> 0 | N81: =SUMIF(F335:F4080,F81,N335:N4080) -> 0 | O81: =SUMIF(F335:F4080,F81,O335:O4080) -> 0 | P81: =SUMIF(F335:F4080,F81,P335:P4080) -> 0 | Q81: =SUMIF(F335:F4080,F81,Q335:Q4080) -> 0 | R81: =SUMIF(F335:F4080,F81,R335:R4080) -> 0 | S81: =SUMIF(F335:F4080,F81,S335:S4080) -> 0 | T81: =SUMIF(F335:F4080,F81,T335:T4080) -> 0 | U81: =SUMIF(F335:F4080,F81,U335:U4080) -> 0 | V81: =IF(AND([4]Settings!A3=1,[4]Settings!A5="TRUE"),0,SUMIF(F335:F4080,F81,V335:V4080)) -> 0 | W81: =IF(AND([4]Settings!A3=1,[4]Settings!A5="TRUE"),0,SUMIF(F335:F4080,F81,W335:W4080)) -> 0 | X81: 0 | Y81: 0 | Z81: =SUMIF(F335:F4080,F81,Z335:Z4080) -> 0 | AA81: =SUMIF(F335:F4080,F81,AA335:AA4080) -> 0 | AB81: =SUMIF(F335:F4080,F81,AB335:AB4080) -> 0 | AC81: =SUMIF(F335:F4080,F81,AC335:AC4080) -> 0 | AD81: =SUMIF(F335:F4080,F81,AD335:AD4080) -> 0 | AE81: =IF(AND([4]Settings!A3=1,[4]Settings!A5="TRUE"),0,SUMIF(F335:F4080,F81,AE335:AE4080)) -> 0 | AF81: =IF(AND([4]Settings!A3=1,[4]Settings!A5="TRUE"),0,SUMIF(F335:F4080,F81,AF335:AF4080)) -> 0 | AG81: 0 | AH81: 0 | AI81: =SUMIF(F335:F4080,F81,AI335:AI4080) -> 0 | AJ81: =SUMIF(F335:F4080,F81,AJ335:AJ4080) -> 0 | AK81: =SUMIF(F335:F4080,F81,AK335:AK4080) -> 0 | AL81: =SUMIF(F335:F4080,F81,AL335:AL4080) -> 0 | AM81: =SUMIF(F335:F4080,F81,AM335:AM4080) -> 0 | AN81: =IF(AND([4]Settings!A3=1,[4]Settings!A5="TRUE"),0,SUMIF(F335:F4080,F81,AN335:AN4080)) -> 0 | AO81: =IF(AND([4]Settings!A3=1,[4]Settings!A5="TRUE"),0,SUMIF(F335:F4080,F81,AO335:AO4080)) -> 0 | AP81: 0 | AQ81: 0 | AR81: =SUMIF(F335:F4080,F81,AR335:AR4080) -> 0 | AS81: =SUMIF(F335:F4080,F81,AS335:AS4080) -> 0 | AT81: =SUMIF(F335:F4080,F81,AT335:AT4080) -> 0 | AU81: =SUMIF(F335:F4080,F81,AU335:AU4080) -> 0
F82: Audit costs: External | I82: =SUMIF(F335:F4080,F82,I335:I4080) -> 0 | J82: =SUMIF(F335:F4080,F82,J335:J4080) -> 0 | K82: =SUMIF(F335:F4080,F82,K335:K4080) -> 0 | L82: =SUMIF(F335:F4080,F82,L335:L4080) -> 0 | M82: =SUMIF(F335:F4080,F82,M335:M4080) -> 0 | N82: =SUMIF(F335:F4080,F82,N335:N4080) -> 0 | O82: =SUMIF(F335:F4080,F82,O335:O4080) -> 0 | P82: =SUMIF(F335:F4080,F82,P335:P4080) -> 0 | Q82: =SUMIF(F335:F4080,F82,Q335:Q4080) -> 0 | R82: =SUMIF(F335:F4080,F82,R335:R4080) -> 0 | S82: =SUMIF(F335:F4080,F82,S335:S4080) -> 0 | T82: =SUMIF(F335:F4080,F82,T335:T4080) -> 0 | U82: =SUMIF(F335:F4080,F82,U335:U4080) -> 0 | V82: =IF(AND([4]Settings!A3=1,[4]Settings!A5="TRUE"),0,SUMIF(F335:F4080,F82,V335:V4080)) -> 0 | W82: =IF(AND([4]Settings!A3=1,[4]Settings!A5="TRUE"),0,SUMIF(F335:F4080,F82,W335:W4080)) -> 0 | X82: 0 | Y82: 0 | Z82: =SUMIF(F335:F4080,F82,Z335:Z4080) -> 0 | AA82: =SUMIF(F335:F4080,F82,AA335:AA4080) -> 0 | AB82: =SUMIF(F335:F4080,F82,AB335:AB4080) -> 0 | AC82: =SUMIF(F335:F4080,F82,AC335:AC4080) -> 0 | AD82: =SUMIF(F335:F4080,F82,AD335:AD4080) -> 0 | AE82: =IF(AND([4]Settings!A3=1,[4]Settings!A5="TRUE"),0,SUMIF(F335:F4080,F82,AE335:AE4080)) -> 0 | AF82: =IF(AND([4]Settings!A3=1,[4]Settings!A5="TRUE"),0,SUMIF(F335:F4080,F82,AF335:AF4080)) -> 0 | AG82: 0 | AH82: 0 | AI82: =SUMIF(F335:F4080,F82,AI335:AI4080) -> 0 | AJ82: =SUMIF(F335:F4080,F82,AJ335:AJ4080) -> 0 | AK82: =SUMIF(F335:F4080,F82,AK335:AK4080) -> 0 | AL82: =SUMIF(F335:F4080,F82,AL335:AL4080) -> 0 | AM82: =SUMIF(F335:F4080,F82,AM335:AM4080) -> 0 | AN82: =IF(AND([4]Settings!A3=1,[4]Settings!A5="TRUE"),0,SUMIF(F335:F4080,F82,AN335:AN4080)) -> 0 | AO82: =IF(AND([4]Settings!A3=1,[4]Settings!A5="TRUE"),0,SUMIF(F335:F4080,F82,AO335:AO4080)) -> 0 | AP82: 0 | AQ82: 0 | AR82: =SUMIF(F335:F4080,F82,AR335:AR4080) -> 0 | AS82: =SUMIF(F335:F4080,F82,AS335:AS4080) -> 0 | AT82: =SUMIF(F335:F4080,F82,AT335:AT4080) -> 0 | AU82: =SUMIF(F335:F4080,F82,AU335:AU4080) -> 0
F83: Bursaries: Employees | I83: =SUMIF(F335:F4080,F83,I335:I4080) -> 0 | J83: =SUMIF(F335:F4080,F83,J335:J4080) -> 0 | K83: =SUMIF(F335:F4080,F83,K335:K4080) -> 0 | L83: =SUMIF(F335:F4080,F83,L335:L4080) -> 0 | M83: =SUMIF(F335:F4080,F83,M335:M4080) -> 0 | N83: =SUMIF(F335:F4080,F83,N335:N4080) -> 0 | O83: =SUMIF(F335:F4080,F83,O335:O4080) -> 0 | P83: =SUMIF(F335:F4080,F83,P335:P4080) -> 0 | Q83: =SUMIF(F335:F4080,F83,Q335:Q4080) -> 0 | R83: =SUMIF(F335:F4080,F83,R335:R4080) -> 0 | S83: =SUMIF(F335:F4080,F83,S335:S4080) -> 0 | T83: =SUMIF(F335:F4080,F83,T335:T4080) -> 0 | U83: =SUMIF(F335:F4080,F83,U335:U4080) -> 0 | V83: =IF(AND([4]Settings!A3=1,[4]Settings!A5="TRUE"),0,SUMIF(F335:F4080,F83,V335:V4080)) -> 0 | W83: =IF(AND([4]Settings!A3=1,[4]Settings!A5="TRUE"),0,SUMIF(F335:F4080,F83,W335:W4080)) -> 0 | X83: 0 | Y83: 0 | Z83: =SUMIF(F335:F4080,F83,Z335:Z4080) -> 0 | AA83: =SUMIF(F335:F4080,F83,AA335:AA4080) -> 0 | AB83: =SUMIF(F335:F4080,F83,AB335:AB4080) -> 0 | AC83: =SUMIF(F335:F4080,F83,AC335:AC4080) -> 0 | AD83: =SUMIF(F335:F4080,F83,AD335:AD4080) -> 0 | AE83: =IF(AND([4]Settings!A3=1,[4]Settings!A5="TRUE"),0,SUMIF(F335:F4080,F83,AE335:AE4080)) -> 0 | AF83: =IF(AND([4]Settings!A3=1,[4]Settings!A5="TRUE"),0,SUMIF(F335:F4080,F83,AF335:AF4080)) -> 0 | AG83: 0 | AH83: 0 | AI83: =SUMIF(F335:F4080,F83,AI335:AI4080) -> 0 | AJ83: =SUMIF(F335:F4080,F83,AJ335:AJ4080) -> 0 | AK83: =SUMIF(F335:F4080,F83,AK335:AK4080) -> 0 | AL83: =SUMIF(F335:F4080,F83,AL335:AL4080) -> 0 | AM83: =SUMIF(F335:F4080,F83,AM335:AM4080) -> 0 | AN83: =IF(AND([4]Settings!A3=1,[4]Settings!A5="TRUE"),0,SUMIF(F335:F4080,F83,AN335:AN4080)) -> 0 | AO83: =IF(AND([4]Settings!A3=1,[4]Settings!A5="TRUE"),0,SUMIF(F335:F4080,F83,AO335:AO4080)) -> 0 | AP83: 0 | AQ83: 0 | AR83: =SUMIF(F335:F4080,F83,AR335:AR4080) -> 0 | AS83: =SUMIF(F335:F4080,F83,AS335:AS4080) -> 0 | AT83: =SUMIF(F335:F4080,F83,AT335:AT4080) -> 0 | AU83: =SUMIF(F335:F4080,F83,AU335:AU4080) -> 0
F84: Catering: Departmental activities | I84: =SUMIF(F335:F4080,F84,I335:I4080) -> 0 | J84: =SUMIF(F335:F4080,F84,J335:J4080) -> 0 | K84: =SUMIF(F335:F4080,F84,K335:K4080) -> 0 | L84: =SUMIF(F335:F4080,F84,L335:L4080) -> 0 | M84: =SUMIF(F335:F4080,F84,M335:M4080) -> 0 | N84: =SUMIF(F335:F4080,F84,N335:N4080) -> 0 | O84: =SUMIF(F335:F4080,F84,O335:O4080) -> 0 | P84: =SUMIF(F335:F4080,F84,P335:P4080) -> 0 | Q84: =SUMIF(F335:F4080,F84,Q335:Q4080) -> 0 | R84: =SUMIF(F335:F4080,F84,R335:R4080) -> 0 | S84: =SUMIF(F335:F4080,F84,S335:S4080) -> 0 | T84: =SUMIF(F335:F4080,F84,T335:T4080) -> 0 | U84: =SUMIF(F335:F4080,F84,U335:U4080) -> 0 | V84: =IF(AND([4]Settings!A3=1,[4]Settings!A5="TRUE"),0,SUMIF(F335:F4080,F84,V335:V4080)) -> 0 | W84: =IF(AND([4]Settings!A3=1,[4]Settings!A5="TRUE"),0,SUMIF(F335:F4080,F84,W335:W4080)) -> 0 | X84: 0 | Y84: 0 | Z84: =SUMIF(F335:F4080,F84,Z335:Z4080) -> 0 | AA84: =SUMIF(F335:F4080,F84,AA335:AA4080) -> 0 | AB84: =SUMIF(F335:F4080,F84,AB335:AB4080) -> 0 | AC84: =SUMIF(F335:F4080,F84,AC335:AC4080) -> 0 | AD84: =SUMIF(F335:F4080,F84,AD335:AD4080) -> 0 | AE84: =IF(AND([4]Settings!A3=1,[4]Settings!A5="TRUE"),0,SUMIF(F335:F4080,F84,AE335:AE4080)) -> 0 | AF84: =IF(AND([4]Settings!A3=1,[4]Settings!A5="TRUE"),0,SUMIF(F335:F4080,F84,AF335:AF4080)) -> 0 | AG84: 0 | AH84: 0 | AI84: =SUMIF(F335:F4080,F84,AI335:AI4080) -> 0 | AJ84: =SUMIF(F335:F4080,F84,AJ335:AJ4080) -> 0 | AK84: =SUMIF(F335:F4080,F84,AK335:AK4080) -> 0 | AL84: =SUMIF(F335:F4080,F84,AL335:AL4080) -> 0 | AM84: =SUMIF(F335:F4080,F84,AM335:AM4080) -> 0 | AN84: =IF(AND([4]Settings!A3=1,[4]Settings!A5="TRUE"),0,SUMIF(F335:F4080,F84,AN335:AN4080)) -> 0 | AO84: =IF(AND([4]Settings!A3=1,[4]Settings!A5="TRUE"),0,SUMIF(F335:F4080,F84,AO335:AO4080)) -> 0 | AP84: 0 | AQ84: 0 | AR84: =SUMIF(F335:F4080,F84,AR335:AR4080) -> 0 | AS84: =SUMIF(F335:F4080,F84,AS335:AS4080) -> 0 | AT84: =SUMIF(F335:F4080,F84,AT335:AT4080) -> 0 | AU84: =SUMIF(F335:F4080,F84,AU335:AU4080) -> 0
F85: Communication (G&S) | I85: =SUMIF(F335:F4080,F85,I335:I4080) -> 0 | J85: =SUMIF(F335:F4080,F85,J335:J4080) -> 0 | K85: =SUMIF(F335:F4080,F85,K335:K4080) -> 0 | L85: =SUMIF(F335:F4080,F85,L335:L4080) -> 0 | M85: =SUMIF(F335:F4080,F85,M335:M4080) -> 0 | N85: =SUMIF(F335:F4080,F85,N335:N4080) -> 0 | O85: =SUMIF(F335:F4080,F85,O335:O4080) -> 0 | P85: =SUMIF(F335:F4080,F85,P335:P4080) -> 0 | Q85: =SUMIF(F335:F4080,F85,Q335:Q4080) -> 0 | R85: =SUMIF(F335:F4080,F85,R335:R4080) -> 0 | S85: =SUMIF(F335:F4080,F85,S335:S4080) -> 0 | T85: =SUMIF(F335:F4080,F85,T335:T4080) -> 0 | U85: =SUMIF(F335:F4080,F85,U335:U4080) -> 0 | V85: =IF(AND([4]Settings!A3=1,[4]Settings!A5="TRUE"),0,SUMIF(F335:F4080,F85,V335:V4080)) -> 0 | W85: =IF(AND([4]Settings!A3=1,[4]Settings!A5="TRUE"),0,SUMIF(F335:F4080,F85,W335:W4080)) -> 0 | X85: 0 | Y85: 0 | Z85: =SUMIF(F335:F4080,F85,Z335:Z4080) -> 0 | AA85: =SUMIF(F335:F4080,F85,AA335:AA4080) -> 0 | AB85: =SUMIF(F335:F4080,F85,AB335:AB4080) -> 0 | AC85: =SUMIF(F335:F4080,F85,AC335:AC4080) -> 0 | AD85: =SUMIF(F335:F4080,F85,AD335:AD4080) -> 0 | AE85: =IF(AND([4]Settings!A3=1,[4]Settings!A5="TRUE"),0,SUMIF(F335:F4080,F85,AE335:AE4080)) -> 0 | AF85: =IF(AND([4]Settings!A3=1,[4]Settings!A5="TRUE"),0,SUMIF(F335:F4080,F85,AF335:AF4080)) -> 0 | AG85: 0 | AH85: 0 | AI85: =SUMIF(F335:F4080,F85,AI335:AI4080) -> 0 | AJ85: =SUMIF(F335:F4080,F85,AJ335:AJ4080) -> 0 | AK85: =SUMIF(F335:F4080,F85,AK335:AK4080) -> 0 | AL85: =SUMIF(F335:F4080,F85,AL335:AL4080) -> 0 | AM85: =SUMIF(F335:F4080,F85,AM335:AM4080) -> 0 | AN85: =IF(AND([4]Settings!A3=1,[4]Settings!A5="TRUE"),0,SUMIF(F335:F4080,F85,AN335:AN4080)) -> 0 | AO85: =IF(AND([4]Settings!A3=1,[4]Settings!A5="TRUE"),0,SUMIF(F335:F4080,F85,AO335:AO4080)) -> 0 | AP85: 0 | AQ85: 0 | AR85: =SUMIF(F335:F4080,F85,AR335:AR4080) -> 0 | AS85: =SUMIF(F335:F4080,F85,AS335:AS4080) -> 0 | AT85: =SUMIF(F335:F4080,F85,AT335:AT4080) -> 0 | AU85: =SUMIF(F335:F4080,F85,AU335:AU4080) -> 0
F86: Computer services | I86: =SUMIF(F335:F4080,F86,I335:I4080) -> 0 | J86: =SUMIF(F335:F4080,F86,J335:J4080) -> 0 | K86: =SUMIF(F335:F4080,F86,K335:K4080) -> 0 | L86: =SUMIF(F335:F4080,F86,L335:L4080) -> 0 | M86: =SUMIF(F335:F4080,F86,M335:M4080) -> 0 | N86: =SUMIF(F335:F4080,F86,N335:N4080) -> 0 | O86: =SUMIF(F335:F4080,F86,O335:O4080) -> 0 | P86: =SUMIF(F335:F4080,F86,P335:P4080) -> 0 | Q86: =SUMIF(F335:F4080,F86,Q335:Q4080) -> 0 | R86: =SUMIF(F335:F4080,F86,R335:R4080) -> 0 | S86: =SUMIF(F335:F4080,F86,S335:S4080) -> 0 | T86: =SUMIF(F335:F4080,F86,T335:T4080) -> 0 | U86: =SUMIF(F335:F4080,F86,U335:U4080) -> 0 | V86: =IF(AND([4]Settings!A3=1,[4]Settings!A5="TRUE"),0,SUMIF(F335:F4080,F86,V335:V4080)) -> 0 | W86: =IF(AND([4]Settings!A3=1,[4]Settings!A5="TRUE"),0,SUMIF(F335:F4080,F86,W335:W4080)) -> 0 | X86: 0 | Y86: 0 | Z86: =SUMIF(F335:F4080,F86,Z335:Z4080) -> 0 | AA86: =SUMIF(F335:F4080,F86,AA335:AA4080) -> 0 | AB86: =SUMIF(F335:F4080,F86,AB335:AB4080) -> 0 | AC86: =SUMIF(F335:F4080,F86,AC335:AC4080) -> 0 | AD86: =SUMIF(F335:F4080,F86,AD335:AD4080) -> 0 | AE86: =IF(AND([4]Settings!A3=1,[4]Settings!A5="TRUE"),0,SUMIF(F335:F4080,F86,AE335:AE4080)) -> 0 | AF86: =IF(AND([4]Settings!A3=1,[4]Settings!A5="TRUE"),0,SUMIF(F335:F4080,F86,AF335:AF4080)) -> 0 | AG86: 0 | AH86: 0 | AI86: =SUMIF(F335:F4080,F86,AI335:AI4080) -> 0 | AJ86: =SUMIF(F335:F4080,F86,AJ335:AJ4080) -> 0 | AK86: =SUMIF(F335:F4080,F86,AK335:AK4080) -> 0 | AL86: =SUMIF(F335:F4080,F86,AL335:AL4080) -> 0 | AM86: =SUMIF(F335:F4080,F86,AM335:AM4080) -> 0 | AN86: =IF(AND([4]Settings!A3=1,[4]Settings!A5="TRUE"),0,SUMIF(F335:F4080,F86,AN335:AN4080)) -> 0 | AO86: =IF(AND([4]Settings!A3=1,[4]Settings!A5="TRUE"),0,SUMIF(F335:F4080,F86,AO335:AO4080)) -> 0 | AP86: 0 | AQ86: 0 | AR86: =SUMIF(F335:F4080,F86,AR335:AR4080) -> 0 | AS86: =SUMIF(F335:F4080,F86,AS335:AS4080) -> 0 | AT86: =SUMIF(F335:F4080,F86,AT335:AT4080) -> 0 | AU86: =SUMIF(F335:F4080,F86,AU335:AU4080) -> 0
F87: Consultants: Business and advisory services | I87: =SUMIF(F335:F4080,F87,I335:I4080) -> 0 | J87: =SUMIF(F335:F4080,F87,J335:J4080) -> 0 | K87: =SUMIF(F335:F4080,F87,K335:K4080) -> 0 | L87: =SUMIF(F335:F4080,F87,L335:L4080) -> 0 | M87: =SUMIF(F335:F4080,F87,M335:M4080) -> 0 | N87: =SUMIF(F335:F4080,F87,N335:N4080) -> 0 | O87: =SUMIF(F335:F4080,F87,O335:O4080) -> 0 | P87: =SUMIF(F335:F4080,F87,P335:P4080) -> 0 | Q87: =SUMIF(F335:F4080,F87,Q335:Q4080) -> 0 | R87: =SUMIF(F335:F4080,F87,R335:R4080) -> 0 | S87: =SUMIF(F335:F4080,F87,S335:S4080) -> 0 | T87: =SUMIF(F335:F4080,F87,T335:T4080) -> 0 | U87: =SUMIF(F335:F4080,F87,U335:U4080) -> 0 | V87: =IF(AND([4]Settings!A3=1,[4]Settings!A5="TRUE"),0,SUMIF(F335:F4080,F87,V335:V4080)) -> 0 | W87: =IF(AND([4]Settings!A3=1,[4]Settings!A5="TRUE"),0,SUMIF(F335:F4080,F87,W335:W4080)) -> 0 | X87: 0 | Y87: 0 | Z87: =SUMIF(F335:F4080,F87,Z335:Z4080) -> 0 | AA87: =SUMIF(F335:F4080,F87,AA335:AA4080) -> 0 | AB87: =SUMIF(F335:F4080,F87,AB335:AB4080) -> 0 | AC87: =SUMIF(F335:F4080,F87,AC335:AC4080) -> 0 | AD87: =SUMIF(F335:F4080,F87,AD335:AD4080) -> 0 | AE87: =IF(AND([4]Settings!A3=1,[4]Settings!A5="TRUE"),0,SUMIF(F335:F4080,F87,AE335:AE4080)) -> 0 | AF87: =IF(AND([4]Settings!A3=1,[4]Settings!A5="TRUE"),0,SUMIF(F335:F4080,F87,AF335:AF4080)) -> 0 | AG87: 0 | AH87: 0 | AI87: =SUMIF(F335:F4080,F87,AI335:AI4080) -> 0 | AJ87: =SUMIF(F335:F4080,F87,AJ335:AJ4080) -> 0 | AK87: =SUMIF(F335:F4080,F87,AK335:AK4080) -> 0 | AL87: =SUMIF(F335:F4080,F87,AL335:AL4080) -> 0 | AM87: =SUMIF(F335:F4080,F87,AM335:AM4080) -> 0 | AN87: =IF(AND([4]Settings!A3=1,[4]Settings!A5="TRUE"),0,SUMIF(F335:F4080,F87,AN335:AN4080)) -> 0 | AO87: =IF(AND([4]Settings!A3=1,[4]Settings!A5="TRUE"),0,SUMIF(F335:F4080,F87,AO335:AO4080)) -> 0 | AP87: 0 | AQ87: 0 | AR87: =SUMIF(F335:F4080,F87,AR335:AR4080) -> 0 | AS87: =SUMIF(F335:F4080,F87,AS335:AS4080) -> 0 | AT87: =SUMIF(F335:F4080,F87,AT335:AT4080) -> 0 | AU87: =SUMIF(F335:F4080,F87,AU335:AU4080) -> 0
F88: Infrastructure and planning services | I88: =SUMIF(F335:F4080,F88,I335:I4080) -> 0 | J88: =SUMIF(F335:F4080,F88,J335:J4080) -> 0 | K88: =SUMIF(F335:F4080,F88,K335:K4080) -> 0 | L88: =SUMIF(F335:F4080,F88,L335:L4080) -> 0 | M88: =SUMIF(F335:F4080,F88,M335:M4080) -> 0 | N88: =SUMIF(F335:F4080,F88,N335:N4080) -> 0 | O88: =SUMIF(F335:F4080,F88,O335:O4080) -> 0 | P88: =SUMIF(F335:F4080,F88,P335:P4080) -> 0 | Q88: =SUMIF(F335:F4080,F88,Q335:Q4080) -> 0 | R88: =SUMIF(F335:F4080,F88,R335:R4080) -> 0 | S88: =SUMIF(F335:F4080,F88,S335:S4080) -> 0 | T88: =SUMIF(F335:F4080,F88,T335:T4080) -> 0 | U88: =SUMIF(F335:F4080,F88,U335:U4080) -> 0 | V88: =IF(AND([4]Settings!A3=1,[4]Settings!A5="TRUE"),0,SUMIF(F335:F4080,F88,V335:V4080)) -> 0 | W88: =IF(AND([4]Settings!A3=1,[4]Settings!A5="TRUE"),0,SUMIF(F335:F4080,F88,W335:W4080)) -> 0 | X88: 0 | Y88: 0 | Z88: =SUMIF(F335:F4080,F88,Z335:Z4080) -> 0 | AA88: =SUMIF(F335:F4080,F88,AA335:AA4080) -> 0 | AB88: =SUMIF(F335:F4080,F88,AB335:AB4080) -> 0 | AC88: =SUMIF(F335:F4080,F88,AC335:AC4080) -> 0 | AD88: =SUMIF(F335:F4080,F88,AD335:AD4080) -> 0 | AE88: =IF(AND([4]Settings!A3=1,[4]Settings!A5="TRUE"),0,SUMIF(F335:F4080,F88,AE335:AE4080)) -> 0 | AF88: =IF(AND([4]Settings!A3=1,[4]Settings!A5="TRUE"),0,SUMIF(F335:F4080,F88,AF335:AF4080)) -> 0 | AG88: 0 | AH88: 0 | AI88: =SUMIF(F335:F4080,F88,AI335:AI4080) -> 0 | AJ88: =SUMIF(F335:F4080,F88,AJ335:AJ4080) -> 0 | AK88: =SUMIF(F335:F4080,F88,AK335:AK4080) -> 0 | AL88: =SUMIF(F335:F4080,F88,AL335:AL4080) -> 0 | AM88: =SUMIF(F335:F4080,F88,AM335:AM4080) -> 0 | AN88: =IF(AND([4]Settings!A3=1,[4]Settings!A5="TRUE"),0,SUMIF(F335:F4080,F88,AN335:AN4080)) -> 0 | AO88: =IF(AND([4]Settings!A3=1,[4]Settings!A5="TRUE"),0,SUMIF(F335:F4080,F88,AO335:AO4080)) -> 0 | AP88: 0 | AQ88: 0 | AR88: =SUMIF(F335:F4080,F88,AR335:AR4080) -> 0 | AS88: =SUMIF(F335:F4080,F88,AS335:AS4080) -> 0 | AT88: =SUMIF(F335:F4080,F88,AT335:AT4080) -> 0 | AU88: =SUMIF(F335:F4080,F88,AU335:AU4080) -> 0
F89: Laboratory services | I89: =SUMIF(F335:F4080,F89,I335:I4080) -> 0 | J89: =SUMIF(F335:F4080,F89,J335:J4080) -> 0 | K89: =SUMIF(F335:F4080,F89,K335:K4080) -> 0 | L89: =SUMIF(F335:F4080,F89,L335:L4080) -> 0 | M89: =SUMIF(F335:F4080,F89,M335:M4080) -> 0 | N89: =SUMIF(F335:F4080,F89,N335:N4080) -> 0 | O89: =SUMIF(F335:F4080,F89,O335:O4080) -> 0 | P89: =SUMIF(F335:F4080,F89,P335:P4080) -> 0 | Q89: =SUMIF(F335:F4080,F89,Q335:Q4080) -> 0 | R89: =SUMIF(F335:F4080,F89,R335:R4080) -> 0 | S89: =SUMIF(F335:F4080,F89,S335:S4080) -> 0 | T89: =SUMIF(F335:F4080,F89,T335:T4080) -> 0 | U89: =SUMIF(F335:F4080,F89,U335:U4080) -> 0 | V89: =IF(AND([4]Settings!A3=1,[4]Settings!A5="TRUE"),0,SUMIF(F335:F4080,F89,V335:V4080)) -> 0 | W89: =IF(AND([4]Settings!A3=1,[4]Settings!A5="TRUE"),0,SUMIF(F335:F4080,F89,W335:W4080)) -> 0 | X89: 0 | Y89: 0 | Z89: =SUMIF(F335:F4080,F89,Z335:Z4080) -> 0 | AA89: =SUMIF(F335:F4080,F89,AA335:AA4080) -> 0 | AB89: =SUMIF(F335:F4080,F89,AB335:AB4080) -> 0 | AC89: =SUMIF(F335:F4080,F89,AC335:AC4080) -> 0 | AD89: =SUMIF(F335:F4080,F89,AD335:AD4080) -> 0 | AE89: =IF(AND([4]Settings!A3=1,[4]Settings!A5="TRUE"),0,SUMIF(F335:F4080,F89,AE335:AE4080)) -> 0 | AF89: =IF(AND([4]Settings!A3=1,[4]Settings!A5="TRUE"),0,SUMIF(F335:F4080,F89,AF335:AF4080)) -> 0 | AG89: 0 | AH89: 0 | AI89: =SUMIF(F335:F4080,F89,AI335:AI4080) -> 0 | AJ89: =SUMIF(F335:F4080,F89,AJ335:AJ4080) -> 0 | AK89: =SUMIF(F335:F4080,F89,AK335:AK4080) -> 0 | AL89: =SUMIF(F335:F4080,F89,AL335:AL4080) -> 0 | AM89: =SUMIF(F335:F4080,F89,AM335:AM4080) -> 0 | AN89: =IF(AND([4]Settings!A3=1,[4]Settings!A5="TRUE"),0,SUMIF(F335:F4080,F89,AN335:AN4080)) -> 0 | AO89: =IF(AND([4]Settings!A3=1,[4]Settings!A5="TRUE"),0,SUMIF(F335:F4080,F89,AO335:AO4080)) -> 0 | AP89: 0 | AQ89: 0 | AR89: =SUMIF(F335:F4080,F89,AR335:AR4080) -> 0 | AS89: =SUMIF(F335:F4080,F89,AS335:AS4080) -> 0 | AT89: =SUMIF(F335:F4080,F89,AT335:AT4080) -> 0 | AU89: =SUMIF(F335:F4080,F89,AU335:AU4080) -> 0
F90: Legal services (G&S) | I90: =SUMIF(F335:F4080,F90,I335:I4080) -> 0 | J90: =SUMIF(F335:F4080,F90,J335:J4080) -> 0 | K90: =SUMIF(F335:F4080,F90,K335:K4080) -> 0 | L90: =SUMIF(F335:F4080,F90,L335:L4080) -> 0 | M90: =SUMIF(F335:F4080,F90,M335:M4080) -> 0 | N90: =SUMIF(F335:F4080,F90,N335:N4080) -> 0 | O90: =SUMIF(F335:F4080,F90,O335:O4080) -> 0 | P90: =SUMIF(F335:F4080,F90,P335:P4080) -> 0 | Q90: =SUMIF(F335:F4080,F90,Q335:Q4080) -> 0 | R90: =SUMIF(F335:F4080,F90,R335:R4080) -> 0 | S90: =SUMIF(F335:F4080,F90,S335:S4080) -> 0 | T90: =SUMIF(F335:F4080,F90,T335:T4080) -> 0 | U90: =SUMIF(F335:F4080,F90,U335:U4080) -> 0 | V90: =IF(AND([4]Settings!A3=1,[4]Settings!A5="TRUE"),0,SUMIF(F335:F4080,F90,V335:V4080)) -> 0 | W90: =IF(AND([4]Settings!A3=1,[4]Settings!A5="TRUE"),0,SUMIF(F335:F4080,F90,W335:W4080)) -> 0 | X90: 0 | Y90: 0 | Z90: =SUMIF(F335:F4080,F90,Z335:Z4080) -> 0 | AA90: =SUMIF(F335:F4080,F90,AA335:AA4080) -> 0 | AB90: =SUMIF(F335:F4080,F90,AB335:AB4080) -> 0 | AC90: =SUMIF(F335:F4080,F90,AC335:AC4080) -> 0 | AD90: =SUMIF(F335:F4080,F90,AD335:AD4080) -> 0 | AE90: =IF(AND([4]Settings!A3=1,[4]Settings!A5="TRUE"),0,SUMIF(F335:F4080,F90,AE335:AE4080)) -> 0 | AF90: =IF(AND([4]Settings!A3=1,[4]Settings!A5="TRUE"),0,SUMIF(F335:F4080,F90,AF335:AF4080)) -> 0 | AG90: 0 | AH90: 0 | AI90: =SUMIF(F335:F4080,F90,AI335:AI4080) -> 0 | AJ90: =SUMIF(F335:F4080,F90,AJ335:AJ4080) -> 0 | AK90: =SUMIF(F335:F4080,F90,AK335:AK4080) -> 0 | AL90: =SUMIF(F335:F4080,F90,AL335:AL4080) -> 0 | AM90: =SUMIF(F335:F4080,F90,AM335:AM4080) -> 0 | AN90: =IF(AND([4]Settings!A3=1,[4]Settings!A5="TRUE"),0,SUMIF(F335:F4080,F90,AN335:AN4080)) -> 0 | AO90: =IF(AND([4]Settings!A3=1,[4]Settings!A5="TRUE"),0,SUMIF(F335:F4080,F90,AO335:AO4080)) -> 0 | AP90: 0 | AQ90: 0 | AR90: =SUMIF(F335:F4080,F90,AR335:AR4080) -> 0 | AS90: =SUMIF(F335:F4080,F90,AS335:AS4080) -> 0 | AT90: =SUMIF(F335:F4080,F90,AT335:AT4080) -> 0 | AU90: =SUMIF(F335:F4080,F90,AU335:AU4080) -> 0
F91: Science and technological services | I91: =SUMIF(F335:F4080,F91,I335:I4080) -> 0 | J91: =SUMIF(F335:F4080,F91,J335:J4080) -> 0 | K91: =SUMIF(F335:F4080,F91,K335:K4080) -> 0 | L91: =SUMIF(F335:F4080,F91,L335:L4080) -> 0 | M91: =SUMIF(F335:F4080,F91,M335:M4080) -> 0 | N91: =SUMIF(F335:F4080,F91,N335:N4080) -> 0 | O91: =SUMIF(F335:F4080,F91,O335:O4080) -> 0 | P91: =SUMIF(F335:F4080,F91,P335:P4080) -> 0 | Q91: =SUMIF(F335:F4080,F91,Q335:Q4080) -> 0 | R91: =SUMIF(F335:F4080,F91,R335:R4080) -> 0 | S91: =SUMIF(F335:F4080,F91,S335:S4080) -> 0 | T91: =SUMIF(F335:F4080,F91,T335:T4080) -> 0 | U91: =SUMIF(F335:F4080,F91,U335:U4080) -> 0 | V91: =IF(AND([4]Settings!A3=1,[4]Settings!A5="TRUE"),0,SUMIF(F335:F4080,F91,V335:V4080)) -> 0 | W91: =IF(AND([4]Settings!A3=1,[4]Settings!A5="TRUE"),0,SUMIF(F335:F4080,F91,W335:W4080)) -> 0 | X91: 0 | Y91: 0 | Z91: =SUMIF(F335:F4080,F91,Z335:Z4080) -> 0 | AA91: =SUMIF(F335:F4080,F91,AA335:AA4080) -> 0 | AB91: =SUMIF(F335:F4080,F91,AB335:AB4080) -> 0 | AC91: =SUMIF(F335:F4080,F91,AC335:AC4080) -> 0 | AD91: =SUMIF(F335:F4080,F91,AD335:AD4080) -> 0 | AE91: =IF(AND([4]Settings!A3=1,[4]Settings!A5="TRUE"),0,SUMIF(F335:F4080,F91,AE335:AE4080)) -> 0 | AF91: =IF(AND([4]Settings!A3=1,[4]Settings!A5="TRUE"),0,SUMIF(F335:F4080,F91,AF335:AF4080)) -> 0 | AG91: 0 | AH91: 0 | AI91: =SUMIF(F335:F4080,F91,AI335:AI4080) -> 0 | AJ91: =SUMIF(F335:F4080,F91,AJ335:AJ4080) -> 0 | AK91: =SUMIF(F335:F4080,F91,AK335:AK4080) -> 0 | AL91: =SUMIF(F335:F4080,F91,AL335:AL4080) -> 0 | AM91: =SUMIF(F335:F4080,F91,AM335:AM4080) -> 0 | AN91: =IF(AND([4]Settings!A3=1,[4]Settings!A5="TRUE"),0,SUMIF(F335:F4080,F91,AN335:AN4080)) -> 0 | AO91: =IF(AND([4]Settings!A3=1,[4]Settings!A5="TRUE"),0,SUMIF(F335:F4080,F91,AO335:AO4080)) -> 0 | AP91: 0 | AQ91: 0 | AR91: =SUMIF(F335:F4080,F91,AR335:AR4080) -> 0 | AS91: =SUMIF(F335:F4080,F91,AS335:AS4080) -> 0 | AT91: =SUMIF(F335:F4080,F91,AT335:AT4080) -> 0 | AU91: =SUMIF(F335:F4080,F91,AU335:AU4080) -> 0
F92: Contractors | I92: =SUMIF(F335:F4080,F92,I335:I4080) -> 0 | J92: =SUMIF(F335:F4080,F92,J335:J4080) -> 0 | K92: =SUMIF(F335:F4080,F92,K335:K4080) -> 0 | L92: =SUMIF(F335:F4080,F92,L335:L4080) -> 0 | M92: =SUMIF(F335:F4080,F92,M335:M4080) -> 0 | N92: =SUMIF(F335:F4080,F92,N335:N4080) -> 0 | O92: =SUMIF(F335:F4080,F92,O335:O4080) -> 0 | P92: =SUMIF(F335:F4080,F92,P335:P4080) -> 0 | Q92: =SUMIF(F335:F4080,F92,Q335:Q4080) -> 0 | R92: =SUMIF(F335:F4080,F92,R335:R4080) -> 0 | S92: =SUMIF(F335:F4080,F92,S335:S4080) -> 0 | T92: =SUMIF(F335:F4080,F92,T335:T4080) -> 0 | U92: =SUMIF(F335:F4080,F92,U335:U4080) -> 0 | V92: =IF(AND([4]Settings!A3=1,[4]Settings!A5="TRUE"),0,SUMIF(F335:F4080,F92,V335:V4080)) -> 0 | W92: =IF(AND([4]Settings!A3=1,[4]Settings!A5="TRUE"),0,SUMIF(F335:F4080,F92,W335:W4080)) -> 0 | X92: 0 | Y92: 0 | Z92: =SUMIF(F335:F4080,F92,Z335:Z4080) -> 0 | AA92: =SUMIF(F335:F4080,F92,AA335:AA4080) -> 0 | AB92: =SUMIF(F335:F4080,F92,AB335:AB4080) -> 0 | AC92: =SUMIF(F335:F4080,F92,AC335:AC4080) -> 0 | AD92: =SUMIF(F335:F4080,F92,AD335:AD4080) -> 0 | AE92: =IF(AND([4]Settings!A3=1,[4]Settings!A5="TRUE"),0,SUMIF(F335:F4080,F92,AE335:AE4080)) -> 0 | AF92: =IF(AND([4]Settings!A3=1,[4]Settings!A5="TRUE"),0,SUMIF(F335:F4080,F92,AF335:AF4080)) -> 0 | AG92: 0 | AH92: 0 | AI92: =SUMIF(F335:F4080,F92,AI335:AI4080) -> 0 | AJ92: =SUMIF(F335:F4080,F92,AJ335:AJ4080) -> 0 | AK92: =SUMIF(F335:F4080,F92,AK335:AK4080) -> 0 | AL92: =SUMIF(F335:F4080,F92,AL335:AL4080) -> 0 | AM92: =SUMIF(F335:F4080,F92,AM335:AM4080) -> 0 | AN92: =IF(AND([4]Settings!A3=1,[4]Settings!A5="TRUE"),0,SUMIF(F335:F4080,F92,AN335:AN4080)) -> 0 | AO92: =IF(AND([4]Settings!A3=1,[4]Settings!A5="TRUE"),0,SUMIF(F335:F4080,F92,AO335:AO4080)) -> 0 | AP92: 0 | AQ92: 0 | AR92: =SUMIF(F335:F4080,F92,AR335:AR4080) -> 0 | AS92: =SUMIF(F335:F4080,F92,AS335:AS4080) -> 0 | AT92: =SUMIF(F335:F4080,F92,AT335:AT4080) -> 0 | AU92: =SUMIF(F335:F4080,F92,AU335:AU4080) -> 0
F93: Agency and support/outsourced services | I93: =SUMIF(F335:F4080,F93,I335:I4080) -> 0 | J93: =SUMIF(F335:F4080,F93,J335:J4080) -> 0 | K93: =SUMIF(F335:F4080,F93,K335:K4080) -> 0 | L93: =SUMIF(F335:F4080,F93,L335:L4080) -> 0 | M93: =SUMIF(F335:F4080,F93,M335:M4080) -> 0 | N93: =SUMIF(F335:F4080,F93,N335:N4080) -> 0 | O93: =SUMIF(F335:F4080,F93,O335:O4080) -> 0 | P93: =SUMIF(F335:F4080,F93,P335:P4080) -> 0 | Q93: =SUMIF(F335:F4080,F93,Q335:Q4080) -> 0 | R93: =SUMIF(F335:F4080,F93,R335:R4080) -> 0 | S93: =SUMIF(F335:F4080,F93,S335:S4080) -> 0 | T93: =SUMIF(F335:F4080,F93,T335:T4080) -> 0 | U93: =SUMIF(F335:F4080,F93,U335:U4080) -> 0 | V93: =IF(AND([4]Settings!A3=1,[4]Settings!A5="TRUE"),0,SUMIF(F335:F4080,F93,V335:V4080)) -> 0 | W93: =IF(AND([4]Settings!A3=1,[4]Settings!A5="TRUE"),0,SUMIF(F335:F4080,F93,W335:W4080)) -> 0 | X93: 0 | Y93: 0 | Z93: =SUMIF(F335:F4080,F93,Z335:Z4080) -> 0 | AA93: =SUMIF(F335:F4080,F93,AA335:AA4080) -> 0 | AB93: =SUMIF(F335:F4080,F93,AB335:AB4080) -> 0 | AC93: =SUMIF(F335:F4080,F93,AC335:AC4080) -> 0 | AD93: =SUMIF(F335:F4080,F93,AD335:AD4080) -> 0 | AE93: =IF(AND([4]Settings!A3=1,[4]Settings!A5="TRUE"),0,SUMIF(F335:F4080,F93,AE335:AE4080)) -> 0 | AF93: =IF(AND([4]Settings!A3=1,[4]Settings!A5="TRUE"),0,SUMIF(F335:F4080,F93,AF335:AF4080)) -> 0 | AG93: 0 | AH93: 0 | AI93: =SUMIF(F335:F4080,F93,AI335:AI4080) -> 0 | AJ93: =SUMIF(F335:F4080,F93,AJ335:AJ4080) -> 0 | AK93: =SUMIF(F335:F4080,F93,AK335:AK4080) -> 0 | AL93: =SUMIF(F335:F4080,F93,AL335:AL4080) -> 0 | AM93: =SUMIF(F335:F4080,F93,AM335:AM4080) -> 0 | AN93: =IF(AND([4]Settings!A3=1,[4]Settings!A5="TRUE"),0,SUMIF(F335:F4080,F93,AN335:AN4080)) -> 0 | AO93: =IF(AND([4]Settings!A3=1,[4]Settings!A5="TRUE"),0,SUMIF(F335:F4080,F93,AO335:AO4080)) -> 0 | AP93: 0 | AQ93: 0 | AR93: =SUMIF(F335:F4080,F93,AR335:AR4080) -> 0 | AS93: =SUMIF(F335:F4080,F93,AS335:AS4080) -> 0 | AT93: =SUMIF(F335:F4080,F93,AT335:AT4080) -> 0 | AU93: =SUMIF(F335:F4080,F93,AU335:AU4080) -> 0
F94: Entertainment | I94: =SUMIF(F335:F4080,F94,I335:I4080) -> 0 | J94: =SUMIF(F335:F4080,F94,J335:J4080) -> 0 | K94: =SUMIF(F335:F4080,F94,K335:K4080) -> 0 | L94: =SUMIF(F335:F4080,F94,L335:L4080) -> 0 | M94: =SUMIF(F335:F4080,F94,M335:M4080) -> 0 | N94: =SUMIF(F335:F4080,F94,N335:N4080) -> 0 | O94: =SUMIF(F335:F4080,F94,O335:O4080) -> 0 | P94: =SUMIF(F335:F4080,F94,P335:P4080) -> 0 | Q94: =SUMIF(F335:F4080,F94,Q335:Q4080) -> 0 | R94: =SUMIF(F335:F4080,F94,R335:R4080) -> 0 | S94: =SUMIF(F335:F4080,F94,S335:S4080) -> 0 | T94: =SUMIF(F335:F4080,F94,T335:T4080) -> 0 | U94: =SUMIF(F335:F4080,F94,U335:U4080) -> 0 | V94: =IF(AND([4]Settings!A3=1,[4]Settings!A5="TRUE"),0,SUMIF(F335:F4080,F94,V335:V4080)) -> 0 | W94: =IF(AND([4]Settings!A3=1,[4]Settings!A5="TRUE"),0,SUMIF(F335:F4080,F94,W335:W4080)) -> 0 | X94: 0 | Y94: 0 | Z94: =SUMIF(F335:F4080,F94,Z335:Z4080) -> 0 | AA94: =SUMIF(F335:F4080,F94,AA335:AA4080) -> 0 | AB94: =SUMIF(F335:F4080,F94,AB335:AB4080) -> 0 | AC94: =SUMIF(F335:F4080,F94,AC335:AC4080) -> 0 | AD94: =SUMIF(F335:F4080,F94,AD335:AD4080) -> 0 | AE94: =IF(AND([4]Settings!A3=1,[4]Settings!A5="TRUE"),0,SUMIF(F335:F4080,F94,AE335:AE4080)) -> 0 | AF94: =IF(AND([4]Settings!A3=1,[4]Settings!A5="TRUE"),0,SUMIF(F335:F4080,F94,AF335:AF4080)) -> 0 | AG94: 0 | AH94: 0 | AI94: =SUMIF(F335:F4080,F94,AI335:AI4080) -> 0 | AJ94: =SUMIF(F335:F4080,F94,AJ335:AJ4080) -> 0 | AK94: =SUMIF(F335:F4080,F94,AK335:AK4080) -> 0 | AL94: =SUMIF(F335:F4080,F94,AL335:AL4080) -> 0 | AM94: =SUMIF(F335:F4080,F94,AM335:AM4080) -> 0 | AN94: =IF(AND([4]Settings!A3=1,[4]Settings!A5="TRUE"),0,SUMIF(F335:F4080,F94,AN335:AN4080)) -> 0 | AO94: =IF(AND([4]Settings!A3=1,[4]Settings!A5="TRUE"),0,SUMIF(F335:F4080,F94,AO335:AO4080)) -> 0 | AP94: 0 | AQ94: 0 | AR94: =SUMIF(F335:F4080,F94,AR335:AR4080) -> 0 | AS94: =SUMIF(F335:F4080,F94,AS335:AS4080) -> 0 | AT94: =SUMIF(F335:F4080,F94,AT335:AT4080) -> 0 | AU94: =SUMIF(F335:F4080,F94,AU335:AU4080) -> 0
F95: Fleet services (including government motor transport) | I95: =SUMIF(F335:F4080,F95,I335:I4080) -> 0 | J95: =SUMIF(F335:F4080,F95,J335:J4080) -> 0 | K95: =SUMIF(F335:F4080,F95,K335:K4080) -> 0 | L95: =SUMIF(F335:F4080,F95,L335:L4080) -> 0 | M95: =SUMIF(F335:F4080,F95,M335:M4080) -> 0 | N95: =SUMIF(F335:F4080,F95,N335:N4080) -> 0 | O95: =SUMIF(F335:F4080,F95,O335:O4080) -> 0 | P95: =SUMIF(F335:F4080,F95,P335:P4080) -> 0 | Q95: =SUMIF(F335:F4080,F95,Q335:Q4080) -> 0 | R95: =SUMIF(F335:F4080,F95,R335:R4080) -> 0 | S95: =SUMIF(F335:F4080,F95,S335:S4080) -> 0 | T95: =SUMIF(F335:F4080,F95,T335:T4080) -> 0 | U95: =SUMIF(F335:F4080,F95,U335:U4080) -> 0 | V95: =IF(AND([4]Settings!A3=1,[4]Settings!A5="TRUE"),0,SUMIF(F335:F4080,F95,V335:V4080)) -> 0 | W95: =IF(AND([4]Settings!A3=1,[4]Settings!A5="TRUE"),0,SUMIF(F335:F4080,F95,W335:W4080)) -> 0 | X95: 0 | Y95: 0 | Z95: =SUMIF(F335:F4080,F95,Z335:Z4080) -> 0 | AA95: =SUMIF(F335:F4080,F95,AA335:AA4080) -> 0 | AB95: =SUMIF(F335:F4080,F95,AB335:AB4080) -> 0 | AC95: =SUMIF(F335:F4080,F95,AC335:AC4080) -> 0 | AD95: =SUMIF(F335:F4080,F95,AD335:AD4080) -> 0 | AE95: =IF(AND([4]Settings!A3=1,[4]Settings!A5="TRUE"),0,SUMIF(F335:F4080,F95,AE335:AE4080)) -> 0 | AF95: =IF(AND([4]Settings!A3=1,[4]Settings!A5="TRUE"),0,SUMIF(F335:F4080,F95,AF335:AF4080)) -> 0 | AG95: 0 | AH95: 0 | AI95: =SUMIF(F335:F4080,F95,AI335:AI4080) -> 0 | AJ95: =SUMIF(F335:F4080,F95,AJ335:AJ4080) -> 0 | AK95: =SUMIF(F335:F4080,F95,AK335:AK4080) -> 0 | AL95: =SUMIF(F335:F4080,F95,AL335:AL4080) -> 0 | AM95: =SUMIF(F335:F4080,F95,AM335:AM4080) -> 0 | AN95: =IF(AND([4]Settings!A3=1,[4]Settings!A5="TRUE"),0,SUMIF(F335:F4080,F95,AN335:AN4080)) -> 0 | AO95: =IF(AND([4]Settings!A3=1,[4]Settings!A5="TRUE"),0,SUMIF(F335:F4080,F95,AO335:AO4080)) -> 0 | AP95: 0 | AQ95: 0 | AR95: =SUMIF(F335:F4080,F95,AR335:AR4080) -> 0 | AS95: =SUMIF(F335:F4080,F95,AS335:AS4080) -> 0 | AT95: =SUMIF(F335:F4080,F95,AT335:AT4080) -> 0 | AU95: =SUMIF(F335:F4080,F95,AU335:AU4080) -> 0
F96: Housing | I96: =SUMIF(F335:F4080,F96,I335:I4080) -> 0 | J96: =SUMIF(F335:F4080,F96,J335:J4080) -> 0 | K96: =SUMIF(F335:F4080,F96,K335:K4080) -> 0 | L96: =SUMIF(F335:F4080,F96,L335:L4080) -> 0 | M96: =SUMIF(F335:F4080,F96,M335:M4080) -> 0 | N96: =SUMIF(F335:F4080,F96,N335:N4080) -> 0 | O96: =SUMIF(F335:F4080,F96,O335:O4080) -> 0 | P96: =SUMIF(F335:F4080,F96,P335:P4080) -> 0 | Q96: =SUMIF(F335:F4080,F96,Q335:Q4080) -> 0 | R96: =SUMIF(F335:F4080,F96,R335:R4080) -> 0 | S96: =SUMIF(F335:F4080,F96,S335:S4080) -> 0 | T96: =SUMIF(F335:F4080,F96,T335:T4080) -> 0 | U96: =SUMIF(F335:F4080,F96,U335:U4080) -> 0 | V96: =IF(AND([4]Settings!A3=1,[4]Settings!A5="TRUE"),0,SUMIF(F335:F4080,F96,V335:V4080)) -> 0 | W96: =IF(AND([4]Settings!A3=1,[4]Settings!A5="TRUE"),0,SUMIF(F335:F4080,F96,W335:W4080)) -> 0 | X96: 0 | Y96: 0 | Z96: =SUMIF(F335:F4080,F96,Z335:Z4080) -> 0 | AA96: =SUMIF(F335:F4080,F96,AA335:AA4080) -> 0 | AB96: =SUMIF(F335:F4080,F96,AB335:AB4080) -> 0 | AC96: =SUMIF(F335:F4080,F96,AC335:AC4080) -> 0 | AD96: =SUMIF(F335:F4080,F96,AD335:AD4080) -> 0 | AE96: =IF(AND([4]Settings!A3=1,[4]Settings!A5="TRUE"),0,SUMIF(F335:F4080,F96,AE335:AE4080)) -> 0 | AF96: =IF(AND([4]Settings!A3=1,[4]Settings!A5="TRUE"),0,SUMIF(F335:F4080,F96,AF335:AF4080)) -> 0 | AG96: 0 | AH96: 0 | AI96: =SUMIF(F335:F4080,F96,AI335:AI4080) -> 0 | AJ96: =SUMIF(F335:F4080,F96,AJ335:AJ4080) -> 0 | AK96: =SUMIF(F335:F4080,F96,AK335:AK4080) -> 0 | AL96: =SUMIF(F335:F4080,F96,AL335:AL4080) -> 0 | AM96: =SUMIF(F335:F4080,F96,AM335:AM4080) -> 0 | AN96: =IF(AND([4]Settings!A3=1,[4]Settings!A5="TRUE"),0,SUMIF(F335:F4080,F96,AN335:AN4080)) -> 0 | AO96: =IF(AND([4]Settings!A3=1,[4]Settings!A5="TRUE"),0,SUMIF(F335:F4080,F96,AO335:AO4080)) -> 0 | AP96: 0 | AQ96: 0 | AR96: =SUMIF(F335:F4080,F96,AR335:AR4080) -> 0 | AS96: =SUMIF(F335:F4080,F96,AS335:AS4080) -> 0 | AT96: =SUMIF(F335:F4080,F96,AT335:AT4080) -> 0 | AU96: =SUMIF(F335:F4080,F96,AU335:AU4080) -> 0
F97: Inventory: Clothing material and accessories | I97: =SUMIF(F335:F4080,F97,I335:I4080) -> 0 | J97: =SUMIF(F335:F4080,F97,J335:J4080) -> 0 | K97: =SUMIF(F335:F4080,F97,K335:K4080) -> 0 | L97: =SUMIF(F335:F4080,F97,L335:L4080) -> 0 | M97: =SUMIF(F335:F4080,F97,M335:M4080) -> 0 | N97: =SUMIF(F335:F4080,F97,N335:N4080) -> 0 | O97: =SUMIF(F335:F4080,F97,O335:O4080) -> 0 | P97: =SUMIF(F335:F4080,F97,P335:P4080) -> 0 | Q97: =SUMIF(F335:F4080,F97,Q335:Q4080) -> 0 | R97: =SUMIF(F335:F4080,F97,R335:R4080) -> 0 | S97: =SUMIF(F335:F4080,F97,S335:S4080) -> 0 | T97: =SUMIF(F335:F4080,F97,T335:T4080) -> 0 | U97: =SUMIF(F335:F4080,F97,U335:U4080) -> 0 | V97: =IF(AND([4]Settings!A3=1,[4]Settings!A5="TRUE"),0,SUMIF(F335:F4080,F97,V335:V4080)) -> 0 | W97: =IF(AND([4]Settings!A3=1,[4]Settings!A5="TRUE"),0,SUMIF(F335:F4080,F97,W335:W4080)) -> 0 | X97: 0 | Y97: 0 | Z97: =SUMIF(F335:F4080,F97,Z335:Z4080) -> 0 | AA97: =SUMIF(F335:F4080,F97,AA335:AA4080) -> 0 | AB97: =SUMIF(F335:F4080,F97,AB335:AB4080) -> 0 | AC97: =SUMIF(F335:F4080,F97,AC335:AC4080) -> 0 | AD97: =SUMIF(F335:F4080,F97,AD335:AD4080) -> 0 | AE97: =IF(AND([4]Settings!A3=1,[4]Settings!A5="TRUE"),0,SUMIF(F335:F4080,F97,AE335:AE4080)) -> 0 | AF97: =IF(AND([4]Settings!A3=1,[4]Settings!A5="TRUE"),0,SUMIF(F335:F4080,F97,AF335:AF4080)) -> 0 | AG97: 0 | AH97: 0 | AI97: =SUMIF(F335:F4080,F97,AI335:AI4080) -> 0 | AJ97: =SUMIF(F335:F4080,F97,AJ335:AJ4080) -> 0 | AK97: =SUMIF(F335:F4080,F97,AK335:AK4080) -> 0 | AL97: =SUMIF(F335:F4080,F97,AL335:AL4080) -> 0 | AM97: =SUMIF(F335:F4080,F97,AM335:AM4080) -> 0 | AN97: =IF(AND([4]Settings!A3=1,[4]Settings!A5="TRUE"),0,SUMIF(F335:F4080,F97,AN335:AN4080)) -> 0 | AO97: =IF(AND([4]Settings!A3=1,[4]Settings!A5="TRUE"),0,SUMIF(F335:F4080,F97,AO335:AO4080)) -> 0 | AP97: 0 | AQ97: 0 | AR97: =SUMIF(F335:F4080,F97,AR335:AR4080) -> 0 | AS97: =SUMIF(F335:F4080,F97,AS335:AS4080) -> 0 | AT97: =SUMIF(F335:F4080,F97,AT335:AT4080) -> 0 | AU97: =SUMIF(F335:F4080,F97,AU335:AU4080) -> 0
F98: Inventory: Farming supplies | I98: =SUMIF(F335:F4080,F98,I335:I4080) -> 0 | J98: =SUMIF(F335:F4080,F98,J335:J4080) -> 0 | K98: =SUMIF(F335:F4080,F98,K335:K4080) -> 0 | L98: =SUMIF(F335:F4080,F98,L335:L4080) -> 0 | M98: =SUMIF(F335:F4080,F98,M335:M4080) -> 0 | N98: =SUMIF(F335:F4080,F98,N335:N4080) -> 0 | O98: =SUMIF(F335:F4080,F98,O335:O4080) -> 0 | P98: =SUMIF(F335:F4080,F98,P335:P4080) -> 0 | Q98: =SUMIF(F335:F4080,F98,Q335:Q4080) -> 0 | R98: =SUMIF(F335:F4080,F98,R335:R4080) -> 0 | S98: =SUMIF(F335:F4080,F98,S335:S4080) -> 0 | T98: =SUMIF(F335:F4080,F98,T335:T4080) -> 0 | U98: =SUMIF(F335:F4080,F98,U335:U4080) -> 0 | V98: =IF(AND([4]Settings!A3=1,[4]Settings!A5="TRUE"),0,SUMIF(F335:F4080,F98,V335:V4080)) -> 0 | W98: =IF(AND([4]Settings!A3=1,[4]Settings!A5="TRUE"),0,SUMIF(F335:F4080,F98,W335:W4080)) -> 0 | X98: 0 | Y98: 0 | Z98: =SUMIF(F335:F4080,F98,Z335:Z4080) -> 0 | AA98: =SUMIF(F335:F4080,F98,AA335:AA4080) -> 0 | AB98: =SUMIF(F335:F4080,F98,AB335:AB4080) -> 0 | AC98: =SUMIF(F335:F4080,F98,AC335:AC4080) -> 0 | AD98: =SUMIF(F335:F4080,F98,AD335:AD4080) -> 0 | AE98: =IF(AND([4]Settings!A3=1,[4]Settings!A5="TRUE"),0,SUMIF(F335:F4080,F98,AE335:AE4080)) -> 0 | AF98: =IF(AND([4]Settings!A3=1,[4]Settings!A5="TRUE"),0,SUMIF(F335:F4080,F98,AF335:AF4080)) -> 0 | AG98: 0 | AH98: 0 | AI98: =SUMIF(F335:F4080,F98,AI335:AI4080) -> 0 | AJ98: =SUMIF(F335:F4080,F98,AJ335:AJ4080) -> 0 | AK98: =SUMIF(F335:F4080,F98,AK335:AK4080) -> 0 | AL98: =SUMIF(F335:F4080,F98,AL335:AL4080) -> 0 | AM98: =SUMIF(F335:F4080,F98,AM335:AM4080) -> 0 | AN98: =IF(AND([4]Settings!A3=1,[4]Settings!A5="TRUE"),0,SUMIF(F335:F4080,F98,AN335:AN4080)) -> 0 | AO98: =IF(AND([4]Settings!A3=1,[4]Settings!A5="TRUE"),0,SUMIF(F335:F4080,F98,AO335:AO4080)) -> 0 | AP98: 0 | AQ98: 0 | AR98: =SUMIF(F335:F4080,F98,AR335:AR4080) -> 0 | AS98: =SUMIF(F335:F4080,F98,AS335:AS4080) -> 0 | AT98: =SUMIF(F335:F4080,F98,AT335:AT4080) -> 0 | AU98: =SUMIF(F335:F4080,F98,AU335:AU4080) -> 0
F99: Inventory: Food and food supplies | I99: =SUMIF(F335:F4080,F99,I335:I4080) -> 0 | J99: =SUMIF(F335:F4080,F99,J335:J4080) -> 0 | K99: =SUMIF(F335:F4080,F99,K335:K4080) -> 0 | L99: =SUMIF(F335:F4080,F99,L335:L4080) -> 0 | M99: =SUMIF(F335:F4080,F99,M335:M4080) -> 0 | N99: =SUMIF(F335:F4080,F99,N335:N4080) -> 0 | O99: =SUMIF(F335:F4080,F99,O335:O4080) -> 0 | P99: =SUMIF(F335:F4080,F99,P335:P4080) -> 0 | Q99: =SUMIF(F335:F4080,F99,Q335:Q4080) -> 0 | R99: =SUMIF(F335:F4080,F99,R335:R4080) -> 0 | S99: =SUMIF(F335:F4080,F99,S335:S4080) -> 0 | T99: =SUMIF(F335:F4080,F99,T335:T4080) -> 0 | U99: =SUMIF(F335:F4080,F99,U335:U4080) -> 0 | V99: =IF(AND([4]Settings!A3=1,[4]Settings!A5="TRUE"),0,SUMIF(F335:F4080,F99,V335:V4080)) -> 0 | W99: =IF(AND([4]Settings!A3=1,[4]Settings!A5="TRUE"),0,SUMIF(F335:F4080,F99,W335:W4080)) -> 0 | X99: 0 | Y99: 0 | Z99: =SUMIF(F335:F4080,F99,Z335:Z4080) -> 0 | AA99: =SUMIF(F335:F4080,F99,AA335:AA4080) -> 0 | AB99: =SUMIF(F335:F4080,F99,AB335:AB4080) -> 0 | AC99: =SUMIF(F335:F4080,F99,AC335:AC4080) -> 0 | AD99: =SUMIF(F335:F4080,F99,AD335:AD4080) -> 0 | AE99: =IF(AND([4]Settings!A3=1,[4]Settings!A5="TRUE"),0,SUMIF(F335:F4080,F99,AE335:AE4080)) -> 0 | AF99: =IF(AND([4]Settings!A3=1,[4]Settings!A5="TRUE"),0,SUMIF(F335:F4080,F99,AF335:AF4080)) -> 0 | AG99: 0 | AH99: 0 | AI99: =SUMIF(F335:F4080,F99,AI335:AI4080) -> 0 | AJ99: =SUMIF(F335:F4080,F99,AJ335:AJ4080) -> 0 | AK99: =SUMIF(F335:F4080,F99,AK335:AK4080) -> 0 | AL99: =SUMIF(F335:F4080,F99,AL335:AL4080) -> 0 | AM99: =SUMIF(F335:F4080,F99,AM335:AM4080) -> 0 | AN99: =IF(AND([4]Settings!A3=1,[4]Settings!A5="TRUE"),0,SUMIF(F335:F4080,F99,AN335:AN4080)) -> 0 | AO99: =IF(AND([4]Settings!A3=1,[4]Settings!A5="TRUE"),0,SUMIF(F335:F4080,F99,AO335:AO4080)) -> 0 | AP99: 0 | AQ99: 0 | AR99: =SUMIF(F335:F4080,F99,AR335:AR4080) -> 0 | AS99: =SUMIF(F335:F4080,F99,AS335:AS4080) -> 0 | AT99: =SUMIF(F335:F4080,F99,AT335:AT4080) -> 0 | AU99: =SUMIF(F335:F4080,F99,AU335:AU4080) -> 0
F100: Inventory: Fuel, oil and gas | I100: =SUMIF(F335:F4080,F100,I335:I4080) -> 0 | J100: =SUMIF(F335:F4080,F100,J335:J4080) -> 0 | K100: =SUMIF(F335:F4080,F100,K335:K4080) -> 0 | L100: =SUMIF(F335:F4080,F100,L335:L4080) -> 0 | M100: =SUMIF(F335:F4080,F100,M335:M4080) -> 0 | N100: =SUMIF(F335:F4080,F100,N335:N4080) -> 0 | O100: =SUMIF(F335:F4080,F100,O335:O4080) -> 0 | P100: =SUMIF(F335:F4080,F100,P335:P4080) -> 0 | Q100: =SUMIF(F335:F4080,F100,Q335:Q4080) -> 0 | R100: =SUMIF(F335:F4080,F100,R335:R4080) -> 0 | S100: =SUMIF(F335:F4080,F100,S335:S4080) -> 0 | T100: =SUMIF(F335:F4080,F100,T335:T4080) -> 0 | U100: =SUMIF(F335:F4080,F100,U335:U4080) -> 0 | V100: =IF(AND([4]Settings!A3=1,[4]Settings!A5="TRUE"),0,SUMIF(F335:F4080,F100,V335:V4080)) -> 0 | W100: =IF(AND([4]Settings!A3=1,[4]Settings!A5="TRUE"),0,SUMIF(F335:F4080,F100,W335:W4080)) -> 0 | X100: 0 | Y100: 0 | Z100: =SUMIF(F335:F4080,F100,Z335:Z4080) -> 0 | AA100: =SUMIF(F335:F4080,F100,AA335:AA4080) -> 0 | AB100: =SUMIF(F335:F4080,F100,AB335:AB4080) -> 0 | AC100: =SUMIF(F335:F4080,F100,AC335:AC4080) -> 0 | AD100: =SUMIF(F335:F4080,F100,AD335:AD4080) -> 0 | AE100: =IF(AND([4]Settings!A3=1,[4]Settings!A5="TRUE"),0,SUMIF(F335:F4080,F100,AE335:AE4080)) -> 0 | AF100: =IF(AND([4]Settings!A3=1,[4]Settings!A5="TRUE"),0,SUMIF(F335:F4080,F100,AF335:AF4080)) -> 0 | AG100: 0 | AH100: 0 | AI100: =SUMIF(F335:F4080,F100,AI335:AI4080) -> 0 | AJ100: =SUMIF(F335:F4080,F100,AJ335:AJ4080) -> 0 | AK100: =SUMIF(F335:F4080,F100,AK335:AK4080) -> 0 | AL100: =SUMIF(F335:F4080,F100,AL335:AL4080) -> 0 | AM100: =SUMIF(F335:F4080,F100,AM335:AM4080) -> 0 | AN100: =IF(AND([4]Settings!A3=1,[4]Settings!A5="TRUE"),0,SUMIF(F335:F4080,F100,AN335:AN4080)) -> 0 | AO100: =IF(AND([4]Settings!A3=1,[4]Settings!A5="TRUE"),0,SUMIF(F335:F4080,F100,AO335:AO4080)) -> 0 | AP100: 0 | AQ100: 0 | AR100: =SUMIF(F335:F4080,F100,AR335:AR4080) -> 0 | AS100: =SUMIF(F335:F4080,F100,AS335:AS4080) -> 0 | AT100: =SUMIF(F335:F4080,F100,AT335:AT4080) -> 0 | AU100: =SUMIF(F335:F4080,F100,AU335:AU4080) -> 0
F101: Inventory: Learner and teacher support material | I101: =SUMIF(F335:F4080,F101,I335:I4080) -> 0 | J101: =SUMIF(F335:F4080,F101,J335:J4080) -> 0 | K101: =SUMIF(F335:F4080,F101,K335:K4080) -> 0 | L101: =SUMIF(F335:F4080,F101,L335:L4080) -> 0 | M101: =SUMIF(F335:F4080,F101,M335:M4080) -> 0 | N101: =SUMIF(F335:F4080,F101,N335:N4080) -> 0 | O101: =SUMIF(F335:F4080,F101,O335:O4080) -> 0 | P101: =SUMIF(F335:F4080,F101,P335:P4080) -> 0 | Q101: =SUMIF(F335:F4080,F101,Q335:Q4080) -> 0 | R101: =SUMIF(F335:F4080,F101,R335:R4080) -> 0 | S101: =SUMIF(F335:F4080,F101,S335:S4080) -> 0 | T101: =SUMIF(F335:F4080,F101,T335:T4080) -> 0 | U101: =SUMIF(F335:F4080,F101,U335:U4080) -> 0 | V101: =IF(AND([4]Settings!A3=1,[4]Settings!A5="TRUE"),0,SUMIF(F335:F4080,F101,V335:V4080)) -> 0 | W101: =IF(AND([4]Settings!A3=1,[4]Settings!A5="TRUE"),0,SUMIF(F335:F4080,F101,W335:W4080)) -> 0 | X101: 0 | Y101: 0 | Z101: =SUMIF(F335:F4080,F101,Z335:Z4080) -> 0 | AA101: =SUMIF(F335:F4080,F101,AA335:AA4080) -> 0 | AB101: =SUMIF(F335:F4080,F101,AB335:AB4080) -> 0 | AC101: =SUMIF(F335:F4080,F101,AC335:AC4080) -> 0 | AD101: =SUMIF(F335:F4080,F101,AD335:AD4080) -> 0 | AE101: =IF(AND([4]Settings!A3=1,[4]Settings!A5="TRUE"),0,SUMIF(F335:F4080,F101,AE335:AE4080)) -> 0 | AF101: =IF(AND([4]Settings!A3=1,[4]Settings!A5="TRUE"),0,SUMIF(F335:F4080,F101,AF335:AF4080)) -> 0 | AG101: 0 | AH101: 0 | AI101: =SUMIF(F335:F4080,F101,AI335:AI4080) -> 0 | AJ101: =SUMIF(F335:F4080,F101,AJ335:AJ4080) -> 0 | AK101: =SUMIF(F335:F4080,F101,AK335:AK4080) -> 0 | AL101: =SUMIF(F335:F4080,F101,AL335:AL4080) -> 0 | AM101: =SUMIF(F335:F4080,F101,AM335:AM4080) -> 0 | AN101: =IF(AND([4]Settings!A3=1,[4]Settings!A5="TRUE"),0,SUMIF(F335:F4080,F101,AN335:AN4080)) -> 0 | AO101: =IF(AND([4]Settings!A3=1,[4]Settings!A5="TRUE"),0,SUMIF(F335:F4080,F101,AO335:AO4080)) -> 0 | AP101: 0 | AQ101: 0 | AR101: =SUMIF(F335:F4080,F101,AR335:AR4080) -> 0 | AS101: =SUMIF(F335:F4080,F101,AS335:AS4080) -> 0 | AT101: =SUMIF(F335:F4080,F101,AT335:AT4080) -> 0 | AU101: =SUMIF(F335:F4080,F101,AU335:AU4080) -> 0
F102: Inventory: Materials and supplies | I102: =SUMIF(F335:F4080,F102,I335:I4080) -> 0 | J102: =SUMIF(F335:F4080,F102,J335:J4080) -> 0 | K102: =SUMIF(F335:F4080,F102,K335:K4080) -> 0 | L102: =SUMIF(F335:F4080,F102,L335:L4080) -> 0 | M102: =SUMIF(F335:F4080,F102,M335:M4080) -> 0 | N102: =SUMIF(F335:F4080,F102,N335:N4080) -> 0 | O102: =SUMIF(F335:F4080,F102,O335:O4080) -> 0 | P102: =SUMIF(F335:F4080,F102,P335:P4080) -> 0 | Q102: =SUMIF(F335:F4080,F102,Q335:Q4080) -> 0 | R102: =SUMIF(F335:F4080,F102,R335:R4080) -> 0 | S102: =SUMIF(F335:F4080,F102,S335:S4080) -> 0 | T102: =SUMIF(F335:F4080,F102,T335:T4080) -> 0 | U102: =SUMIF(F335:F4080,F102,U335:U4080) -> 0 | V102: =IF(AND([4]Settings!A3=1,[4]Settings!A5="TRUE"),0,SUMIF(F335:F4080,F102,V335:V4080)) -> 0 | W102: =IF(AND([4]Settings!A3=1,[4]Settings!A5="TRUE"),0,SUMIF(F335:F4080,F102,W335:W4080)) -> 0 | X102: 0 | Y102: 0 | Z102: =SUMIF(F335:F4080,F102,Z335:Z4080) -> 0 | AA102: =SUMIF(F335:F4080,F102,AA335:AA4080) -> 0 | AB102: =SUMIF(F335:F4080,F102,AB335:AB4080) -> 0 | AC102: =SUMIF(F335:F4080,F102,AC335:AC4080) -> 0 | AD102: =SUMIF(F335:F4080,F102,AD335:AD4080) -> 0 | AE102: =IF(AND([4]Settings!A3=1,[4]Settings!A5="TRUE"),0,SUMIF(F335:F4080,F102,AE335:AE4080)) -> 0 | AF102: =IF(AND([4]Settings!A3=1,[4]Settings!A5="TRUE"),0,SUMIF(F335:F4080,F102,AF335:AF4080)) -> 0 | AG102: 0 | AH102: 0 | AI102: =SUMIF(F335:F4080,F102,AI335:AI4080) -> 0 | AJ102: =SUMIF(F335:F4080,F102,AJ335:AJ4080) -> 0 | AK102: =SUMIF(F335:F4080,F102,AK335:AK4080) -> 0 | AL102: =SUMIF(F335:F4080,F102,AL335:AL4080) -> 0 | AM102: =SUMIF(F335:F4080,F102,AM335:AM4080) -> 0 | AN102: =IF(AND([4]Settings!A3=1,[4]Settings!A5="TRUE"),0,SUMIF(F335:F4080,F102,AN335:AN4080)) -> 0 | AO102: =IF(AND([4]Settings!A3=1,[4]Settings!A5="TRUE"),0,SUMIF(F335:F4080,F102,AO335:AO4080)) -> 0 | AP102: 0 | AQ102: 0 | AR102: =SUMIF(F335:F4080,F102,AR335:AR4080) -> 0 | AS102: =SUMIF(F335:F4080,F102,AS335:AS4080) -> 0 | AT102: =SUMIF(F335:F4080,F102,AT335:AT4080) -> 0 | AU102: =SUMIF(F335:F4080,F102,AU335:AU4080) -> 0
F103: Inventory: Medical supplies | I103: =SUMIF(F335:F4080,F103,I335:I4080) -> 0 | J103: =SUMIF(F335:F4080,F103,J335:J4080) -> 0 | K103: =SUMIF(F335:F4080,F103,K335:K4080) -> 0 | L103: =SUMIF(F335:F4080,F103,L335:L4080) -> 0 | M103: =SUMIF(F335:F4080,F103,M335:M4080) -> 0 | N103: =SUMIF(F335:F4080,F103,N335:N4080) -> 0 | O103: =SUMIF(F335:F4080,F103,O335:O4080) -> 0 | P103: =SUMIF(F335:F4080,F103,P335:P4080) -> 0 | Q103: =SUMIF(F335:F4080,F103,Q335:Q4080) -> 0 | R103: =SUMIF(F335:F4080,F103,R335:R4080) -> 0 | S103: =SUMIF(F335:F4080,F103,S335:S4080) -> 0 | T103: =SUMIF(F335:F4080,F103,T335:T4080) -> 0 | U103: =SUMIF(F335:F4080,F103,U335:U4080) -> 0 | V103: =IF(AND([4]Settings!A3=1,[4]Settings!A5="TRUE"),0,SUMIF(F335:F4080,F103,V335:V4080)) -> 0 | W103: =IF(AND([4]Settings!A3=1,[4]Settings!A5="TRUE"),0,SUMIF(F335:F4080,F103,W335:W4080)) -> 0 | X103: 0 | Y103: 0 | Z103: =SUMIF(F335:F4080,F103,Z335:Z4080) -> 0 | AA103: =SUMIF(F335:F4080,F103,AA335:AA4080) -> 0 | AB103: =SUMIF(F335:F4080,F103,AB335:AB4080) -> 0 | AC103: =SUMIF(F335:F4080,F103,AC335:AC4080) -> 0 | AD103: =SUMIF(F335:F4080,F103,AD335:AD4080) -> 0 | AE103: =IF(AND([4]Settings!A3=1,[4]Settings!A5="TRUE"),0,SUMIF(F335:F4080,F103,AE335:AE4080)) -> 0 | AF103: =IF(AND([4]Settings!A3=1,[4]Settings!A5="TRUE"),0,SUMIF(F335:F4080,F103,AF335:AF4080)) -> 0 | AG103: 0 | AH103: 0 | AI103: =SUMIF(F335:F4080,F103,AI335:AI4080) -> 0 | AJ103: =SUMIF(F335:F4080,F103,AJ335:AJ4080) -> 0 | AK103: =SUMIF(F335:F4080,F103,AK335:AK4080) -> 0 | AL103: =SUMIF(F335:F4080,F103,AL335:AL4080) -> 0 | AM103: =SUMIF(F335:F4080,F103,AM335:AM4080) -> 0 | AN103: =IF(AND([4]Settings!A3=1,[4]Settings!A5="TRUE"),0,SUMIF(F335:F4080,F103,AN335:AN4080)) -> 0 | AO103: =IF(AND([4]Settings!A3=1,[4]Settings!A5="TRUE"),0,SUMIF(F335:F4080,F103,AO335:AO4080)) -> 0 | AP103: 0 | AQ103: 0 | AR103: =SUMIF(F335:F4080,F103,AR335:AR4080) -> 0 | AS103: =SUMIF(F335:F4080,F103,AS335:AS4080) -> 0 | AT103: =SUMIF(F335:F4080,F103,AT335:AT4080) -> 0 | AU103: =SUMIF(F335:F4080,F103,AU335:AU4080) -> 0
F104: Inventory: Medicine | I104: =SUMIF(F335:F4080,F104,I335:I4080) -> 0 | J104: =SUMIF(F335:F4080,F104,J335:J4080) -> 0 | K104: =SUMIF(F335:F4080,F104,K335:K4080) -> 0 | L104: =SUMIF(F335:F4080,F104,L335:L4080) -> 0 | M104: =SUMIF(F335:F4080,F104,M335:M4080) -> 0 | N104: =SUMIF(F335:F4080,F104,N335:N4080) -> 0 | O104: =SUMIF(F335:F4080,F104,O335:O4080) -> 0 | P104: =SUMIF(F335:F4080,F104,P335:P4080) -> 0 | Q104: =SUMIF(F335:F4080,F104,Q335:Q4080) -> 0 | R104: =SUMIF(F335:F4080,F104,R335:R4080) -> 0 | S104: =SUMIF(F335:F4080,F104,S335:S4080) -> 0 | T104: =SUMIF(F335:F4080,F104,T335:T4080) -> 0 | U104: =SUMIF(F335:F4080,F104,U335:U4080) -> 0 | V104: =IF(AND([4]Settings!A3=1,[4]Settings!A5="TRUE"),0,SUMIF(F335:F4080,F104,V335:V4080)) -> 0 | W104: =IF(AND([4]Settings!A3=1,[4]Settings!A5="TRUE"),0,SUMIF(F335:F4080,F104,W335:W4080)) -> 0 | X104: 0 | Y104: 0 | Z104: =SUMIF(F335:F4080,F104,Z335:Z4080) -> 0 | AA104: =SUMIF(F335:F4080,F104,AA335:AA4080) -> 0 | AB104: =SUMIF(F335:F4080,F104,AB335:AB4080) -> 0 | AC104: =SUMIF(F335:F4080,F104,AC335:AC4080) -> 0 | AD104: =SUMIF(F335:F4080,F104,AD335:AD4080) -> 0 | AE104: =IF(AND([4]Settings!A3=1,[4]Settings!A5="TRUE"),0,SUMIF(F335:F4080,F104,AE335:AE4080)) -> 0 | AF104: =IF(AND([4]Settings!A3=1,[4]Settings!A5="TRUE"),0,SUMIF(F335:F4080,F104,AF335:AF4080)) -> 0 | AG104: 0 | AH104: 0 | AI104: =SUMIF(F335:F4080,F104,AI335:AI4080) -> 0 | AJ104: =SUMIF(F335:F4080,F104,AJ335:AJ4080) -> 0 | AK104: =SUMIF(F335:F4080,F104,AK335:AK4080) -> 0 | AL104: =SUMIF(F335:F4080,F104,AL335:AL4080) -> 0 | AM104: =SUMIF(F335:F4080,F104,AM335:AM4080) -> 0 | AN104: =IF(AND([4]Settings!A3=1,[4]Settings!A5="TRUE"),0,SUMIF(F335:F4080,F104,AN335:AN4080)) -> 0 | AO104: =IF(AND([4]Settings!A3=1,[4]Settings!A5="TRUE"),0,SUMIF(F335:F4080,F104,AO335:AO4080)) -> 0 | AP104: 0 | AQ104: 0 | AR104: =SUMIF(F335:F4080,F104,AR335:AR4080) -> 0 | AS104: =SUMIF(F335:F4080,F104,AS335:AS4080) -> 0 | AT104: =SUMIF(F335:F4080,F104,AT335:AT4080) -> 0 | AU104: =SUMIF(F335:F4080,F104,AU335:AU4080) -> 0
F105: Medsas inventory interface | I105: =SUMIF(F335:F4080,F105,I335:I4080) -> 0 | J105: =SUMIF(F335:F4080,F105,J335:J4080) -> 0 | K105: =SUMIF(F335:F4080,F105,K335:K4080) -> 0 | L105: =SUMIF(F335:F4080,F105,L335:L4080) -> 0 | M105: =SUMIF(F335:F4080,F105,M335:M4080) -> 0 | N105: =SUMIF(F335:F4080,F105,N335:N4080) -> 0 | O105: =SUMIF(F335:F4080,F105,O335:O4080) -> 0 | P105: =SUMIF(F335:F4080,F105,P335:P4080) -> 0 | Q105: =SUMIF(F335:F4080,F105,Q335:Q4080) -> 0 | R105: =SUMIF(F335:F4080,F105,R335:R4080) -> 0 | S105: =SUMIF(F335:F4080,F105,S335:S4080) -> 0 | T105: =SUMIF(F335:F4080,F105,T335:T4080) -> 0 | U105: =SUMIF(F335:F4080,F105,U335:U4080) -> 0 | V105: =IF(AND([4]Settings!A3=1,[4]Settings!A5="TRUE"),0,SUMIF(F335:F4080,F105,V335:V4080)) -> 0 | W105: =IF(AND([4]Settings!A3=1,[4]Settings!A5="TRUE"),0,SUMIF(F335:F4080,F105,W335:W4080)) -> 0 | X105: 0 | Y105: 0 | Z105: =SUMIF(F335:F4080,F105,Z335:Z4080) -> 0 | AA105: =SUMIF(F335:F4080,F105,AA335:AA4080) -> 0 | AB105: =SUMIF(F335:F4080,F105,AB335:AB4080) -> 0 | AC105: =SUMIF(F335:F4080,F105,AC335:AC4080) -> 0 | AD105: =SUMIF(F335:F4080,F105,AD335:AD4080) -> 0 | AE105: =IF(AND([4]Settings!A3=1,[4]Settings!A5="TRUE"),0,SUMIF(F335:F4080,F105,AE335:AE4080)) -> 0 | AF105: =IF(AND([4]Settings!A3=1,[4]Settings!A5="TRUE"),0,SUMIF(F335:F4080,F105,AF335:AF4080)) -> 0 | AG105: 0 | AH105: 0 | AI105: =SUMIF(F335:F4080,F105,AI335:AI4080) -> 0 | AJ105: =SUMIF(F335:F4080,F105,AJ335:AJ4080) -> 0 | AK105: =SUMIF(F335:F4080,F105,AK335:AK4080) -> 0 | AL105: =SUMIF(F335:F4080,F105,AL335:AL4080) -> 0 | AM105: =SUMIF(F335:F4080,F105,AM335:AM4080) -> 0 | AN105: =IF(AND([4]Settings!A3=1,[4]Settings!A5="TRUE"),0,SUMIF(F335:F4080,F105,AN335:AN4080)) -> 0 | AO105: =IF(AND([4]Settings!A3=1,[4]Settings!A5="TRUE"),0,SUMIF(F335:F4080,F105,AO335:AO4080)) -> 0 | AP105: 0 | AQ105: 0 | AR105: =SUMIF(F335:F4080,F105,AR335:AR4080) -> 0 | AS105: =SUMIF(F335:F4080,F105,AS335:AS4080) -> 0 | AT105: =SUMIF(F335:F4080,F105,AT335:AT4080) -> 0 | AU105: =SUMIF(F335:F4080,F105,AU335:AU4080) -> 0
F106: Inventory: Other supplies | I106: =SUMIF(F335:F4080,F106,I335:I4080) -> 0 | J106: =SUMIF(F335:F4080,F106,J335:J4080) -> 0 | K106: =SUMIF(F335:F4080,F106,K335:K4080) -> 0 | L106: =SUMIF(F335:F4080,F106,L335:L4080) -> 0 | M106: =SUMIF(F335:F4080,F106,M335:M4080) -> 0 | N106: =SUMIF(F335:F4080,F106,N335:N4080) -> 0 | O106: =SUMIF(F335:F4080,F106,O335:O4080) -> 0 | P106: =SUMIF(F335:F4080,F106,P335:P4080) -> 0 | Q106: =SUMIF(F335:F4080,F106,Q335:Q4080) -> 0 | R106: =SUMIF(F335:F4080,F106,R335:R4080) -> 0 | S106: =SUMIF(F335:F4080,F106,S335:S4080) -> 0 | T106: =SUMIF(F335:F4080,F106,T335:T4080) -> 0 | U106: =SUMIF(F335:F4080,F106,U335:U4080) -> 0 | V106: =IF(AND([4]Settings!A3=1,[4]Settings!A5="TRUE"),0,SUMIF(F335:F4080,F106,V335:V4080)) -> 0 | W106: =IF(AND([4]Settings!A3=1,[4]Settings!A5="TRUE"),0,SUMIF(F335:F4080,F106,W335:W4080)) -> 0 | X106: =SUM(V106:W106) -> 0 | Y106: =IF(ISERROR(U106+X106),0,U106+X106) -> 0 | Z106: =SUMIF(F335:F4080,F106,Z335:Z4080) -> 0 | AA106: =SUMIF(F335:F4080,F106,AA335:AA4080) -> 0 | AB106: =SUMIF(F335:F4080,F106,AB335:AB4080) -> 0 | AC106: =SUMIF(F335:F4080,F106,AC335:AC4080) -> 0 | AD106: =SUMIF(F335:F4080,F106,AD335:AD4080) -> 0 | AE106: =IF(AND([4]Settings!A3=1,[4]Settings!A5="TRUE"),0,SUMIF(F335:F4080,F106,AE335:AE4080)) -> 0 | AF106: =IF(AND([4]Settings!A3=1,[4]Settings!A5="TRUE"),0,SUMIF(F335:F4080,F106,AF335:AF4080)) -> 0 | AG106: =SUM(AE106:AF106) -> 0 | AH106: =IF(ISERROR(AD106+AG106),0,AD106+AG106) -> 0 | AI106: =SUMIF(F335:F4080,F106,AI335:AI4080) -> 0 | AJ106: =SUMIF(F335:F4080,F106,AJ335:AJ4080) -> 0 | AK106: =SUMIF(F335:F4080,F106,AK335:AK4080) -> 0 | AL106: =SUMIF(F335:F4080,F106,AL335:AL4080) -> 0 | AM106: =SUMIF(F335:F4080,F106,AM335:AM4080) -> 0 | AN106: =IF(AND([4]Settings!A3=1,[4]Settings!A5="TRUE"),0,SUMIF(F335:F4080,F106,AN335:AN4080)) -> 0 | AO106: =IF(AND([4]Settings!A3=1,[4]Settings!A5="TRUE"),0,SUMIF(F335:F4080,F106,AO335:AO4080)) -> 0 | AP106: =SUM(AN106:AO106) -> 0 | AQ106: =IF(ISERROR(AM106+AP106),0,AM106+AP106) -> 0 | AR106: =SUMIF(F335:F4080,F106,AR335:AR4080) -> 0 | AS106: =SUMIF(F335:F4080,F106,AS335:AS4080) -> 0 | AT106: =SUMIF(F335:F4080,F106,AT335:AT4080) -> 0 | AU106: =SUMIF(F335:F4080,F106,AU335:AU4080) -> 0
F107: Consumable supplies | I107: =SUMIF(F335:F4080,F107,I335:I4080) -> 0 | J107: =SUMIF(F335:F4080,F107,J335:J4080) -> 0 | K107: =SUMIF(F335:F4080,F107,K335:K4080) -> 0 | L107: =SUMIF(F335:F4080,F107,L335:L4080) -> 0 | M107: =SUMIF(F335:F4080,F107,M335:M4080) -> 0 | N107: =SUMIF(F335:F4080,F107,N335:N4080) -> 0 | O107: =SUMIF(F335:F4080,F107,O335:O4080) -> 0 | P107: =SUMIF(F335:F4080,F107,P335:P4080) -> 0 | Q107: =SUMIF(F335:F4080,F107,Q335:Q4080) -> 0 | R107: =SUMIF(F335:F4080,F107,R335:R4080) -> 0 | S107: =SUMIF(F335:F4080,F107,S335:S4080) -> 0 | T107: =SUMIF(F335:F4080,F107,T335:T4080) -> 0 | U107: =SUMIF(F335:F4080,F107,U335:U4080) -> 0 | V107: =IF(AND([4]Settings!A3=1,[4]Settings!A5="TRUE"),0,SUMIF(F335:F4080,F107,V335:V4080)) -> 0 | W107: =IF(AND([4]Settings!A3=1,[4]Settings!A5="TRUE"),0,SUMIF(F335:F4080,F107,W335:W4080)) -> 0 | X107: 0 | Y107: 0 | Z107: =SUMIF(F335:F4080,F107,Z335:Z4080) -> 0 | AA107: =SUMIF(F335:F4080,F107,AA335:AA4080) -> 0 | AB107: =SUMIF(F335:F4080,F107,AB335:AB4080) -> 0 | AC107: =SUMIF(F335:F4080,F107,AC335:AC4080) -> 0 | AD107: =SUMIF(F335:F4080,F107,AD335:AD4080) -> 0 | AE107: =IF(AND([4]Settings!A3=1,[4]Settings!A5="TRUE"),0,SUMIF(F335:F4080,F107,AE335:AE4080)) -> 0 | AF107: =IF(AND([4]Settings!A3=1,[4]Settings!A5="TRUE"),0,SUMIF(F335:F4080,F107,AF335:AF4080)) -> 0 | AG107: 0 | AH107: 0 | AI107: =SUMIF(F335:F4080,F107,AI335:AI4080) -> 0 | AJ107: =SUMIF(F335:F4080,F107,AJ335:AJ4080) -> 0 | AK107: =SUMIF(F335:F4080,F107,AK335:AK4080) -> 0 | AL107: =SUMIF(F335:F4080,F107,AL335:AL4080) -> 0 | AM107: =SUMIF(F335:F4080,F107,AM335:AM4080) -> 0 | AN107: =IF(AND([4]Settings!A3=1,[4]Settings!A5="TRUE"),0,SUMIF(F335:F4080,F107,AN335:AN4080)) -> 0 | AO107: =IF(AND([4]Settings!A3=1,[4]Settings!A5="TRUE"),0,SUMIF(F335:F4080,F107,AO335:AO4080)) -> 0 | AP107: 0 | AQ107: 0 | AR107: =SUMIF(F335:F4080,F107,AR335:AR4080) -> 0 | AS107: =SUMIF(F335:F4080,F107,AS335:AS4080) -> 0 | AT107: =SUMIF(F335:F4080,F107,AT335:AT4080) -> 0 | AU107: =SUMIF(F335:F4080,F107,AU335:AU4080) -> 0
F108: Consumables: Stationery, printing and office supplies | I108: =SUMIF(F335:F4080,F108,I335:I4080) -> 0 | J108: =SUMIF(F335:F4080,F108,J335:J4080) -> 0 | K108: =SUMIF(F335:F4080,F108,K335:K4080) -> 0 | L108: =SUMIF(F335:F4080,F108,L335:L4080) -> 0 | M108: =SUMIF(F335:F4080,F108,M335:M4080) -> 0 | N108: =SUMIF(F335:F4080,F108,N335:N4080) -> 0 | O108: =SUMIF(F335:F4080,F108,O335:O4080) -> 0 | P108: =SUMIF(F335:F4080,F108,P335:P4080) -> 0 | Q108: =SUMIF(F335:F4080,F108,Q335:Q4080) -> 0 | R108: =SUMIF(F335:F4080,F108,R335:R4080) -> 0 | S108: =SUMIF(F335:F4080,F108,S335:S4080) -> 0 | T108: =SUMIF(F335:F4080,F108,T335:T4080) -> 0 | U108: =SUMIF(F335:F4080,F108,U335:U4080) -> 0 | V108: =IF(AND([4]Settings!A3=1,[4]Settings!A5="TRUE"),0,SUMIF(F335:F4080,F108,V335:V4080)) -> 0 | W108: =IF(AND([4]Settings!A3=1,[4]Settings!A5="TRUE"),0,SUMIF(F335:F4080,F108,W335:W4080)) -> 0 | X108: 0 | Y108: 0 | Z108: =SUMIF(F335:F4080,F108,Z335:Z4080) -> 0 | AA108: =SUMIF(F335:F4080,F108,AA335:AA4080) -> 0 | AB108: =SUMIF(F335:F4080,F108,AB335:AB4080) -> 0 | AC108: =SUMIF(F335:F4080,F108,AC335:AC4080) -> 0 | AD108: =SUMIF(F335:F4080,F108,AD335:AD4080) -> 0 | AE108: =IF(AND([4]Settings!A3=1,[4]Settings!A5="TRUE"),0,SUMIF(F335:F4080,F108,AE335:AE4080)) -> 0 | AF108: =IF(AND([4]Settings!A3=1,[4]Settings!A5="TRUE"),0,SUMIF(F335:F4080,F108,AF335:AF4080)) -> 0 | AG108: 0 | AH108: 0 | AI108: =SUMIF(F335:F4080,F108,AI335:AI4080) -> 0 | AJ108: =SUMIF(F335:F4080,F108,AJ335:AJ4080) -> 0 | AK108: =SUMIF(F335:F4080,F108,AK335:AK4080) -> 0 | AL108: =SUMIF(F335:F4080,F108,AL335:AL4080) -> 0 | AM108: =SUMIF(F335:F4080,F108,AM335:AM4080) -> 0 | AN108: =IF(AND([4]Settings!A3=1,[4]Settings!A5="TRUE"),0,SUMIF(F335:F4080,F108,AN335:AN4080)) -> 0 | AO108: =IF(AND([4]Settings!A3=1,[4]Settings!A5="TRUE"),0,SUMIF(F335:F4080,F108,AO335:AO4080)) -> 0 | AP108: 0 | AQ108: 0 | AR108: =SUMIF(F335:F4080,F108,AR335:AR4080) -> 0 | AS108: =SUMIF(F335:F4080,F108,AS335:AS4080) -> 0 | AT108: =SUMIF(F335:F4080,F108,AT335:AT4080) -> 0 | AU108: =SUMIF(F335:F4080,F108,AU335:AU4080) -> 0
F109: Operating leases | I109: =SUMIF(F335:F4080,F109,I335:I4080) -> 0 | J109: =SUMIF(F335:F4080,F109,J335:J4080) -> 0 | K109: =SUMIF(F335:F4080,F109,K335:K4080) -> 0 | L109: =SUMIF(F335:F4080,F109,L335:L4080) -> 0 | M109: =SUMIF(F335:F4080,F109,M335:M4080) -> 0 | N109: =SUMIF(F335:F4080,F109,N335:N4080) -> 0 | O109: =SUMIF(F335:F4080,F109,O335:O4080) -> 0 | P109: =SUMIF(F335:F4080,F109,P335:P4080) -> 0 | Q109: =SUMIF(F335:F4080,F109,Q335:Q4080) -> 0 | R109: =SUMIF(F335:F4080,F109,R335:R4080) -> 0 | S109: =SUMIF(F335:F4080,F109,S335:S4080) -> 0 | T109: =SUMIF(F335:F4080,F109,T335:T4080) -> 0 | U109: =SUMIF(F335:F4080,F109,U335:U4080) -> 0 | V109: =IF(AND([4]Settings!A3=1,[4]Settings!A5="TRUE"),0,SUMIF(F335:F4080,F109,V335:V4080)) -> 0 | W109: =IF(AND([4]Settings!A3=1,[4]Settings!A5="TRUE"),0,SUMIF(F335:F4080,F109,W335:W4080)) -> 0 | X109: 0 | Y109: 0 | Z109: =SUMIF(F335:F4080,F109,Z335:Z4080) -> 0 | AA109: =SUMIF(F335:F4080,F109,AA335:AA4080) -> 0 | AB109: =SUMIF(F335:F4080,F109,AB335:AB4080) -> 0 | AC109: =SUMIF(F335:F4080,F109,AC335:AC4080) -> 0 | AD109: =SUMIF(F335:F4080,F109,AD335:AD4080) -> 0 | AE109: =IF(AND([4]Settings!A3=1,[4]Settings!A5="TRUE"),0,SUMIF(F335:F4080,F109,AE335:AE4080)) -> 0 | AF109: =IF(AND([4]Settings!A3=1,[4]Settings!A5="TRUE"),0,SUMIF(F335:F4080,F109,AF335:AF4080)) -> 0 | AG109: 0 | AH109: 0 | AI109: =SUMIF(F335:F4080,F109,AI335:AI4080) -> 0 | AJ109: =SUMIF(F335:F4080,F109,AJ335:AJ4080) -> 0 | AK109: =SUMIF(F335:F4080,F109,AK335:AK4080) -> 0 | AL109: =SUMIF(F335:F4080,F109,AL335:AL4080) -> 0 | AM109: =SUMIF(F335:F4080,F109,AM335:AM4080) -> 0 | AN109: =IF(AND([4]Settings!A3=1,[4]Settings!A5="TRUE"),0,SUMIF(F335:F4080,F109,AN335:AN4080)) -> 0 | AO109: =IF(AND([4]Settings!A3=1,[4]Settings!A5="TRUE"),0,SUMIF(F335:F4080,F109,AO335:AO4080)) -> 0 | AP109: 0 | AQ109: 0 | AR109: =SUMIF(F335:F4080,F109,AR335:AR4080) -> 0 | AS109: =SUMIF(F335:F4080,F109,AS335:AS4080) -> 0 | AT109: =SUMIF(F335:F4080,F109,AT335:AT4080) -> 0 | AU109: =SUMIF(F335:F4080,F109,AU335:AU4080) -> 0
F110: Rental and hiring | I110: =SUMIF(F335:F4080,F110,I335:I4080) -> 0 | J110: =SUMIF(F335:F4080,F110,J335:J4080) -> 0 | K110: =SUMIF(F335:F4080,F110,K335:K4080) -> 0 | L110: =SUMIF(F335:F4080,F110,L335:L4080) -> 0 | M110: =SUMIF(F335:F4080,F110,M335:M4080) -> 0 | N110: =SUMIF(F335:F4080,F110,N335:N4080) -> 0 | O110: =SUMIF(F335:F4080,F110,O335:O4080) -> 0 | P110: =SUMIF(F335:F4080,F110,P335:P4080) -> 0 | Q110: =SUMIF(F335:F4080,F110,Q335:Q4080) -> 0 | R110: =SUMIF(F335:F4080,F110,R335:R4080) -> 0 | S110: =SUMIF(F335:F4080,F110,S335:S4080) -> 0 | T110: =SUMIF(F335:F4080,F110,T335:T4080) -> 0 | U110: =SUMIF(F335:F4080,F110,U335:U4080) -> 0 | V110: =IF(AND([4]Settings!A3=1,[4]Settings!A5="TRUE"),0,SUMIF(F335:F4080,F110,V335:V4080)) -> 0 | W110: =IF(AND([4]Settings!A3=1,[4]Settings!A5="TRUE"),0,SUMIF(F335:F4080,F110,W335:W4080)) -> 0 | X110: 0 | Y110: 0 | Z110: =SUMIF(F335:F4080,F110,Z335:Z4080) -> 0 | AA110: =SUMIF(F335:F4080,F110,AA335:AA4080) -> 0 | AB110: =SUMIF(F335:F4080,F110,AB335:AB4080) -> 0 | AC110: =SUMIF(F335:F4080,F110,AC335:AC4080) -> 0 | AD110: =SUMIF(F335:F4080,F110,AD335:AD4080) -> 0 | AE110: =IF(AND([4]Settings!A3=1,[4]Settings!A5="TRUE"),0,SUMIF(F335:F4080,F110,AE335:AE4080)) -> 0 | AF110: =IF(AND([4]Settings!A3=1,[4]Settings!A5="TRUE"),0,SUMIF(F335:F4080,F110,AF335:AF4080)) -> 0 | AG110: 0 | AH110: 0 | AI110: =SUMIF(F335:F4080,F110,AI335:AI4080) -> 0 | AJ110: =SUMIF(F335:F4080,F110,AJ335:AJ4080) -> 0 | AK110: =SUMIF(F335:F4080,F110,AK335:AK4080) -> 0 | AL110: =SUMIF(F335:F4080,F110,AL335:AL4080) -> 0 | AM110: =SUMIF(F335:F4080,F110,AM335:AM4080) -> 0 | AN110: =IF(AND([4]Settings!A3=1,[4]Settings!A5="TRUE"),0,SUMIF(F335:F4080,F110,AN335:AN4080)) -> 0 | AO110: =IF(AND([4]Settings!A3=1,[4]Settings!A5="TRUE"),0,SUMIF(F335:F4080,F110,AO335:AO4080)) -> 0 | AP110: 0 | AQ110: 0 | AR110: =SUMIF(F335:F4080,F110,AR335:AR4080) -> 0 | AS110: =SUMIF(F335:F4080,F110,AS335:AS4080) -> 0 | AT110: =SUMIF(F335:F4080,F110,AT335:AT4080) -> 0 | AU110: =SUMIF(F335:F4080,F110,AU335:AU4080) -> 0
F111: Property payments | I111: =SUMIF(F335:F4080,F111,I335:I4080) -> 0 | J111: =SUMIF(F335:F4080,F111,J335:J4080) -> 0 | K111: =SUMIF(F335:F4080,F111,K335:K4080) -> 0 | L111: =SUMIF(F335:F4080,F111,L335:L4080) -> 0 | M111: =SUMIF(F335:F4080,F111,M335:M4080) -> 0 | N111: =SUMIF(F335:F4080,F111,N335:N4080) -> 0 | O111: =SUMIF(F335:F4080,F111,O335:O4080) -> 0 | P111: =SUMIF(F335:F4080,F111,P335:P4080) -> 0 | Q111: =SUMIF(F335:F4080,F111,Q335:Q4080) -> 0 | R111: =SUMIF(F335:F4080,F111,R335:R4080) -> 0 | S111: =SUMIF(F335:F4080,F111,S335:S4080) -> 0 | T111: =SUMIF(F335:F4080,F111,T335:T4080) -> 0 | U111: =SUMIF(F335:F4080,F111,U335:U4080) -> 0 | V111: =IF(AND([4]Settings!A3=1,[4]Settings!A5="TRUE"),0,SUMIF(F335:F4080,F111,V335:V4080)) -> 0 | W111: =IF(AND([4]Settings!A3=1,[4]Settings!A5="TRUE"),0,SUMIF(F335:F4080,F111,W335:W4080)) -> 0 | X111: 0 | Y111: 0 | Z111: =SUMIF(F335:F4080,F111,Z335:Z4080) -> 0 | AA111: =SUMIF(F335:F4080,F111,AA335:AA4080) -> 0 | AB111: =SUMIF(F335:F4080,F111,AB335:AB4080) -> 0 | AC111: =SUMIF(F335:F4080,F111,AC335:AC4080) -> 0 | AD111: =SUMIF(F335:F4080,F111,AD335:AD4080) -> 0 | AE111: =IF(AND([4]Settings!A3=1,[4]Settings!A5="TRUE"),0,SUMIF(F335:F4080,F111,AE335:AE4080)) -> 0 | AF111: =IF(AND([4]Settings!A3=1,[4]Settings!A5="TRUE"),0,SUMIF(F335:F4080,F111,AF335:AF4080)) -> 0 | AG111: 0 | AH111: 0 | AI111: =SUMIF(F335:F4080,F111,AI335:AI4080) -> 0 | AJ111: =SUMIF(F335:F4080,F111,AJ335:AJ4080) -> 0 | AK111: =SUMIF(F335:F4080,F111,AK335:AK4080) -> 0 | AL111: =SUMIF(F335:F4080,F111,AL335:AL4080) -> 0 | AM111: =SUMIF(F335:F4080,F111,AM335:AM4080) -> 0 | AN111: =IF(AND([4]Settings!A3=1,[4]Settings!A5="TRUE"),0,SUMIF(F335:F4080,F111,AN335:AN4080)) -> 0 | AO111: =IF(AND([4]Settings!A3=1,[4]Settings!A5="TRUE"),0,SUMIF(F335:F4080,F111,AO335:AO4080)) -> 0 | AP111: 0 | AQ111: 0 | AR111: =SUMIF(F335:F4080,F111,AR335:AR4080) -> 0 | AS111: =SUMIF(F335:F4080,F111,AS335:AS4080) -> 0 | AT111: =SUMIF(F335:F4080,F111,AT335:AT4080) -> 0 | AU111: =SUMIF(F335:F4080,F111,AU335:AU4080) -> 0
F112: Transport provided: Departmental activity | I112: =SUMIF(F335:F4080,F112,I335:I4080) -> 0 | J112: =SUMIF(F335:F4080,F112,J335:J4080) -> 0 | K112: =SUMIF(F335:F4080,F112,K335:K4080) -> 0 | L112: =SUMIF(F335:F4080,F112,L335:L4080) -> 0 | M112: =SUMIF(F335:F4080,F112,M335:M4080) -> 0 | N112: =SUMIF(F335:F4080,F112,N335:N4080) -> 0 | O112: =SUMIF(F335:F4080,F112,O335:O4080) -> 0 | P112: =SUMIF(F335:F4080,F112,P335:P4080) -> 0 | Q112: =SUMIF(F335:F4080,F112,Q335:Q4080) -> 0 | R112: =SUMIF(F335:F4080,F112,R335:R4080) -> 0 | S112: =SUMIF(F335:F4080,F112,S335:S4080) -> 0 | T112: =SUMIF(F335:F4080,F112,T335:T4080) -> 0 | U112: =SUMIF(F335:F4080,F112,U335:U4080) -> 0 | V112: =IF(AND([4]Settings!A3=1,[4]Settings!A5="TRUE"),0,SUMIF(F335:F4080,F112,V335:V4080)) -> 0 | W112: =IF(AND([4]Settings!A3=1,[4]Settings!A5="TRUE"),0,SUMIF(F335:F4080,F112,W335:W4080)) -> 0 | X112: 0 | Y112: 0 | Z112: =SUMIF(F335:F4080,F112,Z335:Z4080) -> 0 | AA112: =SUMIF(F335:F4080,F112,AA335:AA4080) -> 0 | AB112: =SUMIF(F335:F4080,F112,AB335:AB4080) -> 0 | AC112: =SUMIF(F335:F4080,F112,AC335:AC4080) -> 0 | AD112: =SUMIF(F335:F4080,F112,AD335:AD4080) -> 0 | AE112: =IF(AND([4]Settings!A3=1,[4]Settings!A5="TRUE"),0,SUMIF(F335:F4080,F112,AE335:AE4080)) -> 0 | AF112: =IF(AND([4]Settings!A3=1,[4]Settings!A5="TRUE"),0,SUMIF(F335:F4080,F112,AF335:AF4080)) -> 0 | AG112: 0 | AH112: 0 | AI112: =SUMIF(F335:F4080,F112,AI335:AI4080) -> 0 | AJ112: =SUMIF(F335:F4080,F112,AJ335:AJ4080) -> 0 | AK112: =SUMIF(F335:F4080,F112,AK335:AK4080) -> 0 | AL112: =SUMIF(F335:F4080,F112,AL335:AL4080) -> 0 | AM112: =SUMIF(F335:F4080,F112,AM335:AM4080) -> 0 | AN112: =IF(AND([4]Settings!A3=1,[4]Settings!A5="TRUE"),0,SUMIF(F335:F4080,F112,AN335:AN4080)) -> 0 | AO112: =IF(AND([4]Settings!A3=1,[4]Settings!A5="TRUE"),0,SUMIF(F335:F4080,F112,AO335:AO4080)) -> 0 | AP112: 0 | AQ112: 0 | AR112: =SUMIF(F335:F4080,F112,AR335:AR4080) -> 0 | AS112: =SUMIF(F335:F4080,F112,AS335:AS4080) -> 0 | AT112: =SUMIF(F335:F4080,F112,AT335:AT4080) -> 0 | AU112: =SUMIF(F335:F4080,F112,AU335:AU4080) -> 0
F113: Travel and subsistence | I113: =SUMIF(F335:F4080,F113,I335:I4080) -> 0 | J113: =SUMIF(F335:F4080,F113,J335:J4080) -> 0 | K113: =SUMIF(F335:F4080,F113,K335:K4080) -> 0 | L113: =SUMIF(F335:F4080,F113,L335:L4080) -> 0 | M113: =SUMIF(F335:F4080,F113,M335:M4080) -> 0 | N113: =SUMIF(F335:F4080,F113,N335:N4080) -> 0 | O113: =SUMIF(F335:F4080,F113,O335:O4080) -> 0 | P113: =SUMIF(F335:F4080,F113,P335:P4080) -> 0 | Q113: =SUMIF(F335:F4080,F113,Q335:Q4080) -> 0 | R113: =SUMIF(F335:F4080,F113,R335:R4080) -> 0 | S113: =SUMIF(F335:F4080,F113,S335:S4080) -> 0 | T113: =SUMIF(F335:F4080,F113,T335:T4080) -> 0 | U113: =SUMIF(F335:F4080,F113,U335:U4080) -> 0 | V113: =IF(AND([4]Settings!A3=1,[4]Settings!A5="TRUE"),0,SUMIF(F335:F4080,F113,V335:V4080)) -> 0 | W113: =IF(AND([4]Settings!A3=1,[4]Settings!A5="TRUE"),0,SUMIF(F335:F4080,F113,W335:W4080)) -> 0 | X113: 0 | Y113: 0 | Z113: =SUMIF(F335:F4080,F113,Z335:Z4080) -> 0 | AA113: =SUMIF(F335:F4080,F113,AA335:AA4080) -> 0 | AB113: =SUMIF(F335:F4080,F113,AB335:AB4080) -> 0 | AC113: =SUMIF(F335:F4080,F113,AC335:AC4080) -> 0 | AD113: =SUMIF(F335:F4080,F113,AD335:AD4080) -> 0 | AE113: =IF(AND([4]Settings!A3=1,[4]Settings!A5="TRUE"),0,SUMIF(F335:F4080,F113,AE335:AE4080)) -> 0 | AF113: =IF(AND([4]Settings!A3=1,[4]Settings!A5="TRUE"),0,SUMIF(F335:F4080,F113,AF335:AF4080)) -> 0 | AG113: 0 | AH113: 0 | AI113: =SUMIF(F335:F4080,F113,AI335:AI4080) -> 0 | AJ113: =SUMIF(F335:F4080,F113,AJ335:AJ4080) -> 0 | AK113: =SUMIF(F335:F4080,F113,AK335:AK4080) -> 0 | AL113: =SUMIF(F335:F4080,F113,AL335:AL4080) -> 0 | AM113: =SUMIF(F335:F4080,F113,AM335:AM4080) -> 0 | AN113: =IF(AND([4]Settings!A3=1,[4]Settings!A5="TRUE"),0,SUMIF(F335:F4080,F113,AN335:AN4080)) -> 0 | AO113: =IF(AND([4]Settings!A3=1,[4]Settings!A5="TRUE"),0,SUMIF(F335:F4080,F113,AO335:AO4080)) -> 0 | AP113: 0 | AQ113: 0 | AR113: =SUMIF(F335:F4080,F113,AR335:AR4080) -> 0 | AS113: =SUMIF(F335:F4080,F113,AS335:AS4080) -> 0 | AT113: =SUMIF(F335:F4080,F113,AT335:AT4080) -> 0 | AU113: =SUMIF(F335:F4080,F113,AU335:AU4080) -> 0
F114: Training and development | I114: =SUMIF(F335:F4080,F114,I335:I4080) -> 0 | J114: =SUMIF(F335:F4080,F114,J335:J4080) -> 0 | K114: =SUMIF(F335:F4080,F114,K335:K4080) -> 0 | L114: =SUMIF(F335:F4080,F114,L335:L4080) -> 0 | M114: =SUMIF(F335:F4080,F114,M335:M4080) -> 0 | N114: =SUMIF(F335:F4080,F114,N335:N4080) -> 0 | O114: =SUMIF(F335:F4080,F114,O335:O4080) -> 0 | P114: =SUMIF(F335:F4080,F114,P335:P4080) -> 0 | Q114: =SUMIF(F335:F4080,F114,Q335:Q4080) -> 0 | R114: =SUMIF(F335:F4080,F114,R335:R4080) -> 0 | S114: =SUMIF(F335:F4080,F114,S335:S4080) -> 0 | T114: =SUMIF(F335:F4080,F114,T335:T4080) -> 0 | U114: =SUMIF(F335:F4080,F114,U335:U4080) -> 0 | V114: =IF(AND([4]Settings!A3=1,[4]Settings!A5="TRUE"),0,SUMIF(F335:F4080,F114,V335:V4080)) -> 0 | W114: =IF(AND([4]Settings!A3=1,[4]Settings!A5="TRUE"),0,SUMIF(F335:F4080,F114,W335:W4080)) -> 0 | X114: 0 | Y114: 0 | Z114: =SUMIF(F335:F4080,F114,Z335:Z4080) -> 0 | AA114: =SUMIF(F335:F4080,F114,AA335:AA4080) -> 0 | AB114: =SUMIF(F335:F4080,F114,AB335:AB4080) -> 0 | AC114: =SUMIF(F335:F4080,F114,AC335:AC4080) -> 0 | AD114: =SUMIF(F335:F4080,F114,AD335:AD4080) -> 0 | AE114: =IF(AND([4]Settings!A3=1,[4]Settings!A5="TRUE"),0,SUMIF(F335:F4080,F114,AE335:AE4080)) -> 0 | AF114: =IF(AND([4]Settings!A3=1,[4]Settings!A5="TRUE"),0,SUMIF(F335:F4080,F114,AF335:AF4080)) -> 0 | AG114: 0 | AH114: 0 | AI114: =SUMIF(F335:F4080,F114,AI335:AI4080) -> 0 | AJ114: =SUMIF(F335:F4080,F114,AJ335:AJ4080) -> 0 | AK114: =SUMIF(F335:F4080,F114,AK335:AK4080) -> 0 | AL114: =SUMIF(F335:F4080,F114,AL335:AL4080) -> 0 | AM114: =SUMIF(F335:F4080,F114,AM335:AM4080) -> 0 | AN114: =IF(AND([4]Settings!A3=1,[4]Settings!A5="TRUE"),0,SUMIF(F335:F4080,F114,AN335:AN4080)) -> 0 | AO114: =IF(AND([4]Settings!A3=1,[4]Settings!A5="TRUE"),0,SUMIF(F335:F4080,F114,AO335:AO4080)) -> 0 | AP114: 0 | AQ114: 0 | AR114: =SUMIF(F335:F4080,F114,AR335:AR4080) -> 0 | AS114: =SUMIF(F335:F4080,F114,AS335:AS4080) -> 0 | AT114: =SUMIF(F335:F4080,F114,AT335:AT4080) -> 0 | AU114: =SUMIF(F335:F4080,F114,AU335:AU4080) -> 0
F115: Operating payments | I115: =SUMIF(F335:F4080,F115,I335:I4080) -> 0 | J115: =SUMIF(F335:F4080,F115,J335:J4080) -> 0 | K115: =SUMIF(F335:F4080,F115,K335:K4080) -> 0 | L115: =SUMIF(F335:F4080,F115,L335:L4080) -> 0 | M115: =SUMIF(F335:F4080,F115,M335:M4080) -> 0 | N115: =SUMIF(F335:F4080,F115,N335:N4080) -> 0 | O115: =SUMIF(F335:F4080,F115,O335:O4080) -> 0 | P115: =SUMIF(F335:F4080,F115,P335:P4080) -> 0 | Q115: =SUMIF(F335:F4080,F115,Q335:Q4080) -> 0 | R115: =SUMIF(F335:F4080,F115,R335:R4080) -> 0 | S115: =SUMIF(F335:F4080,F115,S335:S4080) -> 0 | T115: =SUMIF(F335:F4080,F115,T335:T4080) -> 0 | U115: =SUMIF(F335:F4080,F115,U335:U4080) -> 0 | V115: =IF(AND([4]Settings!A3=1,[4]Settings!A5="TRUE"),0,SUMIF(F335:F4080,F115,V335:V4080)) -> 0 | W115: =IF(AND([4]Settings!A3=1,[4]Settings!A5="TRUE"),0,SUMIF(F335:F4080,F115,W335:W4080)) -> 0 | X115: 0 | Y115: 0 | Z115: =SUMIF(F335:F4080,F115,Z335:Z4080) -> 0 | AA115: =SUMIF(F335:F4080,F115,AA335:AA4080) -> 0 | AB115: =SUMIF(F335:F4080,F115,AB335:AB4080) -> 0 | AC115: =SUMIF(F335:F4080,F115,AC335:AC4080) -> 0 | AD115: =SUMIF(F335:F4080,F115,AD335:AD4080) -> 0 | AE115: =IF(AND([4]Settings!A3=1,[4]Settings!A5="TRUE"),0,SUMIF(F335:F4080,F115,AE335:AE4080)) -> 0 | AF115: =IF(AND([4]Settings!A3=1,[4]Settings!A5="TRUE"),0,SUMIF(F335:F4080,F115,AF335:AF4080)) -> 0 | AG115: 0 | AH115: 0 | AI115: =SUMIF(F335:F4080,F115,AI335:AI4080) -> 0 | AJ115: =SUMIF(F335:F4080,F115,AJ335:AJ4080) -> 0 | AK115: =SUMIF(F335:F4080,F115,AK335:AK4080) -> 0 | AL115: =SUMIF(F335:F4080,F115,AL335:AL4080) -> 0 | AM115: =SUMIF(F335:F4080,F115,AM335:AM4080) -> 0 | AN115: =IF(AND([4]Settings!A3=1,[4]Settings!A5="TRUE"),0,SUMIF(F335:F4080,F115,AN335:AN4080)) -> 0 | AO115: =IF(AND([4]Settings!A3=1,[4]Settings!A5="TRUE"),0,SUMIF(F335:F4080,F115,AO335:AO4080)) -> 0 | AP115: 0 | AQ115: 0 | AR115: =SUMIF(F335:F4080,F115,AR335:AR4080) -> 0 | AS115: =SUMIF(F335:F4080,F115,AS335:AS4080) -> 0 | AT115: =SUMIF(F335:F4080,F115,AT335:AT4080) -> 0 | AU115: =SUMIF(F335:F4080,F115,AU335:AU4080) -> 0
F116: Venues and facilities | I116: =SUMIF(F335:F4080,F116,I335:I4080) -> 0 | J116: =SUMIF(F335:F4080,F116,J335:J4080) -> 0 | K116: =SUMIF(F335:F4080,F116,K335:K4080) -> 0 | L116: =SUMIF(F335:F4080,F116,L335:L4080) -> 0 | M116: =SUMIF(F335:F4080,F116,M335:M4080) -> 0 | N116: =SUMIF(F335:F4080,F116,N335:N4080) -> 0 | O116: =SUMIF(F335:F4080,F116,O335:O4080) -> 0 | P116: =SUMIF(F335:F4080,F116,P335:P4080) -> 0 | Q116: =SUMIF(F335:F4080,F116,Q335:Q4080) -> 0 | R116: =SUMIF(F335:F4080,F116,R335:R4080) -> 0 | S116: =SUMIF(F335:F4080,F116,S335:S4080) -> 0 | T116: =SUMIF(F335:F4080,F116,T335:T4080) -> 0 | U116: =SUMIF(F335:F4080,F116,U335:U4080) -> 0 | V116: =IF(AND([4]Settings!A3=1,[4]Settings!A5="TRUE"),0,SUMIF(F335:F4080,F116,V335:V4080)) -> 0 | W116: =IF(AND([4]Settings!A3=1,[4]Settings!A5="TRUE"),0,SUMIF(F335:F4080,F116,W335:W4080)) -> 0 | X116: 0 | Y116: 0 | Z116: =SUMIF(F335:F4080,F116,Z335:Z4080) -> 0 | AA116: =SUMIF(F335:F4080,F116,AA335:AA4080) -> 0 | AB116: =SUMIF(F335:F4080,F116,AB335:AB4080) -> 0 | AC116: =SUMIF(F335:F4080,F116,AC335:AC4080) -> 0 | AD116: =SUMIF(F335:F4080,F116,AD335:AD4080) -> 0 | AE116: =IF(AND([4]Settings!A3=1,[4]Settings!A5="TRUE"),0,SUMIF(F335:F4080,F116,AE335:AE4080)) -> 0 | AF116: =IF(AND([4]Settings!A3=1,[4]Settings!A5="TRUE"),0,SUMIF(F335:F4080,F116,AF335:AF4080)) -> 0 | AG116: 0 | AH116: 0 | AI116: =SUMIF(F335:F4080,F116,AI335:AI4080) -> 0 | AJ116: =SUMIF(F335:F4080,F116,AJ335:AJ4080) -> 0 | AK116: =SUMIF(F335:F4080,F116,AK335:AK4080) -> 0 | AL116: =SUMIF(F335:F4080,F116,AL335:AL4080) -> 0 | AM116: =SUMIF(F335:F4080,F116,AM335:AM4080) -> 0 | AN116: =IF(AND([4]Settings!A3=1,[4]Settings!A5="TRUE"),0,SUMIF(F335:F4080,F116,AN335:AN4080)) -> 0 | AO116: =IF(AND([4]Settings!A3=1,[4]Settings!A5="TRUE"),0,SUMIF(F335:F4080,F116,AO335:AO4080)) -> 0 | AP116: 0 | AQ116: 0 | AR116: =SUMIF(F335:F4080,F116,AR335:AR4080) -> 0 | AS116: =SUMIF(F335:F4080,F116,AS335:AS4080) -> 0 | AT116: =SUMIF(F335:F4080,F116,AT335:AT4080) -> 0 | AU116: =SUMIF(F335:F4080,F116,AU335:AU4080) -> 0
D117: =G8&F117 ->  | F117: Interest and rent on land | I117: =SUMIF(F335:F4080,F117,I335:I4080) -> 0 | J117: =SUMIF(F335:F4080,F117,J335:J4080) -> 0 | K117: =SUMIF(F335:F4080,F117,K335:K4080) -> 0 | L117: =SUMIF(F335:F4080,F117,L335:L4080) -> 0 | M117: =SUMIF(F335:F4080,F117,M335:M4080) -> 0 | N117: =SUMIF(F335:F4080,F117,N335:N4080) -> 0 | O117: =SUMIF(F335:F4080,F117,O335:O4080) -> 0 | P117: =SUMIF(F335:F4080,F117,P335:P4080) -> 0 | Q117: =SUMIF(F335:F4080,F117,Q335:Q4080) -> 0 | R117: =SUMIF(F335:F4080,F117,R335:R4080) -> 0 | S117: =SUMIF(F335:F4080,F117,S335:S4080) -> 0 | T117: =SUMIF(F335:F4080,F117,T335:T4080) -> 0 | U117: =SUMIF(F335:F4080,F117,U335:U4080) -> 0 | Y117: 0 | Z117: =SUMIF(F335:F4080,F117,Z335:Z4080) -> 0 | AA117: =SUMIF(F335:F4080,F117,AA335:AA4080) -> 0 | AB117: =SUMIF(F335:F4080,F117,AB335:AB4080) -> 0 | AC117: =SUMIF(F335:F4080,F117,AC335:AC4080) -> 0 | AD117: =SUMIF(F335:F4080,F117,AD335:AD4080) -> 0 | AH117: 0 | AI117: =SUMIF(F335:F4080,F117,AI335:AI4080) -> 0 | AJ117: =SUMIF(F335:F4080,F117,AJ335:AJ4080) -> 0 | AK117: =SUMIF(F335:F4080,F117,AK335:AK4080) -> 0 | AL117: =SUMIF(F335:F4080,F117,AL335:AL4080) -> 0 | AM117: =SUMIF(F335:F4080,F117,AM335:AM4080) -> 0 | AQ117: 0 | AR117: =SUMIF(F335:F4080,F117,AR335:AR4080) -> 0 | AS117: =SUMIF(F335:F4080,F117,AS335:AS4080) -> 0 | AT117: =SUMIF(F335:F4080,F117,AT335:AT4080) -> 0 | AU117: =SUMIF(F335:F4080,F117,AU335:AU4080) -> 0
F118: Interest (Incl. interest on unitary payments (PPP)) | I118: =SUMIF(F335:F4080,F118,I335:I4080) -> 0 | J118: =SUMIF(F335:F4080,F118,J335:J4080) -> 0 | K118: =SUMIF(F335:F4080,F118,K335:K4080) -> 0 | L118: =SUMIF(F335:F4080,F118,L335:L4080) -> 0 | M118: =SUMIF(F335:F4080,F118,M335:M4080) -> 0 | N118: =SUMIF(F335:F4080,F118,N335:N4080) -> 0 | O118: =SUMIF(F335:F4080,F118,O335:O4080) -> 0 | P118: =SUMIF(F335:F4080,F118,P335:P4080) -> 0 | Q118: =SUMIF(F335:F4080,F118,Q335:Q4080) -> 0 | R118: =SUMIF(F335:F4080,F118,R335:R4080) -> 0 | S118: =SUMIF(F335:F4080,F118,S335:S4080) -> 0 | T118: =SUMIF(F335:F4080,F118,T335:T4080) -> 0 | U118: =SUMIF(F335:F4080,F118,U335:U4080) -> 0 | V118: =IF(AND([4]Settings!A3=1,[4]Settings!A5="TRUE"),0,SUMIF(F335:F4080,F118,V335:V4080)) -> 0 | W118: =IF(AND([4]Settings!A3=1,[4]Settings!A5="TRUE"),0,SUMIF(F335:F4080,F118,W335:W4080)) -> 0 | X118: 0 | Y118: 0 | Z118: =SUMIF(F335:F4080,F118,Z335:Z4080) -> 0 | AA118: =SUMIF(F335:F4080,F118,AA335:AA4080) -> 0 | AB118: =SUMIF(F335:F4080,F118,AB335:AB4080) -> 0 | AC118: =SUMIF(F335:F4080,F118,AC335:AC4080) -> 0 | AD118: =SUMIF(F335:F4080,F118,AD335:AD4080) -> 0 | AE118: =IF(AND([4]Settings!A3=1,[4]Settings!A5="TRUE"),0,SUMIF(F335:F4080,F118,AE335:AE4080)) -> 0 | AF118: =IF(AND([4]Settings!A3=1,[4]Settings!A5="TRUE"),0,SUMIF(F335:F4080,F118,AF335:AF4080)) -> 0 | AG118: 0 | AH118: 0 | AI118: =SUMIF(F335:F4080,F118,AI335:AI4080) -> 0 | AJ118: =SUMIF(F335:F4080,F118,AJ335:AJ4080) -> 0 | AK118: =SUMIF(F335:F4080,F118,AK335:AK4080) -> 0 | AL118: =SUMIF(F335:F4080,F118,AL335:AL4080) -> 0 | AM118: =SUMIF(F335:F4080,F118,AM335:AM4080) -> 0 | AN118: =IF(AND([4]Settings!A3=1,[4]Settings!A5="TRUE"),0,SUMIF(F335:F4080,F118,AN335:AN4080)) -> 0 | AO118: =IF(AND([4]Settings!A3=1,[4]Settings!A5="TRUE"),0,SUMIF(F335:F4080,F118,AO335:AO4080)) -> 0 | AP118: 0 | AQ118: 0 | AR118: =SUMIF(F335:F4080,F118,AR335:AR4080) -> 0 | AS118: =SUMIF(F335:F4080,F118,AS335:AS4080) -> 0 | AT118: =SUMIF(F335:F4080,F118,AT335:AT4080) -> 0 | AU118: =SUMIF(F335:F4080,F118,AU335:AU4080) -> 0
F119: Rent on land | I119: =SUMIF(F335:F4080,F119,I335:I4080) -> 0 | J119: =SUMIF(F335:F4080,F119,J335:J4080) -> 0 | K119: =SUMIF(F335:F4080,F119,K335:K4080) -> 0 | L119: =SUMIF(F335:F4080,F119,L335:L4080) -> 0 | M119: =SUMIF(F335:F4080,F119,M335:M4080) -> 0 | N119: =SUMIF(F335:F4080,F119,N335:N4080) -> 0 | O119: =SUMIF(F335:F4080,F119,O335:O4080) -> 0 | P119: =SUMIF(F335:F4080,F119,P335:P4080) -> 0 | Q119: =SUMIF(F335:F4080,F119,Q335:Q4080) -> 0 | R119: =SUMIF(F335:F4080,F119,R335:R4080) -> 0 | S119: =SUMIF(F335:F4080,F119,S335:S4080) -> 0 | T119: =SUMIF(F335:F4080,F119,T335:T4080) -> 0 | U119: =SUMIF(F335:F4080,F119,U335:U4080) -> 0 | V119: =IF(AND([4]Settings!A3=1,[4]Settings!A5="TRUE"),0,SUMIF(F335:F4080,F119,V335:V4080)) -> 0 | W119: =IF(AND([4]Settings!A3=1,[4]Settings!A5="TRUE"),0,SUMIF(F335:F4080,F119,W335:W4080)) -> 0 | X119: 0 | Y119: 0 | Z119: =SUMIF(F335:F4080,F119,Z335:Z4080) -> 0 | AA119: =SUMIF(F335:F4080,F119,AA335:AA4080) -> 0 | AB119: =SUMIF(F335:F4080,F119,AB335:AB4080) -> 0 | AC119: =SUMIF(F335:F4080,F119,AC335:AC4080) -> 0 | AD119: =SUMIF(F335:F4080,F119,AD335:AD4080) -> 0 | AE119: =IF(AND([4]Settings!A3=1,[4]Settings!A5="TRUE"),0,SUMIF(F335:F4080,F119,AE335:AE4080)) -> 0 | AF119: =IF(AND([4]Settings!A3=1,[4]Settings!A5="TRUE"),0,SUMIF(F335:F4080,F119,AF335:AF4080)) -> 0 | AG119: 0 | AH119: 0 | AI119: =SUMIF(F335:F4080,F119,AI335:AI4080) -> 0 | AJ119: =SUMIF(F335:F4080,F119,AJ335:AJ4080) -> 0 | AK119: =SUMIF(F335:F4080,F119,AK335:AK4080) -> 0 | AL119: =SUMIF(F335:F4080,F119,AL335:AL4080) -> 0 | AM119: =SUMIF(F335:F4080,F119,AM335:AM4080) -> 0 | AN119: =IF(AND([4]Settings!A3=1,[4]Settings!A5="TRUE"),0,SUMIF(F335:F4080,F119,AN335:AN4080)) -> 0 | AO119: =IF(AND([4]Settings!A3=1,[4]Settings!A5="TRUE"),0,SUMIF(F335:F4080,F119,AO335:AO4080)) -> 0 | AP119: 0 | AQ119: 0 | AR119: =SUMIF(F335:F4080,F119,AR335:AR4080) -> 0 | AS119: =SUMIF(F335:F4080,F119,AS335:AS4080) -> 0 | AT119: =SUMIF(F335:F4080,F119,AT335:AT4080) -> 0 | AU119: =SUMIF(F335:F4080,F119,AU335:AU4080) -> 0
A120: 1 | B120: Transfers and subsidies | C120: =IF(B120=F120,1,0) -> 1 | F120: Transfers and subsidies | I120: =SUMIF(F335:F4080,F120,I335:I4080) -> 0 | J120: =SUMIF(F335:F4080,F120,J335:J4080) -> 0 | K120: =SUMIF(F335:F4080,F120,K335:K4080) -> 0 | L120: =SUMIF(F335:F4080,F120,L335:L4080) -> 0 | M120: =SUMIF(F335:F4080,F120,M335:M4080) -> 0 | N120: =SUMIF(F335:F4080,F120,N335:N4080) -> 0 | O120: =SUMIF(F335:F4080,F120,O335:O4080) -> 0 | P120: =SUMIF(F335:F4080,F120,P335:P4080) -> 0 | Q120: =SUMIF(F335:F4080,F120,Q335:Q4080) -> 0 | R120: =SUMIF(F335:F4080,F120,R335:R4080) -> 0 | S120: =SUMIF(F335:F4080,F120,S335:S4080) -> 0 | T120: =SUMIF(F335:F4080,F120,T335:T4080) -> 0 | U120: =SUMIF(F335:F4080,F120,U335:U4080) -> 0 | V120: =+V121+V128+V131+V132+V133+V140+V141 ->  | W120: =+W121+W128+W131+W132+W133+W140+W141 ->  | Y120: 0 | Z120: =SUMIF(F335:F4080,F120,Z335:Z4080) -> 0 | AA120: =SUMIF(F335:F4080,F120,AA335:AA4080) -> 0 | AB120: =SUMIF(F335:F4080,F120,AB335:AB4080) -> 0 | AC120: =SUMIF(F335:F4080,F120,AC335:AC4080) -> 0 | AD120: =SUMIF(F335:F4080,F120,AD335:AD4080) -> 0 | AE120: =+AE121+AE128+AE131+AE132+AE133+AE140+AE141 ->  | AF120: =+AF121+AF128+AF131+AF132+AF133+AF140+AF141 ->  | AH120: 0 | AI120: =SUMIF(F335:F4080,F120,AI335:AI4080) -> 0 | AJ120: =SUMIF(F335:F4080,F120,AJ335:AJ4080) -> 0 | AK120: =SUMIF(F335:F4080,F120,AK335:AK4080) -> 0 | AL120: =SUMIF(F335:F4080,F120,AL335:AL4080) -> 0 | AM120: =SUMIF(F335:F4080,F120,AM335:AM4080) -> 0 | AN120: =+AN121+AN128+AN131+AN132+AN133+AN140+AN141 ->  | AO120: =+AO121+AO128+AO131+AO132+AO133+AO140+AO141 ->  | AQ120: 0 | AR120: =SUMIF(F335:F4080,F120,AR335:AR4080) -> 0 | AS120: =SUMIF(F335:F4080,F120,AS335:AS4080) -> 0 | AT120: =SUMIF(F335:F4080,F120,AT335:AT4080) -> 0 | AU120: =SUMIF(F335:F4080,F120,AU335:AU4080) -> 0
A121: =IF(INDEX(OFFSET(MyEconSettings,0,-1),MATCH(F121,MyEconSettings,0),1)=UPPER("n"),"x",IF(SUM(COUNTIF(I121:AU121,"<>0")-COUNTBLANK(I121:AU121))<>0,1,0)) ->  | B121: Provinces and municipalities | C121: 1 | D121: =G8&F121 ->  | F121: Provinces and municipalities | I121: =SUMIF(F335:F4080,F121,I335:I4080) -> 0 | J121: =SUMIF(F335:F4080,F121,J335:J4080) -> 0 | K121: =SUMIF(F335:F4080,F121,K335:K4080) -> 0 | L121: =SUMIF(F335:F4080,F121,L335:L4080) -> 0 | M121: =SUMIF(F335:F4080,F121,M335:M4080) -> 0 | N121: =SUMIF(F335:F4080,F121,N335:N4080) -> 0 | O121: =SUMIF(F335:F4080,F121,O335:O4080) -> 0 | P121: =SUMIF(F335:F4080,F121,P335:P4080) -> 0 | Q121: =SUMIF(F335:F4080,F121,Q335:Q4080) -> 0 | R121: =SUMIF(F335:F4080,F121,R335:R4080) -> 0 | S121: =SUMIF(F335:F4080,F121,S335:S4080) -> 0 | T121: =SUMIF(F335:F4080,F121,T335:T4080) -> 0 | U121: =SUMIF(F335:F4080,F121,U335:U4080) -> 0 | Y121: 0 | Z121: =SUMIF(F335:F4080,F121,Z335:Z4080) -> 0 | AA121: =SUMIF(F335:F4080,F121,AA335:AA4080) -> 0 | AB121: =SUMIF(F335:F4080,F121,AB335:AB4080) -> 0 | AC121: =SUMIF(F335:F4080,F121,AC335:AC4080) -> 0 | AD121: =SUMIF(F335:F4080,F121,AD335:AD4080) -> 0 | AH121: 0 | AI121: =SUMIF(F335:F4080,F121,AI335:AI4080) -> 0 | AJ121: =SUMIF(F335:F4080,F121,AJ335:AJ4080) -> 0 | AK121: =SUMIF(F335:F4080,F121,AK335:AK4080) -> 0 | AL121: =SUMIF(F335:F4080,F121,AL335:AL4080) -> 0 | AM121: =SUMIF(F335:F4080,F121,AM335:AM4080) -> 0 | AQ121: 0 | AR121: =SUMIF(F335:F4080,F121,AR335:AR4080) -> 0 | AS121: =SUMIF(F335:F4080,F121,AS335:AS4080) -> 0 | AT121: =SUMIF(F335:F4080,F121,AT335:AT4080) -> 0 | AU121: =SUMIF(F335:F4080,F121,AU335:AU4080) -> 0
B122: Provinces | C122: 1 | F122: Provinces | I122: =SUMIF(F335:F4080,F122,I335:I4080) -> 0 | J122: =SUMIF(F335:F4080,F122,J335:J4080) -> 0 | K122: =SUMIF(F335:F4080,F122,K335:K4080) -> 0 | L122: =SUMIF(F335:F4080,F122,L335:L4080) -> 0 | M122: =SUMIF(F335:F4080,F122,M335:M4080) -> 0 | N122: =SUMIF(F335:F4080,F122,N335:N4080) -> 0 | O122: =SUMIF(F335:F4080,F122,O335:O4080) -> 0 | P122: =SUMIF(F335:F4080,F122,P335:P4080) -> 0 | Q122: =SUMIF(F335:F4080,F122,Q335:Q4080) -> 0 | R122: =SUMIF(F335:F4080,F122,R335:R4080) -> 0 | S122: =SUMIF(F335:F4080,F122,S335:S4080) -> 0 | T122: =SUMIF(F335:F4080,F122,T335:T4080) -> 0 | U122: =SUMIF(F335:F4080,F122,U335:U4080) -> 0 | V122: =IF(AND([4]Settings!A3=1,[4]Settings!A5="TRUE"),0,SUMIF(F335:F4080,F122,V335:V4080)) -> 0 | W122: =IF(AND([4]Settings!A3=1,[4]Settings!A5="TRUE"),0,SUMIF(F335:F4080,F122,W335:W4080)) -> 0 | X122: 0 | Y122: 0 | Z122: =SUMIF(F335:F4080,F122,Z335:Z4080) -> 0 | AA122: =SUMIF(F335:F4080,F122,AA335:AA4080) -> 0 | AB122: =SUMIF(F335:F4080,F122,AB335:AB4080) -> 0 | AC122: =SUMIF(F335:F4080,F122,AC335:AC4080) -> 0 | AD122: =SUMIF(F335:F4080,F122,AD335:AD4080) -> 0 | AE122: =IF(AND([4]Settings!A3=1,[4]Settings!A5="TRUE"),0,SUMIF(F335:F4080,F122,AE335:AE4080)) -> 0 | AF122: =IF(AND([4]Settings!A3=1,[4]Settings!A5="TRUE"),0,SUMIF(F335:F4080,F122,AF335:AF4080)) -> 0 | AG122: 0 | AH122: 0 | AI122: =SUMIF(F335:F4080,F122,AI335:AI4080) -> 0 | AJ122: =SUMIF(F335:F4080,F122,AJ335:AJ4080) -> 0 | AK122: =SUMIF(F335:F4080,F122,AK335:AK4080) -> 0 | AL122: =SUMIF(F335:F4080,F122,AL335:AL4080) -> 0 | AM122: =SUMIF(F335:F4080,F122,AM335:AM4080) -> 0 | AN122: =IF(AND([4]Settings!A3=1,[4]Settings!A5="TRUE"),0,SUMIF(F335:F4080,F122,AN335:AN4080)) -> 0 | AO122: =IF(AND([4]Settings!A3=1,[4]Settings!A5="TRUE"),0,SUMIF(F335:F4080,F122,AO335:AO4080)) -> 0 | AP122: 0 | AQ122: 0 | AR122: =SUMIF(F335:F4080,F122,AR335:AR4080) -> 0 | AS122: =SUMIF(F335:F4080,F122,AS335:AS4080) -> 0 | AT122: =SUMIF(F335:F4080,F122,AT335:AT4080) -> 0 | AU122: =SUMIF(F335:F4080,F122,AU335:AU4080) -> 0
B123: Provincial Revenue Funds | C123: 1 | F123: Provincial Revenue Funds | I123: =SUMIF(F335:F4080,F123,I335:I4080) -> 0 | J123: =SUMIF(F335:F4080,F123,J335:J4080) -> 0 | K123: =SUMIF(F335:F4080,F123,K335:K4080) -> 0 | L123: =SUMIF(F335:F4080,F123,L335:L4080) -> 0 | M123: =SUMIF(F335:F4080,F123,M335:M4080) -> 0 | N123: =SUMIF(F335:F4080,F123,N335:N4080) -> 0 | O123: =SUMIF(F335:F4080,F123,O335:O4080) -> 0 | P123: =SUMIF(F335:F4080,F123,P335:P4080) -> 0 | Q123: =SUMIF(F335:F4080,F123,Q335:Q4080) -> 0 | R123: =SUMIF(F335:F4080,F123,R335:R4080) -> 0 | S123: =SUMIF(F335:F4080,F123,S335:S4080) -> 0 | T123: =SUMIF(F335:F4080,F123,T335:T4080) -> 0 | U123: =SUMIF(F335:F4080,F123,U335:U4080) -> 0 | V123: =IF(AND([4]Settings!A3=1,[4]Settings!A5="TRUE"),0,SUMIF(F335:F4080,F123,V335:V4080)) -> 0 | W123: =IF(AND([4]Settings!A3=1,[4]Settings!A5="TRUE"),0,SUMIF(F335:F4080,F123,W335:W4080)) -> 0 | X123: 0 | Y123: 0 | Z123: =SUMIF(F335:F4080,F123,Z335:Z4080) -> 0 | AA123: =SUMIF(F335:F4080,F123,AA335:AA4080) -> 0 | AB123: =SUMIF(F335:F4080,F123,AB335:AB4080) -> 0 | AC123: =SUMIF(F335:F4080,F123,AC335:AC4080) -> 0 | AD123: =SUMIF(F335:F4080,F123,AD335:AD4080) -> 0 | AE123: =IF(AND([4]Settings!A3=1,[4]Settings!A5="TRUE"),0,SUMIF(F335:F4080,F123,AE335:AE4080)) -> 0 | AF123: =IF(AND([4]Settings!A3=1,[4]Settings!A5="TRUE"),0,SUMIF(F335:F4080,F123,AF335:AF4080)) -> 0 | AG123: 0 | AH123: 0 | AI123: =SUMIF(F335:F4080,F123,AI335:AI4080) -> 0 | AJ123: =SUMIF(F335:F4080,F123,AJ335:AJ4080) -> 0 | AK123: =SUMIF(F335:F4080,F123,AK335:AK4080) -> 0 | AL123: =SUMIF(F335:F4080,F123,AL335:AL4080) -> 0 | AM123: =SUMIF(F335:F4080,F123,AM335:AM4080) -> 0 | AN123: =IF(AND([4]Settings!A3=1,[4]Settings!A5="TRUE"),0,SUMIF(F335:F4080,F123,AN335:AN4080)) -> 0 | AO123: =IF(AND([4]Settings!A3=1,[4]Settings!A5="TRUE"),0,SUMIF(F335:F4080,F123,AO335:AO4080)) -> 0 | AP123: 0 | AQ123: 0 | AR123: =SUMIF(F335:F4080,F123,AR335:AR4080) -> 0 | AS123: =SUMIF(F335:F4080,F123,AS335:AS4080) -> 0 | AT123: =SUMIF(F335:F4080,F123,AT335:AT4080) -> 0 | AU123: =SUMIF(F335:F4080,F123,AU335:AU4080) -> 0
B124: Provincial agencies and funds | C124: 1 | F124: Provincial agencies and funds | I124: =SUMIF(F335:F4080,F124,I335:I4080) -> 0 | J124: =SUMIF(F335:F4080,F124,J335:J4080) -> 0 | K124: =SUMIF(F335:F4080,F124,K335:K4080) -> 0 | L124: =SUMIF(F335:F4080,F124,L335:L4080) -> 0 | M124: =SUMIF(F335:F4080,F124,M335:M4080) -> 0 | N124: =SUMIF(F335:F4080,F124,N335:N4080) -> 0 | O124: =SUMIF(F335:F4080,F124,O335:O4080) -> 0 | P124: =SUMIF(F335:F4080,F124,P335:P4080) -> 0 | Q124: =SUMIF(F335:F4080,F124,Q335:Q4080) -> 0 | R124: =SUMIF(F335:F4080,F124,R335:R4080) -> 0 | S124: =SUMIF(F335:F4080,F124,S335:S4080) -> 0 | T124: =SUMIF(F335:F4080,F124,T335:T4080) -> 0 | U124: =SUMIF(F335:F4080,F124,U335:U4080) -> 0 | V124: =IF(AND([4]Settings!A3=1,[4]Settings!A5="TRUE"),0,SUMIF(F335:F4080,F124,V335:V4080)) -> 0 | W124: =IF(AND([4]Settings!A3=1,[4]Settings!A5="TRUE"),0,SUMIF(F335:F4080,F124,W335:W4080)) -> 0 | X124: 0 | Y124: 0 | Z124: =SUMIF(F335:F4080,F124,Z335:Z4080) -> 0 | AA124: =SUMIF(F335:F4080,F124,AA335:AA4080) -> 0 | AB124: =SUMIF(F335:F4080,F124,AB335:AB4080) -> 0 | AC124: =SUMIF(F335:F4080,F124,AC335:AC4080) -> 0 | AD124: =SUMIF(F335:F4080,F124,AD335:AD4080) -> 0 | AE124: =IF(AND([4]Settings!A3=1,[4]Settings!A5="TRUE"),0,SUMIF(F335:F4080,F124,AE335:AE4080)) -> 0 | AF124: =IF(AND([4]Settings!A3=1,[4]Settings!A5="TRUE"),0,SUMIF(F335:F4080,F124,AF335:AF4080)) -> 0 | AG124: 0 | AH124: 0 | AI124: =SUMIF(F335:F4080,F124,AI335:AI4080) -> 0 | AJ124: =SUMIF(F335:F4080,F124,AJ335:AJ4080) -> 0 | AK124: =SUMIF(F335:F4080,F124,AK335:AK4080) -> 0 | AL124: =SUMIF(F335:F4080,F124,AL335:AL4080) -> 0 | AM124: =SUMIF(F335:F4080,F124,AM335:AM4080) -> 0 | AN124: =IF(AND([4]Settings!A3=1,[4]Settings!A5="TRUE"),0,SUMIF(F335:F4080,F124,AN335:AN4080)) -> 0 | AO124: =IF(AND([4]Settings!A3=1,[4]Settings!A5="TRUE"),0,SUMIF(F335:F4080,F124,AO335:AO4080)) -> 0 | AP124: 0 | AQ124: 0 | AR124: =SUMIF(F335:F4080,F124,AR335:AR4080) -> 0 | AS124: =SUMIF(F335:F4080,F124,AS335:AS4080) -> 0 | AT124: =SUMIF(F335:F4080,F124,AT335:AT4080) -> 0 | AU124: =SUMIF(F335:F4080,F124,AU335:AU4080) -> 0
B125: Municipalities | C125: 1 | F125: Municipalities | I125: =SUMIF(F335:F4080,F125,I335:I4080) -> 0 | J125: =SUMIF(F335:F4080,F125,J335:J4080) -> 0 | K125: =SUMIF(F335:F4080,F125,K335:K4080) -> 0 | L125: =SUMIF(F335:F4080,F125,L335:L4080) -> 0 | M125: =SUMIF(F335:F4080,F125,M335:M4080) -> 0 | N125: =SUMIF(F335:F4080,F125,N335:N4080) -> 0 | O125: =SUMIF(F335:F4080,F125,O335:O4080) -> 0 | P125: =SUMIF(F335:F4080,F125,P335:P4080) -> 0 | Q125: =SUMIF(F335:F4080,F125,Q335:Q4080) -> 0 | R125: =SUMIF(F335:F4080,F125,R335:R4080) -> 0 | S125: =SUMIF(F335:F4080,F125,S335:S4080) -> 0 | T125: =SUMIF(F335:F4080,F125,T335:T4080) -> 0 | U125: =SUMIF(F335:F4080,F125,U335:U4080) -> 0 | V125: =IF(AND([4]Settings!A3=1,[4]Settings!A5="TRUE"),0,SUMIF(F335:F4080,F125,V335:V4080)) -> 0 | W125: =IF(AND([4]Settings!A3=1,[4]Settings!A5="TRUE"),0,SUMIF(F335:F4080,F125,W335:W4080)) -> 0 | X125: 0 | Y125: 0 | Z125: =SUMIF(F335:F4080,F125,Z335:Z4080) -> 0 | AA125: =SUMIF(F335:F4080,F125,AA335:AA4080) -> 0 | AB125: =SUMIF(F335:F4080,F125,AB335:AB4080) -> 0 | AC125: =SUMIF(F335:F4080,F125,AC335:AC4080) -> 0 | AD125: =SUMIF(F335:F4080,F125,AD335:AD4080) -> 0 | AE125: =IF(AND([4]Settings!A3=1,[4]Settings!A5="TRUE"),0,SUMIF(F335:F4080,F125,AE335:AE4080)) -> 0 | AF125: =IF(AND([4]Settings!A3=1,[4]Settings!A5="TRUE"),0,SUMIF(F335:F4080,F125,AF335:AF4080)) -> 0 | AG125: 0 | AH125: 0 | AI125: =SUMIF(F335:F4080,F125,AI335:AI4080) -> 0 | AJ125: =SUMIF(F335:F4080,F125,AJ335:AJ4080) -> 0 | AK125: =SUMIF(F335:F4080,F125,AK335:AK4080) -> 0 | AL125: =SUMIF(F335:F4080,F125,AL335:AL4080) -> 0 | AM125: =SUMIF(F335:F4080,F125,AM335:AM4080) -> 0 | AN125: =IF(AND([4]Settings!A3=1,[4]Settings!A5="TRUE"),0,SUMIF(F335:F4080,F125,AN335:AN4080)) -> 0 | AO125: =IF(AND([4]Settings!A3=1,[4]Settings!A5="TRUE"),0,SUMIF(F335:F4080,F125,AO335:AO4080)) -> 0 | AP125: 0 | AQ125: 0 | AR125: =SUMIF(F335:F4080,F125,AR335:AR4080) -> 0 | AS125: =SUMIF(F335:F4080,F125,AS335:AS4080) -> 0 | AT125: =SUMIF(F335:F4080,F125,AT335:AT4080) -> 0 | AU125: =SUMIF(F335:F4080,F125,AU335:AU4080) -> 0
B126: Municipal bank accounts | C126: 1 | F126: Municipal bank accounts | I126: =SUMIF(F335:F4080,F126,I335:I4080) -> 0 | J126: =SUMIF(F335:F4080,F126,J335:J4080) -> 0 | K126: =SUMIF(F335:F4080,F126,K335:K4080) -> 0 | L126: =SUMIF(F335:F4080,F126,L335:L4080) -> 0 | M126: =SUMIF(F335:F4080,F126,M335:M4080) -> 0 | N126: =SUMIF(F335:F4080,F126,N335:N4080) -> 0 | O126: =SUMIF(F335:F4080,F126,O335:O4080) -> 0 | P126: =SUMIF(F335:F4080,F126,P335:P4080) -> 0 | Q126: =SUMIF(F335:F4080,F126,Q335:Q4080) -> 0 | R126: =SUMIF(F335:F4080,F126,R335:R4080) -> 0 | S126: =SUMIF(F335:F4080,F126,S335:S4080) -> 0 | T126: =SUMIF(F335:F4080,F126,T335:T4080) -> 0 | U126: =SUMIF(F335:F4080,F126,U335:U4080) -> 0 | V126: =IF(AND([4]Settings!A3=1,[4]Settings!A5="TRUE"),0,SUMIF(F335:F4080,F126,V335:V4080)) -> 0 | W126: =IF(AND([4]Settings!A3=1,[4]Settings!A5="TRUE"),0,SUMIF(F335:F4080,F126,W335:W4080)) -> 0 | X126: 0 | Y126: 0 | Z126: =SUMIF(F335:F4080,F126,Z335:Z4080) -> 0 | AA126: =SUMIF(F335:F4080,F126,AA335:AA4080) -> 0 | AB126: =SUMIF(F335:F4080,F126,AB335:AB4080) -> 0 | AC126: =SUMIF(F335:F4080,F126,AC335:AC4080) -> 0 | AD126: =SUMIF(F335:F4080,F126,AD335:AD4080) -> 0 | AE126: =IF(AND([4]Settings!A3=1,[4]Settings!A5="TRUE"),0,SUMIF(F335:F4080,F126,AE335:AE4080)) -> 0 | AF126: =IF(AND([4]Settings!A3=1,[4]Settings!A5="TRUE"),0,SUMIF(F335:F4080,F126,AF335:AF4080)) -> 0 | AG126: 0 | AH126: 0 | AI126: =SUMIF(F335:F4080,F126,AI335:AI4080) -> 0 | AJ126: =SUMIF(F335:F4080,F126,AJ335:AJ4080) -> 0 | AK126: =SUMIF(F335:F4080,F126,AK335:AK4080) -> 0 | AL126: =SUMIF(F335:F4080,F126,AL335:AL4080) -> 0 | AM126: =SUMIF(F335:F4080,F126,AM335:AM4080) -> 0 | AN126: =IF(AND([4]Settings!A3=1,[4]Settings!A5="TRUE"),0,SUMIF(F335:F4080,F126,AN335:AN4080)) -> 0 | AO126: =IF(AND([4]Settings!A3=1,[4]Settings!A5="TRUE"),0,SUMIF(F335:F4080,F126,AO335:AO4080)) -> 0 | AP126: 0 | AQ126: 0 | AR126: =SUMIF(F335:F4080,F126,AR335:AR4080) -> 0 | AS126: =SUMIF(F335:F4080,F126,AS335:AS4080) -> 0 | AT126: =SUMIF(F335:F4080,F126,AT335:AT4080) -> 0 | AU126: =SUMIF(F335:F4080,F126,AU335:AU4080) -> 0
B127: Municipal agencies and funds | C127: 1 | F127: Municipal agencies and funds | I127: =SUMIF(F335:F4080,F127,I335:I4080) -> 0 | J127: =SUMIF(F335:F4080,F127,J335:J4080) -> 0 | K127: =SUMIF(F335:F4080,F127,K335:K4080) -> 0 | L127: =SUMIF(F335:F4080,F127,L335:L4080) -> 0 | M127: =SUMIF(F335:F4080,F127,M335:M4080) -> 0 | N127: =SUMIF(F335:F4080,F127,N335:N4080) -> 0 | O127: =SUMIF(F335:F4080,F127,O335:O4080) -> 0 | P127: =SUMIF(F335:F4080,F127,P335:P4080) -> 0 | Q127: =SUMIF(F335:F4080,F127,Q335:Q4080) -> 0 | R127: =SUMIF(F335:F4080,F127,R335:R4080) -> 0 | S127: =SUMIF(F335:F4080,F127,S335:S4080) -> 0 | T127: =SUMIF(F335:F4080,F127,T335:T4080) -> 0 | U127: =SUMIF(F335:F4080,F127,U335:U4080) -> 0 | V127: =IF(AND([4]Settings!A3=1,[4]Settings!A5="TRUE"),0,SUMIF(F335:F4080,F127,V335:V4080)) -> 0 | W127: =IF(AND([4]Settings!A3=1,[4]Settings!A5="TRUE"),0,SUMIF(F335:F4080,F127,W335:W4080)) -> 0 | X127: 0 | Y127: 0 | Z127: =SUMIF(F335:F4080,F127,Z335:Z4080) -> 0 | AA127: =SUMIF(F335:F4080,F127,AA335:AA4080) -> 0 | AB127: =SUMIF(F335:F4080,F127,AB335:AB4080) -> 0 | AC127: =SUMIF(F335:F4080,F127,AC335:AC4080) -> 0 | AD127: =SUMIF(F335:F4080,F127,AD335:AD4080) -> 0 | AE127: =IF(AND([4]Settings!A3=1,[4]Settings!A5="TRUE"),0,SUMIF(F335:F4080,F127,AE335:AE4080)) -> 0 | AF127: =IF(AND([4]Settings!A3=1,[4]Settings!A5="TRUE"),0,SUMIF(F335:F4080,F127,AF335:AF4080)) -> 0 | AG127: 0 | AH127: 0 | AI127: =SUMIF(F335:F4080,F127,AI335:AI4080) -> 0 | AJ127: =SUMIF(F335:F4080,F127,AJ335:AJ4080) -> 0 | AK127: =SUMIF(F335:F4080,F127,AK335:AK4080) -> 0 | AL127: =SUMIF(F335:F4080,F127,AL335:AL4080) -> 0 | AM127: =SUMIF(F335:F4080,F127,AM335:AM4080) -> 0 | AN127: =IF(AND([4]Settings!A3=1,[4]Settings!A5="TRUE"),0,SUMIF(F335:F4080,F127,AN335:AN4080)) -> 0 | AO127: =IF(AND([4]Settings!A3=1,[4]Settings!A5="TRUE"),0,SUMIF(F335:F4080,F127,AO335:AO4080)) -> 0 | AP127: 0 | AQ127: 0 | AR127: =SUMIF(F335:F4080,F127,AR335:AR4080) -> 0 | AS127: =SUMIF(F335:F4080,F127,AS335:AS4080) -> 0 | AT127: =SUMIF(F335:F4080,F127,AT335:AT4080) -> 0 | AU127: =SUMIF(F335:F4080,F127,AU335:AU4080) -> 0
B128: Departmental agencies and accounts | C128: 1 | D128: =G8&F128 ->  | F128: Departmental agencies and accounts | I128: =SUMIF(F335:F4080,F128,I335:I4080) -> 0 | J128: =SUMIF(F335:F4080,F128,J335:J4080) -> 0 | K128: =SUMIF(F335:F4080,F128,K335:K4080) -> 0 | L128: =SUMIF(F335:F4080,F128,L335:L4080) -> 0 | M128: =SUMIF(F335:F4080,F128,M335:M4080) -> 0 | N128: =SUMIF(F335:F4080,F128,N335:N4080) -> 0 | O128: =SUMIF(F335:F4080,F128,O335:O4080) -> 0 | P128: =SUMIF(F335:F4080,F128,P335:P4080) -> 0 | Q128: =SUMIF(F335:F4080,F128,Q335:Q4080) -> 0 | R128: =SUMIF(F335:F4080,F128,R335:R4080) -> 0 | S128: =SUMIF(F335:F4080,F128,S335:S4080) -> 0 | T128: =SUMIF(F335:F4080,F128,T335:T4080) -> 0 | U128: =SUMIF(F335:F4080,F128,U335:U4080) -> 0 | Y128: 0 | Z128: =SUMIF(F335:F4080,F128,Z335:Z4080) -> 0 | AA128: =SUMIF(F335:F4080,F128,AA335:AA4080) -> 0 | AB128: =SUMIF(F335:F4080,F128,AB335:AB4080) -> 0 | AC128: =SUMIF(F335:F4080,F128,AC335:AC4080) -> 0 | AD128: =SUMIF(F335:F4080,F128,AD335:AD4080) -> 0 | AH128: 0 | AI128: =SUMIF(F335:F4080,F128,AI335:AI4080) -> 0 | AJ128: =SUMIF(F335:F4080,F128,AJ335:AJ4080) -> 0 | AK128: =SUMIF(F335:F4080,F128,AK335:AK4080) -> 0 | AL128: =SUMIF(F335:F4080,F128,AL335:AL4080) -> 0 | AM128: =SUMIF(F335:F4080,F128,AM335:AM4080) -> 0 | AQ128: 0 | AR128: =SUMIF(F335:F4080,F128,AR335:AR4080) -> 0 | AS128: =SUMIF(F335:F4080,F128,AS335:AS4080) -> 0 | AT128: =SUMIF(F335:F4080,F128,AT335:AT4080) -> 0 | AU128: =SUMIF(F335:F4080,F128,AU335:AU4080) -> 0
B129: Social security funds | C129: 1 | F129: Social security funds | I129: =SUMIF(F335:F4080,F129,I335:I4080) -> 0 | J129: =SUMIF(F335:F4080,F129,J335:J4080) -> 0 | K129: =SUMIF(F335:F4080,F129,K335:K4080) -> 0 | L129: =SUMIF(F335:F4080,F129,L335:L4080) -> 0 | M129: =SUMIF(F335:F4080,F129,M335:M4080) -> 0 | N129: =SUMIF(F335:F4080,F129,N335:N4080) -> 0 | O129: =SUMIF(F335:F4080,F129,O335:O4080) -> 0 | P129: =SUMIF(F335:F4080,F129,P335:P4080) -> 0 | Q129: =SUMIF(F335:F4080,F129,Q335:Q4080) -> 0 | R129: =SUMIF(F335:F4080,F129,R335:R4080) -> 0 | S129: =SUMIF(F335:F4080,F129,S335:S4080) -> 0 | T129: =SUMIF(F335:F4080,F129,T335:T4080) -> 0 | U129: =SUMIF(F335:F4080,F129,U335:U4080) -> 0 | V129: =IF(AND([4]Settings!A3=1,[4]Settings!A5="TRUE"),0,SUMIF(F335:F4080,F129,V335:V4080)) -> 0 | W129: =IF(AND([4]Settings!A3=1,[4]Settings!A5="TRUE"),0,SUMIF(F335:F4080,F129,W335:W4080)) -> 0 | X129: 0 | Y129: 0 | Z129: =SUMIF(F335:F4080,F129,Z335:Z4080) -> 0 | AA129: =SUMIF(F335:F4080,F129,AA335:AA4080) -> 0 | AB129: =SUMIF(F335:F4080,F129,AB335:AB4080) -> 0 | AC129: =SUMIF(F335:F4080,F129,AC335:AC4080) -> 0 | AD129: =SUMIF(F335:F4080,F129,AD335:AD4080) -> 0 | AE129: =IF(AND([4]Settings!A3=1,[4]Settings!A5="TRUE"),0,SUMIF(F335:F4080,F129,AE335:AE4080)) -> 0 | AF129: =IF(AND([4]Settings!A3=1,[4]Settings!A5="TRUE"),0,SUMIF(F335:F4080,F129,AF335:AF4080)) -> 0 | AG129: 0 | AH129: 0 | AI129: =SUMIF(F335:F4080,F129,AI335:AI4080) -> 0 | AJ129: =SUMIF(F335:F4080,F129,AJ335:AJ4080) -> 0 | AK129: =SUMIF(F335:F4080,F129,AK335:AK4080) -> 0 | AL129: =SUMIF(F335:F4080,F129,AL335:AL4080) -> 0 | AM129: =SUMIF(F335:F4080,F129,AM335:AM4080) -> 0 | AN129: =IF(AND([4]Settings!A3=1,[4]Settings!A5="TRUE"),0,SUMIF(F335:F4080,F129,AN335:AN4080)) -> 0 | AO129: =IF(AND([4]Settings!A3=1,[4]Settings!A5="TRUE"),0,SUMIF(F335:F4080,F129,AO335:AO4080)) -> 0 | AP129: 0 | AQ129: 0 | AR129: =SUMIF(F335:F4080,F129,AR335:AR4080) -> 0 | AS129: =SUMIF(F335:F4080,F129,AS335:AS4080) -> 0 | AT129: =SUMIF(F335:F4080,F129,AT335:AT4080) -> 0 | AU129: =SUMIF(F335:F4080,F129,AU335:AU4080) -> 0
B130: Departmental agencies (non-business entities) | C130: 1 | F130: Departmental agencies (non-business entities) | I130: =SUMIF(F335:F4080,F130,I335:I4080) -> 0 | J130: =SUMIF(F335:F4080,F130,J335:J4080) -> 0 | K130: =SUMIF(F335:F4080,F130,K335:K4080) -> 0 | L130: =SUMIF(F335:F4080,F130,L335:L4080) -> 0 | M130: =SUMIF(F335:F4080,F130,M335:M4080) -> 0 | N130: =SUMIF(F335:F4080,F130,N335:N4080) -> 0 | O130: =SUMIF(F335:F4080,F130,O335:O4080) -> 0 | P130: =SUMIF(F335:F4080,F130,P335:P4080) -> 0 | Q130: =SUMIF(F335:F4080,F130,Q335:Q4080) -> 0 | R130: =SUMIF(F335:F4080,F130,R335:R4080) -> 0 | S130: =SUMIF(F335:F4080,F130,S335:S4080) -> 0 | T130: =SUMIF(F335:F4080,F130,T335:T4080) -> 0 | U130: =SUMIF(F335:F4080,F130,U335:U4080) -> 0 | V130: =IF(AND([4]Settings!A3=1,[4]Settings!A5="TRUE"),0,SUMIF(F335:F4080,F130,V335:V4080)) -> 0 | W130: =IF(AND([4]Settings!A3=1,[4]Settings!A5="TRUE"),0,SUMIF(F335:F4080,F130,W335:W4080)) -> 0 | X130: 0 | Y130: 0 | Z130: =SUMIF(F335:F4080,F130,Z335:Z4080) -> 0 | AA130: =SUMIF(F335:F4080,F130,AA335:AA4080) -> 0 | AB130: =SUMIF(F335:F4080,F130,AB335:AB4080) -> 0 | AC130: =SUMIF(F335:F4080,F130,AC335:AC4080) -> 0 | AD130: =SUMIF(F335:F4080,F130,AD335:AD4080) -> 0 | AE130: =IF(AND([4]Settings!A3=1,[4]Settings!A5="TRUE"),0,SUMIF(F335:F4080,F130,AE335:AE4080)) -> 0 | AF130: =IF(AND([4]Settings!A3=1,[4]Settings!A5="TRUE"),0,SUMIF(F335:F4080,F130,AF335:AF4080)) -> 0 | AG130: 0 | AH130: 0 | AI130: =SUMIF(F335:F4080,F130,AI335:AI4080) -> 0 | AJ130: =SUMIF(F335:F4080,F130,AJ335:AJ4080) -> 0 | AK130: =SUMIF(F335:F4080,F130,AK335:AK4080) -> 0 | AL130: =SUMIF(F335:F4080,F130,AL335:AL4080) -> 0 | AM130: =SUMIF(F335:F4080,F130,AM335:AM4080) -> 0 | AN130: =IF(AND([4]Settings!A3=1,[4]Settings!A5="TRUE"),0,SUMIF(F335:F4080,F130,AN335:AN4080)) -> 0 | AO130: =IF(AND([4]Settings!A3=1,[4]Settings!A5="TRUE"),0,SUMIF(F335:F4080,F130,AO335:AO4080)) -> 0 | AP130: 0 | AQ130: 0 | AR130: =SUMIF(F335:F4080,F130,AR335:AR4080) -> 0 | AS130: =SUMIF(F335:F4080,F130,AS335:AS4080) -> 0 | AT130: =SUMIF(F335:F4080,F130,AT335:AT4080) -> 0 | AU130: =SUMIF(F335:F4080,F130,AU335:AU4080) -> 0
B131: Higher education institutions | C131: 1 | D131: =G8&F131 ->  | F131: Higher education institutions | I131: =SUMIF(F335:F4080,F131,I335:I4080) -> 0 | J131: =SUMIF(F335:F4080,F131,J335:J4080) -> 0 | K131: =SUMIF(F335:F4080,F131,K335:K4080) -> 0 | L131: =SUMIF(F335:F4080,F131,L335:L4080) -> 0 | M131: =SUMIF(F335:F4080,F131,M335:M4080) -> 0 | N131: =SUMIF(F335:F4080,F131,N335:N4080) -> 0 | O131: =SUMIF(F335:F4080,F131,O335:O4080) -> 0 | P131: =SUMIF(F335:F4080,F131,P335:P4080) -> 0 | Q131: =SUMIF(F335:F4080,F131,Q335:Q4080) -> 0 | R131: =SUMIF(F335:F4080,F131,R335:R4080) -> 0 | S131: =SUMIF(F335:F4080,F131,S335:S4080) -> 0 | T131: =SUMIF(F335:F4080,F131,T335:T4080) -> 0 | U131: =SUMIF(F335:F4080,F131,U335:U4080) -> 0 | Y131: 0 | Z131: =SUMIF(F335:F4080,F131,Z335:Z4080) -> 0 | AA131: =SUMIF(F335:F4080,F131,AA335:AA4080) -> 0 | AB131: =SUMIF(F335:F4080,F131,AB335:AB4080) -> 0 | AC131: =SUMIF(F335:F4080,F131,AC335:AC4080) -> 0 | AD131: =SUMIF(F335:F4080,F131,AD335:AD4080) -> 0 | AH131: 0 | AI131: =SUMIF(F335:F4080,F131,AI335:AI4080) -> 0 | AJ131: =SUMIF(F335:F4080,F131,AJ335:AJ4080) -> 0 | AK131: =SUMIF(F335:F4080,F131,AK335:AK4080) -> 0 | AL131: =SUMIF(F335:F4080,F131,AL335:AL4080) -> 0 | AM131: =SUMIF(F335:F4080,F131,AM335:AM4080) -> 0 | AQ131: 0 | AR131: =SUMIF(F335:F4080,F131,AR335:AR4080) -> 0 | AS131: =SUMIF(F335:F4080,F131,AS335:AS4080) -> 0 | AT131: =SUMIF(F335:F4080,F131,AT335:AT4080) -> 0 | AU131: =SUMIF(F335:F4080,F131,AU335:AU4080) -> 0
B132: Foreign governments and international organisations | C132: 1 | D132: =G8&F132 ->  | F132: Foreign governments and international organisations | I132: =SUMIF(F335:F4080,F132,I335:I4080) -> 0 | J132: =SUMIF(F335:F4080,F132,J335:J4080) -> 0 | K132: =SUMIF(F335:F4080,F132,K335:K4080) -> 0 | L132: =SUMIF(F335:F4080,F132,L335:L4080) -> 0 | M132: =SUMIF(F335:F4080,F132,M335:M4080) -> 0 | N132: =SUMIF(F335:F4080,F132,N335:N4080) -> 0 | O132: =SUMIF(F335:F4080,F132,O335:O4080) -> 0 | P132: =SUMIF(F335:F4080,F132,P335:P4080) -> 0 | Q132: =SUMIF(F335:F4080,F132,Q335:Q4080) -> 0 | R132: =SUMIF(F335:F4080,F132,R335:R4080) -> 0 | S132: =SUMIF(F335:F4080,F132,S335:S4080) -> 0 | T132: =SUMIF(F335:F4080,F132,T335:T4080) -> 0 | U132: =SUMIF(F335:F4080,F132,U335:U4080) -> 0 | Y132: 0 | Z132: =SUMIF(F335:F4080,F132,Z335:Z4080) -> 0 | AA132: =SUMIF(F335:F4080,F132,AA335:AA4080) -> 0 | AB132: =SUMIF(F335:F4080,F132,AB335:AB4080) -> 0 | AC132: =SUMIF(F335:F4080,F132,AC335:AC4080) -> 0 | AD132: =SUMIF(F335:F4080,F132,AD335:AD4080) -> 0 | AH132: 0 | AI132: =SUMIF(F335:F4080,F132,AI335:AI4080) -> 0 | AJ132: =SUMIF(F335:F4080,F132,AJ335:AJ4080) -> 0 | AK132: =SUMIF(F335:F4080,F132,AK335:AK4080) -> 0 | AL132: =SUMIF(F335:F4080,F132,AL335:AL4080) -> 0 | AM132: =SUMIF(F335:F4080,F132,AM335:AM4080) -> 0 | AQ132: 0 | AR132: =SUMIF(F335:F4080,F132,AR335:AR4080) -> 0 | AS132: =SUMIF(F335:F4080,F132,AS335:AS4080) -> 0 | AT132: =SUMIF(F335:F4080,F132,AT335:AT4080) -> 0 | AU132: =SUMIF(F335:F4080,F132,AU335:AU4080) -> 0
B133: Public corporations and private enterprises | C133: 1 | D133: =G8&F133 ->  | F133: Public corporations and private enterprises | I133: =SUMIF(F335:F4080,F133,I335:I4080) -> 0 | J133: =SUMIF(F335:F4080,F133,J335:J4080) -> 0 | K133: =SUMIF(F335:F4080,F133,K335:K4080) -> 0 | L133: =SUMIF(F335:F4080,F133,L335:L4080) -> 0 | M133: =SUMIF(F335:F4080,F133,M335:M4080) -> 0 | N133: =SUMIF(F335:F4080,F133,N335:N4080) -> 0 | O133: =SUMIF(F335:F4080,F133,O335:O4080) -> 0 | P133: =SUMIF(F335:F4080,F133,P335:P4080) -> 0 | Q133: =SUMIF(F335:F4080,F133,Q335:Q4080) -> 0 | R133: =SUMIF(F335:F4080,F133,R335:R4080) -> 0 | S133: =SUMIF(F335:F4080,F133,S335:S4080) -> 0 | T133: =SUMIF(F335:F4080,F133,T335:T4080) -> 0 | U133: =SUMIF(F335:F4080,F133,U335:U4080) -> 0 | Y133: 0 | Z133: =SUMIF(F335:F4080,F133,Z335:Z4080) -> 0 | AA133: =SUMIF(F335:F4080,F133,AA335:AA4080) -> 0 | AB133: =SUMIF(F335:F4080,F133,AB335:AB4080) -> 0 | AC133: =SUMIF(F335:F4080,F133,AC335:AC4080) -> 0 | AD133: =SUMIF(F335:F4080,F133,AD335:AD4080) -> 0 | AH133: 0 | AI133: =SUMIF(F335:F4080,F133,AI335:AI4080) -> 0 | AJ133: =SUMIF(F335:F4080,F133,AJ335:AJ4080) -> 0 | AK133: =SUMIF(F335:F4080,F133,AK335:AK4080) -> 0 | AL133: =SUMIF(F335:F4080,F133,AL335:AL4080) -> 0 | AM133: =SUMIF(F335:F4080,F133,AM335:AM4080) -> 0 | AQ133: 0 | AR133: =SUMIF(F335:F4080,F133,AR335:AR4080) -> 0 | AS133: =SUMIF(F335:F4080,F133,AS335:AS4080) -> 0 | AT133: =SUMIF(F335:F4080,F133,AT335:AT4080) -> 0 | AU133: =SUMIF(F335:F4080,F133,AU335:AU4080) -> 0
B134: Public corporations | C134: 1 | F134: Public corporations | I134: =SUMIF(F335:F4080,F134,I335:I4080) -> 0 | J134: =SUMIF(F335:F4080,F134,J335:J4080) -> 0 | K134: =SUMIF(F335:F4080,F134,K335:K4080) -> 0 | L134: =SUMIF(F335:F4080,F134,L335:L4080) -> 0 | M134: =SUMIF(F335:F4080,F134,M335:M4080) -> 0 | N134: =SUMIF(F335:F4080,F134,N335:N4080) -> 0 | O134: =SUMIF(F335:F4080,F134,O335:O4080) -> 0 | P134: =SUMIF(F335:F4080,F134,P335:P4080) -> 0 | Q134: =SUMIF(F335:F4080,F134,Q335:Q4080) -> 0 | R134: =SUMIF(F335:F4080,F134,R335:R4080) -> 0 | S134: =SUMIF(F335:F4080,F134,S335:S4080) -> 0 | T134: =SUMIF(F335:F4080,F134,T335:T4080) -> 0 | U134: =SUMIF(F335:F4080,F134,U335:U4080) -> 0 | V134: =IF(AND([4]Settings!A3=1,[4]Settings!A5="TRUE"),0,SUMIF(F335:F4080,F134,V335:V4080)) -> 0 | W134: =IF(AND([4]Settings!A3=1,[4]Settings!A5="TRUE"),0,SUMIF(F335:F4080,F134,W335:W4080)) -> 0 | X134: 0 | Y134: 0 | Z134: =SUMIF(F335:F4080,F134,Z335:Z4080) -> 0 | AA134: =SUMIF(F335:F4080,F134,AA335:AA4080) -> 0 | AB134: =SUMIF(F335:F4080,F134,AB335:AB4080) -> 0 | AC134: =SUMIF(F335:F4080,F134,AC335:AC4080) -> 0 | AD134: =SUMIF(F335:F4080,F134,AD335:AD4080) -> 0 | AE134: =IF(AND([4]Settings!A3=1,[4]Settings!A5="TRUE"),0,SUMIF(F335:F4080,F134,AE335:AE4080)) -> 0 | AF134: =IF(AND([4]Settings!A3=1,[4]Settings!A5="TRUE"),0,SUMIF(F335:F4080,F134,AF335:AF4080)) -> 0 | AG134: 0 | AH134: 0 | AI134: =SUMIF(F335:F4080,F134,AI335:AI4080) -> 0 | AJ134: =SUMIF(F335:F4080,F134,AJ335:AJ4080) -> 0 | AK134: =SUMIF(F335:F4080,F134,AK335:AK4080) -> 0 | AL134: =SUMIF(F335:F4080,F134,AL335:AL4080) -> 0 | AM134: =SUMIF(F335:F4080,F134,AM335:AM4080) -> 0 | AN134: =IF(AND([4]Settings!A3=1,[4]Settings!A5="TRUE"),0,SUMIF(F335:F4080,F134,AN335:AN4080)) -> 0 | AO134: =IF(AND([4]Settings!A3=1,[4]Settings!A5="TRUE"),0,SUMIF(F335:F4080,F134,AO335:AO4080)) -> 0 | AP134: 0 | AQ134: 0 | AR134: =SUMIF(F335:F4080,F134,AR335:AR4080) -> 0 | AS134: =SUMIF(F335:F4080,F134,AS335:AS4080) -> 0 | AT134: =SUMIF(F335:F4080,F134,AT335:AT4080) -> 0 | AU134: =SUMIF(F335:F4080,F134,AU335:AU4080) -> 0
B135: Subsidies on products and production (pc) | C135: 1 | F135: Subsidies on products and production (pc) | I135: =SUMIF(F335:F4080,F135,I335:I4080) -> 0 | J135: =SUMIF(F335:F4080,F135,J335:J4080) -> 0 | K135: =SUMIF(F335:F4080,F135,K335:K4080) -> 0 | L135: =SUMIF(F335:F4080,F135,L335:L4080) -> 0 | M135: =SUMIF(F335:F4080,F135,M335:M4080) -> 0 | N135: =SUMIF(F335:F4080,F135,N335:N4080) -> 0 | O135: =SUMIF(F335:F4080,F135,O335:O4080) -> 0 | P135: =SUMIF(F335:F4080,F135,P335:P4080) -> 0 | Q135: =SUMIF(F335:F4080,F135,Q335:Q4080) -> 0 | R135: =SUMIF(F335:F4080,F135,R335:R4080) -> 0 | S135: =SUMIF(F335:F4080,F135,S335:S4080) -> 0 | T135: =SUMIF(F335:F4080,F135,T335:T4080) -> 0 | U135: =SUMIF(F335:F4080,F135,U335:U4080) -> 0 | V135: =IF(AND([4]Settings!A3=1,[4]Settings!A5="TRUE"),0,SUMIF(F335:F4080,F135,V335:V4080)) -> 0 | W135: =IF(AND([4]Settings!A3=1,[4]Settings!A5="TRUE"),0,SUMIF(F335:F4080,F135,W335:W4080)) -> 0 | X135: 0 | Y135: 0 | Z135: =SUMIF(F335:F4080,F135,Z335:Z4080) -> 0 | AA135: =SUMIF(F335:F4080,F135,AA335:AA4080) -> 0 | AB135: =SUMIF(F335:F4080,F135,AB335:AB4080) -> 0 | AC135: =SUMIF(F335:F4080,F135,AC335:AC4080) -> 0 | AD135: =SUMIF(F335:F4080,F135,AD335:AD4080) -> 0 | AE135: =IF(AND([4]Settings!A3=1,[4]Settings!A5="TRUE"),0,SUMIF(F335:F4080,F135,AE335:AE4080)) -> 0 | AF135: =IF(AND([4]Settings!A3=1,[4]Settings!A5="TRUE"),0,SUMIF(F335:F4080,F135,AF335:AF4080)) -> 0 | AG135: 0 | AH135: 0 | AI135: =SUMIF(F335:F4080,F135,AI335:AI4080) -> 0 | AJ135: =SUMIF(F335:F4080,F135,AJ335:AJ4080) -> 0 | AK135: =SUMIF(F335:F4080,F135,AK335:AK4080) -> 0 | AL135: =SUMIF(F335:F4080,F135,AL335:AL4080) -> 0 | AM135: =SUMIF(F335:F4080,F135,AM335:AM4080) -> 0 | AN135: =IF(AND([4]Settings!A3=1,[4]Settings!A5="TRUE"),0,SUMIF(F335:F4080,F135,AN335:AN4080)) -> 0 | AO135: =IF(AND([4]Settings!A3=1,[4]Settings!A5="TRUE"),0,SUMIF(F335:F4080,F135,AO335:AO4080)) -> 0 | AP135: 0 | AQ135: 0 | AR135: =SUMIF(F335:F4080,F135,AR335:AR4080) -> 0 | AS135: =SUMIF(F335:F4080,F135,AS335:AS4080) -> 0 | AT135: =SUMIF(F335:F4080,F135,AT335:AT4080) -> 0 | AU135: =SUMIF(F335:F4080,F135,AU335:AU4080) -> 0
B136: Other transfers to public corporations | C136: 1 | F136: Other transfers to public corporations | I136: =SUMIF(F335:F4080,F136,I335:I4080) -> 0 | J136: =SUMIF(F335:F4080,F136,J335:J4080) -> 0 | K136: =SUMIF(F335:F4080,F136,K335:K4080) -> 0 | L136: =SUMIF(F335:F4080,F136,L335:L4080) -> 0 | M136: =SUMIF(F335:F4080,F136,M335:M4080) -> 0 | N136: =SUMIF(F335:F4080,F136,N335:N4080) -> 0 | O136: =SUMIF(F335:F4080,F136,O335:O4080) -> 0 | P136: =SUMIF(F335:F4080,F136,P335:P4080) -> 0 | Q136: =SUMIF(F335:F4080,F136,Q335:Q4080) -> 0 | R136: =SUMIF(F335:F4080,F136,R335:R4080) -> 0 | S136: =SUMIF(F335:F4080,F136,S335:S4080) -> 0 | T136: =SUMIF(F335:F4080,F136,T335:T4080) -> 0 | U136: =SUMIF(F335:F4080,F136,U335:U4080) -> 0 | V136: =IF(AND([4]Settings!A3=1,[4]Settings!A5="TRUE"),0,SUMIF(F335:F4080,F136,V335:V4080)) -> 0 | W136: =IF(AND([4]Settings!A3=1,[4]Settings!A5="TRUE"),0,SUMIF(F335:F4080,F136,W335:W4080)) -> 0 | X136: 0 | Y136: 0 | Z136: =SUMIF(F335:F4080,F136,Z335:Z4080) -> 0 | AA136: =SUMIF(F335:F4080,F136,AA335:AA4080) -> 0 | AB136: =SUMIF(F335:F4080,F136,AB335:AB4080) -> 0 | AC136: =SUMIF(F335:F4080,F136,AC335:AC4080) -> 0 | AD136: =SUMIF(F335:F4080,F136,AD335:AD4080) -> 0 | AE136: =IF(AND([4]Settings!A3=1,[4]Settings!A5="TRUE"),0,SUMIF(F335:F4080,F136,AE335:AE4080)) -> 0 | AF136: =IF(AND([4]Settings!A3=1,[4]Settings!A5="TRUE"),0,SUMIF(F335:F4080,F136,AF335:AF4080)) -> 0 | AG136: 0 | AH136: 0 | AI136: =SUMIF(F335:F4080,F136,AI335:AI4080) -> 0 | AJ136: =SUMIF(F335:F4080,F136,AJ335:AJ4080) -> 0 | AK136: =SUMIF(F335:F4080,F136,AK335:AK4080) -> 0 | AL136: =SUMIF(F335:F4080,F136,AL335:AL4080) -> 0 | AM136: =SUMIF(F335:F4080,F136,AM335:AM4080) -> 0 | AN136: =IF(AND([4]Settings!A3=1,[4]Settings!A5="TRUE"),0,SUMIF(F335:F4080,F136,AN335:AN4080)) -> 0 | AO136: =IF(AND([4]Settings!A3=1,[4]Settings!A5="TRUE"),0,SUMIF(F335:F4080,F136,AO335:AO4080)) -> 0 | AP136: 0 | AQ136: 0 | AR136: =SUMIF(F335:F4080,F136,AR335:AR4080) -> 0 | AS136: =SUMIF(F335:F4080,F136,AS335:AS4080) -> 0 | AT136: =SUMIF(F335:F4080,F136,AT335:AT4080) -> 0 | AU136: =SUMIF(F335:F4080,F136,AU335:AU4080) -> 0
B137: Private enterprises | C137: 1 | F137: Private enterprises | I137: =SUMIF(F335:F4080,F137,I335:I4080) -> 0 | J137: =SUMIF(F335:F4080,F137,J335:J4080) -> 0 | K137: =SUMIF(F335:F4080,F137,K335:K4080) -> 0 | L137: =SUMIF(F335:F4080,F137,L335:L4080) -> 0 | M137: =SUMIF(F335:F4080,F137,M335:M4080) -> 0 | N137: =SUMIF(F335:F4080,F137,N335:N4080) -> 0 | O137: =SUMIF(F335:F4080,F137,O335:O4080) -> 0 | P137: =SUMIF(F335:F4080,F137,P335:P4080) -> 0 | Q137: =SUMIF(F335:F4080,F137,Q335:Q4080) -> 0 | R137: =SUMIF(F335:F4080,F137,R335:R4080) -> 0 | S137: =SUMIF(F335:F4080,F137,S335:S4080) -> 0 | T137: =SUMIF(F335:F4080,F137,T335:T4080) -> 0 | U137: =SUMIF(F335:F4080,F137,U335:U4080) -> 0 | V137: =IF(AND([4]Settings!A3=1,[4]Settings!A5="TRUE"),0,SUMIF(F335:F4080,F137,V335:V4080)) -> 0 | W137: =IF(AND([4]Settings!A3=1,[4]Settings!A5="TRUE"),0,SUMIF(F335:F4080,F137,W335:W4080)) -> 0 | X137: 0 | Y137: 0 | Z137: =SUMIF(F335:F4080,F137,Z335:Z4080) -> 0 | AA137: =SUMIF(F335:F4080,F137,AA335:AA4080) -> 0 | AB137: =SUMIF(F335:F4080,F137,AB335:AB4080) -> 0 | AC137: =SUMIF(F335:F4080,F137,AC335:AC4080) -> 0 | AD137: =SUMIF(F335:F4080,F137,AD335:AD4080) -> 0 | AE137: =IF(AND([4]Settings!A3=1,[4]Settings!A5="TRUE"),0,SUMIF(F335:F4080,F137,AE335:AE4080)) -> 0 | AF137: =IF(AND([4]Settings!A3=1,[4]Settings!A5="TRUE"),0,SUMIF(F335:F4080,F137,AF335:AF4080)) -> 0 | AG137: 0 | AH137: 0 | AI137: =SUMIF(F335:F4080,F137,AI335:AI4080) -> 0 | AJ137: =SUMIF(F335:F4080,F137,AJ335:AJ4080) -> 0 | AK137: =SUMIF(F335:F4080,F137,AK335:AK4080) -> 0 | AL137: =SUMIF(F335:F4080,F137,AL335:AL4080) -> 0 | AM137: =SUMIF(F335:F4080,F137,AM335:AM4080) -> 0 | AN137: =IF(AND([4]Settings!A3=1,[4]Settings!A5="TRUE"),0,SUMIF(F335:F4080,F137,AN335:AN4080)) -> 0 | AO137: =IF(AND([4]Settings!A3=1,[4]Settings!A5="TRUE"),0,SUMIF(F335:F4080,F137,AO335:AO4080)) -> 0 | AP137: 0 | AQ137: 0 | AR137: =SUMIF(F335:F4080,F137,AR335:AR4080) -> 0 | AS137: =SUMIF(F335:F4080,F137,AS335:AS4080) -> 0 | AT137: =SUMIF(F335:F4080,F137,AT335:AT4080) -> 0 | AU137: =SUMIF(F335:F4080,F137,AU335:AU4080) -> 0
B138: Subsidies on products and production (pe) | C138: 1 | F138: Subsidies on products and production (pe) | I138: =SUMIF(F335:F4080,F138,I335:I4080) -> 0 | J138: =SUMIF(F335:F4080,F138,J335:J4080) -> 0 | K138: =SUMIF(F335:F4080,F138,K335:K4080) -> 0 | L138: =SUMIF(F335:F4080,F138,L335:L4080) -> 0 | M138: =SUMIF(F335:F4080,F138,M335:M4080) -> 0 | N138: =SUMIF(F335:F4080,F138,N335:N4080) -> 0 | O138: =SUMIF(F335:F4080,F138,O335:O4080) -> 0 | P138: =SUMIF(F335:F4080,F138,P335:P4080) -> 0 | Q138: =SUMIF(F335:F4080,F138,Q335:Q4080) -> 0 | R138: =SUMIF(F335:F4080,F138,R335:R4080) -> 0 | S138: =SUMIF(F335:F4080,F138,S335:S4080) -> 0 | T138: =SUMIF(F335:F4080,F138,T335:T4080) -> 0 | U138: =SUMIF(F335:F4080,F138,U335:U4080) -> 0 | V138: =IF(AND([4]Settings!A3=1,[4]Settings!A5="TRUE"),0,SUMIF(F335:F4080,F138,V335:V4080)) -> 0 | W138: =IF(AND([4]Settings!A3=1,[4]Settings!A5="TRUE"),0,SUMIF(F335:F4080,F138,W335:W4080)) -> 0 | X138: =SUM(V138:W138) -> 0 | Y138: =IF(ISERROR(U138+X138),0,U138+X138) -> 0 | Z138: =SUMIF(F335:F4080,F138,Z335:Z4080) -> 0 | AA138: =SUMIF(F335:F4080,F138,AA335:AA4080) -> 0 | AB138: =SUMIF(F335:F4080,F138,AB335:AB4080) -> 0 | AC138: =SUMIF(F335:F4080,F138,AC335:AC4080) -> 0 | AD138: =SUMIF(F335:F4080,F138,AD335:AD4080) -> 0 | AE138: =IF(AND([4]Settings!A3=1,[4]Settings!A5="TRUE"),0,SUMIF(F335:F4080,F138,AE335:AE4080)) -> 0 | AF138: =IF(AND([4]Settings!A3=1,[4]Settings!A5="TRUE"),0,SUMIF(F335:F4080,F138,AF335:AF4080)) -> 0 | AG138: =SUM(AE138:AF138) -> 0 | AH138: =IF(ISERROR(AD138+AG138),0,AD138+AG138) -> 0 | AI138: =SUMIF(F335:F4080,F138,AI335:AI4080) -> 0 | AJ138: =SUMIF(F335:F4080,F138,AJ335:AJ4080) -> 0 | AK138: =SUMIF(F335:F4080,F138,AK335:AK4080) -> 0 | AL138: =SUMIF(F335:F4080,F138,AL335:AL4080) -> 0 | AM138: =SUMIF(F335:F4080,F138,AM335:AM4080) -> 0 | AN138: =IF(AND([4]Settings!A3=1,[4]Settings!A5="TRUE"),0,SUMIF(F335:F4080,F138,AN335:AN4080)) -> 0 | AO138: =IF(AND([4]Settings!A3=1,[4]Settings!A5="TRUE"),0,SUMIF(F335:F4080,F138,AO335:AO4080)) -> 0 | AP138: =SUM(AN138:AO138) -> 0 | AQ138: =IF(ISERROR(AM138+AP138),0,AM138+AP138) -> 0 | AR138: =SUMIF(F335:F4080,F138,AR335:AR4080) -> 0 | AS138: =SUMIF(F335:F4080,F138,AS335:AS4080) -> 0 | AT138: =SUMIF(F335:F4080,F138,AT335:AT4080) -> 0 | AU138: =SUMIF(F335:F4080,F138,AU335:AU4080) -> 0
B139: Other transfers to private enterprises | C139: 1 | F139: Other transfers to private enterprises | I139: =SUMIF(F335:F4080,F139,I335:I4080) -> 0 | J139: =SUMIF(F335:F4080,F139,J335:J4080) -> 0 | K139: =SUMIF(F335:F4080,F139,K335:K4080) -> 0 | L139: =SUMIF(F335:F4080,F139,L335:L4080) -> 0 | M139: =SUMIF(F335:F4080,F139,M335:M4080) -> 0 | N139: =SUMIF(F335:F4080,F139,N335:N4080) -> 0 | O139: =SUMIF(F335:F4080,F139,O335:O4080) -> 0 | P139: =SUMIF(F335:F4080,F139,P335:P4080) -> 0 | Q139: =SUMIF(F335:F4080,F139,Q335:Q4080) -> 0 | R139: =SUMIF(F335:F4080,F139,R335:R4080) -> 0 | S139: =SUMIF(F335:F4080,F139,S335:S4080) -> 0 | T139: =SUMIF(F335:F4080,F139,T335:T4080) -> 0 | U139: =SUMIF(F335:F4080,F139,U335:U4080) -> 0 | V139: =IF(AND([4]Settings!A3=1,[4]Settings!A5="TRUE"),0,SUMIF(F335:F4080,F139,V335:V4080)) -> 0 | W139: =IF(AND([4]Settings!A3=1,[4]Settings!A5="TRUE"),0,SUMIF(F335:F4080,F139,W335:W4080)) -> 0 | X139: 0 | Y139: 0 | Z139: =SUMIF(F335:F4080,F139,Z335:Z4080) -> 0 | AA139: =SUMIF(F335:F4080,F139,AA335:AA4080) -> 0 | AB139: =SUMIF(F335:F4080,F139,AB335:AB4080) -> 0 | AC139: =SUMIF(F335:F4080,F139,AC335:AC4080) -> 0 | AD139: =SUMIF(F335:F4080,F139,AD335:AD4080) -> 0 | AE139: =IF(AND([4]Settings!A3=1,[4]Settings!A5="TRUE"),0,SUMIF(F335:F4080,F139,AE335:AE4080)) -> 0 | AF139: =IF(AND([4]Settings!A3=1,[4]Settings!A5="TRUE"),0,SUMIF(F335:F4080,F139,AF335:AF4080)) -> 0 | AG139: 0 | AH139: 0 | AI139: =SUMIF(F335:F4080,F139,AI335:AI4080) -> 0 | AJ139: =SUMIF(F335:F4080,F139,AJ335:AJ4080) -> 0 | AK139: =SUMIF(F335:F4080,F139,AK335:AK4080) -> 0 | AL139: =SUMIF(F335:F4080,F139,AL335:AL4080) -> 0 | AM139: =SUMIF(F335:F4080,F139,AM335:AM4080) -> 0 | AN139: =IF(AND([4]Settings!A3=1,[4]Settings!A5="TRUE"),0,SUMIF(F335:F4080,F139,AN335:AN4080)) -> 0 | AO139: =IF(AND([4]Settings!A3=1,[4]Settings!A5="TRUE"),0,SUMIF(F335:F4080,F139,AO335:AO4080)) -> 0 | AP139: 0 | AQ139: 0 | AR139: =SUMIF(F335:F4080,F139,AR335:AR4080) -> 0 | AS139: =SUMIF(F335:F4080,F139,AS335:AS4080) -> 0 | AT139: =SUMIF(F335:F4080,F139,AT335:AT4080) -> 0 | AU139: =SUMIF(F335:F4080,F139,AU335:AU4080) -> 0
B140: Non-profit institutions | C140: 1 | D140: =G8&F140 ->  | F140: Non-profit institutions | I140: =SUMIF(F335:F4080,F140,I335:I4080) -> 0 | J140: =SUMIF(F335:F4080,F140,J335:J4080) -> 0 | K140: =SUMIF(F335:F4080,F140,K335:K4080) -> 0 | L140: =SUMIF(F335:F4080,F140,L335:L4080) -> 0 | M140: =SUMIF(F335:F4080,F140,M335:M4080) -> 0 | N140: =SUMIF(F335:F4080,F140,N335:N4080) -> 0 | O140: =SUMIF(F335:F4080,F140,O335:O4080) -> 0 | P140: =SUMIF(F335:F4080,F140,P335:P4080) -> 0 | Q140: =SUMIF(F335:F4080,F140,Q335:Q4080) -> 0 | R140: =SUMIF(F335:F4080,F140,R335:R4080) -> 0 | S140: =SUMIF(F335:F4080,F140,S335:S4080) -> 0 | T140: =SUMIF(F335:F4080,F140,T335:T4080) -> 0 | U140: =SUMIF(F335:F4080,F140,U335:U4080) -> 0 | Y140: 0 | Z140: =SUMIF(F335:F4080,F140,Z335:Z4080) -> 0 | AA140: =SUMIF(F335:F4080,F140,AA335:AA4080) -> 0 | AB140: =SUMIF(F335:F4080,F140,AB335:AB4080) -> 0 | AC140: =SUMIF(F335:F4080,F140,AC335:AC4080) -> 0 | AD140: =SUMIF(F335:F4080,F140,AD335:AD4080) -> 0 | AH140: 0 | AI140: =SUMIF(F335:F4080,F140,AI335:AI4080) -> 0 | AJ140: =SUMIF(F335:F4080,F140,AJ335:AJ4080) -> 0 | AK140: =SUMIF(F335:F4080,F140,AK335:AK4080) -> 0 | AL140: =SUMIF(F335:F4080,F140,AL335:AL4080) -> 0 | AM140: =SUMIF(F335:F4080,F140,AM335:AM4080) -> 0 | AQ140: 0 | AR140: =SUMIF(F335:F4080,F140,AR335:AR4080) -> 0 | AS140: =SUMIF(F335:F4080,F140,AS335:AS4080) -> 0 | AT140: =SUMIF(F335:F4080,F140,AT335:AT4080) -> 0 | AU140: =SUMIF(F335:F4080,F140,AU335:AU4080) -> 0
B141: Households | C141: 1 | D141: =G8&F141 ->  | F141: Households | I141: =SUMIF(F335:F4080,F141,I335:I4080) -> 0 | J141: =SUMIF(F335:F4080,F141,J335:J4080) -> 0 | K141: =SUMIF(F335:F4080,F141,K335:K4080) -> 0 | L141: =SUMIF(F335:F4080,F141,L335:L4080) -> 0 | M141: =SUMIF(F335:F4080,F141,M335:M4080) -> 0 | N141: =SUMIF(F335:F4080,F141,N335:N4080) -> 0 | O141: =SUMIF(F335:F4080,F141,O335:O4080) -> 0 | P141: =SUMIF(F335:F4080,F141,P335:P4080) -> 0 | Q141: =SUMIF(F335:F4080,F141,Q335:Q4080) -> 0 | R141: =SUMIF(F335:F4080,F141,R335:R4080) -> 0 | S141: =SUMIF(F335:F4080,F141,S335:S4080) -> 0 | T141: =SUMIF(F335:F4080,F141,T335:T4080) -> 0 | U141: =SUMIF(F335:F4080,F141,U335:U4080) -> 0 | Y141: 0 | Z141: =SUMIF(F335:F4080,F141,Z335:Z4080) -> 0 | AA141: =SUMIF(F335:F4080,F141,AA335:AA4080) -> 0 | AB141: =SUMIF(F335:F4080,F141,AB335:AB4080) -> 0 | AC141: =SUMIF(F335:F4080,F141,AC335:AC4080) -> 0 | AD141: =SUMIF(F335:F4080,F141,AD335:AD4080) -> 0 | AH141: 0 | AI141: =SUMIF(F335:F4080,F141,AI335:AI4080) -> 0 | AJ141: =SUMIF(F335:F4080,F141,AJ335:AJ4080) -> 0 | AK141: =SUMIF(F335:F4080,F141,AK335:AK4080) -> 0 | AL141: =SUMIF(F335:F4080,F141,AL335:AL4080) -> 0 | AM141: =SUMIF(F335:F4080,F141,AM335:AM4080) -> 0 | AQ141: 0 | AR141: =SUMIF(F335:F4080,F141,AR335:AR4080) -> 0 | AS141: =SUMIF(F335:F4080,F141,AS335:AS4080) -> 0 | AT141: =SUMIF(F335:F4080,F141,AT335:AT4080) -> 0 | AU141: =SUMIF(F335:F4080,F141,AU335:AU4080) -> 0
B142: Social benefits | C142: 1 | F142: Social benefits | I142: =SUMIF(F335:F4080,F142,I335:I4080) -> 0 | J142: =SUMIF(F335:F4080,F142,J335:J4080) -> 0 | K142: =SUMIF(F335:F4080,F142,K335:K4080) -> 0 | L142: =SUMIF(F335:F4080,F142,L335:L4080) -> 0 | M142: =SUMIF(F335:F4080,F142,M335:M4080) -> 0 | N142: =SUMIF(F335:F4080,F142,N335:N4080) -> 0 | O142: =SUMIF(F335:F4080,F142,O335:O4080) -> 0 | P142: =SUMIF(F335:F4080,F142,P335:P4080) -> 0 | Q142: =SUMIF(F335:F4080,F142,Q335:Q4080) -> 0 | R142: =SUMIF(F335:F4080,F142,R335:R4080) -> 0 | S142: =SUMIF(F335:F4080,F142,S335:S4080) -> 0 | T142: =SUMIF(F335:F4080,F142,T335:T4080) -> 0 | U142: =SUMIF(F335:F4080,F142,U335:U4080) -> 0 | V142: =IF(AND([4]Settings!A3=1,[4]Settings!A5="TRUE"),0,SUMIF(F335:F4080,F142,V335:V4080)) -> 0 | W142: =IF(AND([4]Settings!A3=1,[4]Settings!A5="TRUE"),0,SUMIF(F335:F4080,F142,W335:W4080)) -> 0 | X142: 0 | Y142: 0 | Z142: =SUMIF(F335:F4080,F142,Z335:Z4080) -> 0 | AA142: =SUMIF(F335:F4080,F142,AA335:AA4080) -> 0 | AB142: =SUMIF(F335:F4080,F142,AB335:AB4080) -> 0 | AC142: =SUMIF(F335:F4080,F142,AC335:AC4080) -> 0 | AD142: =SUMIF(F335:F4080,F142,AD335:AD4080) -> 0 | AE142: =IF(AND([4]Settings!A3=1,[4]Settings!A5="TRUE"),0,SUMIF(F335:F4080,F142,AE335:AE4080)) -> 0 | AF142: =IF(AND([4]Settings!A3=1,[4]Settings!A5="TRUE"),0,SUMIF(F335:F4080,F142,AF335:AF4080)) -> 0 | AG142: 0 | AH142: 0 | AI142: =SUMIF(F335:F4080,F142,AI335:AI4080) -> 0 | AJ142: =SUMIF(F335:F4080,F142,AJ335:AJ4080) -> 0 | AK142: =SUMIF(F335:F4080,F142,AK335:AK4080) -> 0 | AL142: =SUMIF(F335:F4080,F142,AL335:AL4080) -> 0 | AM142: =SUMIF(F335:F4080,F142,AM335:AM4080) -> 0 | AN142: =IF(AND([4]Settings!A3=1,[4]Settings!A5="TRUE"),0,SUMIF(F335:F4080,F142,AN335:AN4080)) -> 0 | AO142: =IF(AND([4]Settings!A3=1,[4]Settings!A5="TRUE"),0,SUMIF(F335:F4080,F142,AO335:AO4080)) -> 0 | AP142: 0 | AQ142: 0 | AR142: =SUMIF(F335:F4080,F142,AR335:AR4080) -> 0 | AS142: =SUMIF(F335:F4080,F142,AS335:AS4080) -> 0 | AT142: =SUMIF(F335:F4080,F142,AT335:AT4080) -> 0 | AU142: =SUMIF(F335:F4080,F142,AU335:AU4080) -> 0
B143: Other transfers to households | C143: 1 | F143: Other transfers to households | I143: =SUMIF(F335:F4080,F143,I335:I4080) -> 0 | J143: =SUMIF(F335:F4080,F143,J335:J4080) -> 0 | K143: =SUMIF(F335:F4080,F143,K335:K4080) -> 0 | L143: =SUMIF(F335:F4080,F143,L335:L4080) -> 0 | M143: =SUMIF(F335:F4080,F143,M335:M4080) -> 0 | N143: =SUMIF(F335:F4080,F143,N335:N4080) -> 0 | O143: =SUMIF(F335:F4080,F143,O335:O4080) -> 0 | P143: =SUMIF(F335:F4080,F143,P335:P4080) -> 0 | Q143: =SUMIF(F335:F4080,F143,Q335:Q4080) -> 0 | R143: =SUMIF(F335:F4080,F143,R335:R4080) -> 0 | S143: =SUMIF(F335:F4080,F143,S335:S4080) -> 0 | T143: =SUMIF(F335:F4080,F143,T335:T4080) -> 0 | U143: =SUMIF(F335:F4080,F143,U335:U4080) -> 0 | V143: =IF(AND([4]Settings!A3=1,[4]Settings!A5="TRUE"),0,SUMIF(F335:F4080,F143,V335:V4080)) -> 0 | W143: =IF(AND([4]Settings!A3=1,[4]Settings!A5="TRUE"),0,SUMIF(F335:F4080,F143,W335:W4080)) -> 0 | X143: 0 | Y143: 0 | Z143: =SUMIF(F335:F4080,F143,Z335:Z4080) -> 0 | AA143: =SUMIF(F335:F4080,F143,AA335:AA4080) -> 0 | AB143: =SUMIF(F335:F4080,F143,AB335:AB4080) -> 0 | AC143: =SUMIF(F335:F4080,F143,AC335:AC4080) -> 0 | AD143: =SUMIF(F335:F4080,F143,AD335:AD4080) -> 0 | AE143: =IF(AND([4]Settings!A3=1,[4]Settings!A5="TRUE"),0,SUMIF(F335:F4080,F143,AE335:AE4080)) -> 0 | AF143: =IF(AND([4]Settings!A3=1,[4]Settings!A5="TRUE"),0,SUMIF(F335:F4080,F143,AF335:AF4080)) -> 0 | AG143: 0 | AH143: 0 | AI143: =SUMIF(F335:F4080,F143,AI335:AI4080) -> 0 | AJ143: =SUMIF(F335:F4080,F143,AJ335:AJ4080) -> 0 | AK143: =SUMIF(F335:F4080,F143,AK335:AK4080) -> 0 | AL143: =SUMIF(F335:F4080,F143,AL335:AL4080) -> 0 | AM143: =SUMIF(F335:F4080,F143,AM335:AM4080) -> 0 | AN143: =IF(AND([4]Settings!A3=1,[4]Settings!A5="TRUE"),0,SUMIF(F335:F4080,F143,AN335:AN4080)) -> 0 | AO143: =IF(AND([4]Settings!A3=1,[4]Settings!A5="TRUE"),0,SUMIF(F335:F4080,F143,AO335:AO4080)) -> 0 | AP143: 0 | AQ143: 0 | AR143: =SUMIF(F335:F4080,F143,AR335:AR4080) -> 0 | AS143: =SUMIF(F335:F4080,F143,AS335:AS4080) -> 0 | AT143: =SUMIF(F335:F4080,F143,AT335:AT4080) -> 0 | AU143: =SUMIF(F335:F4080,F143,AU335:AU4080) -> 0
A144: 1 | F144: Payments for capital assets | I144: =SUMIF(F335:F4080,F144,I335:I4080) -> 0 | J144: =SUMIF(F335:F4080,F144,J335:J4080) -> 0 | K144: =SUMIF(F335:F4080,F144,K335:K4080) -> 0 | L144: =SUMIF(F335:F4080,F144,L335:L4080) -> 0 | M144: =SUMIF(F335:F4080,F144,M335:M4080) -> 0 | N144: =SUMIF(F335:F4080,F144,N335:N4080) -> 0 | O144: =SUMIF(F335:F4080,F144,O335:O4080) -> 0 | P144: =SUMIF(F335:F4080,F144,P335:P4080) -> 0 | Q144: =SUMIF(F335:F4080,F144,Q335:Q4080) -> 0 | R144: =SUMIF(F335:F4080,F144,R335:R4080) -> 0 | S144: =SUMIF(F335:F4080,F144,S335:S4080) -> 0 | T144: =SUMIF(F335:F4080,F144,T335:T4080) -> 0 | U144: =SUMIF(F335:F4080,F144,U335:U4080) -> 0 | V144: =+V145+V148+V151+V152+V153+V154+V155 ->  | W144: =+W145+W148+W151+W152+W153+W154+W155 ->  | Y144: 0 | Z144: =SUMIF(F335:F4080,F144,Z335:Z4080) -> 0 | AA144: =SUMIF(F335:F4080,F144,AA335:AA4080) -> 0 | AB144: =SUMIF(F335:F4080,F144,AB335:AB4080) -> 0 | AC144: =SUMIF(F335:F4080,F144,AC335:AC4080) -> 0 | AD144: =SUMIF(F335:F4080,F144,AD335:AD4080) -> 0 | AE144: =+AE145+AE148+AE151+AE152+AE153+AE154+AE155 ->  | AF144: =+AF145+AF148+AF151+AF152+AF153+AF154+AF155 ->  | AH144: 0 | AI144: =SUMIF(F335:F4080,F144,AI335:AI4080) -> 0 | AJ144: =SUMIF(F335:F4080,F144,AJ335:AJ4080) -> 0 | AK144: =SUMIF(F335:F4080,F144,AK335:AK4080) -> 0 | AL144: =SUMIF(F335:F4080,F144,AL335:AL4080) -> 0 | AM144: =SUMIF(F335:F4080,F144,AM335:AM4080) -> 0 | AN144: =+AN145+AN148+AN151+AN152+AN153+AN154+AN155 ->  | AO144: =+AO145+AO148+AO151+AO152+AO153+AO154+AO155 ->  | AQ144: 0 | AR144: =SUMIF(F335:F4080,F144,AR335:AR4080) -> 0 | AS144: =SUMIF(F335:F4080,F144,AS335:AS4080) -> 0 | AT144: =SUMIF(F335:F4080,F144,AT335:AT4080) -> 0 | AU144: =SUMIF(F335:F4080,F144,AU335:AU4080) -> 0
A145: =IF(INDEX(OFFSET(MyEconSettings,0,-1),MATCH(F145,MyEconSettings,0),1)=UPPER("n"),"x",IF(SUM(COUNTIF(I145:AU145,"<>0")-COUNTBLANK(I145:AU145))<>0,1,0)) ->  | D145: =G8&F145 ->  | F145: Buildings and other fixed structures | I145: =SUMIF(F335:F4080,F145,I335:I4080) -> 0 | J145: =SUMIF(F335:F4080,F145,J335:J4080) -> 0 | K145: =SUMIF(F335:F4080,F145,K335:K4080) -> 0 | L145: =SUMIF(F335:F4080,F145,L335:L4080) -> 0 | M145: =SUMIF(F335:F4080,F145,M335:M4080) -> 0 | N145: =SUMIF(F335:F4080,F145,N335:N4080) -> 0 | O145: =SUMIF(F335:F4080,F145,O335:O4080) -> 0 | P145: =SUMIF(F335:F4080,F145,P335:P4080) -> 0 | Q145: =SUMIF(F335:F4080,F145,Q335:Q4080) -> 0 | R145: =SUMIF(F335:F4080,F145,R335:R4080) -> 0 | S145: =SUMIF(F335:F4080,F145,S335:S4080) -> 0 | T145: =SUMIF(F335:F4080,F145,T335:T4080) -> 0 | U145: =SUMIF(F335:F4080,F145,U335:U4080) -> 0 | Y145: 0 | Z145: =SUMIF(F335:F4080,F145,Z335:Z4080) -> 0 | AA145: =SUMIF(F335:F4080,F145,AA335:AA4080) -> 0 | AB145: =SUMIF(F335:F4080,F145,AB335:AB4080) -> 0 | AC145: =SUMIF(F335:F4080,F145,AC335:AC4080) -> 0 | AD145: =SUMIF(F335:F4080,F145,AD335:AD4080) -> 0 | AH145: 0 | AI145: =SUMIF(F335:F4080,F145,AI335:AI4080) -> 0 | AJ145: =SUMIF(F335:F4080,F145,AJ335:AJ4080) -> 0 | AK145: =SUMIF(F335:F4080,F145,AK335:AK4080) -> 0 | AL145: =SUMIF(F335:F4080,F145,AL335:AL4080) -> 0 | AM145: =SUMIF(F335:F4080,F145,AM335:AM4080) -> 0 | AQ145: 0 | AR145: =SUMIF(F335:F4080,F145,AR335:AR4080) -> 0 | AS145: =SUMIF(F335:F4080,F145,AS335:AS4080) -> 0 | AT145: =SUMIF(F335:F4080,F145,AT335:AT4080) -> 0 | AU145: =SUMIF(F335:F4080,F145,AU335:AU4080) -> 0
F146: Buildings | I146: =SUMIF(F335:F4080,F146,I335:I4080) -> 0 | J146: =SUMIF(F335:F4080,F146,J335:J4080) -> 0 | K146: =SUMIF(F335:F4080,F146,K335:K4080) -> 0 | L146: =SUMIF(F335:F4080,F146,L335:L4080) -> 0 | M146: =SUMIF(F335:F4080,F146,M335:M4080) -> 0 | N146: =SUMIF(F335:F4080,F146,N335:N4080) -> 0 | O146: =SUMIF(F335:F4080,F146,O335:O4080) -> 0 | P146: =SUMIF(F335:F4080,F146,P335:P4080) -> 0 | Q146: =SUMIF(F335:F4080,F146,Q335:Q4080) -> 0 | R146: =SUMIF(F335:F4080,F146,R335:R4080) -> 0 | S146: =SUMIF(F335:F4080,F146,S335:S4080) -> 0 | T146: =SUMIF(F335:F4080,F146,T335:T4080) -> 0 | U146: =SUMIF(F335:F4080,F146,U335:U4080) -> 0 | V146: =IF(AND([4]Settings!A3=1,[4]Settings!A5="TRUE"),0,SUMIF(F335:F4080,F146,V335:V4080)) -> 0 | W146: =IF(AND([4]Settings!A3=1,[4]Settings!A5="TRUE"),0,SUMIF(F335:F4080,F146,W335:W4080)) -> 0 | X146: 0 | Y146: 0 | Z146: =SUMIF(F335:F4080,F146,Z335:Z4080) -> 0 | AA146: =SUMIF(F335:F4080,F146,AA335:AA4080) -> 0 | AB146: =SUMIF(F335:F4080,F146,AB335:AB4080) -> 0 | AC146: =SUMIF(F335:F4080,F146,AC335:AC4080) -> 0 | AD146: =SUMIF(F335:F4080,F146,AD335:AD4080) -> 0 | AE146: =IF(AND([4]Settings!A3=1,[4]Settings!A5="TRUE"),0,SUMIF(F335:F4080,F146,AE335:AE4080)) -> 0 | AF146: =IF(AND([4]Settings!A3=1,[4]Settings!A5="TRUE"),0,SUMIF(F335:F4080,F146,AF335:AF4080)) -> 0 | AG146: 0 | AH146: 0 | AI146: =SUMIF(F335:F4080,F146,AI335:AI4080) -> 0 | AJ146: =SUMIF(F335:F4080,F146,AJ335:AJ4080) -> 0 | AK146: =SUMIF(F335:F4080,F146,AK335:AK4080) -> 0 | AL146: =SUMIF(F335:F4080,F146,AL335:AL4080) -> 0 | AM146: =SUMIF(F335:F4080,F146,AM335:AM4080) -> 0 | AN146: =IF(AND([4]Settings!A3=1,[4]Settings!A5="TRUE"),0,SUMIF(F335:F4080,F146,AN335:AN4080)) -> 0 | AO146: =IF(AND([4]Settings!A3=1,[4]Settings!A5="TRUE"),0,SUMIF(F335:F4080,F146,AO335:AO4080)) -> 0 | AP146: 0 | AQ146: 0 | AR146: =SUMIF(F335:F4080,F146,AR335:AR4080) -> 0 | AS146: =SUMIF(F335:F4080,F146,AS335:AS4080) -> 0 | AT146: =SUMIF(F335:F4080,F146,AT335:AT4080) -> 0 | AU146: =SUMIF(F335:F4080,F146,AU335:AU4080) -> 0
